Workbook

Sheet Muni-L1
B1: =B92 -> Fiscal Year 2012 | L1: REVENUES | AA1: EXPENDITURES
B2: Level One | C2: Municipal Code | D2: Municipal Name | E2: County Name | F2: Fiscal Year End | G2: Population | H2: Enrollment | I2: Land Area (sq. mi.) | J2: Full Value | K2: Total Debt Outstanding at EOFY | L2: Real Property Texes & Assessments | M2: Other Real Property Tax Items | N2: Sales & Use Tax | O2: Other Non-Property Taxes | P2: Charges for Services | Q2: Charges to Other Governments | R2: Use & Sale of Property | S2: Other Local Revenues | T2: Local Revenues | U2: State Aid | V2: Federal Aid | W2: Total Revenues | X2: Proceeds of Debt | Y2: Other Services | Z2: Total Revenues & Other Sources | AA2: General Government | AB2: Education | AC2: Public Safety | AD2: Health | AE2: Transportation | AF2: Social Services | AG2: Economic Development | AH2: Culture & Recreation | AI2: Community Services | AJ2: Utilities | AK2: Sanitation | AL2: Employee Benefits | AM2: Debt Service | AN2: Total Expenditures | AO2: Other Uses | AP2: Total Expenditures & Other Uses
B3: Albany County | C3: =C94 -> 010100000000 | D3: =D94 -> County of Albany | E3: Albany | F3: 12/31 | G3: 304204 | H3: 0 | I3: 522.8 | J3: 23656149879 | K3: 266458748 | L3: 75745309 | M3: 7817104 | N3: 246769820 | O3: 1580578 | P3: 64620785 | Q3: 19753666 | R3: 12832125 | S3: 14329351 | T3: 443448738 | U3: 63441777 | V3: 64436446 | W3: 571326960 | X3: 21871045 | Y3: 48975772 | Z3: 642173778 | AA3: 158923974 | AB3: 22570691 | AC3: 50542411 | AD3: 29359910 | AE3: 19847557 | AF3: 191508109 | AG3: 2378401 | AH3: 5177686 | AI3: 6142395 | AJ3: 0 | AK3: 6538104 | AL3: 71116218 | AM3: 25553710 | AN3: 589659167 | AO3: 48975773 | AP3: 638634940
B4: City of Albany | C4: =C95 -> 010201000000 | D4: City of Albany | E4: Albany | F4: 12/31 | G4: 97856 | H4: 0 | I4: 21.4 | J4: 4783457074 | K4: 134096527 | L4: 54696762 | M4: 27477382 | N4: 32175423 | O4: 1535505 | P4: 15369147 | Q4: 1067383 | R4: 3210302 | S4: 8262348 | T4: 143794252 | U4: 21565593 | V4: 5548738 | W4: 170908583 | X4: 42927983 | Y4: 0 | Z4: 213836566 | AA4: 21604305 | AB4: 0 | AC4: 59194834 | AD4: 193147 | AE4: 12828096 | AF4: 1801215 | AG4: 350204 | AH4: 4195599 | AI4: 128899 | AJ4: 0 | AK4: 15043037 | AL4: 53873127 | AM4: 19225223 | AN4: 188437686 | AO4: 600084 | AP4: 189037770
B5: Town of Berne | C5: =C96 -> 010306800000 | D5: Town of Berne | E5: Albany | F5: 12/31 | G5: 2794 | H5: 0 | I5: 64 | J5: 256017185 | K5: 405260 | L5: 811214 | M5: 3779 | N5: 874834 | O5: 15662 | P5: 32497 | Q5: 0 | R5: 35157 | S5: 137492 | T5: 1910636 | U5: 388710 | V5: 225099 | W5: 2524445 | X5: 311015 | Y5: 0 | Z5: 2835460 | AA5: 482721 | AB5: 0 | AC5: 101808 | AD5: 1000 | AE5: 1363922 | AF5: 0 | AG5: 0 | AH5: 68530 | AI5: 0 | AJ5: 0 | AK5: 106512 | AL5: 274170 | AM5: 324700 | AN5: 2723364 | AO5: 0 | AP5: 2723364
B6: Town of Bethlehem | C6: =C97 -> 010307100000 | D6: Town of Bethlehem | E6: Albany | F6: 12/31 | G6: 33656 | H6: 0 | I6: 49 | J6: 3274265514 | K6: 19515500 | L6: 11217280 | M6: 2058671 | N6: 10538085 | O6: 598918 | P6: 11330085 | Q6: 80770 | R6: 1362121 | S6: 1181218 | T6: 38367148 | U6: 2099684 | V6: 1978010 | W6: 42444842 | X6: 320500 | Y6: 927811 | Z6: 43693153 | AA6: 4010663 | AB6: 11640 | AC6: 7018296 | AD6: 1466 | AE6: 5262738 | AF6: 817643 | AG6: 0 | AH6: 1797183 | AI6: 521167 | AJ6: 6545827 | AK6: 4117611 | AL6: 7502762 | AM6: 2093896 | AN6: 39700892 | AO6: 927810 | AP6: 40628702
B7: Town of Coeymans | C7: =C98 -> 010318000000 | D7: Town of Coeymans | E7: Albany | F7: 12/31 | G7: 7418 | H7: 0 | I7: 50.1 | J7: 604642893 | K7: 1695908 | L7: 1812087 | M7: 12769 | N7: 1686310 | O7: 9953 | P7: 221859 | Q7: 295760 | R7: 30162 | S7: 258698 | T7: 4327599 | U7: 276713 | V7: 547327 | W7: 5151639 | X7: 173525 | Y7: 1585861 | Z7: 6911025 | AA7: 832826 | AB7: 0 | AC7: 1252154 | AD7: 180478 | AE7: 1149135 | AF7: 491514 | AG7: 1777 | AH7: 29786 | AI7: 205106 | AJ7: 0 | AK7: 372844 | AL7: 968792 | AM7: 41466 | AN7: 5525879 | AO7: 1585861 | AP7: 7111740
B8: Village of Ravena | C8: =C99 -> 010418004140 | D8: Village of Ravena | E8: Albany | F8: 05/31 | G8: 3268 | H8: 0 | I8: 1.5 | J8: 166757333 | K8: 565000 | L8: 768498 | M8: 4706 | N8: 681784 | O8: 0 | P8: 1005208 | Q8: 4837 | R8: 61442 | S8: 150451 | T8: 2676926 | U8: 59981 | V8: 79040 | W8: 2815947 | X8: 0 | Y8: 67337 | Z8: 2883284 | AA8: 660615 | AB8: 0 | AC8: 126772 | AD8: 20 | AE8: 162148 | AF8: 0 | AG8: 1185 | AH8: 110866 | AI8: 7080 | AJ8: 470276 | AK8: 273054 | AL8: 561288 | AM8: 171417 | AN8: 2544721 | AO8: 67337 | AP8: 2612058
B9: City of Cohoes | C9: =C100 -> 010209000000 | D9: City of Cohoes | E9: Albany | F9: 12/31 | G9: 16168 | H9: 0 | I9: 3.8 | J9: 722367643 | K9: 12033306 | L9: 6604278 | M9: 645277 | N9: 5234552 | O9: 334627 | P9: 4313069 | Q9: 232956 | R9: 64152 | S9: 662379 | T9: 18091290 | U9: 3594993 | V9: 481941 | W9: 22168224 | X9: 2121050 | Y9: 186078 | Z9: 24475352 | AA9: 2584646 | AB9: 0 | AC9: 7442806 | AD9: 0 | AE9: 2027252 | AF9: 0 | AG9: 126976 | AH9: 725719 | AI9: 2125961 | AJ9: 789498 | AK9: 2212693 | AL9: 5094897 | AM9: 2530440 | AN9: 25660888 | AO9: 186078 | AP9: 25846966
B10: Town of Colonie | C10: =C101 -> 010318700000 | D10: Town of Colonie | E10: Albany | F10: 12/31 | G10: 81591 | H10: 0 | I10: 55.9 | J10: 8359402973 | K10: 97579667 | L10: 31245009 | M10: 1094324 | N10: 21918377 | O10: 0 | P10: 18164700 | Q10: 234948 | R10: 10533418 | S10: 4728559 | T10: 87919335 | U10: 3691125 | V10: 3052949 | W10: 94663409 | X10: 9424642 | Y10: 4210000 | Z10: 108298051 | AA10: 17565215 | AB10: 0 | AC10: 23257292 | AD10: 4229 | AE10: 9458110 | AF10: 2150436 | AG10: 804368 | AH10: 6834492 | AI10: 138264 | AJ10: 8425476 | AK10: 3938262 | AL10: 19898896 | AM10: 7311018 | AN10: 99786058 | AO10: 4210000 | AP10: 103996058
B11: Village of Colonie | C11: =C102 -> 010418701100 | D11: Village of Colonie | E11: Albany | F11: 05/31 | G11: 7793 | H11: 0 | I11: 3.2 | J11: 792693949 | K11: 0 | L11: 1189160 | M11: 20797 | N11: 2360109 | O11: 146977 | P11: 2836524 | Q11: 0 | R11: 20704 | S11: 52448 | T11: 6626719 | U11: 233180 | V11: 118177 | W11: 6978076 | X11: 0 | Y11: 0 | Z11: 6978076 | AA11: 764493 | AB11: 0 | AC11: 536231 | AD11: 1281 | AE11: 947739 | AF11: 0 | AG11: 104082 | AH11: 547103 | AI11: 106341 | AJ11: 1477246 | AK11: 1396953 | AL11: 982488 | AM11: 0 | AN11: 6863957 | AO11: 0 | AP11: 6863957
B12: Village of Menands | C12: =C103 -> 010418703040 | D12: Village of Menands | E12: Albany | F12: 05/31 | G12: 3990 | H12: 0 | I12: 3.1 | J12: 455343030 | K12: 1500000 | L12: 1964708 | M12: 17552 | N12: 1374822 | O12: 88006 | P12: 1339859 | Q12: 90630 | R12: 22870 | S12: 274005 | T12: 5172452 | U12: 118330 | V12: 8185 | W12: 5298967 | X12: 0 | Y12: 0 | Z12: 5298967 | AA12: 748478 | AB12: 0 | AC12: 1270763 | AD12: 0 | AE12: 622993 | AF12: 0 | AG12: 53397 | AH12: 80083 | AI12: 1326112 | AJ12: 918463 | AK12: 594583 | AL12: 1007154 | AM12: 0 | AN12: 6622026 | AO12: 0 | AP12: 6622026
B13: Town/Village of Green Island | C13: =C104 -> 010334500000 | D13: Town of Green Island | E13: Albany | F13: 12/31 | G13: 2620 | H13: 0 | I13: 0.8 | J13: 139611025 | K13: 0 | L13: 0 | M13: 883 | N13: 94814 | O13: 0 | P13: 1179 | Q13: 0 | R13: 101 | S13: 191842 | T13: 288819 | U13: 46428 | V13: 0 | W13: 335247 | X13: 0 | Y13: 0 | Z13: 335247 | AA13: 279968 | AB13: 0 | AC13: 760 | AD13: 0 | AE13: 0 | AF13: 0 | AG13: 0 | AH13: 10000 | AI13: 0 | AJ13: 0 | AK13: 0 | AL13: 37050 | AM13: 0 | AN13: 327778 | AO13: 0 | AP13: 327778
B14: Town/Village of Green Island | C14: =C105 -> 010434502040 | D14: Village of Green Island | E14: Albany | F14: 05/31 | G14: 2620 | H14: 0 | I14: 0.8 | J14: 153037930 | K14: 455000 | L14: 1838595 | M14: 404552 | N14: 707716 | O14: 43315 | P14: 1139158 | Q14: 419956 | R14: 194125 | S14: 54749 | T14: 4802166 | U14: 54420 | V14: 217733 | W14: 5074319 | X14: 0 | Y14: 32358 | Z14: 5106677 | AA14: 590017 | AB14: 0 | AC14: 1096359 | AD14: 0 | AE14: 204365 | AF14: 405831 | AG14: 0 | AH14: 126609 | AI14: 0 | AJ14: 381540 | AK14: 903407 | AL14: 824573 | AM14: 198769 | AN14: 4731470 | AO14: 32358 | AP14: 4763828
B15: Town/Village of Green Island | D15: Town/Village of Green Island | E15: =E14 -> Albany | G15: =G14 -> 2620 | I15: =I14 -> 0.8 | J15: =J14 -> 153037930 | K15: =K13+K14 -> 455000 | L15: 1838595 | M15: 405435 | N15: 802530 | O15: 43315 | P15: 1140337 | Q15: 419956 | R15: 194226 | S15: 246591 | T15: 5090985 | U15: 100848 | V15: 217733 | W15: 5409566 | X15: 0 | Y15: 32358 | Z15: 5441924 | AA15: 869985 | AB15: 0 | AC15: 1097119 | AD15: 0 | AE15: 204365 | AF15: 405831 | AG15: 0 | AH15: 136609 | AI15: 0 | AJ15: 381540 | AK15: 903407 | AL15: 861623 | AM15: 198769 | AN15: 5059248 | AO15: 32358 | AP15: 5091606
B16: Town of Guilderland | C16: =C107 -> 010335500000 | D16: Town of Guilderland | E16: Albany | F16: 12/31 | G16: 35303 | H16: 0 | I16: 57.9 | J16: 3475449086 | K16: 23873000 | L16: 8302185 | M16: 85335 | N16: 10515228 | O16: 1128470 | P16: 7461794 | Q16: 102823 | R16: 1341269 | S16: 821817 | T16: 29758922 | U16: 2111214 | V16: 826832 | W16: 32696967 | X16: 0 | Y16: 1004581 | Z16: 33701548 | AA16: 2734237 | AB16: 0 | AC16: 6164817 | AD16: 364588 | AE16: 2909455 | AF16: 38644 | AG16: 746070 | AH16: 1518212 | AI16: 271468 | AJ16: 2558334 | AK16: 3071809 | AL16: 5321321 | AM16: 2600873 | AN16: 28299828 | AO16: 1004581 | AP16: 29304409
B17: Village of Altamont | C17: =C108 -> 010435500120 | D17: Village of Altamont | E17: Albany | F17: 05/31 | G17: 1720 | H17: 0 | I17: 1.2 | J17: 119295298 | K17: 1388978 | L17: 271972 | M17: 3061 | N17: 557104 | O17: 37492 | P17: 926580 | Q17: 106395 | R17: 29053 | S17: 38178 | T17: 1969835 | U17: 75543 | V17: 8303 | W17: 2053681 | X17: 0 | Y17: 0 | Z17: 2053681 | AA17: 438447 | AB17: 0 | AC17: 342041 | AD17: 0 | AE17: 204525 | AF17: 0 | AG17: 0 | AH17: 141490 | AI17: 847 | AJ17: 174278 | AK17: 332653 | AL17: 224530 | AM17: 102406 | AN17: 1961217 | AO17: 0 | AP17: 1961217
B18: Town of Knox | C18: =C109 -> 010344300000 | D18: Town of Knox | E18: Albany | F18: 12/31 | G18: 2692 | H18: 0 | I18: 41.8 | J18: 234514568 | K18: 799981 | L18: 253159 | M18: 3031 | N18: 842897 | O18: 42843 | P18: 5147 | Q18: 0 | R18: 13978 | S18: -136 | T18: 1160919 | U18: 126684 | V18: 205364 | W18: 1492967 | X18: 80000 | Y18: 1000 | Z18: 1573967 | AA18: 200239 | AB18: 0 | AC18: 106983 | AD18: 1165 | AE18: 522541 | AF18: 0 | AG18: 0 | AH18: 24082 | AI18: 1975 | AJ18: 0 | AK18: 84973 | AL18: 231933 | AM18: 94073 | AN18: 1267964 | AO18: 1000 | AP18: 1268964
B19: Town of New Scotland | C19: =C110 -> 010358100000 | D19: Town of New Scotland | E19: Albany | F19: 12/31 | G19: 8648 | H19: 0 | I19: 57.5 | J19: 961269944 | K19: 1985878 | L19: 2447491 | M19: 8418 | N19: 1834521 | O19: 34315 | P19: 448587 | Q19: 0 | R19: 24012 | S19: 191837 | T19: 4989181 | U19: 560210 | V19: 491213 | W19: 6040604 | X19: 94200 | Y19: 1243000 | Z19: 7377804 | AA19: 812470 | AB19: 0 | AC19: 1144510 | AD19: 1800 | AE19: 1549899 | AF19: 0 | AG19: 0 | AH19: 91570 | AI19: 69247 | AJ19: 334709 | AK19: 511305 | AL19: 798807 | AM19: 227836 | AN19: 5542153 | AO19: 1243000 | AP19: 6785153
B20: Village of Voorheesville | C20: =C111 -> 010458105090 | D20: Village of Voorheesville | E20: Albany | F20: 05/31 | G20: 2789 | H20: 0 | I20: 2.1 | J20: 239900476 | K20: 3420000 | L20: 258963 | M20: 1688 | N20: 902514 | O20: 57169 | P20: 605234 | Q20: 4711 | R20: 37118 | S20: 8822 | T20: 1876219 | U20: 148875 | V20: 0 | W20: 2025094 | X20: 0 | Y20: 0 | Z20: 2025094 | AA20: 309790 | AB20: 0 | AC20: 49510 | AD20: 750 | AE20: 494267 | AF20: 0 | AG20: 0 | AH20: 25117 | AI20: 2175 | AJ20: 133463 | AK20: 281595 | AL20: 260390 | AM20: 270850 | AN20: 1827907 | AO20: 0 | AP20: 1827907
B21: Town of Rensselaerville | C21: =C112 -> 010370600000 | D21: Town of Rensselaerville | E21: Albany | F21: 12/31 | G21: 1843 | H21: 0 | I21: 61.5 | J21: 229997661 | K21: 0 | L21: - | M21: - | N21: - | O21: - | P21: - | Q21: - | R21: - | S21: - | T21: - | U21: - | V21: - | W21: - | X21: - | Y21: - | Z21: - | AA21: - | AB21: - | AC21: - | AD21: - | AE21: - | AF21: - | AG21: - | AH21: - | AI21: - | AJ21: - | AK21: - | AL21: - | AM21: - | AN21: - | AO21: - | AP21: -
B22: City of Watervliet | C22: =C113 -> 010260000000 | D22: City of Watervliet | E22: Albany | F22: 12/31 | G22: 10254 | H22: 0 | I22: 1.4 | J22: 381943176 | K22: 8614000 | L22: 3889946 | M22: 141656 | N22: 3312113 | O22: 159942 | P22: 4787389 | Q22: 499059 | R22: 9173 | S22: 311097 | T22: 13110375 | U22: 1458715 | V22: 557806 | W22: 15126896 | X22: 0 | Y22: 1425840 | Z22: 16552736 | AA22: 1927920 | AB22: 0 | AC22: 5007523 | AD22: 37131 | AE22: 541310 | AF22: 0 | AG22: 770155 | AH22: 292528 | AI22: 26795 | AJ22: 1307253 | AK22: 1109097 | AL22: 3889801 | AM22: 1052688 | AN22: 15962201 | AO22: 1425840 | AP22: 17388041
B23: Town of Westerlo | C23: =C114 -> 010389000000 | D23: Town of Westerlo | E23: Albany | F23: 12/31 | G23: 3361 | H23: 0 | I23: 57.8 | J23: 294744193 | K23: 1276000 | L23: 1116610 | M23: 3674 | N23: 1052368 | O23: 8161 | P23: 76445 | Q23: 0 | R23: 42310 | S23: 28362 | T23: 2327930 | U23: 140049 | V23: 432985 | W23: 2900964 | X23: 698900 | Y23: 0 | Z23: 3599864 | AA23: 399834 | AB23: 0 | AC23: 434522 | AD23: 0 | AE23: 1194198 | AF23: 0 | AG23: 0 | AH23: 236364 | AI23: 0 | AJ23: 60846 | AK23: 133225 | AL23: 474309 | AM23: 392859 | AN23: 3326157 | AO23: 0 | AP23: 3326157
B24: Rensselaer County | C24: =C115 -> 380100000000 | D24: County of Rensselaer | E24: Rensselaer | F24: 12/31 | G24: 159429 | H24: 0 | I24: 652.4 | J24: 10468605971 | K24: 189200043 | L24: 57642408 | M24: 5397238 | N24: 75858457 | O24: 2222155 | P24: 58561930 | Q24: 20029389 | R24: 4899927 | S24: 22377888 | T24: 246989391 | U24: 50628832 | V24: 25122984 | W24: 322741206 | X24: 50415717 | Y24: 6308784 | Z24: 379465707 | AA24: 44962212 | AB24: 41321542 | AC24: 26378387 | AD24: 44677484 | AE24: 10837223 | AF24: 84538416 | AG24: 482768 | AH24: 366202 | AI24: 3325862 | AJ24: 0 | AK24: 13009245 | AL24: 54130276 | AM24: 16856765 | AN24: 340886382 | AO24: 6308784 | AP24: 347195166
B25: Village of Nassau | C25: =C116 -> 380456103330 | D25: Village of Nassau | E25: Rensselaer | F25: 05/31 | G25: 1133 | H25: 0 | I25: 0.7 | J25: 68877452 | K25: 645839 | L25: 317159 | M25: 8635 | N25: 71975 | O25: 20604 | P25: 332244 | Q25: 0 | R25: 497 | S25: 61844 | T25: 812958 | U25: 56708 | V25: 0 | W25: 869666 | X25: 0 | Y25: 10500 | Z25: 880166 | AA25: 163867 | AB25: 0 | AC25: 189447 | AD25: 0 | AE25: 64406 | AF25: 0 | AG25: 0 | AH25: 1608 | AI25: 0 | AJ25: 115172 | AK25: 83633 | AL25: 64858 | AM25: 120489 | AN25: 803480 | AO25: 10500 | AP25: 813980
B26: Village of Valley Falls | C26: =C117 -> 380467005020 | D26: Village of Valley Falls | E26: Rensselaer | F26: 05/31 | G26: 466 | H26: 0 | I26: 0.5 | J26: 26573407 | K26: 1711168 | L26: 49500 | M26: 1541 | N26: 32705 | O26: 4520 | P26: 102601 | Q26: 35000 | R26: 80 | S26: 7090 | T26: 233037 | U26: 35589 | V26: 0 | W26: 268626 | X26: 0 | Y26: 0 | Z26: 268626 | AA26: 54282 | AB26: 0 | AC26: 26343 | AD26: 0 | AE26: 36553 | AF26: 0 | AG26: 0 | AH26: 20336 | AI26: 30866 | AJ26: 0 | AK26: 2274 | AL26: 2459 | AM26: 92599 | AN26: 265712 | AO26: 0 | AP26: 265712
B27: Town of Berlin | C27: =C118 -> 380306700000 | D27: Town of Berlin | E27: Rensselaer | F27: 12/31 | G27: 1880 | H27: 0 | I27: 59.6 | J27: 160721959 | K27: 107500 | L27: 403884 | M27: 3111 | N27: 182175 | O27: 0 | P27: 159959 | Q27: 0 | R27: 955 | S27: 37432 | T27: 787517 | U27: 120814 | V27: 352905 | W27: 1261235 | X27: 126500 | Y27: 561890 | Z27: 1949625 | AA27: 646236 | AB27: 0 | AC27: 263000 | AD27: 200 | AE27: 526353 | AF27: 0 | AG27: 0 | AH27: 14263 | AI27: 5549 | AJ27: 43476 | AK27: 106503 | AL27: 108939 | AM27: 19000 | AN27: 1733519 | AO27: 561890 | AP27: 2295409
B28: Town of Brunswick | C28: =C119 -> 380309900000 | D28: Town of Brunswick | E28: Rensselaer | F28: 12/31 | G28: 11941 | H28: 0 | I28: 44.4 | J28: 988851458 | K28: 2075250 | L28: 3484124 | M28: 31017 | N28: 1128710 | O28: 102899 | P28: 1524818 | Q28: 49335 | R28: 82693 | S28: 14321 | T28: 6417917 | U28: 777341 | V28: 516271 | W28: 7711529 | X28: 47250 | Y28: 360337 | Z28: 8119116 | AA28: 1088805 | AB28: 0 | AC28: 1086881 | AD28: 2500 | AE28: 2502463 | AF28: 0 | AG28: 97019 | AH28: 378978 | AI28: 13947 | AJ28: 1271141 | AK28: 140384 | AL28: 960401 | AM28: 232243 | AN28: 7774762 | AO28: 360337 | AP28: 8135099
B29: Town of East Greenbush | C29: =C120 -> 380324900000 | D29: Town of East Greenbush | E29: Rensselaer | F29: 12/31 | G29: 16473 | H29: 0 | I29: 24 | J29: 1522187830 | K29: 6236517 | L29: 8641643 | M29: 520673 | N29: 1919283 | O29: 206272 | P29: 4187560 | Q29: 383717 | R29: 91884 | S29: 918048 | T29: 16869080 | U29: 2051816 | V29: 83743 | W29: 19004639 | X29: 440891 | Y29: 0 | Z29: 19445530 | AA29: 2894751 | AB29: 0 | AC29: 3889272 | AD29: 6840 | AE29: 1927867 | AF29: 0 | AG29: 0 | AH29: 304844 | AI29: 6665 | AJ29: 2549551 | AK29: 2286998 | AL29: 3455642 | AM29: 1053348 | AN29: 18375778 | AO29: 0 | AP29: 18375778
B30: Town of Grafton | C30: =C121 -> 380333500000 | D30: Town of Grafton | E30: Rensselaer | F30: 12/31 | G30: 2130 | H30: 0 | I30: 44.7 | J30: 208773240 | K30: 331300 | L30: 666717 | M30: 1193 | N30: 155850 | O30: 0 | P30: 31180 | Q30: 0 | R30: 16215 | S30: 18046 | T30: 889202 | U30: 238654 | V30: 112737 | W30: 1240594 | X30: 33000 | Y30: 0 | Z30: 1273594 | AA30: 218126 | AB30: 0 | AC30: 33407 | AD30: 1000 | AE30: 873715 | AF30: 0 | AG30: 0 | AH30: 36054 | AI30: 5026 | AJ30: 0 | AK30: 40757 | AL30: 189015 | AM30: 71982 | AN30: 1469083 | AO30: 0 | AP30: 1469083
B31: Town of Hoosick | C31: =C122 -> 380339800000 | D31: Town of Hoosick | E31: Rensselaer | F31: 12/31 | G31: 6924 | H31: 0 | I31: 63 | J31: 409050599 | K31: 0 | L31: 1459607 | M31: 5969 | N31: 298906 | O31: 2741 | P31: 75418 | Q31: 17170 | R31: 1862 | S31: 46607 | T31: 1908280 | U31: 274427 | V31: 7367 | W31: 2190074 | X31: 0 | Y31: 31803 | Z31: 2221877 | AA31: 402791 | AB31: 0 | AC31: 276448 | AD31: 1200 | AE31: 598437 | AF31: 0 | AG31: 0 | AH31: 155428 | AI31: 6300 | AJ31: 1555 | AK31: 0 | AL31: 339848 | AM31: 0 | AN31: 1782007 | AO31: 31803 | AP31: 1813810
B32: Village of Hoosick Falls | C32: =C123 -> 380439802380 | D32: Village of Hoosick Falls | E32: Rensselaer | F32: 05/31 | G32: 3501 | H32: 0 | I32: 1.6 | J32: 146404072 | K32: 15988780 | L32: 1128644 | M32: 34356 | N32: 191654 | O32: 35310 | P32: 1656765 | Q32: 0 | R32: 597 | S32: 72747 | T32: 3120073 | U32: 242515 | V32: 0 | W32: 3362588 | X32: 20979 | Y32: 0 | Z32: 3383567 | AA32: 219798 | AB32: 0 | AC32: 386225 | AD32: 0 | AE32: 563672 | AF32: 0 | AG32: 33551 | AH32: 24403 | AI32: 0 | AJ32: 2582852 | AK32: 611923 | AL32: 362610 | AM32: 551238 | AN32: 5336272 | AO32: 0 | AP32: 5336272
B33: Town of Nassau | C33: =C124 -> 380356100000 | D33: Town of Nassau | E33: Rensselaer | F33: 12/31 | G33: 4789 | H33: 0 | I33: 44.4 | J33: 374789538 | K33: 309181 | L33: 1006120 | M33: 6014 | N33: 307108 | O33: 21838 | P33: 98965 | Q33: 5370 | R33: 19815 | S33: 30347 | T33: 1495577 | U33: 251433 | V33: 331241 | W33: 2078251 | X33: 219000 | Y33: 261458 | Z33: 2558709 | AA33: 413146 | AB33: 0 | AC33: 210346 | AD33: 1690 | AE33: 686735 | AF33: 182381 | AG33: 10000 | AH33: 24469 | AI33: 2771 | AJ33: 0 | AK33: 86689 | AL33: 303976 | AM33: 296402 | AN33: 2218605 | AO33: 261458 | AP33: 2480063
B34: Village of East Nassau | C34: =C125 -> 380456101435 | D34: Village of East Nassau | E34: Rensselaer | F34: 05/31 | G34: 587 | H34: 0 | I34: 4.9 | J34: 41414460 | K34: 0 | L34: 52762 | M34: 578 | N34: 46830 | O34: 0 | P34: 855 | Q34: 0 | R34: 89 | S34: 0 | T34: 101115 | U34: 26586 | V34: 5283 | W34: 132984 | X34: 0 | Y34: 0 | Z34: 132984 | AA34: 34505 | AB34: 0 | AC34: 3934 | AD34: 0 | AE34: 70995 | AF34: 0 | AG34: 0 | AH34: 0 | AI34: 0 | AJ34: 0 | AK34: 0 | AL34: 2504 | AM34: 0 | AN34: 111938 | AO34: 0 | AP34: 111938
B35: Town of North Greenbush | C35: =C126 -> 380359500000 | D35: Town of North Greenbush | E35: Rensselaer | F35: 12/31 | G35: 12075 | H35: 0 | I35: 18.6 | J35: 938453313 | K35: 19593999 | L35: 5016759 | M35: 462419 | N35: 1303535 | O35: 224457 | P35: 1829321 | Q35: 0 | R35: 29074 | S35: 196913 | T35: 9062478 | U35: 888280 | V35: 220102 | W35: 10170860 | X35: 679000 | Y35: 139102 | Z35: 10988962 | AA35: 1004801 | AB35: 0 | AC35: 2009801 | AD35: 8229 | AE35: 1401264 | AF35: 0 | AG35: 0 | AH35: 485597 | AI35: 10000 | AJ35: 1460298 | AK35: 133983 | AL35: 1452060 | AM35: 1664173 | AN35: 9630205 | AO35: 139102 | AP35: 9769307
B36: Town of Petersburgh | C36: =C127 -> 380365600000 | D36: Town of Petersburgh | E36: Rensselaer | F36: 12/31 | G36: 1525 | H36: 0 | I36: 41.6 | J36: 124391844 | K36: 195400 | L36: 535478 | M36: 1130 | N36: 137674 | O36: 0 | P36: 69801 | Q36: 7550 | R36: 2885 | S36: 8960 | T36: 763479 | U36: 247650 | V36: 331 | W36: 1011459 | X36: 0 | Y36: 11176 | Z36: 1022635 | AA36: 174757 | AB36: 0 | AC36: 36150 | AD36: 13500 | AE36: 518866 | AF36: 0 | AG36: 2381 | AH36: 58629 | AI36: 7029 | AJ36: 20322 | AK36: 69304 | AL36: 100864 | AM36: 37745 | AN36: 1039550 | AO36: 11176 | AP36: 1050725
B37: Town of Pittstown | C37: =C128 -> 380367000000 | D37: Town of Pittstown | E37: Rensselaer | F37: 12/31 | G37: 5735 | H37: 0 | I37: 61.6 | J37: 385880562 | K37: 980000 | L37: 1962983 | M37: 7438 | N37: 413278 | O37: 0 | P37: 17539 | Q37: 0 | R37: 9660 | S37: 130986 | T37: 2541884 | U37: 375803 | V37: 141797 | W37: 3059484 | X37: 0 | Y37: 0 | Z37: 3059484 | AA37: 694445 | AB37: 0 | AC37: 121545 | AD37: 1415 | AE37: 2604383 | AF37: 0 | AG37: 0 | AH37: 22455 | AI37: 2435 | AJ37: 0 | AK37: 520368 | AL37: 334619 | AM37: 0 | AN37: 4301666 | AO37: 0 | AP37: 4301666
B38: Town of Poestenkill | C38: =C129 -> 380367600000 | D38: Town of Poestenkill | E38: Rensselaer | F38: 12/31 | G38: 4530 | H38: 0 | I38: 32.4 | J38: 343061896 | K38: 9208000 | L38: 1407126 | M38: 4529 | N38: 386537 | O38: 29784 | P38: 67948 | Q38: 4362 | R38: 3506 | S38: 52742 | T38: 1956534 | U38: 337182 | V38: 207808 | W38: 2501524 | X38: 161000 | Y38: 0 | Z38: 2662524 | AA38: 315113 | AB38: 0 | AC38: 298176 | AD38: 1500 | AE38: 811441 | AF38: 0 | AG38: 0 | AH38: 111041 | AI38: 15750 | AJ38: 223663 | AK38: 9827 | AL38: 255236 | AM38: 161000 | AN38: 2202747 | AO38: 0 | AP38: 2202747
B39: City of Rensselaer | C39: =C130 -> 380247000000 | D39: City of Rensselaer | E39: Rensselaer | F39: 07/31 | G39: 9392 | H39: 0 | I39: 3.2 | J39: 446122913 | K39: 9319697 | L39: 6609131 | M39: 1357598 | N39: 2259221 | O39: 149402 | P39: 3414793 | Q39: 133942 | R39: 45482 | S39: 965665 | T39: 14935234 | U39: 3723472 | V39: 88429 | W39: 18747135 | X39: 474000 | Y39: 81000 | Z39: 19302135 | AA39: 2026449 | AB39: 0 | AC39: 3899278 | AD39: 0 | AE39: 4347484 | AF39: 0 | AG39: 1349711 | AH39: 222841 | AI39: 19163 | AJ39: 1501545 | AK39: 927482 | AL39: 3349675 | AM39: 1377169 | AN39: 19020797 | AO39: 81000 | AP39: 19101797
B40: Town of Sand Lake | C40: =C131 -> 380374100000 | D40: Town of Sand Lake | E40: Rensselaer | F40: 12/31 | G40: 8530 | H40: 0 | I40: 35.1 | J40: 743128109 | K40: 2696088 | L40: 1707228 | M40: 12133 | N40: 846737 | O40: 132738 | P40: 704840 | Q40: 3563 | R40: 25142 | S40: 82721 | T40: 3515101 | U40: 472419 | V40: 15049 | W40: 4002569 | X40: 110408 | Y40: 64145 | Z40: 4177122 | AA40: 870387 | AB40: 0 | AC40: 554745 | AD40: 1000 | AE40: 1408302 | AF40: 0 | AG40: 0 | AH40: 244953 | AI40: 3250 | AJ40: 0 | AK40: 285024 | AL40: 607402 | AM40: 206187 | AN40: 4181249 | AO40: 64145 | AP40: 4245394
B41: Town of Schaghticoke | C41: =C132 -> 380375200000 | D41: Town of Schaghticoke | E41: Rensselaer | F41: 12/31 | G41: 7679 | H41: 0 | I41: 49.8 | J41: 581325652 | K41: 4926472 | L41: 2282528 | M41: 8513 | N41: 635835 | O41: 52294 | P41: 409495 | Q41: 4345 | R41: 7108 | S41: 56669 | T41: 3456787 | U41: 336452 | V41: 81286 | W41: 3874525 | X41: 84700 | Y41: 34671 | Z41: 3993896 | AA41: 420996 | AB41: 0 | AC41: 366522 | AD41: 3963 | AE41: 1180430 | AF41: 0 | AG41: 0 | AH41: 64962 | AI41: 3900 | AJ41: 397741 | AK41: 659696 | AL41: 426044 | AM41: 388154 | AN41: 3912408 | AO41: 34671 | AP41: 3947079
B42: Village of Schaghticoke | C42: =C133 -> 380475204460 | D42: Village of Schaghticoke | E42: Rensselaer | F42: 05/31 | G42: 592 | H42: 0 | I42: 0.8 | J42: 36439936 | K42: 0 | L42: 141563 | M42: 474 | N42: 55395 | O42: 5513 | P42: 82782 | Q42: 0 | R42: 15544 | S42: 122 | T42: 301392 | U42: 14410 | V42: 0 | W42: 315803 | X42: 0 | Y42: 21291 | Z42: 337094 | AA42: 82664 | AB42: 0 | AC42: 8836 | AD42: 50 | AE42: 86337 | AF42: 0 | AG42: 0 | AH42: 13000 | AI42: 2800 | AJ42: 61557 | AK42: 2434 | AL42: 19515 | AM42: 0 | AN42: 277192 | AO42: 21291 | AP42: 298483
B43: Town of Schodack | C43: =C134 -> 380375300000 | D43: Town of Schodack | E43: Rensselaer | F43: 12/31 | G43: 12794 | H43: 0 | I43: 61.9 | J43: 1151932933 | K43: 14669641 | L43: 5800698 | M43: 99338 | N43: 1228256 | O43: 77693 | P43: 822226 | Q43: 10583 | R43: 188370 | S43: 797865 | T43: 9025029 | U43: 778953 | V43: 695727 | W43: 10499709 | X43: 1502538 | Y43: 956487 | Z43: 12958734 | AA43: 1495512 | AB43: 0 | AC43: 1503758 | AD43: 2386 | AE43: 1772572 | AF43: 237753 | AG43: 6000 | AH43: 556277 | AI43: 24490 | AJ43: 641678 | AK43: 474689 | AL43: 1238919 | AM43: 1446268 | AN43: 9400302 | AO43: 956487 | AP43: 10356789
B44: Village of Castleton-on-Hudson | C44: =C135 -> 380475300790 | D44: Village of Castleton-On-Hudson | E44: Rensselaer | F44: 05/31 | G44: 1473 | H44: 0 | I44: 0.7 | J44: 88145521 | K44: 1978626 | L44: 376582 | M44: 4551 | N44: 121783 | O44: 15788 | P44: 947838 | Q44: 91489 | R44: 4806 | S44: 11217 | T44: 1574054 | U44: 85565 | V44: 14255 | W44: 1673874 | X44: 95626 | Y44: 0 | Z44: 1769500 | AA44: 157026 | AB44: 1559 | AC44: 85092 | AD44: 1742 | AE44: 253299 | AF44: 0 | AG44: 0 | AH44: 172182 | AI44: 4444 | AJ44: 245470 | AK44: 323259 | AL44: 163995 | AM44: 223194 | AN44: 1631262 | AO44: 0 | AP44: 1631262
B45: Town of Stephentown | C45: =C136 -> 380380400000 | D45: Town of Stephentown | E45: Rensselaer | F45: 12/31 | G45: 2903 | H45: 0 | I45: 57.9 | J45: 269927910 | K45: 0 | L45: 658990 | M45: 5115 | N45: 304526 | O45: 0 | P45: 6133 | Q45: 0 | R45: 69415 | S45: 42204 | T45: 1086383 | U45: 204156 | V45: 103777 | W45: 1394316 | X45: 0 | Y45: 0 | Z45: 1394316 | AA45: 244954 | AB45: 0 | AC45: 32835 | AD45: 760 | AE45: 655293 | AF45: 0 | AG45: 51058 | AH45: 73638 | AI45: 1388 | AJ45: 0 | AK45: 97737 | AL45: 127081 | AM45: 0 | AN45: 1284743 | AO45: 0 | AP45: 1284743
B46: City of Troy | C46: =C137 -> 380257000000 | D46: City of Troy | E46: Rensselaer | F46: 12/31 | G46: 50129 | H46: 0 | I46: 10.4 | J46: 1855224587 | K46: 53148061 | L46: 18981678 | M46: 2000032 | N46: 15341923 | O46: 533414 | P46: 20681186 | Q46: 291773 | R46: 1891782 | S46: 3924035 | T46: 63645823 | U46: 17649854 | V46: 10303837 | W46: 91599514 | X46: 738648 | Y46: 3161453 | Z46: 95499615 | AA46: 10345956 | AB46: 0 | AC46: 23332985 | AD46: 135438 | AE46: 10741678 | AF46: 0 | AG46: 6506770 | AH46: 3816381 | AI46: 224212 | AJ46: 8843076 | AK46: 4489236 | AL46: 21125703 | AM46: 6708646 | AN46: 96270081 | AO46: 3161453 | AP46: 99431534
B47: Saratoga County | C47: =C138 -> 410100000000 | D47: County of Saratoga | E47: Saratoga | F47: 12/31 | G47: 219607 | H47: 0 | I47: 810 | J47: 22106339320 | K47: 71550000 | L47: 49020680 | M47: 4910093 | N47: 106727044 | O47: 2077360 | P47: 49724783 | Q47: 5780660 | R47: 2765231 | S47: 4211268 | T47: 225217119 | U47: 23786397 | V47: 23340808 | W47: 272344324 | X47: 0 | Y47: 27263874 | Z47: 299608198 | AA47: 80745130 | AB47: 16903246 | AC47: 21164880 | AD47: 30622272 | AE47: 16033952 | AF47: 51351340 | AG47: 557610 | AH47: 734627 | AI47: 5033725 | AJ47: 0 | AK47: 8669049 | AL47: 43247690 | AM47: 7205444 | AN47: 282268966 | AO47: 27263874 | AP47: 309532840
B48: Village of Ballston Spa | C48: =C139 -> 410453400340 | D48: Village of Ballston Spa | E48: Saratoga | F48: 05/31 | G48: 5409 | H48: 0 | I48: 1.6 | J48: 327076112 | K48: 465230 | L48: 1149095 | M48: 7412 | N48: 990981 | O48: 59696 | P48: 903319 | Q48: 369293 | R48: 91491 | S48: 70158 | T48: 3641445 | U48: 196245 | V48: 880322 | W48: 4718012 | X48: 102230 | Y48: 0 | Z48: 4820242 | AA48: 511464 | AB48: 0 | AC48: 914276 | AD48: 8143 | AE48: 650144 | AF48: 1028258 | AG48: 3112 | AH48: 379818 | AI48: 17700 | AJ48: 420413 | AK48: 71077 | AL48: 783794 | AM48: 356405 | AN48: 5144604 | AO48: 0 | AP48: 5144604
B49: Town of Ballston | C49: =C140 -> 410304900000 | D49: Town of Ballston | E49: Saratoga | F49: 12/31 | G49: 9776 | H49: 0 | I49: 29.6 | J49: 900014657 | K49: 3510470 | L49: 1296039 | M49: 0 | N49: 2392625 | O49: 75602 | P49: 648807 | Q49: 80373 | R49: 49703 | S49: 211473 | T49: 4754622 | U49: 825016 | V49: 72154 | W49: 5651792 | X49: 470000 | Y49: 6000 | Z49: 6127792 | AA49: 936822 | AB49: 0 | AC49: 380617 | AD49: 3151 | AE49: 1503690 | AF49: 0 | AG49: 752918 | AH49: 475980 | AI49: 23965 | AJ49: 946958 | AK49: 13757 | AL49: 669287 | AM49: 1136209 | AN49: 6843354 | AO49: 6000 | AP49: 6849354
B50: Town of Charlton | C50: =C141 -> 410314700000 | D50: Town of Charlton | E50: Saratoga | F50: 12/31 | G50: 4133 | H50: 0 | I50: 32.8 | J50: 432037422 | K50: 1482700 | L50: 137698 | M50: 2418 | N50: 1116721 | O50: 33528 | P50: 176316 | Q50: 360 | R50: 5733 | S50: 91522 | T50: 1564296 | U50: 285182 | V50: 74679 | W50: 1924157 | X50: 100000 | Y50: 70265 | Z50: 2094422 | AA50: 510641 | AB50: 0 | AC50: 133803 | AD50: 881 | AE50: 619123 | AF50: 0 | AG50: 0 | AH50: 73358 | AI50: 7585 | AJ50: 205810 | AK50: 10190 | AL50: 236531 | AM50: 242654 | AN50: 2040576 | AO50: 70265 | AP50: 2110841
B51: Town of Clifton Park | C51: =C142 -> 410317400000 | D51: Town of Clifton Park | E51: Saratoga | F51: 12/31 | G51: 36705 | H51: 0 | I51: 48.2 | J51: 3924510250 | K51: 10888027 | L51: 3217919 | M51: 177976 | N51: 10965830 | O51: 0 | P51: 3232462 | Q51: 803388 | R51: 915464 | S51: 923239 | T51: 20236278 | U51: 2366955 | V51: 453508 | W51: 23056741 | X51: 0 | Y51: 3978615 | Z51: 27035356 | AA51: 2648471 | AB51: 0 | AC51: 4173720 | AD51: 11720 | AE51: 4329580 | AF51: 301279 | AG51: 800 | AH51: 3183518 | AI51: 433496 | AJ51: 10365 | AK51: 1800492 | AL51: 3578611 | AM51: 1139181 | AN51: 21611233 | AO51: 3978615 | AP51: 25589848
B52: Town of Corinth | C52: =C143 -> 410320000000 | D52: Town of Corinth | E52: Saratoga | F52: 12/31 | G52: 6531 | H52: 0 | I52: 56.8 | J52: 538874150 | K52: 120000 | L52: 1747678 | M52: 407415 | N52: 847166 | O52: 51662 | P52: 443682 | Q52: 101362 | R52: 32210 | S52: 57424 | T52: 3688598 | U52: 196022 | V52: 248391 | W52: 4133011 | X52: 120000 | Y52: 0 | Z52: 4253011 | AA52: 606371 | AB52: 0 | AC52: 592216 | AD52: 358139 | AE52: 1138942 | AF52: 0 | AG52: 204798 | AH52: 96167 | AI52: 114164 | AJ52: 28807 | AK52: 259521 | AL52: 465754 | AM52: 0 | AN52: 3864877 | AO52: 0 | AP52: 3864877
B53: Village of Corinth | C53: =C144 -> 410420001150 | D53: Village of Corinth | E53: Saratoga | F53: 05/31 | G53: 2559 | H53: 0 | I53: 1.1 | J53: 240578388 | K53: 5767231 | L53: 1478510 | M53: 253663 | N53: 734779 | O53: 0 | P53: 775132 | Q53: 274737 | R53: 26872 | S53: 10530 | T53: 3554223 | U53: 178872 | V53: 705978 | W53: 4439073 | X53: 315000 | Y53: 40000 | Z53: 4794073 | AA53: 316575 | AB53: 0 | AC53: 562993 | AD53: 0 | AE53: 751082 | AF53: 489627 | AG53: 264263 | AH53: 58601 | AI53: 8714 | AJ53: 166805 | AK53: 424028 | AL53: 412428 | AM53: 820638 | AN53: 4275754 | AO53: 40000 | AP53: 4315754
B54: Town of Day | C54: =C145 -> 410322000000 | D54: Town of Day | E54: Saratoga | F54: 12/31 | G54: 856 | H54: 0 | I54: 64.1 | J54: 305747599 | K54: 0 | L54: 470543 | M54: 37719 | N54: 830828 | O54: 0 | P54: 9306 | Q54: 0 | R54: 2438 | S54: 3500 | T54: 1354334 | U54: 170248 | V54: 0 | W54: 1524582 | X54: 0 | Y54: 0 | Z54: 1524582 | AA54: 261724 | AB54: 0 | AC54: 115143 | AD54: 775 | AE54: 739029 | AF54: 0 | AG54: 0 | AH54: 16165 | AI54: 1583 | AJ54: 0 | AK54: 95518 | AL54: 232099 | AM54: 0 | AN54: 1462036 | AO54: 0 | AP54: 1462036
B55: Town of Edinburg | C55: =C146 -> 410325500000 | D55: Town of Edinburg | E55: Saratoga | F55: 12/31 | G55: 1214 | H55: 0 | I55: 60.2 | J55: 362584892 | K55: 0 | L55: 297539 | M55: 6144 | N55: 960034 | O55: 0 | P55: 20081 | Q55: 0 | R55: 10234 | S55: 8694 | T55: 1302725 | U55: 115127 | V55: 0 | W55: 1417852 | X55: 0 | Y55: 0 | Z55: 1417852 | AA55: 292206 | AB55: 0 | AC55: 110269 | AD55: 9392 | AE55: 545261 | AF55: 0 | AG55: 2243 | AH55: 9821 | AI55: 13203 | AJ55: 0 | AK55: 318039 | AL55: 167180 | AM55: 0 | AN55: 1467614 | AO55: 0 | AP55: 1467614
B56: Town of Galway | C56: =C147 -> 410331400000 | D56: Town of Galway | E56: Saratoga | F56: 12/31 | G56: 3545 | H56: 0 | I56: 43.8 | J56: 408154891 | K56: 420000 | L56: 564000 | M56: 3308 | N56: 1098846 | O56: 49911 | P56: 9274 | Q56: 0 | R56: 6661 | S56: 24880 | T56: 1756881 | U56: 233465 | V56: 100117 | W56: 2090464 | X56: 0 | Y56: 0 | Z56: 2090464 | AA56: 277708 | AB56: 0 | AC56: 342630 | AD56: 1250 | AE56: 1028147 | AF56: 4020 | AG56: 0 | AH56: 61159 | AI56: 8559 | AJ56: 0 | AK56: 0 | AL56: 172557 | AM56: 131233 | AN56: 2027264 | AO56: 0 | AP56: 2027264
B57: Village of Galway | C57: =C148 -> 410431401900 | D57: Village of Galway | E57: Saratoga | F57: 05/31 | G57: 200 | H57: 0 | I57: 0.3 | J57: 14295447 | K57: 0 | L57: 0 | M57: 0 | N57: 43569 | O57: 0 | P57: 250 | Q57: 0 | R57: 416 | S57: 11025 | T57: 55260 | U57: 4962 | V57: 0 | W57: 60222 | X57: 0 | Y57: 0 | Z57: 60222 | AA57: 27306 | AB57: 0 | AC57: 23541 | AD57: 0 | AE57: 2775 | AF57: 0 | AG57: 0 | AH57: 2965 | AI57: 1382 | AJ57: 0 | AK57: 0 | AL57: 2473 | AM57: 0 | AN57: 60442 | AO57: 0 | AP57: 60442
B58: Town of Greenfield | C58: =C149 -> 410334400000 | D58: Town of Greenfield | E58: Saratoga | F58: 12/31 | G58: 7775 | H58: 0 | I58: 67.4 | J58: 749602234 | K58: 0 | L58: 1010060 | M58: 5726 | N58: 2084473 | O58: 63885 | P58: 652680 | Q58: 0 | R58: 84489 | S58: 105741 | T58: 4007054 | U58: 415918 | V58: 0 | W58: 4422972 | X58: 0 | Y58: 0 | Z58: 4422972 | AA58: 570436 | AB58: 0 | AC58: 63020 | AD58: 5101 | AE58: 2330010 | AF58: 0 | AG58: 140817 | AH58: 645149 | AI58: 102550 | AJ58: 0 | AK58: 33937 | AL58: 445983 | AM58: 0 | AN58: 4337002 | AO58: 0 | AP58: 4337002
B59: Town of Hadley | C59: =C150 -> 410335700000 | D59: Town of Hadley | E59: Saratoga | F59: 12/31 | G59: 2048 | H59: 0 | I59: 39.7 | J59: 272287834 | K59: 170000 | L59: 1363122 | M59: 3497 | N59: 744988 | O59: 18964 | P59: 134803 | Q59: 0 | R59: 3809 | S59: 146480 | T59: 2415664 | U59: 102521 | V59: 256476 | W59: 2774661 | X59: 0 | Y59: 419000 | Z59: 3193661 | AA59: 420200 | AB59: 0 | AC59: 156860 | AD59: 1348 | AE59: 987383 | AF59: 223773 | AG59: 3378 | AH59: 77726 | AI59: 22614 | AJ59: 56948 | AK59: 364816 | AL59: 379728 | AM59: 42463 | AN59: 2737236 | AO59: 419000 | AP59: 3156236
B60: Town of Halfmoon | C60: =C151 -> 410336000000 | D60: Town of Halfmoon | E60: Saratoga | F60: 12/31 | G60: 21535 | H60: 0 | I60: 32.6 | J60: 2004338104 | K60: 40256232 | L60: 2417929 | M60: 10951 | N60: 5490959 | O60: 223883 | P60: 5063287 | Q60: 254653 | R60: 111482 | S60: 553878 | T60: 14127022 | U60: 1330872 | V60: 847921 | W60: 16305815 | X60: 0 | Y60: 991809 | Z60: 17297624 | AA60: 2424899 | AB60: 0 | AC60: 1609869 | AD60: 104479 | AE60: 2487268 | AF60: 0 | AG60: 0 | AH60: 718833 | AI60: 90998 | AJ60: 3077180 | AK60: 107165 | AL60: 1544550 | AM60: 3908705 | AN60: 16073946 | AO60: 991809 | AP60: 17065755
B61: Town of Malta | C61: =C152 -> 410350100000 | D61: Town of Malta | E61: Saratoga | F61: 12/31 | G61: 14765 | H61: 0 | I61: 27.9 | J61: 1525523427 | K61: 2955000 | L61: 1840368 | M61: 77202 | N61: 4123696 | O61: 160751 | P61: 2538849 | Q61: 114000 | R61: 123114 | S61: 401292 | T61: 9379272 | U61: 1570249 | V61: 69221 | W61: 11018742 | X61: 0 | Y61: 2506983 | Z61: 13525725 | AA61: 3236883 | AB61: 0 | AC61: 1887690 | AD61: 4300 | AE61: 2916125 | AF61: 0 | AG61: 6392 | AH61: 1279267 | AI61: 39244 | AJ61: 0 | AK61: 108905 | AL61: 1029177 | AM61: 256008 | AN61: 10763991 | AO61: 2506983 | AP61: 13270974
B62: Village of Round Lake | C62: =C153 -> 410450104295 | D62: Village of Round Lake | E62: Saratoga | F62: 05/31 | G62: 623 | H62: 0 | I62: 1.1 | J62: 55898833 | K62: 2039562 | L62: 279385 | M62: 2687 | N62: 151594 | O62: 10164 | P62: 246036 | Q62: 754188 | R62: 65461 | S62: 11816 | T62: 1521331 | U62: 77940 | V62: 0 | W62: 1599271 | X62: 0 | Y62: 193819 | Z62: 1793090 | AA62: 202620 | AB62: 0 | AC62: 541396 | AD62: 61 | AE62: 225797 | AF62: 0 | AG62: 0 | AH62: 62123 | AI62: 5825 | AJ62: 90156 | AK62: 25867 | AL62: 96023 | AM62: 215396 | AN62: 1465264 | AO62: 193818 | AP62: 1659082
B63: City of Mechanicville | C63: =C154 -> 410229000000 | D63: City of Mechanicville | E63: Saratoga | F63: 12/31 | G63: 5196 | H63: 0 | I63: 0.8 | J63: 213032181 | K63: 0 | L63: - | M63: - | N63: - | O63: - | P63: - | Q63: - | R63: - | S63: - | T63: - | U63: - | V63: - | W63: - | X63: - | Y63: - | Z63: - | AA63: - | AB63: - | AC63: - | AD63: - | AE63: - | AF63: - | AG63: - | AH63: - | AI63: - | AJ63: - | AK63: - | AL63: - | AM63: - | AN63: - | AO63: - | AP63: -
B64: Town of Milton | C64: =C155 -> 410353400000 | D64: Town of Milton | E64: Saratoga | F64: 12/31 | G64: 18575 | H64: 0 | I64: 35.7 | J64: 1223587843 | K64: 0 | L64: 705349 | M64: 15843 | N64: 2854631 | O64: 152683 | P64: 204177 | Q64: 0 | R64: 14759 | S64: 117071 | T64: 4064513 | U64: 721730 | V64: 0 | W64: 4786243 | X64: 0 | Y64: 11743 | Z64: 4797986 | AA64: 1011190 | AB64: 0 | AC64: 244555 | AD64: 7313 | AE64: 1755603 | AF64: 0 | AG64: 402 | AH64: 283264 | AI64: 33249 | AJ64: 0 | AK64: 222 | AL64: 951266 | AM64: 818 | AN64: 4287882 | AO64: 11743 | AP64: 4299625
B65: Town of Moreau | C65: =C156 -> 410354900000 | D65: Town of Moreau | E65: Saratoga | F65: 12/31 | G65: 14728 | H65: 0 | I65: 41.9 | J65: 1303053856 | K65: 7866752 | L65: 1953513 | M65: 18026 | N65: 2501171 | O65: 163939 | P65: 1630882 | Q65: 0 | R65: 93411 | S65: 406378 | T65: 6767320 | U65: 582140 | V65: 0 | W65: 7349460 | X65: 1874467 | Y65: 57846 | Z65: 9281773 | AA65: 1714765 | AB65: 0 | AC65: 1284539 | AD65: 2500 | AE65: 1614541 | AF65: 0 | AG65: 8293 | AH65: 977752 | AI65: 255701 | AJ65: 3514885 | AK65: 188334 | AL65: 854171 | AM65: 125637 | AN65: 10541118 | AO65: 57846 | AP65: 10598964
B66: Village of South Glens Falls | C66: =C157 -> 410454904730 | D66: Village of South Glens Falls | E66: Saratoga | F66: 05/31 | G66: 3518 | H66: 0 | I66: 1.4 | J66: 260270394 | K66: 0 | L66: 1205534 | M66: 10206 | N66: 770645 | O66: 59719 | P66: 737506 | Q66: 431743 | R66: 26981 | S66: 43519 | T66: 3285853 | U66: 150771 | V66: 29768 | W66: 3466392 | X66: 0 | Y66: 25000 | Z66: 3491392 | AA66: 434544 | AB66: 0 | AC66: 995025 | AD66: 738 | AE66: 492524 | AF66: 0 | AG66: 38912 | AH66: 56260 | AI66: 5331 | AJ66: 134563 | AK66: 292950 | AL66: 750022 | AM66: 0 | AN66: 3200869 | AO66: 25000 | AP66: 3225869
B67: Town of Northumberland | C67: =C158 -> 410360100000 | D67: Town of Northumberland | E67: Saratoga | F67: 12/31 | G67: 5087 | H67: 0 | I67: 32.3 | J67: 359533018 | K67: 80000 | L67: 622400 | M67: 4537 | N67: 1051699 | O67: 0 | P67: 34735 | Q67: 0 | R67: 3425 | S67: 49252 | T67: 1766048 | U67: 335255 | V67: 83450 | W67: 2184753 | X67: 25000 | Y67: 0 | Z67: 2209753 | AA67: 383587 | AB67: 0 | AC67: 168856 | AD67: 8462 | AE67: 955657 | AF67: 0 | AG67: 0 | AH67: 45728 | AI67: 1450 | AJ67: 0 | AK67: 54489 | AL67: 278997 | AM67: 27474 | AN67: 1924700 | AO67: 0 | AP67: 1924700
B68: Town of Providence | C68: =C159 -> 410369300000 | D68: Town of Providence | E68: Saratoga | F68: 12/31 | G68: 1995 | H68: 0 | I68: 44 | J68: 184055375 | K68: 30000 | L68: 749807 | M68: 3832 | N68: 523765 | O68: 26327 | P68: 32112 | Q68: 2194 | R68: 2768 | S68: 20321 | T68: 1361126 | U68: 182789 | V68: 27684 | W68: 1571599 | X68: 0 | Y68: 0 | Z68: 1571599 | AA68: 182489 | AB68: 0 | AC68: 55947 | AD68: 272 | AE68: 902066 | AF68: 2865 | AG68: 0 | AH68: 8326 | AI68: 4814 | AJ68: 0 | AK68: 23853 | AL68: 190890 | AM68: 53896 | AN68: 1425418 | AO68: 0 | AP68: 1425418
B69: Town of Saratoga | C69: =C160 -> 410374700000 | D69: Town of Saratoga | E69: Saratoga | F69: 12/31 | G69: 5674 | H69: 0 | I69: 40.6 | J69: 529607495 | K69: 2690000 | L69: 613758 | M69: 8065 | N69: 1248419 | O69: 0 | P69: 34291 | Q69: 0 | R69: 140936 | S69: 74765 | T69: 2120234 | U69: 256770 | V69: 155340 | W69: 2532344 | X69: 0 | Y69: 98514 | Z69: 2630859 | AA69: 565374 | AB69: 0 | AC69: 76159 | AD69: 2712 | AE69: 951273 | AF69: 0 | AG69: 120849 | AH69: 40961 | AI69: 6901 | AJ69: 0 | AK69: 6424 | AL69: 255217 | AM69: 251801 | AN69: 2277671 | AO69: 98514 | AP69: 2376185
B70: Village of Schuylerville | C70: =C161 -> 410474704490 | D70: Village of Schuylerville | E70: Saratoga | F70: 05/31 | G70: 1386 | H70: 0 | I70: 0.5 | J70: 72986179 | K70: 4395677 | L70: 483645 | M70: 7424 | N70: 208545 | O70: 15214 | P70: 373787 | Q70: 427876 | R70: 24451 | S70: 14235 | T70: 1555178 | U70: 63549 | V70: 254161 | W70: 1872888 | X70: 184891 | Y70: 0 | Z70: 2057779 | AA70: 356638 | AB70: 0 | AC70: 369475 | AD70: 2925 | AE70: 197113 | AF70: 0 | AG70: 284617 | AH70: 98490 | AI70: 8973 | AJ70: 8090 | AK70: 1141041 | AL70: 124852 | AM70: 293722 | AN70: 2885935 | AO70: 0 | AP70: 2885935
B71: Village of Victory | C71: =C162 -> 410474705070 | D71: Village of Victory | E71: Saratoga | F71: 05/31 | G71: 605 | H71: 0 | I71: 0.5 | J71: 0 | K71: 170520 | L71: 201454 | M71: 6065 | N71: 74733 | O71: 7773 | P71: 98812 | Q71: 38536 | R71: 14408 | S71: 4766 | T71: 446547 | U71: 54195 | V71: 802 | W71: 501544 | X71: 0 | Y71: 46838 | Z71: 548382 | AA71: 143788 | AB71: 0 | AC71: 6818 | AD71: 350 | AE71: 163788 | AF71: 0 | AG71: 9529 | AH71: 700 | AI71: 29528 | AJ71: 0 | AK71: 168168 | AL71: 54132 | AM71: 39306 | AN71: 616107 | AO71: 46838 | AP71: 662945
B72: City of Saratoga Springs | C72: =C163 -> 410252000000 | D72: City of Saratoga Springs | E72: Saratoga | F72: 12/31 | G72: 26586 | H72: 0 | I72: 28.1 | J72: 3736363956 | K72: 42784584 | L72: 18656693 | M72: 613689 | N72: 11648543 | O72: 483251 | P72: 10081954 | Q72: 309061 | R72: 1229077 | S72: 4703878 | T72: 47726146 | U72: 3450528 | V72: 1149844 | W72: 52326518 | X72: 7200687 | Y72: 1216798 | Z72: 60744003 | AA72: 11450326 | AB72: 0 | AC72: 14273997 | AD72: 17965 | AE72: 4090574 | AF72: 205021 | AG72: 367964 | AH72: 3687457 | AI72: 262095 | AJ72: 2284489 | AK72: 3614379 | AL72: 11906962 | AM72: 4079666 | AN72: 56240895 | AO72: 1216797 | AP72: 57457692
B73: Town of Stillwater | C73: =C164 -> 410380700000 | D73: Town of Stillwater | E73: Saratoga | F73: 12/31 | G73: 8287 | H73: 0 | I73: 41.2 | J73: 701705283 | K73: 4839200 | L73: 2064878 | M73: 438922 | N73: 1762684 | O73: 61871 | P73: 451992 | Q73: 2338 | R73: 33996 | S73: 266255 | T73: 5082936 | U73: 1434361 | V73: 33753 | W73: 6551049 | X73: 0 | Y73: 0 | Z73: 6551049 | AA73: 2618568 | AB73: 0 | AC73: 507870 | AD73: 1000 | AE73: 1063025 | AF73: 32393 | AG73: 16191 | AH73: 369920 | AI73: 25232 | AJ73: 368852 | AK73: 62008 | AL73: 617278 | AM73: 462332 | AN73: 6144670 | AO73: 0 | AP73: 6144670
B74: Village of Stillwater | C74: =C165 -> 410480704820 | D74: Village of Stillwater | E74: Saratoga | F74: 05/31 | G74: 1738 | H74: 0 | I74: 1.3 | J74: 86814885 | K74: 4915576 | L74: 408770 | M74: 4750 | N74: 237435 | O74: 19650 | P74: 588063 | Q74: 0 | R74: 3836 | S74: 3767 | T74: 1266270 | U74: 53063 | V74: 610281 | W74: 1929614 | X74: 396500 | Y74: 20000 | Z74: 2346114 | AA74: 182640 | AB74: 0 | AC74: 39761 | AD74: 440 | AE74: 126109 | AF74: 0 | AG74: 0 | AH74: 11778 | AI74: 744 | AJ74: 4127615 | AK74: 338292 | AL74: 125687 | AM74: 552218 | AN74: 5505283 | AO74: 20000 | AP74: 5525283
B75: Town of Waterford | C75: =C166 -> 410387500000 | D75: Town of Waterford | E75: Saratoga | F75: 12/31 | G75: 8423 | H75: 0 | I75: 6.6 | J75: 558795662 | K75: 6914303 | L75: 3381900 | M75: 20176 | N75: 1493491 | O75: 111491 | P75: 838668 | Q75: 17903 | R75: 15458 | S75: 148677 | T75: 6027764 | U75: 348315 | V75: 400451 | W75: 6776530 | X75: 109626 | Y75: 759739 | Z75: 7645895 | AA75: 778163 | AB75: 486 | AC75: 1597279 | AD75: 0 | AE75: 666737 | AF75: 290234 | AG75: 0 | AH75: 356744 | AI75: 59635 | AJ75: 0 | AK75: 1072675 | AL75: 903214 | AM75: 946734 | AN75: 6671901 | AO75: 759739 | AP75: 7431640
B76: Village of Waterford | C76: =C167 -> 410487505180 | D76: Village of Waterford | E76: Saratoga | F76: 05/31 | G76: 1990 | H76: 0 | I76: 0.3 | J76: 58603869 | K76: 603500 | L76: 256342 | M76: 4533 | N76: 151643 | O76: 19163 | P76: 70523 | Q76: 186293 | R76: 1163 | S76: 1600 | T76: 691261 | U76: 106139 | V76: 363326 | W76: 1160725 | X76: 18000 | Y76: 11300 | Z76: 1190025 | AA76: 124871 | AB76: 0 | AC76: 159821 | AD76: 0 | AE76: 332807 | AF76: 302839 | AG76: 0 | AH76: 52083 | AI76: 590 | AJ76: 0 | AK76: 167893 | AL76: 12818 | AM76: 105066 | AN76: 1258788 | AO76: 11300 | AP76: 1270088
B77: Town of Wilton | C77: =C168 -> 410391700000 | D77: Town of Wilton | E77: Saratoga | F77: 12/31 | G77: 16173 | H77: 0 | I77: 35.8 | J77: 1904090926 | K77: 175000 | L77: 657034 | M77: 9782 | N77: 5231122 | O77: 268916 | P77: 719028 | Q77: 16383 | R77: 57299 | S77: 224570 | T77: 7184135 | U77: 1156558 | V77: 145888 | W77: 8486582 | X77: 0 | Y77: 142 | Z77: 8486724 | AA77: 1546934 | AB77: 0 | AC77: 862482 | AD77: 6993 | AE77: 2434975 | AF77: 145888 | AG77: 0 | AH77: 827072 | AI77: 251869 | AJ77: 0 | AK77: 16214 | AL77: 1112271 | AM77: 177800 | AN77: 7382499 | AO77: 142 | AP77: 7382641
B78: Schenectady County | C78: =C169 -> 420100000000 | D78: County of Schenectady | E78: Schenectady | F78: 12/31 | G78: 154727 | H78: 0 | I78: 204.5 | J78: 10078419665 | K78: 53024236 | L78: 62283259 | M78: 2871318 | N78: 91394175 | O78: 568812 | P78: 29890178 | Q78: 5942398 | R78: 782976 | S78: 12615068 | T78: 206348184 | U78: 44923823 | V78: 32862296 | W78: 284134303 | X78: 4626778 | Y78: 1740904 | Z78: 290501985 | AA78: 50184115 | AB78: 18896104 | AC78: 23463999 | AD78: 29167397 | AE78: 13846379 | AF78: 103347171 | AG78: 1837079 | AH78: 7185321 | AI78: 3448041 | AJ78: 0 | AK78: 342224 | AL78: 36491082 | AM78: 8970450 | AN78: 297179362 | AO78: 1740904 | AP78: 298920266
B79: Town of Duanesburg | C79: =C170 -> 420324200000 | D79: Town of Duanesburg | E79: Schenectady | F79: 12/31 | G79: 6122 | H79: 0 | I79: 70.8 | J79: 483543066 | K79: 6383257 | L79: 1575978 | M79: 15174 | N79: 682001 | O79: 37338 | P79: 29440 | Q79: 14920 | R79: 8447 | S79: 141806 | T79: 2505105 | U79: 333617 | V79: 83391 | W79: 2922113 | X79: 0 | Y79: 0 | Z79: 2922113 | AA79: 565751 | AB79: 0 | AC79: 460251 | AD79: 876 | AE79: 665541 | AF79: 2500 | AG79: 88200 | AH79: 29839 | AI79: 2500 | AJ79: 0 | AK79: 250522 | AL79: 396675 | AM79: 306133 | AN79: 2768788 | AO79: 0 | AP79: 2768788
B80: Village of Delanson | C80: =C171 -> 420424201250 | D80: Village of Delanson | E80: Schenectady | F80: 05/31 | G80: 377 | H80: 0 | I80: 0.6 | J80: 19368165 | K80: 400600 | L80: 70050 | M80: 5648 | N80: 25793 | O80: 7484 | P80: 78573 | Q80: 62637 | R80: 77 | S80: 5877 | T80: 256139 | U80: 35032 | V80: 0 | W80: 291171 | X80: 0 | Y80: 0 | Z80: 291171 | AA80: 54290 | AB80: 0 | AC80: 59762 | AD80: 50 | AE80: 35062 | AF80: 0 | AG80: 0 | AH80: 1313 | AI80: 0 | AJ80: 39519 | AK80: 29256 | AL80: 7973 | AM80: 42862 | AN80: 270087 | AO80: 0 | AP80: 270087
B81: Town of Glenville | C81: =C172 -> 420333100000 | D81: Town of Glenville | E81: Schenectady | F81: 12/31 | G81: 29480 | H81: 0 | I81: 49.2 | J81: 2197668692 | K81: 19164327 | L81: 7976037 | M81: 185839 | N81: 2628970 | O81: 331041 | P81: 2214548 | Q81: 380905 | R81: 271241 | S81: 1091800 | T81: 15080381 | U81: 1146401 | V81: 605050 | W81: 16831832 | X81: 3686724 | Y81: 50139 | Z81: 20568695 | AA81: 1475996 | AB81: 0 | AC81: 3631542 | AD81: 4242 | AE81: 2523644 | AF81: 286763 | AG81: 99895 | AH81: 341114 | AI81: 53621 | AJ81: 1132099 | AK81: 751736 | AL81: 3366751 | AM81: 1792777 | AN81: 15460180 | AO81: 50139 | AP81: 15510319
B82: Village of Scotia | C82: =C173 -> 420433104500 | D82: Village of Scotia | E82: Schenectady | F82: 05/31 | G82: 7729 | H82: 0 | I82: 1.7 | J82: 400657975 | K82: 712460 | L82: 4116223 | M82: 101863 | N82: 780034 | O82: 0 | P82: 2346672 | Q82: 415075 | R82: 20969 | S82: 146239 | T82: 7927076 | U82: 956198 | V82: 982719 | W82: 9865993 | X82: 0 | Y82: 0 | Z82: 9865993 | AA82: 788839 | AB82: 0 | AC82: 2423233 | AD82: 97 | AE82: 438823 | AF82: 657418 | AG82: 1391 | AH82: 790627 | AI82: 35168 | AJ82: 540493 | AK82: 2084348 | AL82: 1757464 | AM82: 278401 | AN82: 9796301 | AO82: 0 | AP82: 9796301
B83: Town of Niskayuna | C83: =C174 -> 420358700000 | D83: Town of Niskayuna | E83: Schenectady | F83: 12/31 | G83: 21781 | H83: 0 | I83: 14.2 | J83: 2435313092 | K83: 9709441 | L83: 10784622 | M83: 444281 | N83: 3250319 | O83: 375064 | P83: 4035295 | Q83: 30460 | R83: 727870 | S83: 380636 | T83: 20028548 | U83: 1201564 | V83: 579957 | W83: 21810068 | X83: 0 | Y83: 588962 | Z83: 22399030 | AA83: 2332586 | AB83: 0 | AC83: 3305293 | AD83: 31610 | AE83: 3005909 | AF83: 280744 | AG83: 300 | AH83: 938222 | AI83: 114997 | AJ83: 2511799 | AK83: 2680816 | AL83: 4450253 | AM83: 1194729 | AN83: 20847257 | AO83: 588962 | AP83: 21436219
B84: Town of Princetown | C84: =C175 -> 420369200000 | D84: Town of Princetown | E84: Schenectady | F84: 12/31 | G84: 2115 | H84: 0 | I84: 23.9 | J84: 178036505 | K84: 2616300 | L84: 451219 | M84: 85460 | N84: 179248 | O84: 0 | P84: 99053 | Q84: 0 | R84: 38569 | S84: 197464 | T84: 1051012 | U84: 89713 | V84: 22936 | W84: 1163661 | X84: 0 | Y84: 38695 | Z84: 1202355 | AA84: 374402 | AB84: 0 | AC84: 239467 | AD84: 100 | AE84: 42194 | AF84: 0 | AG84: 5000 | AH84: 2396 | AI84: 1000 | AJ84: 151579 | AK84: 0 | AL84: 73255 | AM84: 167420 | AN84: 1056813 | AO84: 38695 | AP84: 1095507
B85: Town of Rotterdam | C85: =C176 -> 420372600000 | D85: Town of Rotterdam | E85: Schenectady | F85: 12/31 | G85: 29094 | H85: 0 | I85: 35.7 | J85: 2459983866 | K85: 8421850 | L85: 12316879 | M85: 218173 | N85: 3637079 | O85: 547575 | P85: 1185703 | Q85: 187509 | R85: 308167 | S85: 667031 | T85: 19068116 | U85: 1150494 | V85: 1698115 | W85: 21916725 | X85: 153900 | Y85: 306763 | Z85: 22377388 | AA85: 2044247 | AB85: 0 | AC85: 5780141 | AD85: 3400 | AE85: 2618097 | AF85: 1608946 | AG85: 1400 | AH85: 395429 | AI85: 172750 | AJ85: 864807 | AK85: 900534 | AL85: 5563236 | AM85: 1318057 | AN85: 21271043 | AO85: 306763 | AP85: 21577806
B86: City of Schenectady | C86: =C177 -> 420253000000 | D86: City of Schenectady | E86: Schenectady | F86: 12/31 | G86: 66135 | H86: 0 | I86: 10.8 | J86: 2386460919 | K86: 105522383 | L86: 28711158 | M86: 2952153 | N86: 11763542 | O86: 842776 | P86: 30138647 | Q86: 173795 | R86: 1223612 | S86: 10059536 | T86: 85865219 | U86: 15058946 | V86: 9380164 | W86: 110304329 | X86: 3072801 | Y86: 3586210 | Z86: 116963340 | AA86: 11135853 | AB86: 0 | AC86: 28970305 | AD86: 0 | AE86: 7210007 | AF86: 0 | AG86: 7843608 | AH86: 1920444 | AI86: 673748 | AJ86: 6858269 | AK86: 12149871 | AL86: 26671113 | AM86: 9527858 | AN86: 112961076 | AO86: 3586209 | AP86: 116547285
B87: Capital District | C87: =SUM(C3:C86)-C13-C14 -> -20769002040 | G87: =G3+G24+G47+G78 -> 837967 | I87: =I3+I24+I47+I78 -> 2189.7 | J87: 66309514835 | K87: 580233027 | L87: 244691656 | M87: 20995753 | N87: 520749496 | O87: 6448905 | P87: 202797676 | Q87: 51506113 | R87: 21280259 | S87: 53533575 | T87: 1122003432 | U87: 182780829 | V87: 145762534 | W87: 1450546793 | X87: 76913540 | Y87: 84289334 | Z87: 1611749668 | AA87: 334815431 | AB87: 99691583 | AC87: 121549677 | AD87: 133827063 | AE87: 60565111 | AF87: 430745036 | AG87: 5255858 | AH87: 13463836 | AI87: 17950023 | AJ87: 0 | AK87: 28558622 | AL87: 204985266 | AM87: 58586369 | AN87: 1509993877 | AO87: 84289335 | AP87: 1594283212
A89: =SUM(B89:AP89) -> 0 | B89: =IF(B1<>B92,1,) -> 0 | C89: =IF(C1<>C92,1,) -> 0 | D89: 0 | E89: 0 | F89: 0 | G89: 0 | H89: 0 | I89: 0 | J89: 0 | K89: 0 | L89: 0 | M89: 0 | N89: 0 | O89: 0 | P89: 0 | Q89: 0 | R89: 0 | S89: 0 | T89: 0 | U89: 0 | V89: 0 | W89: 0 | X89: 0 | Y89: 0 | Z89: 0 | AA89: 0 | AB89: 0 | AC89: 0 | AD89: 0 | AE89: 0 | AF89: 0 | AG89: 0 | AH89: 0 | AI89: 0 | AJ89: 0 | AK89: 0 | AL89: 0 | AM89: 0 | AN89: 0 | AO89: 0 | AP89: 0
A90: =SUM(B90:AP90) -> 0 | B90: =IF(B2<>B93,1,) -> 0 | C90: 0 | D90: 0 | E90: 0 | F90: 0 | G90: 0 | H90: 0 | I90: 0 | J90: 0 | K90: 0 | L90: 0 | M90: 0 | N90: 0 | O90: 0 | P90: 0 | Q90: 0 | R90: 0 | S90: 0 | T90: 0 | U90: 0 | V90: 0 | W90: 0 | X90: 0 | Y90: 0 | Z90: 0 | AA90: 0 | AB90: 0 | AC90: 0 | AD90: 0 | AE90: 0 | AF90: 0 | AG90: 0 | AH90: 0 | AI90: 0 | AJ90: 0 | AK90: 0 | AL90: 0 | AM90: 0 | AN90: 0 | AO90: 0 | AP90: 0
B92: Fiscal Year 2012 | L92: REVENUES | AA92: EXPENDITURES
A93: =SUM(A94:A178) -> 0 | B93: Level One | C93: Municipal Code | D93: Municipal Name | E93: County Name | F93: Fiscal Year End | G93: Population | H93: Enrollment | I93: Land Area (sq. mi.) | J93: Full Value | K93: Total Debt Outstanding at EOFY | L93: Real Property Texes & Assessments | M93: Other Real Property Tax Items | N93: Sales & Use Tax | O93: Other Non-Property Taxes | P93: Charges for Services | Q93: Charges to Other Governments | R93: Use & Sale of Property | S93: Other Local Revenues | T93: Local Revenues | U93: State Aid | V93: Federal Aid | W93: Total Revenues | X93: Proceeds of Debt | Y93: Other Services | Z93: Total Revenues & Other Sources | AA93: General Government | AB93: Education | AC93: Public Safety | AD93: Health | AE93: Transportation | AF93: Social Services | AG93: Economic Development | AH93: Culture & Recreation | AI93: Community Services | AJ93: Utilities | AK93: Sanitation | AL93: Employee Benefits | AM93: Debt Service | AN93: Total Expenditures | AO93: Other Uses | AP93: Total Expenditures & Other Uses
A94: =IF(C3<>C94,1,0) -> 0 | B94: Albany County | C94: 010100000000 | D94: County of Albany | E94: Albany | F94: 12/31 | G94: 304204 | H94: 0 | I94: 522.8 | J94: 23656149879 | K94: 266458748 | L94: 75745309 | M94: 7817104 | N94: 246769820 | O94: 1580578 | P94: 64620785 | Q94: 19753666 | R94: 12832125 | S94: 14329351 | T94: 443448738 | U94: 63441777 | V94: 64436446 | W94: 571326960 | X94: 21871045 | Y94: 48975772 | Z94: 642173778 | AA94: 158923974 | AB94: 22570691 | AC94: 50542411 | AD94: 29359910 | AE94: 19847557 | AF94: 191508109 | AG94: 2378401 | AH94: 5177686 | AI94: 6142395 | AJ94: 0 | AK94: 6538104 | AL94: 71116218 | AM94: 25553710 | AN94: 589659167 | AO94: 48975773 | AP94: 638634940
A95: =IF(C4<>C95,1,0) -> 0 | B95: City of Albany | C95: 010201000000 | D95: City of Albany | E95: Albany | F95: 12/31 | G95: 97856 | H95: 0 | I95: 21.4 | J95: 4783457074 | K95: 134096527 | L95: 54696762 | M95: 27477382 | N95: 32175423 | O95: 1535505 | P95: 15369147 | Q95: 1067383 | R95: 3210302 | S95: 8262348 | T95: 143794252 | U95: 21565593 | V95: 5548738 | W95: 170908583 | X95: 42927983 | Y95: 0 | Z95: 213836566 | AA95: 21604305 | AB95: 0 | AC95: 59194834 | AD95: 193147 | AE95: 12828096 | AF95: 1801215 | AG95: 350204 | AH95: 4195599 | AI95: 128899 | AJ95: 0 | AK95: 15043037 | AL95: 53873127 | AM95: 19225223 | AN95: 188437686 | AO95: 600084 | AP95: 189037770
A96: 0 | B96: Town of Berne | C96: 010306800000 | D96: Town of Berne | E96: Albany | F96: 12/31 | G96: 2794 | H96: 0 | I96: 64 | J96: 256017185 | K96: 405260 | L96: 811214 | M96: 3779 | N96: 874834 | O96: 15662 | P96: 32497 | Q96: 0 | R96: 35157 | S96: 137492 | T96: 1910636 | U96: 388710 | V96: 225099 | W96: 2524445 | X96: 311015 | Y96: 0 | Z96: 2835460 | AA96: 482721 | AB96: 0 | AC96: 101808 | AD96: 1000 | AE96: 1363922 | AF96: 0 | AG96: 0 | AH96: 68530 | AI96: 0 | AJ96: 0 | AK96: 106512 | AL96: 274170 | AM96: 324700 | AN96: 2723364 | AO96: 0 | AP96: 2723364
A97: 0 | B97: Town of Bethlehem | C97: 010307100000 | D97: Town of Bethlehem | E97: Albany | F97: 12/31 | G97: 33656 | H97: 0 | I97: 49 | J97: 3274265514 | K97: 19515500 | L97: 11217280 | M97: 2058671 | N97: 10538085 | O97: 598918 | P97: 11330085 | Q97: 80770 | R97: 1362121 | S97: 1181218 | T97: 38367148 | U97: 2099684 | V97: 1978010 | W97: 42444842 | X97: 320500 | Y97: 927811 | Z97: 43693153 | AA97: 4010663 | AB97: 11640 | AC97: 7018296 | AD97: 1466 | AE97: 5262738 | AF97: 817643 | AG97: 0 | AH97: 1797183 | AI97: 521167 | AJ97: 6545827 | AK97: 4117611 | AL97: 7502762 | AM97: 2093896 | AN97: 39700892 | AO97: 927810 | AP97: 40628702
A98: 0 | B98: Town of Coeymans | C98: 010318000000 | D98: Town of Coeymans | E98: Albany | F98: 12/31 | G98: 7418 | H98: 0 | I98: 50.1 | J98: 604642893 | K98: 1695908 | L98: 1812087 | M98: 12769 | N98: 1686310 | O98: 9953 | P98: 221859 | Q98: 295760 | R98: 30162 | S98: 258698 | T98: 4327599 | U98: 276713 | V98: 547327 | W98: 5151639 | X98: 173525 | Y98: 1585861 | Z98: 6911025 | AA98: 832826 | AB98: 0 | AC98: 1252154 | AD98: 180478 | AE98: 1149135 | AF98: 491514 | AG98: 1777 | AH98: 29786 | AI98: 205106 | AJ98: 0 | AK98: 372844 | AL98: 968792 | AM98: 41466 | AN98: 5525879 | AO98: 1585861 | AP98: 7111740
A99: 0 | B99: Village of Ravena | C99: 010418004140 | D99: Village of Ravena | E99: Albany | F99: 05/31 | G99: 3268 | H99: 0 | I99: 1.5 | J99: 166757333 | K99: 565000 | L99: 768498 | M99: 4706 | N99: 681784 | O99: 0 | P99: 1005208 | Q99: 4837 | R99: 61442 | S99: 150451 | T99: 2676926 | U99: 59981 | V99: 79040 | W99: 2815947 | X99: 0 | Y99: 67337 | Z99: 2883284 | AA99: 660615 | AB99: 0 | AC99: 126772 | AD99: 20 | AE99: 162148 | AF99: 0 | AG99: 1185 | AH99: 110866 | AI99: 7080 | AJ99: 470276 | AK99: 273054 | AL99: 561288 | AM99: 171417 | AN99: 2544721 | AO99: 67337 | AP99: 2612058
A100: 0 | B100: City of Cohoes | C100: 010209000000 | D100: City of Cohoes | E100: Albany | F100: 12/31 | G100: 16168 | H100: 0 | I100: 3.8 | J100: 722367643 | K100: 12033306 | L100: 6604278 | M100: 645277 | N100: 5234552 | O100: 334627 | P100: 4313069 | Q100: 232956 | R100: 64152 | S100: 662379 | T100: 18091290 | U100: 3594993 | V100: 481941 | W100: 22168224 | X100: 2121050 | Y100: 186078 | Z100: 24475352 | AA100: 2584646 | AB100: 0 | AC100: 7442806 | AD100: 0 | AE100: 2027252 | AF100: 0 | AG100: 126976 | AH100: 725719 | AI100: 2125961 | AJ100: 789498 | AK100: 2212693 | AL100: 5094897 | AM100: 2530440 | AN100: 25660888 | AO100: 186078 | AP100: 25846966
A101: 0 | B101: Town of Colonie | C101: 010318700000 | D101: Town of Colonie | E101: Albany | F101: 12/31 | G101: 81591 | H101: 0 | I101: 55.9 | J101: 8359402973 | K101: 97579667 | L101: 31245009 | M101: 1094324 | N101: 21918377 | O101: 0 | P101: 18164700 | Q101: 234948 | R101: 10533418 | S101: 4728559 | T101: 87919335 | U101: 3691125 | V101: 3052949 | W101: 94663409 | X101: 9424642 | Y101: 4210000 | Z101: 108298051 | AA101: 17565215 | AB101: 0 | AC101: 23257292 | AD101: 4229 | AE101: 9458110 | AF101: 2150436 | AG101: 804368 | AH101: 6834492 | AI101: 138264 | AJ101: 8425476 | AK101: 3938262 | AL101: 19898896 | AM101: 7311018 | AN101: 99786058 | AO101: 4210000 | AP101: 103996058
A102: 0 | B102: Village of Colonie | C102: 010418701100 | D102: Village of Colonie | E102: Albany | F102: 05/31 | G102: 7793 | H102: 0 | I102: 3.2 | J102: 792693949 | K102: 0 | L102: 1189160 | M102: 20797 | N102: 2360109 | O102: 146977 | P102: 2836524 | Q102: 0 | R102: 20704 | S102: 52448 | T102: 6626719 | U102: 233180 | V102: 118177 | W102: 6978076 | X102: 0 | Y102: 0 | Z102: 6978076 | AA102: 764493 | AB102: 0 | AC102: 536231 | AD102: 1281 | AE102: 947739 | AF102: 0 | AG102: 104082 | AH102: 547103 | AI102: 106341 | AJ102: 1477246 | AK102: 1396953 | AL102: 982488 | AM102: 0 | AN102: 6863957 | AO102: 0 | AP102: 6863957
A103: 0 | B103: Village of Menands | C103: 010418703040 | D103: Village of Menands | E103: Albany | F103: 05/31 | G103: 3990 | H103: 0 | I103: 3.1 | J103: 455343030 | K103: 1500000 | L103: 1964708 | M103: 17552 | N103: 1374822 | O103: 88006 | P103: 1339859 | Q103: 90630 | R103: 22870 | S103: 274005 | T103: 5172452 | U103: 118330 | V103: 8185 | W103: 5298967 | X103: 0 | Y103: 0 | Z103: 5298967 | AA103: 748478 | AB103: 0 | AC103: 1270763 | AD103: 0 | AE103: 622993 | AF103: 0 | AG103: 53397 | AH103: 80083 | AI103: 1326112 | AJ103: 918463 | AK103: 594583 | AL103: 1007154 | AM103: 0 | AN103: 6622026 | AO103: 0 | AP103: 6622026
A104: 0 | B104: Town/Village of Green Island | C104: 010334500000 | D104: Town of Green Island | E104: Albany | F104: 12/31 | G104: 2620 | H104: 0 | I104: 0.8 | J104: 139611025 | K104: 0 | L104: 0 | M104: 883 | N104: 94814 | O104: 0 | P104: 1179 | Q104: 0 | R104: 101 | S104: 191842 | T104: 288819 | U104: 46428 | V104: 0 | W104: 335247 | X104: 0 | Y104: 0 | Z104: 335247 | AA104: 279968 | AB104: 0 | AC104: 760 | AD104: 0 | AE104: 0 | AF104: 0 | AG104: 0 | AH104: 10000 | AI104: 0 | AJ104: 0 | AK104: 0 | AL104: 37050 | AM104: 0 | AN104: 327778 | AO104: 0 | AP104: 327778
A105: 0 | B105: Town/Village of Green Island | C105: 010434502040 | D105: Village of Green Island | E105: Albany | F105: 05/31 | G105: 2620 | H105: 0 | I105: 0.8 | J105: 153037930 | K105: 455000 | L105: 1838595 | M105: 404552 | N105: 707716 | O105: 43315 | P105: 1139158 | Q105: 419956 | R105: 194125 | S105: 54749 | T105: 4802166 | U105: 54420 | V105: 217733 | W105: 5074319 | X105: 0 | Y105: 32358 | Z105: 5106677 | AA105: 590017 | AB105: 0 | AC105: 1096359 | AD105: 0 | AE105: 204365 | AF105: 405831 | AG105: 0 | AH105: 126609 | AI105: 0 | AJ105: 381540 | AK105: 903407 | AL105: 824573 | AM105: 198769 | AN105: 4731470 | AO105: 32358 | AP105: 4763828
A106: 0 | B106: Town/Village of Green Island
A107: 0 | B107: Town of Guilderland | C107: 010335500000 | D107: Town of Guilderland | E107: Albany | F107: 12/31 | G107: 35303 | H107: 0 | I107: 57.9 | J107: 3475449086 | K107: 23873000 | L107: 8302185 | M107: 85335 | N107: 10515228 | O107: 1128470 | P107: 7461794 | Q107: 102823 | R107: 1341269 | S107: 821817 | T107: 29758922 | U107: 2111214 | V107: 826832 | W107: 32696967 | X107: 0 | Y107: 1004581 | Z107: 33701548 | AA107: 2734237 | AB107: 0 | AC107: 6164817 | AD107: 364588 | AE107: 2909455 | AF107: 38644 | AG107: 746070 | AH107: 1518212 | AI107: 271468 | AJ107: 2558334 | AK107: 3071809 | AL107: 5321321 | AM107: 2600873 | AN107: 28299828 | AO107: 1004581 | AP107: 29304409
A108: 0 | B108: Village of Altamont | C108: 010435500120 | D108: Village of Altamont | E108: Albany | F108: 05/31 | G108: 1720 | H108: 0 | I108: 1.2 | J108: 119295298 | K108: 1388978 | L108: 271972 | M108: 3061 | N108: 557104 | O108: 37492 | P108: 926580 | Q108: 106395 | R108: 29053 | S108: 38178 | T108: 1969835 | U108: 75543 | V108: 8303 | W108: 2053681 | X108: 0 | Y108: 0 | Z108: 2053681 | AA108: 438447 | AB108: 0 | AC108: 342041 | AD108: 0 | AE108: 204525 | AF108: 0 | AG108: 0 | AH108: 141490 | AI108: 847 | AJ108: 174278 | AK108: 332653 | AL108: 224530 | AM108: 102406 | AN108: 1961217 | AO108: 0 | AP108: 1961217
A109: 0 | B109: Town of Knox | C109: 010344300000 | D109: Town of Knox | E109: Albany | F109: 12/31 | G109: 2692 | H109: 0 | I109: 41.8 | J109: 234514568 | K109: 799981 | L109: 253159 | M109: 3031 | N109: 842897 | O109: 42843 | P109: 5147 | Q109: 0 | R109: 13978 | S109: -136 | T109: 1160919 | U109: 126684 | V109: 205364 | W109: 1492967 | X109: 80000 | Y109: 1000 | Z109: 1573967 | AA109: 200239 | AB109: 0 | AC109: 106983 | AD109: 1165 | AE109: 522541 | AF109: 0 | AG109: 0 | AH109: 24082 | AI109: 1975 | AJ109: 0 | AK109: 84973 | AL109: 231933 | AM109: 94073 | AN109: 1267964 | AO109: 1000 | AP109: 1268964
A110: 0 | B110: Town of New Scotland | C110: 010358100000 | D110: Town of New Scotland | E110: Albany | F110: 12/31 | G110: 8648 | H110: 0 | I110: 57.5 | J110: 961269944 | K110: 1985878 | L110: 2447491 | M110: 8418 | N110: 1834521 | O110: 34315 | P110: 448587 | Q110: 0 | R110: 24012 | S110: 191837 | T110: 4989181 | U110: 560210 | V110: 491213 | W110: 6040604 | X110: 94200 | Y110: 1243000 | Z110: 7377804 | AA110: 812470 | AB110: 0 | AC110: 1144510 | AD110: 1800 | AE110: 1549899 | AF110: 0 | AG110: 0 | AH110: 91570 | AI110: 69247 | AJ110: 334709 | AK110: 511305 | AL110: 798807 | AM110: 227836 | AN110: 5542153 | AO110: 1243000 | AP110: 6785153
A111: 0 | B111: Village of Voorheesville | C111: 010458105090 | D111: Village of Voorheesville | E111: Albany | F111: 05/31 | G111: 2789 | H111: 0 | I111: 2.1 | J111: 239900476 | K111: 3420000 | L111: 258963 | M111: 1688 | N111: 902514 | O111: 57169 | P111: 605234 | Q111: 4711 | R111: 37118 | S111: 8822 | T111: 1876219 | U111: 148875 | V111: 0 | W111: 2025094 | X111: 0 | Y111: 0 | Z111: 2025094 | AA111: 309790 | AB111: 0 | AC111: 49510 | AD111: 750 | AE111: 494267 | AF111: 0 | AG111: 0 | AH111: 25117 | AI111: 2175 | AJ111: 133463 | AK111: 281595 | AL111: 260390 | AM111: 270850 | AN111: 1827907 | AO111: 0 | AP111: 1827907
A112: 0 | B112: Town of Rensselaerville | C112: 010370600000 | D112: Town of Rensselaerville | E112: Albany | F112: 12/31 | G112: 1843 | H112: 0 | I112: 61.5 | J112: 229997661 | K112: 0 | L112: - | M112: - | N112: - | O112: - | P112: - | Q112: - | R112: - | S112: - | T112: - | U112: - | V112: - | W112: - | X112: - | Y112: - | Z112: - | AA112: - | AB112: - | AC112: - | AD112: - | AE112: - | AF112: - | AG112: - | AH112: - | AI112: - | AJ112: - | AK112: - | AL112: - | AM112: - | AN112: - | AO112: - | AP112: -
A113: 0 | B113: City of Watervliet | C113: 010260000000 | D113: City of Watervliet | E113: Albany | F113: 12/31 | G113: 10254 | H113: 0 | I113: 1.4 | J113: 381943176 | K113: 8614000 | L113: 3889946 | M113: 141656 | N113: 3312113 | O113: 159942 | P113: 4787389 | Q113: 499059 | R113: 9173 | S113: 311097 | T113: 13110375 | U113: 1458715 | V113: 557806 | W113: 15126896 | X113: 0 | Y113: 1425840 | Z113: 16552736 | AA113: 1927920 | AB113: 0 | AC113: 5007523 | AD113: 37131 | AE113: 541310 | AF113: 0 | AG113: 770155 | AH113: 292528 | AI113: 26795 | AJ113: 1307253 | AK113: 1109097 | AL113: 3889801 | AM113: 1052688 | AN113: 15962201 | AO113: 1425840 | AP113: 17388041
A114: 0 | B114: Town of Westerlo | C114: 010389000000 | D114: Town of Westerlo | E114: Albany | F114: 12/31 | G114: 3361 | H114: 0 | I114: 57.8 | J114: 294744193 | K114: 1276000 | L114: 1116610 | M114: 3674 | N114: 1052368 | O114: 8161 | P114: 76445 | Q114: 0 | R114: 42310 | S114: 28362 | T114: 2327930 | U114: 140049 | V114: 432985 | W114: 2900964 | X114: 698900 | Y114: 0 | Z114: 3599864 | AA114: 399834 | AB114: 0 | AC114: 434522 | AD114: 0 | AE114: 1194198 | AF114: 0 | AG114: 0 | AH114: 236364 | AI114: 0 | AJ114: 60846 | AK114: 133225 | AL114: 474309 | AM114: 392859 | AN114: 3326157 | AO114: 0 | AP114: 3326157
A115: 0 | B115: Rensselaer County | C115: 380100000000 | D115: County of Rensselaer | E115: Rensselaer | F115: 12/31 | G115: 159429 | H115: 0 | I115: 652.4 | J115: 10468605971 | K115: 189200043 | L115: 57642408 | M115: 5397238 | N115: 75858457 | O115: 2222155 | P115: 58561930 | Q115: 20029389 | R115: 4899927 | S115: 22377888 | T115: 246989391 | U115: 50628832 | V115: 25122984 | W115: 322741206 | X115: 50415717 | Y115: 6308784 | Z115: 379465707 | AA115: 44962212 | AB115: 41321542 | AC115: 26378387 | AD115: 44677484 | AE115: 10837223 | AF115: 84538416 | AG115: 482768 | AH115: 366202 | AI115: 3325862 | AJ115: 0 | AK115: 13009245 | AL115: 54130276 | AM115: 16856765 | AN115: 340886382 | AO115: 6308784 | AP115: 347195166
A116: 0 | B116: Village of Nassau | C116: 380456103330 | D116: Village of Nassau | E116: Rensselaer | F116: 05/31 | G116: 1133 | H116: 0 | I116: 0.7 | J116: 68877452 | K116: 645839 | L116: 317159 | M116: 8635 | N116: 71975 | O116: 20604 | P116: 332244 | Q116: 0 | R116: 497 | S116: 61844 | T116: 812958 | U116: 56708 | V116: 0 | W116: 869666 | X116: 0 | Y116: 10500 | Z116: 880166 | AA116: 163867 | AB116: 0 | AC116: 189447 | AD116: 0 | AE116: 64406 | AF116: 0 | AG116: 0 | AH116: 1608 | AI116: 0 | AJ116: 115172 | AK116: 83633 | AL116: 64858 | AM116: 120489 | AN116: 803480 | AO116: 10500 | AP116: 813980
A117: 0 | B117: Village of Valley Falls | C117: 380467005020 | D117: Village of Valley Falls | E117: Rensselaer | F117: 05/31 | G117: 466 | H117: 0 | I117: 0.5 | J117: 26573407 | K117: 1711168 | L117: 49500 | M117: 1541 | N117: 32705 | O117: 4520 | P117: 102601 | Q117: 35000 | R117: 80 | S117: 7090 | T117: 233037 | U117: 35589 | V117: 0 | W117: 268626 | X117: 0 | Y117: 0 | Z117: 268626 | AA117: 54282 | AB117: 0 | AC117: 26343 | AD117: 0 | AE117: 36553 | AF117: 0 | AG117: 0 | AH117: 20336 | AI117: 30866 | AJ117: 0 | AK117: 2274 | AL117: 2459 | AM117: 92599 | AN117: 265712 | AO117: 0 | AP117: 265712
A118: 0 | B118: Town of Berlin | C118: 380306700000 | D118: Town of Berlin | E118: Rensselaer | F118: 12/31 | G118: 1880 | H118: 0 | I118: 59.6 | J118: 160721959 | K118: 107500 | L118: 403884 | M118: 3111 | N118: 182175 | O118: 0 | P118: 159959 | Q118: 0 | R118: 955 | S118: 37432 | T118: 787517 | U118: 120814 | V118: 352905 | W118: 1261235 | X118: 126500 | Y118: 561890 | Z118: 1949625 | AA118: 646236 | AB118: 0 | AC118: 263000 | AD118: 200 | AE118: 526353 | AF118: 0 | AG118: 0 | AH118: 14263 | AI118: 5549 | AJ118: 43476 | AK118: 106503 | AL118: 108939 | AM118: 19000 | AN118: 1733519 | AO118: 561890 | AP118: 2295409
A119: 0 | B119: Town of Brunswick | C119: 380309900000 | D119: Town of Brunswick | E119: Rensselaer | F119: 12/31 | G119: 11941 | H119: 0 | I119: 44.4 | J119: 988851458 | K119: 2075250 | L119: 3484124 | M119: 31017 | N119: 1128710 | O119: 102899 | P119: 1524818 | Q119: 49335 | R119: 82693 | S119: 14321 | T119: 6417917 | U119: 777341 | V119: 516271 | W119: 7711529 | X119: 47250 | Y119: 360337 | Z119: 8119116 | AA119: 1088805 | AB119: 0 | AC119: 1086881 | AD119: 2500 | AE119: 2502463 | AF119: 0 | AG119: 97019 | AH119: 378978 | AI119: 13947 | AJ119: 1271141 | AK119: 140384 | AL119: 960401 | AM119: 232243 | AN119: 7774762 | AO119: 360337 | AP119: 8135099
A120: 0 | B120: Town of East Greenbush | C120: 380324900000 | D120: Town of East Greenbush | E120: Rensselaer | F120: 12/31 | G120: 16473 | H120: 0 | I120: 24 | J120: 1522187830 | K120: 6236517 | L120: 8641643 | M120: 520673 | N120: 1919283 | O120: 206272 | P120: 4187560 | Q120: 383717 | R120: 91884 | S120: 918048 | T120: 16869080 | U120: 2051816 | V120: 83743 | W120: 19004639 | X120: 440891 | Y120: 0 | Z120: 19445530 | AA120: 2894751 | AB120: 0 | AC120: 3889272 | AD120: 6840 | AE120: 1927867 | AF120: 0 | AG120: 0 | AH120: 304844 | AI120: 6665 | AJ120: 2549551 | AK120: 2286998 | AL120: 3455642 | AM120: 1053348 | AN120: 18375778 | AO120: 0 | AP120: 18375778
A121: 0 | B121: Town of Grafton | C121: 380333500000 | D121: Town of Grafton | E121: Rensselaer | F121: 12/31 | G121: 2130 | H121: 0 | I121: 44.7 | J121: 208773240 | K121: 331300 | L121: 666717 | M121: 1193 | N121: 155850 | O121: 0 | P121: 31180 | Q121: 0 | R121: 16215 | S121: 18046 | T121: 889202 | U121: 238654 | V121: 112737 | W121: 1240594 | X121: 33000 | Y121: 0 | Z121: 1273594 | AA121: 218126 | AB121: 0 | AC121: 33407 | AD121: 1000 | AE121: 873715 | AF121: 0 | AG121: 0 | AH121: 36054 | AI121: 5026 | AJ121: 0 | AK121: 40757 | AL121: 189015 | AM121: 71982 | AN121: 1469083 | AO121: 0 | AP121: 1469083
A122: 0 | B122: Town of Hoosick | C122: 380339800000 | D122: Town of Hoosick | E122: Rensselaer | F122: 12/31 | G122: 6924 | H122: 0 | I122: 63 | J122: 409050599 | K122: 0 | L122: 1459607 | M122: 5969 | N122: 298906 | O122: 2741 | P122: 75418 | Q122: 17170 | R122: 1862 | S122: 46607 | T122: 1908280 | U122: 274427 | V122: 7367 | W122: 2190074 | X122: 0 | Y122: 31803 | Z122: 2221877 | AA122: 402791 | AB122: 0 | AC122: 276448 | AD122: 1200 | AE122: 598437 | AF122: 0 | AG122: 0 | AH122: 155428 | AI122: 6300 | AJ122: 1555 | AK122: 0 | AL122: 339848 | AM122: 0 | AN122: 1782007 | AO122: 31803 | AP122: 1813810
A123: 0 | B123: Village of Hoosick Falls | C123: 380439802380 | D123: Village of Hoosick Falls | E123: Rensselaer | F123: 05/31 | G123: 3501 | H123: 0 | I123: 1.6 | J123: 146404072 | K123: 15988780 | L123: 1128644 | M123: 34356 | N123: 191654 | O123: 35310 | P123: 1656765 | Q123: 0 | R123: 597 | S123: 72747 | T123: 3120073 | U123: 242515 | V123: 0 | W123: 3362588 | X123: 20979 | Y123: 0 | Z123: 3383567 | AA123: 219798 | AB123: 0 | AC123: 386225 | AD123: 0 | AE123: 563672 | AF123: 0 | AG123: 33551 | AH123: 24403 | AI123: 0 | AJ123: 2582852 | AK123: 611923 | AL123: 362610 | AM123: 551238 | AN123: 5336272 | AO123: 0 | AP123: 5336272
A124: 0 | B124: Town of Nassau | C124: 380356100000 | D124: Town of Nassau | E124: Rensselaer | F124: 12/31 | G124: 4789 | H124: 0 | I124: 44.4 | J124: 374789538 | K124: 309181 | L124: 1006120 | M124: 6014 | N124: 307108 | O124: 21838 | P124: 98965 | Q124: 5370 | R124: 19815 | S124: 30347 | T124: 1495577 | U124: 251433 | V124: 331241 | W124: 2078251 | X124: 219000 | Y124: 261458 | Z124: 2558709 | AA124: 413146 | AB124: 0 | AC124: 210346 | AD124: 1690 | AE124: 686735 | AF124: 182381 | AG124: 10000 | AH124: 24469 | AI124: 2771 | AJ124: 0 | AK124: 86689 | AL124: 303976 | AM124: 296402 | AN124: 2218605 | AO124: 261458 | AP124: 2480063
A125: 0 | B125: Village of East Nassau | C125: 380456101435 | D125: Village of East Nassau | E125: Rensselaer | F125: 05/31 | G125: 587 | H125: 0 | I125: 4.9 | J125: 41414460 | K125: 0 | L125: 52762 | M125: 578 | N125: 46830 | O125: 0 | P125: 855 | Q125: 0 | R125: 89 | S125: 0 | T125: 101115 | U125: 26586 | V125: 5283 | W125: 132984 | X125: 0 | Y125: 0 | Z125: 132984 | AA125: 34505 | AB125: 0 | AC125: 3934 | AD125: 0 | AE125: 70995 | AF125: 0 | AG125: 0 | AH125: 0 | AI125: 0 | AJ125: 0 | AK125: 0 | AL125: 2504 | AM125: 0 | AN125: 111938 | AO125: 0 | AP125: 111938
A126: 0 | B126: Town of North Greenbush | C126: 380359500000 | D126: Town of North Greenbush | E126: Rensselaer | F126: 12/31 | G126: 12075 | H126: 0 | I126: 18.6 | J126: 938453313 | K126: 19593999 | L126: 5016759 | M126: 462419 | N126: 1303535 | O126: 224457 | P126: 1829321 | Q126: 0 | R126: 29074 | S126: 196913 | T126: 9062478 | U126: 888280 | V126: 220102 | W126: 10170860 | X126: 679000 | Y126: 139102 | Z126: 10988962 | AA126: 1004801 | AB126: 0 | AC126: 2009801 | AD126: 8229 | AE126: 1401264 | AF126: 0 | AG126: 0 | AH126: 485597 | AI126: 10000 | AJ126: 1460298 | AK126: 133983 | AL126: 1452060 | AM126: 1664173 | AN126: 9630205 | AO126: 139102 | AP126: 9769307
A127: 0 | B127: Town of Petersburgh | C127: 380365600000 | D127: Town of Petersburgh | E127: Rensselaer | F127: 12/31 | G127: 1525 | H127: 0 | I127: 41.6 | J127: 124391844 | K127: 195400 | L127: 535478 | M127: 1130 | N127: 137674 | O127: 0 | P127: 69801 | Q127: 7550 | R127: 2885 | S127: 8960 | T127: 763479 | U127: 247650 | V127: 331 | W127: 1011459 | X127: 0 | Y127: 11176 | Z127: 1022635 | AA127: 174757 | AB127: 0 | AC127: 36150 | AD127: 13500 | AE127: 518866 | AF127: 0 | AG127: 2381 | AH127: 58629 | AI127: 7029 | AJ127: 20322 | AK127: 69304 | AL127: 100864 | AM127: 37745 | AN127: 1039550 | AO127: 11176 | AP127: 1050725
A128: 0 | B128: Town of Pittstown | C128: 380367000000 | D128: Town of Pittstown | E128: Rensselaer | F128: 12/31 | G128: 5735 | H128: 0 | I128: 61.6 | J128: 385880562 | K128: 980000 | L128: 1962983 | M128: 7438 | N128: 413278 | O128: 0 | P128: 17539 | Q128: 0 | R128: 9660 | S128: 130986 | T128: 2541884 | U128: 375803 | V128: 141797 | W128: 3059484 | X128: 0 | Y128: 0 | Z128: 3059484 | AA128: 694445 | AB128: 0 | AC128: 121545 | AD128: 1415 | AE128: 2604383 | AF128: 0 | AG128: 0 | AH128: 22455 | AI128: 2435 | AJ128: 0 | AK128: 520368 | AL128: 334619 | AM128: 0 | AN128: 4301666 | AO128: 0 | AP128: 4301666
A129: 0 | B129: Town of Poestenkill | C129: 380367600000 | D129: Town of Poestenkill | E129: Rensselaer | F129: 12/31 | G129: 4530 | H129: 0 | I129: 32.4 | J129: 343061896 | K129: 9208000 | L129: 1407126 | M129: 4529 | N129: 386537 | O129: 29784 | P129: 67948 | Q129: 4362 | R129: 3506 | S129: 52742 | T129: 1956534 | U129: 337182 | V129: 207808 | W129: 2501524 | X129: 161000 | Y129: 0 | Z129: 2662524 | AA129: 315113 | AB129: 0 | AC129: 298176 | AD129: 1500 | AE129: 811441 | AF129: 0 | AG129: 0 | AH129: 111041 | AI129: 15750 | AJ129: 223663 | AK129: 9827 | AL129: 255236 | AM129: 161000 | AN129: 2202747 | AO129: 0 | AP129: 2202747
A130: 0 | B130: City of Rensselaer | C130: 380247000000 | D130: City of Rensselaer | E130: Rensselaer | F130: 07/31 | G130: 9392 | H130: 0 | I130: 3.2 | J130: 446122913 | K130: 9319697 | L130: 6609131 | M130: 1357598 | N130: 2259221 | O130: 149402 | P130: 3414793 | Q130: 133942 | R130: 45482 | S130: 965665 | T130: 14935234 | U130: 3723472 | V130: 88429 | W130: 18747135 | X130: 474000 | Y130: 81000 | Z130: 19302135 | AA130: 2026449 | AB130: 0 | AC130: 3899278 | AD130: 0 | AE130: 4347484 | AF130: 0 | AG130: 1349711 | AH130: 222841 | AI130: 19163 | AJ130: 1501545 | AK130: 927482 | AL130: 3349675 | AM130: 1377169 | AN130: 19020797 | AO130: 81000 | AP130: 19101797
A131: 0 | B131: Town of Sand Lake | C131: 380374100000 | D131: Town of Sand Lake | E131: Rensselaer | F131: 12/31 | G131: 8530 | H131: 0 | I131: 35.1 | J131: 743128109 | K131: 2696088 | L131: 1707228 | M131: 12133 | N131: 846737 | O131: 132738 | P131: 704840 | Q131: 3563 | R131: 25142 | S131: 82721 | T131: 3515101 | U131: 472419 | V131: 15049 | W131: 4002569 | X131: 110408 | Y131: 64145 | Z131: 4177122 | AA131: 870387 | AB131: 0 | AC131: 554745 | AD131: 1000 | AE131: 1408302 | AF131: 0 | AG131: 0 | AH131: 244953 | AI131: 3250 | AJ131: 0 | AK131: 285024 | AL131: 607402 | AM131: 206187 | AN131: 4181249 | AO131: 64145 | AP131: 4245394
A132: 0 | B132: Town of Schaghticoke | C132: 380375200000 | D132: Town of Schaghticoke | E132: Rensselaer | F132: 12/31 | G132: 7679 | H132: 0 | I132: 49.8 | J132: 581325652 | K132: 4926472 | L132: 2282528 | M132: 8513 | N132: 635835 | O132: 52294 | P132: 409495 | Q132: 4345 | R132: 7108 | S132: 56669 | T132: 3456787 | U132: 336452 | V132: 81286 | W132: 3874525 | X132: 84700 | Y132: 34671 | Z132: 3993896 | AA132: 420996 | AB132: 0 | AC132: 366522 | AD132: 3963 | AE132: 1180430 | AF132: 0 | AG132: 0 | AH132: 64962 | AI132: 3900 | AJ132: 397741 | AK132: 659696 | AL132: 426044 | AM132: 388154 | AN132: 3912408 | AO132: 34671 | AP132: 3947079
A133: 0 | B133: Village of Schaghticoke | C133: 380475204460 | D133: Village of Schaghticoke | E133: Rensselaer | F133: 05/31 | G133: 592 | H133: 0 | I133: 0.8 | J133: 36439936 | K133: 0 | L133: 141563 | M133: 474 | N133: 55395 | O133: 5513 | P133: 82782 | Q133: 0 | R133: 15544 | S133: 122 | T133: 301392 | U133: 14410 | V133: 0 | W133: 315803 | X133: 0 | Y133: 21291 | Z133: 337094 | AA133: 82664 | AB133: 0 | AC133: 8836 | AD133: 50 | AE133: 86337 | AF133: 0 | AG133: 0 | AH133: 13000 | AI133: 2800 | AJ133: 61557 | AK133: 2434 | AL133: 19515 | AM133: 0 | AN133: 277192 | AO133: 21291 | AP133: 298483
A134: 0 | B134: Town of Schodack | C134: 380375300000 | D134: Town of Schodack | E134: Rensselaer | F134: 12/31 | G134: 12794 | H134: 0 | I134: 61.9 | J134: 1151932933 | K134: 14669641 | L134: 5800698 | M134: 99338 | N134: 1228256 | O134: 77693 | P134: 822226 | Q134: 10583 | R134: 188370 | S134: 797865 | T134: 9025029 | U134: 778953 | V134: 695727 | W134: 10499709 | X134: 1502538 | Y134: 956487 | Z134: 12958734 | AA134: 1495512 | AB134: 0 | AC134: 1503758 | AD134: 2386 | AE134: 1772572 | AF134: 237753 | AG134: 6000 | AH134: 556277 | AI134: 24490 | AJ134: 641678 | AK134: 474689 | AL134: 1238919 | AM134: 1446268 | AN134: 9400302 | AO134: 956487 | AP134: 10356789
A135: 0 | B135: Village of Castleton-on-Hudson | C135: 380475300790 | D135: Village of Castleton-On-Hudson | E135: Rensselaer | F135: 05/31 | G135: 1473 | H135: 0 | I135: 0.7 | J135: 88145521 | K135: 1978626 | L135: 376582 | M135: 4551 | N135: 121783 | O135: 15788 | P135: 947838 | Q135: 91489 | R135: 4806 | S135: 11217 | T135: 1574054 | U135: 85565 | V135: 14255 | W135: 1673874 | X135: 95626 | Y135: 0 | Z135: 1769500 | AA135: 157026 | AB135: 1559 | AC135: 85092 | AD135: 1742 | AE135: 253299 | AF135: 0 | AG135: 0 | AH135: 172182 | AI135: 4444 | AJ135: 245470 | AK135: 323259 | AL135: 163995 | AM135: 223194 | AN135: 1631262 | AO135: 0 | AP135: 1631262
A136: 0 | B136: Town of Stephentown | C136: 380380400000 | D136: Town of Stephentown | E136: Rensselaer | F136: 12/31 | G136: 2903 | H136: 0 | I136: 57.9 | J136: 269927910 | K136: 0 | L136: 658990 | M136: 5115 | N136: 304526 | O136: 0 | P136: 6133 | Q136: 0 | R136: 69415 | S136: 42204 | T136: 1086383 | U136: 204156 | V136: 103777 | W136: 1394316 | X136: 0 | Y136: 0 | Z136: 1394316 | AA136: 244954 | AB136: 0 | AC136: 32835 | AD136: 760 | AE136: 655293 | AF136: 0 | AG136: 51058 | AH136: 73638 | AI136: 1388 | AJ136: 0 | AK136: 97737 | AL136: 127081 | AM136: 0 | AN136: 1284743 | AO136: 0 | AP136: 1284743
A137: 0 | B137: City of Troy | C137: 380257000000 | D137: City of Troy | E137: Rensselaer | F137: 12/31 | G137: 50129 | H137: 0 | I137: 10.4 | J137: 1855224587 | K137: 53148061 | L137: 18981678 | M137: 2000032 | N137: 15341923 | O137: 533414 | P137: 20681186 | Q137: 291773 | R137: 1891782 | S137: 3924035 | T137: 63645823 | U137: 17649854 | V137: 10303837 | W137: 91599514 | X137: 738648 | Y137: 3161453 | Z137: 95499615 | AA137: 10345956 | AB137: 0 | AC137: 23332985 | AD137: 135438 | AE137: 10741678 | AF137: 0 | AG137: 6506770 | AH137: 3816381 | AI137: 224212 | AJ137: 8843076 | AK137: 4489236 | AL137: 21125703 | AM137: 6708646 | AN137: 96270081 | AO137: 3161453 | AP137: 99431534
A138: 0 | B138: Saratoga County | C138: 410100000000 | D138: County of Saratoga | E138: Saratoga | F138: 12/31 | G138: 219607 | H138: 0 | I138: 810 | J138: 22106339320 | K138: 71550000 | L138: 49020680 | M138: 4910093 | N138: 106727044 | O138: 2077360 | P138: 49724783 | Q138: 5780660 | R138: 2765231 | S138: 4211268 | T138: 225217119 | U138: 23786397 | V138: 23340808 | W138: 272344324 | X138: 0 | Y138: 27263874 | Z138: 299608198 | AA138: 80745130 | AB138: 16903246 | AC138: 21164880 | AD138: 30622272 | AE138: 16033952 | AF138: 51351340 | AG138: 557610 | AH138: 734627 | AI138: 5033725 | AJ138: 0 | AK138: 8669049 | AL138: 43247690 | AM138: 7205444 | AN138: 282268966 | AO138: 27263874 | AP138: 309532840
A139: 0 | B139: Village of Ballston Spa | C139: 410453400340 | D139: Village of Ballston Spa | E139: Saratoga | F139: 05/31 | G139: 5409 | H139: 0 | I139: 1.6 | J139: 327076112 | K139: 465230 | L139: 1149095 | M139: 7412 | N139: 990981 | O139: 59696 | P139: 903319 | Q139: 369293 | R139: 91491 | S139: 70158 | T139: 3641445 | U139: 196245 | V139: 880322 | W139: 4718012 | X139: 102230 | Y139: 0 | Z139: 4820242 | AA139: 511464 | AB139: 0 | AC139: 914276 | AD139: 8143 | AE139: 650144 | AF139: 1028258 | AG139: 3112 | AH139: 379818 | AI139: 17700 | AJ139: 420413 | AK139: 71077 | AL139: 783794 | AM139: 356405 | AN139: 5144604 | AO139: 0 | AP139: 5144604
A140: 0 | B140: Town of Ballston | C140: 410304900000 | D140: Town of Ballston | E140: Saratoga | F140: 12/31 | G140: 9776 | H140: 0 | I140: 29.6 | J140: 900014657 | K140: 3510470 | L140: 1296039 | M140: 0 | N140: 2392625 | O140: 75602 | P140: 648807 | Q140: 80373 | R140: 49703 | S140: 211473 | T140: 4754622 | U140: 825016 | V140: 72154 | W140: 5651792 | X140: 470000 | Y140: 6000 | Z140: 6127792 | AA140: 936822 | AB140: 0 | AC140: 380617 | AD140: 3151 | AE140: 1503690 | AF140: 0 | AG140: 752918 | AH140: 475980 | AI140: 23965 | AJ140: 946958 | AK140: 13757 | AL140: 669287 | AM140: 1136209 | AN140: 6843354 | AO140: 6000 | AP140: 6849354
A141: 0 | B141: Town of Charlton | C141: 410314700000 | D141: Town of Charlton | E141: Saratoga | F141: 12/31 | G141: 4133 | H141: 0 | I141: 32.8 | J141: 432037422 | K141: 1482700 | L141: 137698 | M141: 2418 | N141: 1116721 | O141: 33528 | P141: 176316 | Q141: 360 | R141: 5733 | S141: 91522 | T141: 1564296 | U141: 285182 | V141: 74679 | W141: 1924157 | X141: 100000 | Y141: 70265 | Z141: 2094422 | AA141: 510641 | AB141: 0 | AC141: 133803 | AD141: 881 | AE141: 619123 | AF141: 0 | AG141: 0 | AH141: 73358 | AI141: 7585 | AJ141: 205810 | AK141: 10190 | AL141: 236531 | AM141: 242654 | AN141: 2040576 | AO141: 70265 | AP141: 2110841
A142: 0 | B142: Town of Clifton Park | C142: 410317400000 | D142: Town of Clifton Park | E142: Saratoga | F142: 12/31 | G142: 36705 | H142: 0 | I142: 48.2 | J142: 3924510250 | K142: 10888027 | L142: 3217919 | M142: 177976 | N142: 10965830 | O142: 0 | P142: 3232462 | Q142: 803388 | R142: 915464 | S142: 923239 | T142: 20236278 | U142: 2366955 | V142: 453508 | W142: 23056741 | X142: 0 | Y142: 3978615 | Z142: 27035356 | AA142: 2648471 | AB142: 0 | AC142: 4173720 | AD142: 11720 | AE142: 4329580 | AF142: 301279 | AG142: 800 | AH142: 3183518 | AI142: 433496 | AJ142: 10365 | AK142: 1800492 | AL142: 3578611 | AM142: 1139181 | AN142: 21611233 | AO142: 3978615 | AP142: 25589848
A143: 0 | B143: Town of Corinth | C143: 410320000000 | D143: Town of Corinth | E143: Saratoga | F143: 12/31 | G143: 6531 | H143: 0 | I143: 56.8 | J143: 538874150 | K143: 120000 | L143: 1747678 | M143: 407415 | N143: 847166 | O143: 51662 | P143: 443682 | Q143: 101362 | R143: 32210 | S143: 57424 | T143: 3688598 | U143: 196022 | V143: 248391 | W143: 4133011 | X143: 120000 | Y143: 0 | Z143: 4253011 | AA143: 606371 | AB143: 0 | AC143: 592216 | AD143: 358139 | AE143: 1138942 | AF143: 0 | AG143: 204798 | AH143: 96167 | AI143: 114164 | AJ143: 28807 | AK143: 259521 | AL143: 465754 | AM143: 0 | AN143: 3864877 | AO143: 0 | AP143: 3864877
A144: 0 | B144: Village of Corinth | C144: 410420001150 | D144: Village of Corinth | E144: Saratoga | F144: 05/31 | G144: 2559 | H144: 0 | I144: 1.1 | J144: 240578388 | K144: 5767231 | L144: 1478510 | M144: 253663 | N144: 734779 | O144: 0 | P144: 775132 | Q144: 274737 | R144: 26872 | S144: 10530 | T144: 3554223 | U144: 178872 | V144: 705978 | W144: 4439073 | X144: 315000 | Y144: 40000 | Z144: 4794073 | AA144: 316575 | AB144: 0 | AC144: 562993 | AD144: 0 | AE144: 751082 | AF144: 489627 | AG144: 264263 | AH144: 58601 | AI144: 8714 | AJ144: 166805 | AK144: 424028 | AL144: 412428 | AM144: 820638 | AN144: 4275754 | AO144: 40000 | AP144: 4315754
A145: 0 | B145: Town of Day | C145: 410322000000 | D145: Town of Day | E145: Saratoga | F145: 12/31 | G145: 856 | H145: 0 | I145: 64.1 | J145: 305747599 | K145: 0 | L145: 470543 | M145: 37719 | N145: 830828 | O145: 0 | P145: 9306 | Q145: 0 | R145: 2438 | S145: 3500 | T145: 1354334 | U145: 170248 | V145: 0 | W145: 1524582 | X145: 0 | Y145: 0 | Z145: 1524582 | AA145: 261724 | AB145: 0 | AC145: 115143 | AD145: 775 | AE145: 739029 | AF145: 0 | AG145: 0 | AH145: 16165 | AI145: 1583 | AJ145: 0 | AK145: 95518 | AL145: 232099 | AM145: 0 | AN145: 1462036 | AO145: 0 | AP145: 1462036
A146: 0 | B146: Town of Edinburg | C146: 410325500000 | D146: Town of Edinburg | E146: Saratoga | F146: 12/31 | G146: 1214 | H146: 0 | I146: 60.2 | J146: 362584892 | K146: 0 | L146: 297539 | M146: 6144 | N146: 960034 | O146: 0 | P146: 20081 | Q146: 0 | R146: 10234 | S146: 8694 | T146: 1302725 | U146: 115127 | V146: 0 | W146: 1417852 | X146: 0 | Y146: 0 | Z146: 1417852 | AA146: 292206 | AB146: 0 | AC146: 110269 | AD146: 9392 | AE146: 545261 | AF146: 0 | AG146: 2243 | AH146: 9821 | AI146: 13203 | AJ146: 0 | AK146: 318039 | AL146: 167180 | AM146: 0 | AN146: 1467614 | AO146: 0 | AP146: 1467614
A147: 0 | B147: Town of Galway | C147: 410331400000 | D147: Town of Galway | E147: Saratoga | F147: 12/31 | G147: 3545 | H147: 0 | I147: 43.8 | J147: 408154891 | K147: 420000 | L147: 564000 | M147: 3308 | N147: 1098846 | O147: 49911 | P147: 9274 | Q147: 0 | R147: 6661 | S147: 24880 | T147: 1756881 | U147: 233465 | V147: 100117 | W147: 2090464 | X147: 0 | Y147: 0 | Z147: 2090464 | AA147: 277708 | AB147: 0 | AC147: 342630 | AD147: 1250 | AE147: 1028147 | AF147: 4020 | AG147: 0 | AH147: 61159 | AI147: 8559 | AJ147: 0 | AK147: 0 | AL147: 172557 | AM147: 131233 | AN147: 2027264 | AO147: 0 | AP147: 2027264
A148: 0 | B148: Village of Galway | C148: 410431401900 | D148: Village of Galway | E148: Saratoga | F148: 05/31 | G148: 200 | H148: 0 | I148: 0.3 | J148: 14295447 | K148: 0 | L148: 0 | M148: 0 | N148: 43569 | O148: 0 | P148: 250 | Q148: 0 | R148: 416 | S148: 11025 | T148: 55260 | U148: 4962 | V148: 0 | W148: 60222 | X148: 0 | Y148: 0 | Z148: 60222 | AA148: 27306 | AB148: 0 | AC148: 23541 | AD148: 0 | AE148: 2775 | AF148: 0 | AG148: 0 | AH148: 2965 | AI148: 1382 | AJ148: 0 | AK148: 0 | AL148: 2473 | AM148: 0 | AN148: 60442 | AO148: 0 | AP148: 60442
A149: 0 | B149: Town of Greenfield | C149: 410334400000 | D149: Town of Greenfield | E149: Saratoga | F149: 12/31 | G149: 7775 | H149: 0 | I149: 67.4 | J149: 749602234 | K149: 0 | L149: 1010060 | M149: 5726 | N149: 2084473 | O149: 63885 | P149: 652680 | Q149: 0 | R149: 84489 | S149: 105741 | T149: 4007054 | U149: 415918 | V149: 0 | W149: 4422972 | X149: 0 | Y149: 0 | Z149: 4422972 | AA149: 570436 | AB149: 0 | AC149: 63020 | AD149: 5101 | AE149: 2330010 | AF149: 0 | AG149: 140817 | AH149: 645149 | AI149: 102550 | AJ149: 0 | AK149: 33937 | AL149: 445983 | AM149: 0 | AN149: 4337002 | AO149: 0 | AP149: 4337002
A150: 0 | B150: Town of Hadley | C150: 410335700000 | D150: Town of Hadley | E150: Saratoga | F150: 12/31 | G150: 2048 | H150: 0 | I150: 39.7 | J150: 272287834 | K150: 170000 | L150: 1363122 | M150: 3497 | N150: 744988 | O150: 18964 | P150: 134803 | Q150: 0 | R150: 3809 | S150: 146480 | T150: 2415664 | U150: 102521 | V150: 256476 | W150: 2774661 | X150: 0 | Y150: 419000 | Z150: 3193661 | AA150: 420200 | AB150: 0 | AC150: 156860 | AD150: 1348 | AE150: 987383 | AF150: 223773 | AG150: 3378 | AH150: 77726 | AI150: 22614 | AJ150: 56948 | AK150: 364816 | AL150: 379728 | AM150: 42463 | AN150: 2737236 | AO150: 419000 | AP150: 3156236
A151: 0 | B151: Town of Halfmoon | C151: 410336000000 | D151: Town of Halfmoon | E151: Saratoga | F151: 12/31 | G151: 21535 | H151: 0 | I151: 32.6 | J151: 2004338104 | K151: 40256232 | L151: 2417929 | M151: 10951 | N151: 5490959 | O151: 223883 | P151: 5063287 | Q151: 254653 | R151: 111482 | S151: 553878 | T151: 14127022 | U151: 1330872 | V151: 847921 | W151: 16305815 | X151: 0 | Y151: 991809 | Z151: 17297624 | AA151: 2424899 | AB151: 0 | AC151: 1609869 | AD151: 104479 | AE151: 2487268 | AF151: 0 | AG151: 0 | AH151: 718833 | AI151: 90998 | AJ151: 3077180 | AK151: 107165 | AL151: 1544550 | AM151: 3908705 | AN151: 16073946 | AO151: 991809 | AP151: 17065755
A152: 0 | B152: Town of Malta | C152: 410350100000 | D152: Town of Malta | E152: Saratoga | F152: 12/31 | G152: 14765 | H152: 0 | I152: 27.9 | J152: 1525523427 | K152: 2955000 | L152: 1840368 | M152: 77202 | N152: 4123696 | O152: 160751 | P152: 2538849 | Q152: 114000 | R152: 123114 | S152: 401292 | T152: 9379272 | U152: 1570249 | V152: 69221 | W152: 11018742 | X152: 0 | Y152: 2506983 | Z152: 13525725 | AA152: 3236883 | AB152: 0 | AC152: 1887690 | AD152: 4300 | AE152: 2916125 | AF152: 0 | AG152: 6392 | AH152: 1279267 | AI152: 39244 | AJ152: 0 | AK152: 108905 | AL152: 1029177 | AM152: 256008 | AN152: 10763991 | AO152: 2506983 | AP152: 13270974
A153: 0 | B153: Village of Round Lake | C153: 410450104295 | D153: Village of Round Lake | E153: Saratoga | F153: 05/31 | G153: 623 | H153: 0 | I153: 1.1 | J153: 55898833 | K153: 2039562 | L153: 279385 | M153: 2687 | N153: 151594 | O153: 10164 | P153: 246036 | Q153: 754188 | R153: 65461 | S153: 11816 | T153: 1521331 | U153: 77940 | V153: 0 | W153: 1599271 | X153: 0 | Y153: 193819 | Z153: 1793090 | AA153: 202620 | AB153: 0 | AC153: 541396 | AD153: 61 | AE153: 225797 | AF153: 0 | AG153: 0 | AH153: 62123 | AI153: 5825 | AJ153: 90156 | AK153: 25867 | AL153: 96023 | AM153: 215396 | AN153: 1465264 | AO153: 193818 | AP153: 1659082
A154: 0 | B154: City of Mechanicville | C154: 410229000000 | D154: City of Mechanicville | E154: Saratoga | F154: 12/31 | G154: 5196 | H154: 0 | I154: 0.8 | J154: 213032181 | K154: 0 | L154: - | M154: - | N154: - | O154: - | P154: - | Q154: - | R154: - | S154: - | T154: - | U154: - | V154: - | W154: - | X154: - | Y154: - | Z154: - | AA154: - | AB154: - | AC154: - | AD154: - | AE154: - | AF154: - | AG154: - | AH154: - | AI154: - | AJ154: - | AK154: - | AL154: - | AM154: - | AN154: - | AO154: - | AP154: -
A155: 0 | B155: Town of Milton | C155: 410353400000 | D155: Town of Milton | E155: Saratoga | F155: 12/31 | G155: 18575 | H155: 0 | I155: 35.7 | J155: 1223587843 | K155: 0 | L155: 705349 | M155: 15843 | N155: 2854631 | O155: 152683 | P155: 204177 | Q155: 0 | R155: 14759 | S155: 117071 | T155: 4064513 | U155: 721730 | V155: 0 | W155: 4786243 | X155: 0 | Y155: 11743 | Z155: 4797986 | AA155: 1011190 | AB155: 0 | AC155: 244555 | AD155: 7313 | AE155: 1755603 | AF155: 0 | AG155: 402 | AH155: 283264 | AI155: 33249 | AJ155: 0 | AK155: 222 | AL155: 951266 | AM155: 818 | AN155: 4287882 | AO155: 11743 | AP155: 4299625
A156: 0 | B156: Town of Moreau | C156: 410354900000 | D156: Town of Moreau | E156: Saratoga | F156: 12/31 | G156: 14728 | H156: 0 | I156: 41.9 | J156: 1303053856 | K156: 7866752 | L156: 1953513 | M156: 18026 | N156: 2501171 | O156: 163939 | P156: 1630882 | Q156: 0 | R156: 93411 | S156: 406378 | T156: 6767320 | U156: 582140 | V156: 0 | W156: 7349460 | X156: 1874467 | Y156: 57846 | Z156: 9281773 | AA156: 1714765 | AB156: 0 | AC156: 1284539 | AD156: 2500 | AE156: 1614541 | AF156: 0 | AG156: 8293 | AH156: 977752 | AI156: 255701 | AJ156: 3514885 | AK156: 188334 | AL156: 854171 | AM156: 125637 | AN156: 10541118 | AO156: 57846 | AP156: 10598964
A157: 0 | B157: Village of South Glens Falls | C157: 410454904730 | D157: Village of South Glens Falls | E157: Saratoga | F157: 05/31 | G157: 3518 | H157: 0 | I157: 1.4 | J157: 260270394 | K157: 0 | L157: 1205534 | M157: 10206 | N157: 770645 | O157: 59719 | P157: 737506 | Q157: 431743 | R157: 26981 | S157: 43519 | T157: 3285853 | U157: 150771 | V157: 29768 | W157: 3466392 | X157: 0 | Y157: 25000 | Z157: 3491392 | AA157: 434544 | AB157: 0 | AC157: 995025 | AD157: 738 | AE157: 492524 | AF157: 0 | AG157: 38912 | AH157: 56260 | AI157: 5331 | AJ157: 134563 | AK157: 292950 | AL157: 750022 | AM157: 0 | AN157: 3200869 | AO157: 25000 | AP157: 3225869
A158: 0 | B158: Town of Northumberland | C158: 410360100000 | D158: Town of Northumberland | E158: Saratoga | F158: 12/31 | G158: 5087 | H158: 0 | I158: 32.3 | J158: 359533018 | K158: 80000 | L158: 622400 | M158: 4537 | N158: 1051699 | O158: 0 | P158: 34735 | Q158: 0 | R158: 3425 | S158: 49252 | T158: 1766048 | U158: 335255 | V158: 83450 | W158: 2184753 | X158: 25000 | Y158: 0 | Z158: 2209753 | AA158: 383587 | AB158: 0 | AC158: 168856 | AD158: 8462 | AE158: 955657 | AF158: 0 | AG158: 0 | AH158: 45728 | AI158: 1450 | AJ158: 0 | AK158: 54489 | AL158: 278997 | AM158: 27474 | AN158: 1924700 | AO158: 0 | AP158: 1924700
A159: =IF(C68<>C159,1,0) -> 0 | B159: Town of Providence | C159: 410369300000 | D159: Town of Providence | E159: Saratoga | F159: 12/31 | G159: 1995 | H159: 0 | I159: 44 | J159: 184055375 | K159: 30000 | L159: 749807 | M159: 3832 | N159: 523765 | O159: 26327 | P159: 32112 | Q159: 2194 | R159: 2768 | S159: 20321 | T159: 1361126 | U159: 182789 | V159: 27684 | W159: 1571599 | X159: 0 | Y159: 0 | Z159: 1571599 | AA159: 182489 | AB159: 0 | AC159: 55947 | AD159: 272 | AE159: 902066 | AF159: 2865 | AG159: 0 | AH159: 8326 | AI159: 4814 | AJ159: 0 | AK159: 23853 | AL159: 190890 | AM159: 53896 | AN159: 1425418 | AO159: 0 | AP159: 1425418
A160: 0 | B160: Town of Saratoga | C160: 410374700000 | D160: Town of Saratoga | E160: Saratoga | F160: 12/31 | G160: 5674 | H160: 0 | I160: 40.6 | J160: 529607495 | K160: 2690000 | L160: 613758 | M160: 8065 | N160: 1248419 | O160: 0 | P160: 34291 | Q160: 0 | R160: 140936 | S160: 74765 | T160: 2120234 | U160: 256770 | V160: 155340 | W160: 2532344 | X160: 0 | Y160: 98514 | Z160: 2630859 | AA160: 565374 | AB160: 0 | AC160: 76159 | AD160: 2712 | AE160: 951273 | AF160: 0 | AG160: 120849 | AH160: 40961 | AI160: 6901 | AJ160: 0 | AK160: 6424 | AL160: 255217 | AM160: 251801 | AN160: 2277671 | AO160: 98514 | AP160: 2376185
A161: 0 | B161: Village of Schuylerville | C161: 410474704490 | D161: Village of Schuylerville | E161: Saratoga | F161: 05/31 | G161: 1386 | H161: 0 | I161: 0.5 | J161: 72986179 | K161: 4395677 | L161: 483645 | M161: 7424 | N161: 208545 | O161: 15214 | P161: 373787 | Q161: 427876 | R161: 24451 | S161: 14235 | T161: 1555178 | U161: 63549 | V161: 254161 | W161: 1872888 | X161: 184891 | Y161: 0 | Z161: 2057779 | AA161: 356638 | AB161: 0 | AC161: 369475 | AD161: 2925 | AE161: 197113 | AF161: 0 | AG161: 284617 | AH161: 98490 | AI161: 8973 | AJ161: 8090 | AK161: 1141041 | AL161: 124852 | AM161: 293722 | AN161: 2885935 | AO161: 0 | AP161: 2885935
A162: 0 | B162: Village of Victory Mills | C162: 410474705070 | D162: Village of Victory | E162: Saratoga | F162: 05/31 | G162: 605 | H162: 0 | I162: 0.5 | J162: 0 | K162: 170520 | L162: 201454 | M162: 6065 | N162: 74733 | O162: 7773 | P162: 98812 | Q162: 38536 | R162: 14408 | S162: 4766 | T162: 446547 | U162: 54195 | V162: 802 | W162: 501544 | X162: 0 | Y162: 46838 | Z162: 548382 | AA162: 143788 | AB162: 0 | AC162: 6818 | AD162: 350 | AE162: 163788 | AF162: 0 | AG162: 9529 | AH162: 700 | AI162: 29528 | AJ162: 0 | AK162: 168168 | AL162: 54132 | AM162: 39306 | AN162: 616107 | AO162: 46838 | AP162: 662945
A163: 0 | B163: City of Saratoga Springs | C163: 410252000000 | D163: City of Saratoga Springs | E163: Saratoga | F163: 12/31 | G163: 26586 | H163: 0 | I163: 28.1 | J163: 3736363956 | K163: 42784584 | L163: 18656693 | M163: 613689 | N163: 11648543 | O163: 483251 | P163: 10081954 | Q163: 309061 | R163: 1229077 | S163: 4703878 | T163: 47726146 | U163: 3450528 | V163: 1149844 | W163: 52326518 | X163: 7200687 | Y163: 1216798 | Z163: 60744003 | AA163: 11450326 | AB163: 0 | AC163: 14273997 | AD163: 17965 | AE163: 4090574 | AF163: 205021 | AG163: 367964 | AH163: 3687457 | AI163: 262095 | AJ163: 2284489 | AK163: 3614379 | AL163: 11906962 | AM163: 4079666 | AN163: 56240895 | AO163: 1216797 | AP163: 57457692
A164: 0 | B164: Town of Stillwater | C164: 410380700000 | D164: Town of Stillwater | E164: Saratoga | F164: 12/31 | G164: 8287 | H164: 0 | I164: 41.2 | J164: 701705283 | K164: 4839200 | L164: 2064878 | M164: 438922 | N164: 1762684 | O164: 61871 | P164: 451992 | Q164: 2338 | R164: 33996 | S164: 266255 | T164: 5082936 | U164: 1434361 | V164: 33753 | W164: 6551049 | X164: 0 | Y164: 0 | Z164: 6551049 | AA164: 2618568 | AB164: 0 | AC164: 507870 | AD164: 1000 | AE164: 1063025 | AF164: 32393 | AG164: 16191 | AH164: 369920 | AI164: 25232 | AJ164: 368852 | AK164: 62008 | AL164: 617278 | AM164: 462332 | AN164: 6144670 | AO164: 0 | AP164: 6144670
A165: 0 | B165: Village of Stillwater | C165: 410480704820 | D165: Village of Stillwater | E165: Saratoga | F165: 05/31 | G165: 1738 | H165: 0 | I165: 1.3 | J165: 86814885 | K165: 4915576 | L165: 408770 | M165: 4750 | N165: 237435 | O165: 19650 | P165: 588063 | Q165: 0 | R165: 3836 | S165: 3767 | T165: 1266270 | U165: 53063 | V165: 610281 | W165: 1929614 | X165: 396500 | Y165: 20000 | Z165: 2346114 | AA165: 182640 | AB165: 0 | AC165: 39761 | AD165: 440 | AE165: 126109 | AF165: 0 | AG165: 0 | AH165: 11778 | AI165: 744 | AJ165: 4127615 | AK165: 338292 | AL165: 125687 | AM165: 552218 | AN165: 5505283 | AO165: 20000 | AP165: 5525283
A166: 0 | B166: Town of Waterford | C166: 410387500000 | D166: Town of Waterford | E166: Saratoga | F166: 12/31 | G166: 8423 | H166: 0 | I166: 6.6 | J166: 558795662 | K166: 6914303 | L166: 3381900 | M166: 20176 | N166: 1493491 | O166: 111491 | P166: 838668 | Q166: 17903 | R166: 15458 | S166: 148677 | T166: 6027764 | U166: 348315 | V166: 400451 | W166: 6776530 | X166: 109626 | Y166: 759739 | Z166: 7645895 | AA166: 778163 | AB166: 486 | AC166: 1597279 | AD166: 0 | AE166: 666737 | AF166: 290234 | AG166: 0 | AH166: 356744 | AI166: 59635 | AJ166: 0 | AK166: 1072675 | AL166: 903214 | AM166: 946734 | AN166: 6671901 | AO166: 759739 | AP166: 7431640
A167: 0 | B167: Village of Waterford | C167: 410487505180 | D167: Village of Waterford | E167: Saratoga | F167: 05/31 | G167: 1990 | H167: 0 | I167: 0.3 | J167: 58603869 | K167: 603500 | L167: 256342 | M167: 4533 | N167: 151643 | O167: 19163 | P167: 70523 | Q167: 186293 | R167: 1163 | S167: 1600 | T167: 691261 | U167: 106139 | V167: 363326 | W167: 1160725 | X167: 18000 | Y167: 11300 | Z167: 1190025 | AA167: 124871 | AB167: 0 | AC167: 159821 | AD167: 0 | AE167: 332807 | AF167: 302839 | AG167: 0 | AH167: 52083 | AI167: 590 | AJ167: 0 | AK167: 167893 | AL167: 12818 | AM167: 105066 | AN167: 1258788 | AO167: 11300 | AP167: 1270088
A168: 0 | B168: Town of Wilton | C168: 410391700000 | D168: Town of Wilton | E168: Saratoga | F168: 12/31 | G168: 16173 | H168: 0 | I168: 35.8 | J168: 1904090926 | K168: 175000 | L168: 657034 | M168: 9782 | N168: 5231122 | O168: 268916 | P168: 719028 | Q168: 16383 | R168: 57299 | S168: 224570 | T168: 7184135 | U168: 1156558 | V168: 145888 | W168: 8486582 | X168: 0 | Y168: 142 | Z168: 8486724 | AA168: 1546934 | AB168: 0 | AC168: 862482 | AD168: 6993 | AE168: 2434975 | AF168: 145888 | AG168: 0 | AH168: 827072 | AI168: 251869 | AJ168: 0 | AK168: 16214 | AL168: 1112271 | AM168: 177800 | AN168: 7382499 | AO168: 142 | AP168: 7382641
A169: 0 | B169: Schenectady County | C169: 420100000000 | D169: County of Schenectady | E169: Schenectady | F169: 12/31 | G169: 154727 | H169: 0 | I169: 204.5 | J169: 10078419665 | K169: 53024236 | L169: 62283259 | M169: 2871318 | N169: 91394175 | O169: 568812 | P169: 29890178 | Q169: 5942398 | R169: 782976 | S169: 12615068 | T169: 206348184 | U169: 44923823 | V169: 32862296 | W169: 284134303 | X169: 4626778 | Y169: 1740904 | Z169: 290501985 | AA169: 50184115 | AB169: 18896104 | AC169: 23463999 | AD169: 29167397 | AE169: 13846379 | AF169: 103347171 | AG169: 1837079 | AH169: 7185321 | AI169: 3448041 | AJ169: 0 | AK169: 342224 | AL169: 36491082 | AM169: 8970450 | AN169: 297179362 | AO169: 1740904 | AP169: 298920266
A170: 0 | B170: Town of Duanesburg | C170: 420324200000 | D170: Town of Duanesburg | E170: Schenectady | F170: 12/31 | G170: 6122 | H170: 0 | I170: 70.8 | J170: 483543066 | K170: 6383257 | L170: 1575978 | M170: 15174 | N170: 682001 | O170: 37338 | P170: 29440 | Q170: 14920 | R170: 8447 | S170: 141806 | T170: 2505105 | U170: 333617 | V170: 83391 | W170: 2922113 | X170: 0 | Y170: 0 | Z170: 2922113 | AA170: 565751 | AB170: 0 | AC170: 460251 | AD170: 876 | AE170: 665541 | AF170: 2500 | AG170: 88200 | AH170: 29839 | AI170: 2500 | AJ170: 0 | AK170: 250522 | AL170: 396675 | AM170: 306133 | AN170: 2768788 | AO170: 0 | AP170: 2768788
A171: 0 | B171: Village of Delanson | C171: 420424201250 | D171: Village of Delanson | E171: Schenectady | F171: 05/31 | G171: 377 | H171: 0 | I171: 0.6 | J171: 19368165 | K171: 400600 | L171: 70050 | M171: 5648 | N171: 25793 | O171: 7484 | P171: 78573 | Q171: 62637 | R171: 77 | S171: 5877 | T171: 256139 | U171: 35032 | V171: 0 | W171: 291171 | X171: 0 | Y171: 0 | Z171: 291171 | AA171: 54290 | AB171: 0 | AC171: 59762 | AD171: 50 | AE171: 35062 | AF171: 0 | AG171: 0 | AH171: 1313 | AI171: 0 | AJ171: 39519 | AK171: 29256 | AL171: 7973 | AM171: 42862 | AN171: 270087 | AO171: 0 | AP171: 270087
A172: 0 | B172: Town of Glenville | C172: 420333100000 | D172: Town of Glenville | E172: Schenectady | F172: 12/31 | G172: 29480 | H172: 0 | I172: 49.2 | J172: 2197668692 | K172: 19164327 | L172: 7976037 | M172: 185839 | N172: 2628970 | O172: 331041 | P172: 2214548 | Q172: 380905 | R172: 271241 | S172: 1091800 | T172: 15080381 | U172: 1146401 | V172: 605050 | W172: 16831832 | X172: 3686724 | Y172: 50139 | Z172: 20568695 | AA172: 1475996 | AB172: 0 | AC172: 3631542 | AD172: 4242 | AE172: 2523644 | AF172: 286763 | AG172: 99895 | AH172: 341114 | AI172: 53621 | AJ172: 1132099 | AK172: 751736 | AL172: 3366751 | AM172: 1792777 | AN172: 15460180 | AO172: 50139 | AP172: 15510319
A173: 0 | B173: Village of Scotia | C173: 420433104500 | D173: Village of Scotia | E173: Schenectady | F173: 05/31 | G173: 7729 | H173: 0 | I173: 1.7 | J173: 400657975 | K173: 712460 | L173: 4116223 | M173: 101863 | N173: 780034 | O173: 0 | P173: 2346672 | Q173: 415075 | R173: 20969 | S173: 146239 | T173: 7927076 | U173: 956198 | V173: 982719 | W173: 9865993 | X173: 0 | Y173: 0 | Z173: 9865993 | AA173: 788839 | AB173: 0 | AC173: 2423233 | AD173: 97 | AE173: 438823 | AF173: 657418 | AG173: 1391 | AH173: 790627 | AI173: 35168 | AJ173: 540493 | AK173: 2084348 | AL173: 1757464 | AM173: 278401 | AN173: 9796301 | AO173: 0 | AP173: 9796301
A174: 0 | B174: Town of Niskayuna | C174: 420358700000 | D174: Town of Niskayuna | E174: Schenectady | F174: 12/31 | G174: 21781 | H174: 0 | I174: 14.2 | J174: 2435313092 | K174: 9709441 | L174: 10784622 | M174: 444281 | N174: 3250319 | O174: 375064 | P174: 4035295 | Q174: 30460 | R174: 727870 | S174: 380636 | T174: 20028548 | U174: 1201564 | V174: 579957 | W174: 21810068 | X174: 0 | Y174: 588962 | Z174: 22399030 | AA174: 2332586 | AB174: 0 | AC174: 3305293 | AD174: 31610 | AE174: 3005909 | AF174: 280744 | AG174: 300 | AH174: 938222 | AI174: 114997 | AJ174: 2511799 | AK174: 2680816 | AL174: 4450253 | AM174: 1194729 | AN174: 20847257 | AO174: 588962 | AP174: 21436219
A175: 0 | B175: Town of Princetown | C175: 420369200000 | D175: Town of Princetown | E175: Schenectady | F175: 12/31 | G175: 2115 | H175: 0 | I175: 23.9 | J175: 178036505 | K175: 2616300 | L175: 451219 | M175: 85460 | N175: 179248 | O175: 0 | P175: 99053 | Q175: 0 | R175: 38569 | S175: 197464 | T175: 1051012 | U175: 89713 | V175: 22936 | W175: 1163661 | X175: 0 | Y175: 38695 | Z175: 1202355 | AA175: 374402 | AB175: 0 | AC175: 239467 | AD175: 100 | AE175: 42194 | AF175: 0 | AG175: 5000 | AH175: 2396 | AI175: 1000 | AJ175: 151579 | AK175: 0 | AL175: 73255 | AM175: 167420 | AN175: 1056813 | AO175: 38695 | AP175: 1095507
A176: 0 | B176: Town of Rotterdam | C176: 420372600000 | D176: Town of Rotterdam | E176: Schenectady | F176: 12/31 | G176: 29094 | H176: 0 | I176: 35.7 | J176: 2459983866 | K176: 8421850 | L176: 12316879 | M176: 218173 | N176: 3637079 | O176: 547575 | P176: 1185703 | Q176: 187509 | R176: 308167 | S176: 667031 | T176: 19068116 | U176: 1150494 | V176: 1698115 | W176: 21916725 | X176: 153900 | Y176: 306763 | Z176: 22377388 | AA176: 2044247 | AB176: 0 | AC176: 5780141 | AD176: 3400 | AE176: 2618097 | AF176: 1608946 | AG176: 1400 | AH176: 395429 | AI176: 172750 | AJ176: 864807 | AK176: 900534 | AL176: 5563236 | AM176: 1318057 | AN176: 21271043 | AO176: 306763 | AP176: 21577806
A177: 0 | B177: City of Schenectady | C177: 420253000000 | D177: City of Schenectady | E177: Schenectady | F177: 12/31 | G177: 66135 | H177: 0 | I177: 10.8 | J177: 2386460919 | K177: 105522383 | L177: 28711158 | M177: 2952153 | N177: 11763542 | O177: 842776 | P177: 30138647 | Q177: 173795 | R177: 1223612 | S177: 10059536 | T177: 85865219 | U177: 15058946 | V177: 9380164 | W177: 110304329 | X177: 3072801 | Y177: 3586210 | Z177: 116963340 | AA177: 11135853 | AB177: 0 | AC177: 28970305 | AD177: 0 | AE177: 7210007 | AF177: 0 | AG177: 7843608 | AH177: 1920444 | AI177: 673748 | AJ177: 6858269 | AK177: 12149871 | AL177: 26671113 | AM177: 9527858 | AN177: 112961076 | AO177: 3586209 | AP177: 116547285
A178: 0 | B178: Capital District | C178: =SUM(C94:C177)-C104-C105 -> -20769002040

Sheet Muni-L2
B1: =B94 -> Fiscal Year 2012 | L1: REVENUES | CT1: EXPENDITURES
L2: Real Property Taxes & Assessments | O2: Other Real Property Tax Items | T2: Sales & Use Tax | X2: Other Non-Property Taxes | AB2: Charges for Services | AO2: Charges to Other Governments | BA2: Use & Sale of Property | BD2: Other Local Revenues | BM2: State Aid | CA2: Federal Aid | CN2: Proceeds of Debt | CQ2: Other Sources | CT2: General Government | CZ2: Education | DG2: Public Safety | DO2: Health | DU2: Transportation | ED2: Social Services | EM2: Economic Development | ER2: Culture & Recreation | EX2: Community Services | FC2: Utilities | FG2: Sanitation | FM2: Employee Benefits | FY2: Debt Service | GB2: Other Uses
B3: Level Two | C3: Municipal Code | D3: Municipal Name | E3: County Name | F3: Fiscal Year End | G3: Population | H3: Enrollment | I3: Land Area (sq. mi.) | J3: Full Value | K3: Total Debt Outstanding at EOFY | L3: Real Property Taxes | N3: Special Assessments | O3: Star Payments | P3: Payments In Lieu Of Taxes | Q3: Interest Penalties | R3: Gain from Sale of Tax Acquired Property | S3: Miscellaneous Tax Items | T3: Sales Tax | U3: Sales Tax Distribution | V3: Utilities Gross Receipts Tax | W3: Miscellaneous Use Taxes | X3: Franchises | Y3: Emergency Telephone System Surcharge | Z3: Miscellaneous Non-Property Taxes | AA3: City Income Tax | AB3: General Government Fees | AC3: Education Fees | AD3: Public Safety Fees | AE3: Health Fees | AG3: Transportation Fees | AH3: Social Services Fees | AI3: Economic Development Fees | AJ3: Culture And Recreation Fees | AK3: Community Services Fees | AL3: Utility Fees | AM3: Sanitation Fees | AN3: Miscellaneous Fees | AO3: General Government Charges | AP3: Education Charges | AQ3: Public Safety Charges | AR3: Health Charges | AS3: Transportation Charges | AT3: Social Services Charges | AU3: Culture & Recreation Charges | AV3: Community Services Charges | AW3: Utility Charges | AX3: Debt Service Charges | AY3: Miscellaneous Inter-Governmental Charges | AZ3: Sanitation Charges | BA3: Interest & Earnings | BB3: Sale of Property | BC3: Rental of Property | BD3: Fines | BE3: Forfeitures | BF3: Compensation for Loss | BG3: Library Grants from Local Governments | BH3: Miscellaneous Grants from Local Governments | BI3: Gifts | BJ3: Employee Contributions | BK3: Miscellaneous Revenues | BL3: Local Revenues | BM3: Unrestricted State Aid | BN3: Mortgage Tax | BO3: State Aid General Government | BP3: State Aid Education | BQ3: State Aid Public Safety | BR3: State Aid Health | BS3: State Aid Transportation | BT3: State Aid Social Services | BU3: State Aid Economic Development | BV3: State Aid Culture And Recreation | BW3: State Aid Community Services | BX3: State Aid Utilities | BY3: State Aid Sanitation | BZ3: Miscellaneous State Aid | CA3: Federal Aid Education | CB3: Federal Aid Public Safety | CC3: Federal Aid Health | CD3: Federal Aid Transportation | CE3: Federal Aid Social Services | CF3: Federal Aid Economic Development | CG3: Federal Aid Culture And Recreation | CH3: Federal Aid Community Services | CI3: Federal Aid General Government | CJ3: Federal Aid Utilities | CK3: Federal Aid Sanitation | CL3: Miscellaneous Federal Aid | CM3: Total Revenues | CN3: Sale Of Obligations | CO3: Bans Redeemed From Appropriations | CP3: Miscellaneous Debt Proceeds | CQ3: Tranfers | CR3: Miscellaneous Other Sources | CS3: Total Revenues & Other Sources | CT3: Operations | CU3: Administration | CV3: County Distribution of Sales Tax | CW3: Miscellaneous General Government | CX3: Zoning And Planning | CY3: Judgements | CZ3: Instruction | DA3: Instructional Support | DB3: Pupil Services | DC3: Education - Transportation | DD3: Student Activities | DE3: Community College | DF3: Miscellaneous Education | DG3: Public Safety Administration | DH3: Police | DI3: Fire Protection | DJ3: Emergency Response | DK3: Correctional Services | DL3: Disaster Response | DM3: Homeland Security and Civil Defense | DN3: Miscellaneous Public Safety | DO3: Public Health Administration | DP3: Public Health Services | DQ3: Mental Health Services | DR3: Environmental Services | DS3: Public Health Facilities | DT3: Miscellaneous Public Health | DU3: Highways | DV3: Highway Services to Other Governments | DW3: Bus Service | DX3: Airports | DY3: Rail Service | DZ3: Waterways | EA3: Transportation Facilities | EB3: Transportation Ancillary | EC3: Miscellaneous Transportation | ED3: Social Service Administration | EE3: Financial Assistance | EF3: Medicaid | EG3: Non-Medicaid Medical Assistance | EH3: Housing Assistance | EI3: Employment Services | EJ3: Youth Services | EK3: Public Facilities | EL3: Miscellaneous Social Services | EM3: Economic Development Administration | EN3: Development Infrastructure | EO3: Promotion | EP3: Economic Development Grants | EQ3: Miscellaneous Economic Development | ER3: Recreation Services | ES3: Adult Recreation | ET3: Youth Recreation | EU3: Library | EV3: Cultural Services | EW3: Miscellaneous Cultural & Recreation | EX3: Constituent Services | EY3: Elder Services | EZ3: Natural Resources | FA3: Student Census | FB3: Miscellaneous Community Services | FC3: Water | FD3: Electricity | FE3: Natural Gas | FF3: Steam | FG3: Sewer | FH3: Storm Sewer | FI3: Refuse & Garbage | FJ3: Landfill Closures | FK3: Drainage | FL3: Miscellaneous Sanitation | FM3: Retirement State Local | FN3: Retirement Police Fire | FO3: Retirement Teacher | FP3: LOSAP / Miscellaneous | FQ3: Social Security | FR3: Medical Insurance | FS3: Disability Insurance | FT3: Life Insurance | FU3: Workers Compensation | FV3: Unemployment Insurance | FW3: Union Benefits Program | FX3: Unclassified Employee Benefits | FY3: Debt Principal | FZ3: Interest On Debt | GA3: Total Expenditures | GB3: Tranfers | GC3: Total Expenditures & Other Uses
B4: Albany County | C4: =C97 -> 010100000000 | D4: =D97 -> County of Albany | E4: Albany | F4: 12/31 | G4: 304204 | H4: 0 | I4: 522.8 | J4: 23656149879 | K4: 266458748 | L4: 75745309 | M4: 0 | N4: 0 | O4: 0 | P4: 2926343 | Q4: 4490762 | R4: 400000 | S4: 0 | T4: 238969914 | U4: 0 | V4: 0 | W4: 7799907 | X4: 0 | Y4: 1580578 | Z4: 0 | AA4: 0 | AB4: 15767991 | AC4: 0 | AD4: 1406295 | AE4: 30273940 | AF4: 0 | AG4: 1824723 | AH4: 7463475 | AI4: 46863 | AJ4: 5627161 | AK4: 343599 | AL4: 0 | AM4: 1866739 | AN4: 0 | AO4: 510274 | AP4: 0 | AQ4: 7945933 | AR4: 0 | AS4: 535231 | AT4: 0 | AU4: 0 | AV4: 0 | AW4: 0 | AX4: 972611 | AY4: 0 | AZ4: 9789617 | BA4: 9910419 | BB4: 838419 | BC4: 2083287 | BD4: 625197 | BE4: 170 | BF4: 4990212 | BG4: 0 | BH4: 578334 | BI4: 500 | BJ4: 0 | BK4: 8134938 | BL4: 443448738 | BM4: 0 | BN4: 4592634 | BO4: 4427398 | BP4: =BP97 -> 7242754 | BQ4: 3127936 | BR4: 15800227 | BS4: 1845433 | BT4: 22359473 | BU4: 0 | BV4: 382650 | BW4: 1525711 | BX4: 0 | BY4: 0 | BZ4: 2137559 | CA4: 0 | CB4: 2055861 | CC4: 4936311 | CD4: 285658 | CE4: 55259681 | CF4: 225561 | CG4: 0 | CH4: 1673373 | CI4: 0 | CJ4: 0 | CK4: 0 | CL4: 0 | CM4: 571326960 | CN4: 20710000 | CO4: 1161045 | CP4: 0 | CQ4: 48975772 | CR4: 0 | CS4: 642173778 | CT4: 31685686 | CU4: 26693745 | CV4: 95587966 | CW4: 4218748 | CX4: 363816 | CY4: 374014 | CZ4: 0 | DA4: 0 | DB4: 0 | DC4: 0 | DD4: 0 | DE4: 9795058 | DF4: 12775634 | DG4: 2299697 | DH4: 13528056 | DI4: 0 | DJ4: 0 | DK4: 34562528 | DL4: 0 | DM4: 0 | DN4: 152130 | DO4: 5972284 | DP4: 9424255 | DQ4: 13963371 | DR4: 0 | DS4: 0 | DT4: 0 | DU4: 17240286 | DV4: 0 | DW4: 1258835 | DX4: 0 | DY4: 0 | DZ4: 0 | EA4: 1348437 | EB4: =EB97 -> 0 | EC4: 0 | ED4: 17640094 | EE4: 57321934 | EF4: 67159771 | EG4: 26177257 | EH4: 0 | EI4: 0 | EJ4: 3395240 | EK4: 19813813 | EL4: 0 | EM4: 472 | EN4: 0 | EO4: 0 | EP4: 0 | EQ4: 2377930 | ER4: 4851063 | ES4: 0 | ET4: 326623 | EU4: 0 | EV4: 0 | EW4: 0 | EX4: 175468 | EY4: 4705730 | EZ4: 0 | FA4: 0 | FB4: 1261196 | FC4: 0 | FD4: 0 | FE4: 0 | FF4: 0 | FG4: 6538104 | FH4: 0 | FI4: 0 | FJ4: 0 | FK4: 0 | FL4: 0 | FM4: 12428982 | FN4: 0 | FO4: 0 | FP4: 0 | FQ4: 7062090 | FR4: 30746479 | FS4: 0 | FT4: 0 | FU4: 6783357 | FV4: 275696 | FW4: 0 | FX4: 13819615 | FY4: 17209535 | FZ4: 8344175 | GA4: 589659167 | GB4: 48975773 | GC4: 638634940
B5: City of Albany | C5: =C98 -> 010201000000 | D5: City of Albany | E5: Albany | F5: 12/31 | G5: 97856 | H5: 0 | I5: 21.4 | J5: 4783457074 | K5: 134096527 | L5: 54696762 | M5: 0 | N5: 0 | O5: 0 | P5: 27191038 | Q5: 286344 | R5: 0 | S5: 0 | T5: 0 | U5: 30639852 | V5: 1531931 | W5: 3640 | X5: 1305567 | Y5: 0 | Z5: 229938 | AA5: 0 | AB5: 533167 | AC5: 0 | AD5: 886838 | AE5: 237344 | AF5: 0 | AG5: 91459 | AH5: 0 | AI5: 0 | AJ5: 1189019 | AK5: 2269813 | AL5: 0 | AM5: 10161507 | AN5: 0 | AO5: 0 | AP5: 0 | AQ5: 0 | AR5: 0 | AS5: 0 | AT5: 0 | AU5: 0 | AV5: 0 | AW5: 0 | AX5: 0 | AY5: 195779 | AZ5: 871604 | BA5: 3100717 | BB5: 32256 | BC5: 77329 | BD5: 4816353 | BE5: 0 | BF5: 352732 | BG5: 0 | BH5: 0 | BI5: 662925 | BJ5: 0 | BK5: 2430338 | BL5: 143794252 | BM5: 12607823 | BN5: 2446105 | BO5: =BO98 -> 1363188 | BP5: 0 | BQ5: 1479097 | BR5: 0 | BS5: 1350981 | BT5: 0 | BU5: 0 | BV5: 226538 | BW5: 1045120 | BX5: 0 | BY5: 0 | BZ5: 1046741 | CA5: 0 | CB5: 2835291 | CC5: 0 | CD5: 119985 | CE5: 0 | CF5: 2321819 | CG5: 94183 | CH5: 0 | CI5: 0 | CJ5: 0 | CK5: 0 | CL5: 177460 | CM5: 170908583 | CN5: 40703598 | CO5: 2224385 | CP5: 0 | CQ5: 0 | CR5: 0 | CS5: 213836566 | CT5: 12711120 | CU5: 6732605 | CV5: 0 | CW5: 0 | CX5: 1685649 | CY5: 474931 | CZ5: 0 | DA5: 0 | DB5: 0 | DC5: 0 | DD5: 0 | DE5: 0 | DF5: 0 | DG5: 2688116 | DH5: 35965117 | DI5: 19018266 | DJ5: 0 | DK5: 0 | DL5: 0 | DM5: 0 | DN5: 1523335 | DO5: 193147 | DP5: 0 | DQ5: 0 | DR5: 0 | DS5: 0 | DT5: 0 | DU5: 7377958 | DV5: 0 | DW5: 0 | DX5: 0 | DY5: 0 | DZ5: 0 | EA5: =EA98 -> 0 | EB5: 5450138 | EC5: 0 | ED5: 0 | EE5: 0 | EF5: 0 | EG5: 0 | EH5: 0 | EI5: 1801215 | EJ5: 0 | EK5: 0 | EL5: 0 | EM5: 350204 | EN5: 0 | EO5: 0 | EP5: 0 | EQ5: 0 | ER5: 3027653 | ES5: 0 | ET5: 0 | EU5: 0 | EV5: 1167946 | EW5: 0 | EX5: 103009 | EY5: 0 | EZ5: 0 | FA5: 0 | FB5: 25890 | FC5: 0 | FD5: 0 | FE5: 0 | FF5: 0 | FG5: 0 | FH5: 0 | FI5: 15043037 | FJ5: 0 | FK5: 0 | FL5: 0 | FM5: 3897986 | FN5: 0 | FO5: 0 | FP5: 0 | FQ5: 0 | FR5: 7240765 | FS5: 0 | FT5: 0 | FU5: 2627263 | FV5: 326653 | FW5: 0 | FX5: 39780460 | FY5: 15731648 | FZ5: 3493575 | GA5: 188437686 | GB5: 600084 | GC5: 189037770
B6: Town of Berne | C6: =C99 -> 010306800000 | D6: Town of Berne | E6: Albany | F6: 12/31 | G6: 2794 | H6: 0 | I6: 64 | J6: 256017185 | K6: 405260 | L6: 811214 | M6: 0 | N6: 0 | O6: 0 | P6: 0 | Q6: 3779 | R6: 0 | S6: 0 | T6: 0 | U6: 874834 | V6: 0 | W6: 0 | X6: 15662 | Y6: 0 | Z6: 0 | AA6: 0 | AB6: 6788 | AC6: 0 | AD6: 0 | AE6: 14519 | AF6: 0 | AG6: 0 | AH6: 0 | AI6: 0 | AJ6: 2305 | AK6: 7294 | AL6: 0 | AM6: 1592 | AN6: 0 | AO6: 0 | AP6: 0 | AQ6: 0 | AR6: 0 | AS6: 0 | AT6: 0 | AU6: 0 | AV6: 0 | AW6: 0 | AX6: 0 | AY6: 0 | AZ6: 0 | BA6: 1320 | BB6: 33838 | BC6: 0 | BD6: 6116 | BE6: 0 | BF6: 0 | BG6: 0 | BH6: 0 | BI6: 434 | BJ6: 0 | BK6: 130942 | BL6: 1910636 | BM6: 12028 | BN6: 63243 | BO6: =BO99 -> 0 | BP6: 0 | BQ6: 108229 | BR6: 0 | BS6: 186024 | BT6: 0 | BU6: 0 | BV6: 0 | BW6: 0 | BX6: 0 | BY6: 0 | BZ6: 19186 | CA6: 0 | CB6: 0 | CC6: 0 | CD6: 0 | CE6: 0 | CF6: 0 | CG6: 0 | CH6: 0 | CI6: 0 | CJ6: 0 | CK6: 0 | CL6: 225099 | CM6: 2524445 | CN6: 0 | CO6: 311015 | CP6: 0 | CQ6: 0 | CR6: 0 | CS6: 2835460 | CT6: 205011 | CU6: 257017 | CV6: 0 | CW6: 0 | CX6: 20693 | CY6: 0 | CZ6: 0 | DA6: 0 | DB6: 0 | DC6: 0 | DD6: 0 | DE6: 0 | DF6: 0 | DG6: 0 | DH6: 69088 | DI6: 0 | DJ6: 0 | DK6: 0 | DL6: 0 | DM6: 0 | DN6: 32720 | DO6: 1000 | DP6: 0 | DQ6: 0 | DR6: 0 | DS6: 0 | DT6: 0 | DU6: 1251396 | DV6: 0 | DW6: 0 | DX6: 0 | DY6: 0 | DZ6: 0 | EA6: =EA99 -> 102537 | EB6: 9990 | EC6: 0 | ED6: 0 | EE6: 0 | EF6: 0 | EG6: 0 | EH6: 0 | EI6: 0 | EJ6: 0 | EK6: 0 | EL6: 0 | EM6: 0 | EN6: 0 | EO6: 0 | EP6: 0 | EQ6: 0 | ER6: 33090 | ES6: 0 | ET6: 5843 | EU6: 28127 | EV6: 450 | EW6: 1020 | EX6: 0 | EY6: 0 | EZ6: 0 | FA6: 0 | FB6: 0 | FC6: 0 | FD6: 0 | FE6: 0 | FF6: 0 | FG6: 8000 | FH6: 0 | FI6: 98512 | FJ6: 0 | FK6: 0 | FL6: 0 | FM6: 69647 | FN6: 0 | FO6: 0 | FP6: 0 | FQ6: 44338 | FR6: 120749 | FS6: 0 | FT6: 0 | FU6: 38962 | FV6: 475 | FW6: 0 | FX6: 0 | FY6: 311015 | FZ6: 13685 | GA6: 2723364 | GB6: 0 | GC6: 2723364
B7: Town of Bethlehem | C7: =C100 -> 010307100000 | D7: Town of Bethlehem | E7: Albany | F7: 12/31 | G7: 33656 | H7: 0 | I7: 49 | J7: 3274265514 | K7: 19515500 | L7: 11217280 | M7: 0 | N7: 0 | O7: 0 | P7: 2058671 | Q7: 0 | R7: 0 | S7: 0 | T7: 0 | U7: 10538085 | V7: 0 | W7: 0 | X7: 598918 | Y7: 0 | Z7: 0 | AA7: 0 | AB7: 147985 | AC7: 0 | AD7: 423483 | AE7: 12960 | AF7: 0 | AG7: 0 | AH7: 0 | AI7: 0 | AJ7: 656023 | AK7: 207586 | AL7: 6897065 | AM7: 2984983 | AN7: 0 | AO7: 0 | AP7: 0 | AQ7: 792 | AR7: 0 | AS7: 0 | AT7: 0 | AU7: 0 | AV7: 0 | AW7: 0 | AX7: 0 | AY7: 79978 | AZ7: 0 | BA7: 1007936 | BB7: 121259 | BC7: 232926 | BD7: 431863 | BE7: 0 | BF7: 152249 | BG7: 0 | BH7: 0 | BI7: 536 | BJ7: 0 | BK7: 596570 | BL7: 38367148 | BM7: 126638 | BN7: 1298904 | BO7: =BO100 -> 0 | BP7: 0 | BQ7: 287483 | BR7: 0 | BS7: 248859 | BT7: 0 | BU7: 0 | BV7: 0 | BW7: 0 | BX7: 0 | BY7: 137800 | BZ7: 0 | CA7: 0 | CB7: 874482 | CC7: 0 | CD7: 0 | CE7: 817266 | CF7: 0 | CG7: 0 | CH7: 286262 | CI7: 0 | CJ7: 0 | CK7: 0 | CL7: 0 | CM7: 42444842 | CN7: 0 | CO7: 320500 | CP7: 0 | CQ7: 927811 | CR7: 0 | CS7: 43693153 | CT7: 1719647 | CU7: 1852808 | CV7: 0 | CW7: 0 | CX7: 438208 | CY7: 0 | CZ7: 0 | DA7: 0 | DB7: 0 | DC7: 0 | DD7: 0 | DE7: 0 | DF7: 11640 | DG7: 739252 | DH7: 4511903 | DI7: 15214 | DJ7: 1299222 | DK7: 0 | DL7: 0 | DM7: 4166 | DN7: 448539 | DO7: 1466 | DP7: 0 | DQ7: 0 | DR7: 0 | DS7: 0 | DT7: 0 | DU7: 4206180 | DV7: 0 | DW7: 0 | DX7: 0 | DY7: 0 | DZ7: 0 | EA7: =EA100 -> 839455 | EB7: 217103 | EC7: 0 | ED7: 0 | EE7: 0 | EF7: 0 | EG7: 0 | EH7: 817643 | EI7: 0 | EJ7: 0 | EK7: 0 | EL7: 0 | EM7: 0 | EN7: 0 | EO7: 0 | EP7: 0 | EQ7: 0 | ER7: 1756350 | ES7: 0 | ET7: 30000 | EU7: 0 | EV7: 10833 | EW7: 0 | EX7: 0 | EY7: 470254 | EZ7: 50913 | FA7: 0 | FB7: 0 | FC7: 6545827 | FD7: 0 | FE7: 0 | FF7: 0 | FG7: 3002131 | FH7: 0 | FI7: 1115480 | FJ7: 0 | FK7: 0 | FL7: 0 | FM7: 0 | FN7: 0 | FO7: 0 | FP7: 0 | FQ7: 0 | FR7: 0 | FS7: 0 | FT7: 0 | FU7: 0 | FV7: 0 | FW7: 0 | FX7: 7502762 | FY7: 1250500 | FZ7: 843396 | GA7: 39700892 | GB7: 927810 | GC7: 40628702
B8: Town of Coeymans | C8: =C101 -> 010318000000 | D8: Town of Coeymans | E8: Albany | F8: 12/31 | G8: 7418 | H8: 0 | I8: 50.1 | J8: 604642893 | K8: 1695908 | L8: 1812087 | M8: 0 | N8: 0 | O8: 0 | P8: 7597 | Q8: 5172 | R8: 0 | S8: 0 | T8: 0 | U8: 1686310 | V8: 0 | W8: 0 | X8: 9953 | Y8: 0 | Z8: 0 | AA8: 0 | AB8: 9977 | AC8: 0 | AD8: 114 | AE8: 12031 | AF8: 0 | AG8: 0 | AH8: 0 | AI8: 0 | AJ8: 0 | AK8: 23004 | AL8: 0 | AM8: 176733 | AN8: 0 | AO8: 3610 | AP8: 0 | AQ8: 0 | AR8: 0 | AS8: 0 | AT8: 0 | AU8: 0 | AV8: 0 | AW8: 0 | AX8: 0 | AY8: 18293 | AZ8: 273857 | BA8: 6079 | BB8: 11883 | BC8: 12200 | BD8: 224505 | BE8: 7065 | BF8: 985 | BG8: 0 | BH8: 0 | BI8: 6005 | BJ8: 0 | BK8: 20138 | BL8: 4327599 | BM8: 0 | BN8: 108664 | BO8: =BO101 -> 27793 | BP8: 0 | BQ8: 42172 | BR8: 0 | BS8: 87278 | BT8: 0 | BU8: 0 | BV8: 5254 | BW8: 0 | BX8: 0 | BY8: 0 | BZ8: 5553 | CA8: 0 | CB8: 122174 | CC8: 0 | CD8: 0 | CE8: 425153 | CF8: 0 | CG8: 0 | CH8: 0 | CI8: 0 | CJ8: 0 | CK8: 0 | CL8: 0 | CM8: 5151639 | CN8: 173525 | CO8: 0 | CP8: 0 | CQ8: 1585861 | CR8: 0 | CS8: 6911025 | CT8: 268027 | CU8: 524177 | CV8: 0 | CW8: 0 | CX8: 39422 | CY8: 1200 | CZ8: 0 | DA8: 0 | DB8: 0 | DC8: 0 | DD8: 0 | DE8: 0 | DF8: 0 | DG8: 220178 | DH8: 845819 | DI8: 0 | DJ8: 81000 | DK8: 0 | DL8: 0 | DM8: 1388 | DN8: 103769 | DO8: 200 | DP8: 0 | DQ8: 0 | DR8: 0 | DS8: 0 | DT8: 180278 | DU8: 862063 | DV8: 0 | DW8: 0 | DX8: 0 | DY8: 0 | DZ8: 0 | EA8: =EA101 -> 251311 | EB8: 35762 | EC8: 0 | ED8: 0 | EE8: 0 | EF8: 0 | EG8: 0 | EH8: 491514 | EI8: 0 | EJ8: 0 | EK8: 0 | EL8: 0 | EM8: 0 | EN8: 0 | EO8: 1777 | EP8: 0 | EQ8: 0 | ER8: 15783 | ES8: 0 | ET8: 9363 | EU8: 0 | EV8: 3034 | EW8: 1606 | EX8: 1587 | EY8: 0 | EZ8: 203519 | FA8: 0 | FB8: 0 | FC8: 0 | FD8: 0 | FE8: 0 | FF8: 0 | FG8: 372199 | FH8: 0 | FI8: 645 | FJ8: 0 | FK8: 0 | FL8: 0 | FM8: 243782 | FN8: 146242 | FO8: 0 | FP8: 0 | FQ8: 164676 | FR8: 289956 | FS8: 4612 | FT8: 3521 | FU8: 86255 | FV8: 28939 | FW8: 0 | FX8: 809 | FY8: 27583 | FZ8: 13883 | GA8: 5525879 | GB8: 1585861 | GC8: 7111740
B9: Village of Ravena | C9: =C102 -> 010418004140 | D9: Village of Ravena | E9: Albany | F9: 05/31 | G9: 3268 | H9: 0 | I9: 1.5 | J9: 166757333 | K9: 565000 | L9: 768498 | M9: 0 | N9: 0 | O9: 0 | P9: 0 | Q9: 4706 | R9: 0 | S9: 0 | T9: 0 | U9: 624148 | V9: 57636 | W9: 0 | X9: 0 | Y9: 0 | Z9: 0 | AA9: 0 | AB9: 7440 | AC9: 0 | AD9: 0 | AE9: 20 | AF9: 0 | AG9: 0 | AH9: 0 | AI9: 19000 | AJ9: 2766 | AK9: 1902 | AL9: 598172 | AM9: 375908 | AN9: 0 | AO9: 0 | AP9: 0 | AQ9: 0 | AR9: 0 | AS9: 0 | AT9: 0 | AU9: 0 | AV9: 0 | AW9: 0 | AX9: 0 | AY9: 4837 | AZ9: 0 | BA9: 8534 | BB9: 500 | BC9: 52408 | BD9: 135176 | BE9: 0 | BF9: 9336 | BG9: 0 | BH9: 0 | BI9: 0 | BJ9: 0 | BK9: 5939 | BL9: 2676926 | BM9: 44335 | BN9: 15646 | BO9: =BO102 -> 0 | BP9: 0 | BQ9: 0 | BR9: 0 | BS9: 0 | BT9: 0 | BU9: 0 | BV9: 0 | BW9: 0 | BX9: 0 | BY9: 0 | BZ9: 0 | CA9: 0 | CB9: 0 | CC9: 0 | CD9: 0 | CE9: 0 | CF9: 0 | CG9: 0 | CH9: 0 | CI9: 0 | CJ9: 0 | CK9: 0 | CL9: 79040 | CM9: 2815947 | CN9: 0 | CO9: 0 | CP9: 0 | CQ9: 67337 | CR9: 0 | CS9: 2883284 | CT9: 375572 | CU9: 260712 | CV9: 0 | CW9: 0 | CX9: 24331 | CY9: 0 | CZ9: 0 | DA9: 0 | DB9: 0 | DC9: 0 | DD9: 0 | DE9: 0 | DF9: 0 | DG9: 0 | DH9: 0 | DI9: 62466 | DJ9: 0 | DK9: 0 | DL9: 0 | DM9: 0 | DN9: 64306 | DO9: 20 | DP9: 0 | DQ9: 0 | DR9: 0 | DS9: 0 | DT9: 0 | DU9: 107330 | DV9: 0 | DW9: 0 | DX9: 0 | DY9: 0 | DZ9: 0 | EA9: =EA102 -> 0 | EB9: 54818 | EC9: 0 | ED9: 0 | EE9: 0 | EF9: 0 | EG9: 0 | EH9: 0 | EI9: 0 | EJ9: 0 | EK9: 0 | EL9: 0 | EM9: 0 | EN9: 0 | EO9: 1185 | EP9: 0 | EQ9: 0 | ER9: 110866 | ES9: 0 | ET9: 0 | EU9: 0 | EV9: 0 | EW9: 0 | EX9: 0 | EY9: 0 | EZ9: 80 | FA9: 0 | FB9: 7000 | FC9: 470276 | FD9: 0 | FE9: 0 | FF9: 0 | FG9: 265565 | FH9: 3830 | FI9: 3659 | FJ9: 0 | FK9: 0 | FL9: 0 | FM9: 86784 | FN9: 0 | FO9: 0 | FP9: 0 | FQ9: 70313 | FR9: 306247 | FS9: 555 | FT9: 0 | FU9: 50690 | FV9: 0 | FW9: 0 | FX9: 46699 | FY9: 150000 | FZ9: 21417 | GA9: 2544721 | GB9: 67337 | GC9: 2612058
B10: City of Cohoes | C10: =C103 -> 010209000000 | D10: City of Cohoes | E10: Albany | F10: 12/31 | G10: 16168 | H10: 0 | I10: 3.8 | J10: 722367643 | K10: 12033306 | L10: 6604278 | M10: 0 | N10: 0 | O10: 0 | P10: 611325 | Q10: 31051 | R10: 2901 | S10: 0 | T10: 0 | U10: 5062389 | V10: 172163 | W10: 0 | X10: 334627 | Y10: 0 | Z10: 0 | AA10: 0 | AB10: 37155 | AC10: 0 | AD10: 130824 | AE10: 1816 | AF10: 0 | AG10: 30170 | AH10: 0 | AI10: 0 | AJ10: 12916 | AK10: 305453 | AL10: 1715993 | AM10: 2078742 | AN10: 0 | AO10: 0 | AP10: 0 | AQ10: 0 | AR10: 0 | AS10: 0 | AT10: 0 | AU10: 0 | AV10: 0 | AW10: 35504 | AX10: 0 | AY10: 191115 | AZ10: 6337 | BA10: 11883 | BB10: 44374 | BC10: 7895 | BD10: 200412 | BE10: 0 | BF10: 205907 | BG10: 0 | BH10: 0 | BI10: 10 | BJ10: 0 | BK10: 256050 | BL10: 18091290 | BM10: 2742886 | BN10: 227209 | BO10: =BO103 -> 63395 | BP10: 0 | BQ10: 89974 | BR10: 0 | BS10: 445233 | BT10: 0 | BU10: 19495 | BV10: 6801 | BW10: 0 | BX10: 0 | BY10: 0 | BZ10: 0 | CA10: 0 | CB10: 184559 | CC10: 0 | CD10: 297382 | CE10: 0 | CF10: 0 | CG10: 0 | CH10: 0 | CI10: 0 | CJ10: 0 | CK10: 0 | CL10: 0 | CM10: 22168224 | CN10: 2121050 | CO10: 0 | CP10: 0 | CQ10: 186078 | CR10: 0 | CS10: 24475352 | CT10: 1415141 | CU10: 1155035 | CV10: 0 | CW10: 0 | CX10: 4520 | CY10: 9950 | CZ10: 0 | DA10: 0 | DB10: 0 | DC10: 0 | DD10: 0 | DE10: 0 | DF10: 0 | DG10: 345305 | DH10: 3171245 | DI10: 3581866 | DJ10: 0 | DK10: 0 | DL10: 0 | DM10: 0 | DN10: 344390 | DO10: 0 | DP10: 0 | DQ10: 0 | DR10: 0 | DS10: 0 | DT10: 0 | DU10: 1666724 | DV10: 0 | DW10: 0 | DX10: 0 | DY10: 0 | DZ10: 0 | EA10: =EA103 -> 0 | EB10: 360528 | EC10: 0 | ED10: 0 | EE10: 0 | EF10: 0 | EG10: 0 | EH10: 0 | EI10: 0 | EJ10: 0 | EK10: 0 | EL10: 0 | EM10: 126976 | EN10: 0 | EO10: 0 | EP10: 0 | EQ10: 0 | ER10: 0 | ES10: 0 | ET10: 534982 | EU10: 186831 | EV10: 3906 | EW10: 0 | EX10: 0 | EY10: 0 | EZ10: 0 | FA10: 0 | FB10: 2125961 | FC10: 789498 | FD10: 0 | FE10: 0 | FF10: 0 | FG10: 1334675 | FH10: 0 | FI10: 878018 | FJ10: 0 | FK10: 0 | FL10: 0 | FM10: 639594 | FN10: 1100387 | FO10: 0 | FP10: 0 | FQ10: 678395 | FR10: 2236645 | FS10: 0 | FT10: 0 | FU10: 416830 | FV10: 23046 | FW10: 0 | FX10: 0 | FY10: 2135842 | FZ10: 394598 | GA10: 25660888 | GB10: 186078 | GC10: 25846966
B11: Town of Colonie | C11: =C104 -> 010318700000 | D11: Town of Colonie | E11: Albany | F11: 12/31 | G11: 81591 | H11: 0 | I11: 55.9 | J11: 8359402973 | K11: 97579667 | L11: 24115421 | M11: 0 | N11: 7129588 | O11: 0 | P11: 874609 | Q11: 219715 | R11: 0 | S11: 0 | T11: 0 | U11: 21918377 | V11: 0 | W11: 0 | X11: 0 | Y11: 0 | Z11: 0 | AA11: 0 | AB11: 109130 | AC11: 0 | AD11: 252160 | AE11: 4251519 | AF11: 0 | AG11: 647636 | AH11: 0 | AI11: 59882 | AJ11: 2321928 | AK11: 811789 | AL11: 9540706 | AM11: 169950 | AN11: 0 | AO11: 56013 | AP11: 0 | AQ11: 24572 | AR11: 0 | AS11: 154363 | AT11: 0 | AU11: 0 | AV11: 0 | AW11: 0 | AX11: 0 | AY11: 0 | AZ11: 0 | BA11: 116891 | BB11: 2164489 | BC11: 8252038 | BD11: 1233356 | BE11: 44025 | BF11: 21780 | BG11: 0 | BH11: 0 | BI11: 61966 | BJ11: 0 | BK11: 3367432 | BL11: 87919335 | BM11: 456567 | BN11: 2572045 | BO11: =BO104 -> 0 | BP11: 0 | BQ11: 79844 | BR11: 0 | BS11: 442171 | BT11: 0 | BU11: 0 | BV11: 53317 | BW11: 0 | BX11: 0 | BY11: 0 | BZ11: 87181 | CA11: 0 | CB11: 119915 | CC11: 0 | CD11: 127357 | CE11: 2222121 | CF11: 360573 | CG11: 0 | CH11: 222983 | CI11: 0 | CJ11: 0 | CK11: 0 | CL11: 0 | CM11: 94663409 | CN11: 8493889 | CO11: 930753 | CP11: 0 | CQ11: 4210000 | CR11: 0 | CS11: 108298051 | CT11: 4753239 | CU11: 5679708 | CV11: 0 | CW11: 6150183 | CX11: 922661 | CY11: 59424 | CZ11: 0 | DA11: 0 | DB11: 0 | DC11: 0 | DD11: 0 | DE11: 0 | DF11: 0 | DG11: 3638442 | DH11: 10450147 | DI11: 3625214 | DJ11: 3767772 | DK11: 83563 | DL11: 0 | DM11: 81439 | DN11: 1610715 | DO11: 4229 | DP11: 0 | DQ11: 0 | DR11: 0 | DS11: 0 | DT11: 0 | DU11: 7614831 | DV11: 0 | DW11: 0 | DX11: 0 | DY11: 0 | DZ11: 0 | EA11: =EA104 -> 797496 | EB11: 994169 | EC11: 51614 | ED11: 0 | EE11: 0 | EF11: 0 | EG11: 0 | EH11: 2150436 | EI11: 0 | EJ11: 0 | EK11: 0 | EL11: 0 | EM11: 398835 | EN11: 378110 | EO11: 0 | EP11: 0 | EQ11: 27423 | ER11: 3341947 | ES11: 646154 | ET11: 729007 | EU11: 1931550 | EV11: 185834 | EW11: 0 | EX11: 500 | EY11: 0 | EZ11: 13880 | FA11: 0 | FB11: 123884 | FC11: 8425476 | FD11: 0 | FE11: 0 | FF11: 0 | FG11: 3811779 | FH11: 0 | FI11: 126483 | FJ11: 0 | FK11: 0 | FL11: 0 | FM11: 2979888 | FN11: 2439526 | FO11: 0 | FP11: 0 | FQ11: 2375724 | FR11: 6568822 | FS11: 0 | FT11: 11559 | FU11: 976217 | FV11: 27556 | FW11: 0 | FX11: 4519604 | FY11: 3724529 | FZ11: 3586489 | GA11: 99786058 | GB11: 4210000 | GC11: 103996058
B12: Village of Colonie | C12: =C105 -> 010418701100 | D12: Village of Colonie | E12: Albany | F12: 05/31 | G12: 7793 | H12: 0 | I12: 3.2 | J12: 792693949 | K12: 0 | L12: 1189160 | M12: 0 | N12: 0 | O12: 0 | P12: 0 | Q12: 20797 | R12: 0 | S12: 0 | T12: 0 | U12: 2228508 | V12: 131601 | W12: 0 | X12: 146977 | Y12: 0 | Z12: 0 | AA12: 0 | AB12: 10441 | AC12: 0 | AD12: 0 | AE12: 1361 | AF12: 0 | AG12: 0 | AH12: 0 | AI12: 0 | AJ12: 23450 | AK12: 64713 | AL12: 1702436 | AM12: 1034123 | AN12: 0 | AO12: 0 | AP12: 0 | AQ12: 0 | AR12: 0 | AS12: 0 | AT12: 0 | AU12: 0 | AV12: 0 | AW12: 0 | AX12: 0 | AY12: 0 | AZ12: 0 | BA12: 14183 | BB12: 6521 | BC12: 0 | BD12: 0 | BE12: 0 | BF12: 17720 | BG12: 0 | BH12: 0 | BI12: 0 | BJ12: 0 | BK12: 34728 | BL12: 6626719 | BM12: 62561 | BN12: 92508 | BO12: =BO105 -> 0 | BP12: 0 | BQ12: 97 | BR12: 0 | BS12: 0 | BT12: 0 | BU12: 0 | BV12: 0 | BW12: 0 | BX12: 0 | BY12: 0 | BZ12: 78014 | CA12: 0 | CB12: 0 | CC12: 0 | CD12: 0 | CE12: 0 | CF12: 0 | CG12: 0 | CH12: 0 | CI12: 0 | CJ12: 0 | CK12: 0 | CL12: 118177 | CM12: 6978076 | CN12: 0 | CO12: 0 | CP12: 0 | CQ12: 0 | CR12: 0 | CS12: 6978076 | CT12: 332762 | CU12: 418846 | CV12: 0 | CW12: 0 | CX12: 12885 | CY12: 0 | CZ12: 0 | DA12: 0 | DB12: 0 | DC12: 0 | DD12: 0 | DE12: 0 | DF12: 0 | DG12: 0 | DH12: 0 | DI12: 471332 | DJ12: 0 | DK12: 0 | DL12: 150 | DM12: 0 | DN12: 64749 | DO12: 0 | DP12: 0 | DQ12: 0 | DR12: 0 | DS12: 0 | DT12: 1281 | DU12: 696971 | DV12: 0 | DW12: 0 | DX12: 0 | DY12: 0 | DZ12: 0 | EA12: =EA105 -> 0 | EB12: 250768 | EC12: 0 | ED12: 0 | EE12: 0 | EF12: 0 | EG12: 0 | EH12: 0 | EI12: 0 | EJ12: 0 | EK12: 0 | EL12: 0 | EM12: 0 | EN12: 0 | EO12: 14852 | EP12: 0 | EQ12: 89230 | ER12: 351763 | ES12: 0 | ET12: 154184 | EU12: 0 | EV12: 5812 | EW12: 35344 | EX12: 0 | EY12: 0 | EZ12: 106341 | FA12: 0 | FB12: 0 | FC12: 1477246 | FD12: 0 | FE12: 0 | FF12: 0 | FG12: 976011 | FH12: 0 | FI12: 420942 | FJ12: 0 | FK12: 0 | FL12: 0 | FM12: 196773 | FN12: 0 | FO12: 0 | FP12: 17165 | FQ12: 126502 | FR12: 502779 | FS12: 1375 | FT12: 6704 | FU12: 77478 | FV12: 50000 | FW12: 3712 | FX12: 0 | FY12: 0 | FZ12: 0 | GA12: 6863957 | GB12: 0 | GC12: 6863957
B13: Village of Menands | C13: =C106 -> 010418703040 | D13: Village of Menands | E13: Albany | F13: 05/31 | G13: 3990 | H13: 0 | I13: 3.1 | J13: 455343030 | K13: 1500000 | L13: 1964708 | M13: 0 | N13: 0 | O13: 0 | P13: 0 | Q13: 17552 | R13: 0 | S13: 0 | T13: 0 | U13: 1374822 | V13: 0 | W13: 0 | X13: 88006 | Y13: 0 | Z13: 0 | AA13: 0 | AB13: 1192 | AC13: 0 | AD13: 60988 | AE13: 0 | AF13: 0 | AG13: 1386 | AH13: 0 | AI13: 0 | AJ13: 0 | AK13: 0 | AL13: 830491 | AM13: 445802 | AN13: 0 | AO13: 0 | AP13: 0 | AQ13: 25469 | AR13: 0 | AS13: 0 | AT13: 0 | AU13: 0 | AV13: 0 | AW13: 0 | AX13: 0 | AY13: 375 | AZ13: 64786 | BA13: 14822 | BB13: 8048 | BC13: 0 | BD13: 211197 | BE13: 0 | BF13: 53455 | BG13: 0 | BH13: 0 | BI13: 0 | BJ13: 0 | BK13: 9353 | BL13: 5172452 | BM13: 19512 | BN13: 56878 | BO13: =BO106 -> 0 | BP13: 0 | BQ13: 0 | BR13: 0 | BS13: 41384 | BT13: 0 | BU13: 0 | BV13: 556 | BW13: 0 | BX13: 0 | BY13: 0 | BZ13: 0 | CA13: 0 | CB13: 0 | CC13: 0 | CD13: 0 | CE13: 0 | CF13: 0 | CG13: 0 | CH13: 0 | CI13: 0 | CJ13: 0 | CK13: 0 | CL13: 8185 | CM13: 5298967 | CN13: 0 | CO13: 0 | CP13: 0 | CQ13: 0 | CR13: 0 | CS13: 5298967 | CT13: 228919 | CU13: 513759 | CV13: 0 | CW13: 0 | CX13: 800 | CY13: 5000 | CZ13: 0 | DA13: 0 | DB13: 0 | DC13: 0 | DD13: 0 | DE13: 0 | DF13: 0 | DG13: 0 | DH13: 1093334 | DI13: 128690 | DJ13: 0 | DK13: 0 | DL13: 0 | DM13: 0 | DN13: 48739 | DO13: 0 | DP13: 0 | DQ13: 0 | DR13: 0 | DS13: 0 | DT13: 0 | DU13: 529494 | DV13: 0 | DW13: 0 | DX13: 0 | DY13: 0 | DZ13: 0 | EA13: =EA106 -> 0 | EB13: 93499 | EC13: 0 | ED13: 0 | EE13: 0 | EF13: 0 | EG13: 0 | EH13: 0 | EI13: 0 | EJ13: 0 | EK13: 0 | EL13: 0 | EM13: 0 | EN13: 0 | EO13: 0 | EP13: 0 | EQ13: 53397 | ER13: 23152 | ES13: 0 | ET13: 41688 | EU13: 0 | EV13: 15243 | EW13: 0 | EX13: 0 | EY13: 0 | EZ13: 9913 | FA13: 0 | FB13: 1316199 | FC13: 918463 | FD13: 0 | FE13: 0 | FF13: 0 | FG13: 357093 | FH13: 21166 | FI13: 216324 | FJ13: 0 | FK13: 0 | FL13: 0 | FM13: 148460 | FN13: 157507 | FO13: 0 | FP13: 14176 | FQ13: 139802 | FR13: 412254 | FS13: 0 | FT13: 6218 | FU13: 94568 | FV13: 0 | FW13: 0 | FX13: 34169 | FY13: 0 | FZ13: 0 | GA13: 6622026 | GB13: 0 | GC13: 6622026
B14: Town/Village of Green Island | C14: =C107 -> 010334500000 | D14: Town of Green Island | E14: Albany | F14: 12/31 | G14: 2620 | H14: 0 | I14: 0.8 | J14: 139611025 | K14: 0 | L14: 0 | M14: 0 | N14: 0 | O14: 0 | P14: 0 | Q14: 883 | R14: 0 | S14: 0 | T14: 0 | U14: 94814 | V14: 0 | W14: 0 | X14: 0 | Y14: 0 | Z14: 0 | AA14: 0 | AB14: 1179 | AC14: 0 | AD14: 0 | AE14: 0 | AF14: 0 | AG14: 0 | AH14: 0 | AI14: 0 | AJ14: 0 | AK14: 0 | AL14: 0 | AM14: 0 | AN14: 0 | AO14: 0 | AP14: 0 | AQ14: 0 | AR14: 0 | AS14: 0 | AT14: 0 | AU14: 0 | AV14: 0 | AW14: 0 | AX14: 0 | AY14: 0 | AZ14: 0 | BA14: 101 | BB14: 0 | BC14: 0 | BD14: 191742 | BE14: 0 | BF14: 0 | BG14: 0 | BH14: 0 | BI14: 0 | BJ14: 0 | BK14: 100 | BL14: 288819 | BM14: 26528 | BN14: 19900 | BO14: =BO107 -> 0 | BP14: 0 | BQ14: 0 | BR14: 0 | BS14: 0 | BT14: 0 | BU14: 0 | BV14: 0 | BW14: 0 | BX14: 0 | BY14: 0 | BZ14: 0 | CA14: 0 | CB14: 0 | CC14: 0 | CD14: 0 | CE14: 0 | CF14: 0 | CG14: 0 | CH14: 0 | CI14: 0 | CJ14: 0 | CK14: 0 | CL14: 0 | CM14: 335247 | CN14: 0 | CO14: 0 | CP14: 0 | CQ14: 0 | CR14: 0 | CS14: 335247 | CT14: 43126 | CU14: 236842 | CV14: 0 | CW14: 0 | CX14: 0 | CY14: 0 | CZ14: 0 | DA14: 0 | DB14: 0 | DC14: 0 | DD14: 0 | DE14: 0 | DF14: 0 | DG14: 0 | DH14: 0 | DI14: 600 | DJ14: 0 | DK14: 0 | DL14: 0 | DM14: 0 | DN14: 160 | DO14: 0 | DP14: 0 | DQ14: 0 | DR14: 0 | DS14: 0 | DT14: 0 | DU14: 0 | DV14: 0 | DW14: 0 | DX14: 0 | DY14: 0 | DZ14: 0 | EA14: =EA107 -> 0 | EB14: 0 | EC14: 0 | ED14: 0 | EE14: 0 | EF14: 0 | EG14: 0 | EH14: 0 | EI14: 0 | EJ14: 0 | EK14: 0 | EL14: 0 | EM14: 0 | EN14: 0 | EO14: 0 | EP14: 0 | EQ14: 0 | ER14: 10000 | ES14: 0 | ET14: 0 | EU14: 0 | EV14: 0 | EW14: 0 | EX14: 0 | EY14: 0 | EZ14: 0 | FA14: 0 | FB14: 0 | FC14: 0 | FD14: 0 | FE14: 0 | FF14: 0 | FG14: 0 | FH14: 0 | FI14: 0 | FJ14: 0 | FK14: 0 | FL14: 0 | FM14: 11152 | FN14: 0 | FO14: 0 | FP14: 0 | FQ14: 10145 | FR14: 15753 | FS14: 0 | FT14: 0 | FU14: 0 | FV14: 0 | FW14: 0 | FX14: 0 | FY14: 0 | FZ14: 0 | GA14: 327778 | GB14: 0 | GC14: 327778
B15: Town/Village of Green Island | C15: =C108 -> 010434502040 | D15: Village of Green Island | E15: Albany | F15: 05/31 | G15: 2620 | H15: 0 | I15: 0.8 | J15: 153037930 | K15: 455000 | L15: 1838595 | M15: 0 | N15: 0 | O15: 0 | P15: 395725 | Q15: 8827 | R15: 0 | S15: 0 | T15: 0 | U15: 707716 | V15: 0 | W15: 0 | X15: 43315 | Y15: 0 | Z15: 0 | AA15: 0 | AB15: 45254 | AC15: 0 | AD15: 10391 | AE15: 0 | AF15: 0 | AG15: 0 | AH15: 0 | AI15: 0 | AJ15: 7077 | AK15: 11336 | AL15: 600186 | AM15: 464914 | AN15: 0 | AO15: 0 | AP15: 0 | AQ15: 0 | AR15: 0 | AS15: 0 | AT15: 0 | AU15: 0 | AV15: 0 | AW15: 0 | AX15: 0 | AY15: 0 | AZ15: 419956 | BA15: 2662 | BB15: 855 | BC15: 190608 | BD15: 3770 | BE15: 0 | BF15: 30947 | BG15: 0 | BH15: 0 | BI15: 0 | BJ15: 0 | BK15: 20032 | BL15: 4802166 | BM15: 37297 | BN15: 6210 | BO15: =BO108 -> 0 | BP15: 0 | BQ15: 10322 | BR15: 0 | BS15: 0 | BT15: 0 | BU15: 0 | BV15: 591 | BW15: 0 | BX15: 0 | BY15: 0 | BZ15: 0 | CA15: 0 | CB15: 0 | CC15: 0 | CD15: 0 | CE15: 217733 | CF15: 0 | CG15: 0 | CH15: 0 | CI15: 0 | CJ15: 0 | CK15: 0 | CL15: 0 | CM15: 5074319 | CN15: 0 | CO15: 0 | CP15: 0 | CQ15: 32358 | CR15: 0 | CS15: 5106677 | CT15: 379906 | CU15: 202477 | CV15: 0 | CW15: 0 | CX15: 7634 | CY15: 0 | CZ15: 0 | DA15: 0 | DB15: 0 | DC15: 0 | DD15: 0 | DE15: 0 | DF15: 0 | DG15: 0 | DH15: 542513 | DI15: 529112 | DJ15: 0 | DK15: 0 | DL15: 0 | DM15: 0 | DN15: 24734 | DO15: 0 | DP15: 0 | DQ15: 0 | DR15: 0 | DS15: 0 | DT15: 0 | DU15: 85080 | DV15: 0 | DW15: 0 | DX15: 0 | DY15: 0 | DZ15: 0 | EA15: =EA108 -> 0 | EB15: 119285 | EC15: 0 | ED15: 0 | EE15: 0 | EF15: 0 | EG15: 0 | EH15: 405831 | EI15: 0 | EJ15: 0 | EK15: 0 | EL15: 0 | EM15: 0 | EN15: 0 | EO15: 0 | EP15: 0 | EQ15: 0 | ER15: 125374 | ES15: 0 | ET15: 0 | EU15: 0 | EV15: 1235 | EW15: 0 | EX15: 0 | EY15: 0 | EZ15: 0 | FA15: 0 | FB15: 0 | FC15: 381540 | FD15: 0 | FE15: 0 | FF15: 0 | FG15: 776585 | FH15: 0 | FI15: 126822 | FJ15: 0 | FK15: 0 | FL15: 0 | FM15: 144926 | FN15: 132309 | FO15: 0 | FP15: 0 | FQ15: 136970 | FR15: 333615 | FS15: 0 | FT15: 0 | FU15: 60354 | FV15: 4098 | FW15: 0 | FX15: 12301 | FY15: 180000 | FZ15: 18769 | GA15: 4731470 | GB15: 32358 | GC15: 4763828
B16: Town/Village of Green Island
B17: Town of Guilderland | C17: =C110 -> 010335500000 | D17: Town of Guilderland | E17: Albany | F17: 12/31 | G17: 35303 | H17: 0 | I17: 57.9 | J17: 3475449086 | K17: 23873000 | L17: 8302185 | M17: 0 | N17: 0 | O17: 0 | P17: 17939 | Q17: 67396 | R17: 0 | S17: 0 | T17: 0 | U17: 10515228 | V17: 0 | W17: 0 | X17: 1128470 | Y17: 0 | Z17: 0 | AA17: 0 | AB17: 24982 | AC17: 0 | AD17: 373877 | AE17: 14752 | AF17: 0 | AG17: 0 | AH17: 0 | AI17: 0 | AJ17: 1320047 | AK17: 127666 | AL17: 2005060 | AM17: 3595410 | AN17: 0 | AO17: 49128 | AP17: 0 | AQ17: 37310 | AR17: 0 | AS17: 0 | AT17: 0 | AU17: 0 | AV17: 0 | AW17: 0 | AX17: 0 | AY17: 0 | AZ17: 16385 | BA17: 1063366 | BB17: 29751 | BC17: 248152 | BD17: 481944 | BE17: 375 | BF17: 92236 | BG17: 0 | BH17: 0 | BI17: 12024 | BJ17: 0 | BK17: 235238 | BL17: 29758922 | BM17: 135398 | BN17: 1628968 | BO17: =BO110 -> 0 | BP17: 0 | BQ17: 96915 | BR17: 0 | BS17: 224664 | BT17: 0 | BU17: 0 | BV17: 7467 | BW17: 0 | BX17: 0 | BY17: 0 | BZ17: 17801 | CA17: 0 | CB17: 195818 | CC17: 0 | CD17: 0 | CE17: 631014 | CF17: 0 | CG17: 0 | CH17: 0 | CI17: 0 | CJ17: 0 | CK17: 0 | CL17: 0 | CM17: 32696967 | CN17: 0 | CO17: 0 | CP17: 0 | CQ17: 1004581 | CR17: 0 | CS17: 33701548 | CT17: 1072920 | CU17: 1405762 | CV17: 0 | CW17: 0 | CX17: 255555 | CY17: 0 | CZ17: 0 | DA17: 0 | DB17: 0 | DC17: 0 | DD17: 0 | DE17: 0 | DF17: 0 | DG17: 596846 | DH17: 4582290 | DI17: 240891 | DJ17: 425401 | DK17: 0 | DL17: 0 | DM17: 0 | DN17: 319390 | DO17: 364588 | DP17: 0 | DQ17: 0 | DR17: 0 | DS17: 0 | DT17: 0 | DU17: 2392982 | DV17: 0 | DW17: 0 | DX17: 0 | DY17: 0 | DZ17: 0 | EA17: =EA110 -> 411446 | EB17: 105027 | EC17: 0 | ED17: 0 | EE17: 0 | EF17: 0 | EG17: 0 | EH17: 0 | EI17: 0 | EJ17: 0 | EK17: 0 | EL17: 38644 | EM17: 0 | EN17: 737455 | EO17: 8615 | EP17: 0 | EQ17: 0 | ER17: 1406193 | ES17: 0 | ET17: 0 | EU17: 50000 | EV17: 62019 | EW17: 0 | EX17: 1971 | EY17: 215664 | EZ17: 53833 | FA17: 0 | FB17: 0 | FC17: 2558334 | FD17: 0 | FE17: 0 | FF17: 0 | FG17: 2243963 | FH17: 0 | FI17: 816825 | FJ17: 0 | FK17: 11022 | FL17: 0 | FM17: 1333382 | FN17: 714383 | FO17: 0 | FP17: 0 | FQ17: 893633 | FR17: 1969557 | FS17: 2612 | FT17: 0 | FU17: 393148 | FV17: 14605 | FW17: 0 | FX17: 0 | FY17: 1987000 | FZ17: 613873 | GA17: 28299828 | GB17: 1004581 | GC17: 29304409
B18: Village of Altamont | C18: =C111 -> 010435500120 | D18: Village of Altamont | E18: Albany | F18: 05/31 | G18: 1720 | H18: 0 | I18: 1.2 | J18: 119295298 | K18: 1388978 | L18: 271972 | M18: 0 | N18: 0 | O18: 0 | P18: 0 | Q18: 3061 | R18: 0 | S18: 0 | T18: 0 | U18: 532877 | V18: 24227 | W18: 0 | X18: 37492 | Y18: 0 | Z18: 0 | AA18: 0 | AB18: 1877 | AC18: 0 | AD18: 2550 | AE18: 30 | AF18: 0 | AG18: 37 | AH18: 0 | AI18: 0 | AJ18: 16792 | AK18: 16620 | AL18: 359144 | AM18: 529530 | AN18: 0 | AO18: 0 | AP18: 0 | AQ18: 106391 | AR18: 0 | AS18: 0 | AT18: 0 | AU18: 0 | AV18: 0 | AW18: 0 | AX18: 0 | AY18: 4 | AZ18: 0 | BA18: 3575 | BB18: 9598 | BC18: 15880 | BD18: 23192 | BE18: 0 | BF18: 10855 | BG18: 0 | BH18: 0 | BI18: 3101 | BJ18: 0 | BK18: 1030 | BL18: 1969835 | BM18: 9704 | BN18: 16459 | BO18: =BO111 -> 0 | BP18: 0 | BQ18: 0 | BR18: 0 | BS18: 49380 | BT18: 0 | BU18: 0 | BV18: 0 | BW18: 0 | BX18: 0 | BY18: 0 | BZ18: 0 | CA18: 0 | CB18: 8303 | CC18: 0 | CD18: 0 | CE18: 0 | CF18: 0 | CG18: 0 | CH18: 0 | CI18: 0 | CJ18: 0 | CK18: 0 | CL18: 0 | CM18: 2053681 | CN18: 0 | CO18: 0 | CP18: 0 | CQ18: 0 | CR18: 0 | CS18: 2053681 | CT18: 117232 | CU18: 314207 | CV18: 0 | CW18: 0 | CX18: 7008 | CY18: 0 | CZ18: 0 | DA18: 0 | DB18: 0 | DC18: 0 | DD18: 0 | DE18: 0 | DF18: 0 | DG18: 0 | DH18: 210742 | DI18: 119519 | DJ18: 0 | DK18: 0 | DL18: 0 | DM18: 0 | DN18: 11780 | DO18: 0 | DP18: 0 | DQ18: 0 | DR18: 0 | DS18: 0 | DT18: 0 | DU18: 180021 | DV18: 0 | DW18: 0 | DX18: 0 | DY18: 0 | DZ18: 0 | EA18: =EA111 -> 0 | EB18: 24504 | EC18: 0 | ED18: 0 | EE18: 0 | EF18: 0 | EG18: 0 | EH18: 0 | EI18: 0 | EJ18: 0 | EK18: 0 | EL18: 0 | EM18: 0 | EN18: 0 | EO18: 0 | EP18: 0 | EQ18: 0 | ER18: 90752 | ES18: 0 | ET18: 1270 | EU18: 45000 | EV18: 4468 | EW18: 0 | EX18: 0 | EY18: 0 | EZ18: 847 | FA18: 0 | FB18: 0 | FC18: 174278 | FD18: 0 | FE18: 0 | FF18: 0 | FG18: 313992 | FH18: 18661 | FI18: 0 | FJ18: 0 | FK18: 0 | FL18: 0 | FM18: 57726 | FN18: 19948 | FO18: 0 | FP18: 9800 | FQ18: 47404 | FR18: 60172 | FS18: 220 | FT18: 0 | FU18: 29056 | FV18: 204 | FW18: 0 | FX18: 0 | FY18: 50000 | FZ18: 52406 | GA18: 1961217 | GB18: 0 | GC18: 1961217
B19: Town of Knox | C19: =C112 -> 010344300000 | D19: Town of Knox | E19: Albany | F19: 12/31 | G19: 2692 | H19: 0 | I19: 41.8 | J19: 234514568 | K19: 799981 | L19: 253159 | M19: 0 | N19: 0 | O19: 0 | P19: 0 | Q19: 3031 | R19: 0 | S19: 0 | T19: 0 | U19: 842897 | V19: 0 | W19: 0 | X19: 42843 | Y19: 0 | Z19: 0 | AA19: 0 | AB19: 1481 | AC19: 0 | AD19: 0 | AE19: 0 | AF19: 0 | AG19: 0 | AH19: 0 | AI19: 0 | AJ19: 0 | AK19: 3666 | AL19: 0 | AM19: 0 | AN19: 0 | AO19: 0 | AP19: 0 | AQ19: 0 | AR19: 0 | AS19: 0 | AT19: 0 | AU19: 0 | AV19: 0 | AW19: 0 | AX19: 0 | AY19: 0 | AZ19: 0 | BA19: 911 | BB19: 13067 | BC19: 0 | BD19: 0 | BE19: 0 | BF19: 0 | BG19: 0 | BH19: 0 | BI19: -150 | BJ19: 0 | BK19: 14 | BL19: 1160919 | BM19: 15968 | BN19: 26990 | BO19: =BO112 -> 0 | BP19: 0 | BQ19: 0 | BR19: 0 | BS19: 65553 | BT19: 0 | BU19: 0 | BV19: 950 | BW19: 0 | BX19: 0 | BY19: 0 | BZ19: 17222 | CA19: 0 | CB19: 205364 | CC19: 0 | CD19: 0 | CE19: 0 | CF19: 0 | CG19: 0 | CH19: 0 | CI19: 0 | CJ19: 0 | CK19: 0 | CL19: 0 | CM19: 1492967 | CN19: 0 | CO19: 80000 | CP19: 0 | CQ19: 1000 | CR19: 0 | CS19: 1573967 | CT19: 47559 | CU19: 137469 | CV19: 0 | CW19: 0 | CX19: 15211 | CY19: 0 | CZ19: 0 | DA19: 0 | DB19: 0 | DC19: 0 | DD19: 0 | DE19: 0 | DF19: 0 | DG19: 0 | DH19: 1862 | DI19: 0 | DJ19: 98127 | DK19: 0 | DL19: 0 | DM19: 218 | DN19: 6776 | DO19: 1165 | DP19: 0 | DQ19: 0 | DR19: 0 | DS19: 0 | DT19: 0 | DU19: 486216 | DV19: 0 | DW19: 0 | DX19: 0 | DY19: 0 | DZ19: 0 | EA19: =EA112 -> 33304 | EB19: 3021 | EC19: 0 | ED19: 0 | EE19: 0 | EF19: 0 | EG19: 0 | EH19: 0 | EI19: 0 | EJ19: 0 | EK19: 0 | EL19: 0 | EM19: 0 | EN19: 0 | EO19: 0 | EP19: 0 | EQ19: 0 | ER19: 14881 | ES19: 0 | ET19: 988 | EU19: 7500 | EV19: 712 | EW19: 0 | EX19: 475 | EY19: 1500 | EZ19: 0 | FA19: 0 | FB19: 0 | FC19: 0 | FD19: 0 | FE19: 0 | FF19: 0 | FG19: 0 | FH19: 0 | FI19: 84973 | FJ19: 0 | FK19: 0 | FL19: 0 | FM19: 67587 | FN19: 0 | FO19: 0 | FP19: 0 | FQ19: 35010 | FR19: 71743 | FS19: 260 | FT19: 0 | FU19: 54007 | FV19: 3326 | FW19: 0 | FX19: 0 | FY19: 80000 | FZ19: 14073 | GA19: 1267964 | GB19: 1000 | GC19: 1268964
B20: Town of New Scotland | C20: =C113 -> 010358100000 | D20: Town of New Scotland | E20: Albany | F20: 12/31 | G20: 8648 | H20: 0 | I20: 57.5 | J20: 961269944 | K20: 1985878 | L20: 2248852 | M20: 0 | N20: 198639 | O20: 0 | P20: 0 | Q20: 8418 | R20: 0 | S20: 0 | T20: 0 | U20: 1834521 | V20: 0 | W20: 0 | X20: 34315 | Y20: 0 | Z20: 0 | AA20: 0 | AB20: 8751 | AC20: 0 | AD20: 26979 | AE20: 1763 | AF20: 0 | AG20: 0 | AH20: 0 | AI20: 0 | AJ20: 24230 | AK20: 4965 | AL20: 292900 | AM20: 88999 | AN20: 0 | AO20: 0 | AP20: 0 | AQ20: 0 | AR20: 0 | AS20: 0 | AT20: 0 | AU20: 0 | AV20: 0 | AW20: 0 | AX20: 0 | AY20: 0 | AZ20: 0 | BA20: 3443 | BB20: 12976 | BC20: 7592 | BD20: 77040 | BE20: 0 | BF20: 0 | BG20: 0 | BH20: 0 | BI20: 11010 | BJ20: 0 | BK20: 103786 | BL20: 4989181 | BM20: 37704 | BN20: 261363 | BO20: =BO113 -> 0 | BP20: 0 | BQ20: 92169 | BR20: 0 | BS20: 142924 | BT20: 277 | BU20: 0 | BV20: 0 | BW20: 0 | BX20: 0 | BY20: 0 | BZ20: 25772 | CA20: 0 | CB20: 229045 | CC20: 0 | CD20: 246777 | CE20: 0 | CF20: 0 | CG20: 0 | CH20: 15391 | CI20: 0 | CJ20: 0 | CK20: 0 | CL20: 0 | CM20: 6040604 | CN20: 0 | CO20: 94200 | CP20: 0 | CQ20: 1243000 | CR20: 0 | CS20: 7377804 | CT20: 193046 | CU20: 571885 | CV20: 0 | CW20: 0 | CX20: 47539 | CY20: 0 | CZ20: 0 | DA20: 0 | DB20: 0 | DC20: 0 | DD20: 0 | DE20: 0 | DF20: 0 | DG20: 0 | DH20: 4376 | DI20: 537815 | DJ20: 367947 | DK20: 0 | DL20: 74200 | DM20: 0 | DN20: 160172 | DO20: 1800 | DP20: 0 | DQ20: 0 | DR20: 0 | DS20: 0 | DT20: 0 | DU20: 1361404 | DV20: 0 | DW20: 0 | DX20: 0 | DY20: 0 | DZ20: 0 | EA20: =EA113 -> 174960 | EB20: 13535 | EC20: 0 | ED20: 0 | EE20: 0 | EF20: 0 | EG20: 0 | EH20: 0 | EI20: 0 | EJ20: 0 | EK20: 0 | EL20: 0 | EM20: 0 | EN20: 0 | EO20: 0 | EP20: 0 | EQ20: 0 | ER20: 74136 | ES20: 0 | ET20: 14980 | EU20: 1000 | EV20: 1454 | EW20: 0 | EX20: 13635 | EY20: 46822 | EZ20: 0 | FA20: 0 | FB20: 8791 | FC20: 334709 | FD20: 0 | FE20: 0 | FF20: 0 | FG20: 90172 | FH20: 0 | FI20: 420315 | FJ20: 0 | FK20: 0 | FL20: 818 | FM20: 213666 | FN20: 0 | FO20: 0 | FP20: 0 | FQ20: 110678 | FR20: 333668 | FS20: 1510 | FT20: 0 | FU20: 95381 | FV20: 871 | FW20: 0 | FX20: 43033 | FY20: 163385 | FZ20: 64451 | GA20: 5542153 | GB20: 1243000 | GC20: 6785153
B21: Village of Voorheesville | C21: =C114 -> 010458105090 | D21: Village of Voorheesville | E21: Albany | F21: 05/31 | G21: 2789 | H21: 0 | I21: 2.1 | J21: 239900476 | K21: 3420000 | L21: 258963 | M21: 0 | N21: 0 | O21: 0 | P21: 0 | Q21: 1688 | R21: 0 | S21: 0 | T21: 0 | U21: 864066 | V21: 38448 | W21: 0 | X21: 57169 | Y21: 0 | Z21: 0 | AA21: 0 | AB21: 1108 | AC21: 0 | AD21: 0 | AE21: 540 | AF21: 0 | AG21: 0 | AH21: 0 | AI21: 0 | AJ21: 8265 | AK21: 7534 | AL21: 367688 | AM21: 220099 | AN21: 0 | AO21: 0 | AP21: 0 | AQ21: 0 | AR21: 0 | AS21: 0 | AT21: 0 | AU21: 0 | AV21: 0 | AW21: 0 | AX21: 0 | AY21: 4711 | AZ21: 0 | BA21: 3827 | BB21: 0 | BC21: 33291 | BD21: 8783 | BE21: 0 | BF21: 0 | BG21: 0 | BH21: 0 | BI21: 0 | BJ21: 0 | BK21: 39 | BL21: 1876219 | BM21: 17744 | BN21: 32449 | BO21: =BO114 -> 0 | BP21: 0 | BQ21: 10117 | BR21: 0 | BS21: 86065 | BT21: 0 | BU21: 0 | BV21: 0 | BW21: 0 | BX21: 0 | BY21: 0 | BZ21: 2500 | CA21: 0 | CB21: 0 | CC21: 0 | CD21: 0 | CE21: 0 | CF21: 0 | CG21: 0 | CH21: 0 | CI21: 0 | CJ21: 0 | CK21: 0 | CL21: 0 | CM21: 2025094 | CN21: 0 | CO21: 0 | CP21: 0 | CQ21: 0 | CR21: 0 | CS21: 2025094 | CT21: 97925 | CU21: 151938 | CV21: 0 | CW21: 0 | CX21: 59927 | CY21: 0 | CZ21: 0 | DA21: 0 | DB21: 0 | DC21: 0 | DD21: 0 | DE21: 0 | DF21: 0 | DG21: 0 | DH21: 1843 | DI21: 37918 | DJ21: 6452 | DK21: 0 | DL21: 0 | DM21: 0 | DN21: 3297 | DO21: 750 | DP21: 0 | DQ21: 0 | DR21: 0 | DS21: 0 | DT21: 0 | DU21: 420726 | DV21: 0 | DW21: 0 | DX21: 0 | DY21: 0 | DZ21: 0 | EA21: =EA114 -> 0 | EB21: 73541 | EC21: 0 | ED21: 0 | EE21: 0 | EF21: 0 | EG21: 0 | EH21: 0 | EI21: 0 | EJ21: 0 | EK21: 0 | EL21: 0 | EM21: 0 | EN21: 0 | EO21: 0 | EP21: 0 | EQ21: 0 | ER21: 20427 | ES21: 0 | ET21: 0 | EU21: 0 | EV21: 4690 | EW21: 0 | EX21: 0 | EY21: 0 | EZ21: 2175 | FA21: 0 | FB21: 0 | FC21: 133463 | FD21: 0 | FE21: 0 | FF21: 0 | FG21: 149011 | FH21: 5279 | FI21: 127305 | FJ21: 0 | FK21: 0 | FL21: 0 | FM21: 68446 | FN21: 0 | FO21: 0 | FP21: 29762 | FQ21: 35544 | FR21: 91051 | FS21: 0 | FT21: 0 | FU21: 35587 | FV21: 0 | FW21: 0 | FX21: 0 | FY21: 160000 | FZ21: 110850 | GA21: 1827907 | GB21: 0 | GC21: 1827907
B22: Town of Rensselaerville | C22: =C115 -> 010370600000 | D22: Town of Rensselaerville | E22: Albany | F22: 12/31 | G22: 1843 | H22: 0 | I22: 61.5 | J22: 229997661 | K22: 0 | L22: - | M22: 0 | N22: - | O22: - | P22: - | Q22: - | R22: - | S22: - | T22: - | U22: - | V22: - | W22: - | X22: - | Y22: - | Z22: - | AA22: - | AB22: - | AC22: - | AD22: - | AE22: - | AF22: 0 | AG22: - | AH22: - | AI22: - | AJ22: - | AK22: - | AL22: - | AM22: - | AN22: - | AO22: - | AP22: - | AQ22: - | AR22: - | AS22: - | AT22: - | AU22: - | AV22: - | AW22: - | AX22: - | AY22: - | AZ22: - | BA22: - | BB22: - | BC22: - | BD22: - | BE22: - | BF22: - | BG22: - | BH22: - | BI22: - | BJ22: - | BK22: - | BL22: - | BM22: - | BN22: - | BO22: =BO115 -> - | BP22: - | BQ22: - | BR22: - | BS22: - | BT22: - | BU22: - | BV22: - | BW22: - | BX22: - | BY22: - | BZ22: - | CA22: - | CB22: - | CC22: - | CD22: - | CE22: - | CF22: - | CG22: - | CH22: - | CI22: - | CJ22: - | CK22: - | CL22: - | CM22: - | CN22: - | CO22: - | CP22: - | CQ22: - | CR22: - | CS22: - | CT22: - | CU22: - | CV22: - | CW22: - | CX22: - | CY22: - | CZ22: - | DA22: - | DB22: - | DC22: - | DD22: - | DE22: - | DF22: - | DG22: - | DH22: - | DI22: - | DJ22: - | DK22: - | DL22: - | DM22: - | DN22: - | DO22: - | DP22: - | DQ22: - | DR22: - | DS22: - | DT22: - | DU22: - | DV22: - | DW22: - | DX22: - | DY22: - | DZ22: - | EA22: =EA115 -> - | EB22: - | EC22: - | ED22: - | EE22: - | EF22: - | EG22: - | EH22: - | EI22: - | EJ22: - | EK22: - | EL22: - | EM22: - | EN22: - | EO22: - | EP22: - | EQ22: - | ER22: - | ES22: - | ET22: - | EU22: - | EV22: - | EW22: - | EX22: - | EY22: - | EZ22: - | FA22: - | FB22: - | FC22: - | FD22: - | FE22: - | FF22: - | FG22: - | FH22: - | FI22: - | FJ22: - | FK22: - | FL22: - | FM22: - | FN22: - | FO22: - | FP22: - | FQ22: - | FR22: - | FS22: - | FT22: - | FU22: - | FV22: - | FW22: - | FX22: - | FY22: - | FZ22: - | GA22: - | GB22: - | GC22: -
B23: City of Watervliet | C23: =C116 -> 010260000000 | D23: City of Watervliet | E23: Albany | F23: 12/31 | G23: 10254 | H23: 0 | I23: 1.4 | J23: 381943176 | K23: 8614000 | L23: 3889946 | M23: 0 | N23: 0 | O23: 0 | P23: 126802 | Q23: 14854 | R23: 0 | S23: 0 | T23: 0 | U23: 3210647 | V23: 101466 | W23: 0 | X23: 159942 | Y23: 0 | Z23: 0 | AA23: 0 | AB23: 183009 | AC23: 0 | AD23: 0 | AE23: 405358 | AF23: 0 | AG23: 0 | AH23: 0 | AI23: 116221 | AJ23: 1387 | AK23: 19925 | AL23: 2946190 | AM23: 1115299 | AN23: 0 | AO23: 0 | AP23: 0 | AQ23: 281037 | AR23: 0 | AS23: 0 | AT23: 0 | AU23: 0 | AV23: 0 | AW23: 0 | AX23: 0 | AY23: 218022 | AZ23: 0 | BA23: 9173 | BB23: 0 | BC23: 0 | BD23: 0 | BE23: 0 | BF23: 31522 | BG23: 0 | BH23: 20000 | BI23: 0 | BJ23: 0 | BK23: 259575 | BL23: 13110375 | BM23: 1210193 | BN23: 94335 | BO23: =BO116 -> 0 | BP23: 0 | BQ23: 0 | BR23: 0 | BS23: 0 | BT23: 0 | BU23: 0 | BV23: 5024 | BW23: 0 | BX23: 0 | BY23: 0 | BZ23: 149163 | CA23: 0 | CB23: 0 | CC23: 0 | CD23: 0 | CE23: 0 | CF23: 0 | CG23: 0 | CH23: 0 | CI23: 0 | CJ23: 0 | CK23: 0 | CL23: 557806 | CM23: 15126896 | CN23: 0 | CO23: 0 | CP23: 0 | CQ23: 1425840 | CR23: 0 | CS23: 16552736 | CT23: 1110756 | CU23: 771644 | CV23: 0 | CW23: 0 | CX23: 6160 | CY23: 39360 | CZ23: 0 | DA23: 0 | DB23: 0 | DC23: 0 | DD23: 0 | DE23: 0 | DF23: 0 | DG23: 153641 | DH23: 2535053 | DI23: 2197063 | DJ23: 0 | DK23: 0 | DL23: 0 | DM23: 0 | DN23: 121766 | DO23: 37131 | DP23: 0 | DQ23: 0 | DR23: 0 | DS23: 0 | DT23: 0 | DU23: 394480 | DV23: 0 | DW23: 0 | DX23: 0 | DY23: 0 | DZ23: 0 | EA23: =EA116 -> 0 | EB23: 146830 | EC23: 0 | ED23: 0 | EE23: 0 | EF23: 0 | EG23: 0 | EH23: 0 | EI23: 0 | EJ23: 0 | EK23: 0 | EL23: 0 | EM23: 59491 | EN23: 710664 | EO23: 0 | EP23: 0 | EQ23: 0 | ER23: 239625 | ES23: 0 | ET23: 11376 | EU23: 31000 | EV23: 10527 | EW23: 0 | EX23: 0 | EY23: 23500 | EZ23: 3295 | FA23: 0 | FB23: 0 | FC23: 1307253 | FD23: 0 | FE23: 0 | FF23: 0 | FG23: 624710 | FH23: 0 | FI23: 484387 | FJ23: 0 | FK23: 0 | FL23: 0 | FM23: 1319497 | FN23: 0 | FO23: 0 | FP23: 0 | FQ23: 470710 | FR23: 1851387 | FS23: 0 | FT23: 9151 | FU23: 239056 | FV23: 0 | FW23: 0 | FX23: 0 | FY23: 725000 | FZ23: 327688 | GA23: 15962201 | GB23: 1425840 | GC23: 17388041
B24: Town of Westerlo | C24: =C117 -> 010389000000 | D24: Town of Westerlo | E24: Albany | F24: 12/31 | G24: 3361 | H24: 0 | I24: 57.8 | J24: 294744193 | K24: 1276000 | L24: 1116610 | M24: 0 | N24: 0 | O24: 0 | P24: 0 | Q24: 3674 | R24: 0 | S24: 0 | T24: 0 | U24: 1052368 | V24: 0 | W24: 0 | X24: 8161 | Y24: 0 | Z24: 0 | AA24: 0 | AB24: 4138 | AC24: 0 | AD24: 0 | AE24: 0 | AF24: 0 | AG24: 0 | AH24: 0 | AI24: 0 | AJ24: 3377 | AK24: 1950 | AL24: 65261 | AM24: 1719 | AN24: 0 | AO24: 0 | AP24: 0 | AQ24: 0 | AR24: 0 | AS24: 0 | AT24: 0 | AU24: 0 | AV24: 0 | AW24: 0 | AX24: 0 | AY24: 0 | AZ24: 0 | BA24: 1581 | BB24: 40729 | BC24: 0 | BD24: 16199 | BE24: 0 | BF24: 2152 | BG24: 500 | BH24: 150 | BI24: 1967 | BJ24: 0 | BK24: 7394 | BL24: 2327930 | BM24: 13403 | BN24: 58593 | BO24: =BO117 -> 0 | BP24: 0 | BQ24: 45000 | BR24: 0 | BS24: 0 | BT24: 0 | BU24: 0 | BV24: 23053 | BW24: 0 | BX24: 0 | BY24: 0 | BZ24: 0 | CA24: 0 | CB24: 432985 | CC24: 0 | CD24: 0 | CE24: 0 | CF24: 0 | CG24: 0 | CH24: 0 | CI24: 0 | CJ24: 0 | CK24: 0 | CL24: 0 | CM24: 2900964 | CN24: 391000 | CO24: 307900 | CP24: 0 | CQ24: 0 | CR24: 0 | CS24: 3599864 | CT24: 131201 | CU24: 240955 | CV24: 0 | CW24: 0 | CX24: 27678 | CY24: 0 | CZ24: 0 | DA24: 0 | DB24: 0 | DC24: 0 | DD24: 0 | DE24: 0 | DF24: 0 | DG24: 0 | DH24: 0 | DI24: 185030 | DJ24: 218768 | DK24: 0 | DL24: 0 | DM24: 0 | DN24: 30724 | DO24: 0 | DP24: 0 | DQ24: 0 | DR24: 0 | DS24: 0 | DT24: 0 | DU24: 711712 | DV24: 0 | DW24: 0 | DX24: 0 | DY24: 0 | DZ24: 0 | EA24: =EA117 -> 473516 | EB24: 8970 | EC24: 0 | ED24: 0 | EE24: 0 | EF24: 0 | EG24: 0 | EH24: 0 | EI24: 0 | EJ24: 0 | EK24: 0 | EL24: 0 | EM24: 0 | EN24: 0 | EO24: 0 | EP24: 0 | EQ24: 0 | ER24: 143169 | ES24: 0 | ET24: 406 | EU24: 92171 | EV24: 618 | EW24: 0 | EX24: 0 | EY24: 0 | EZ24: 0 | FA24: 0 | FB24: 0 | FC24: 60846 | FD24: 0 | FE24: 0 | FF24: 0 | FG24: 0 | FH24: 0 | FI24: 133225 | FJ24: 0 | FK24: 0 | FL24: 0 | FM24: 121596 | FN24: 0 | FO24: 0 | FP24: 0 | FQ24: 56729 | FR24: 221711 | FS24: 488 | FT24: 0 | FU24: 63540 | FV24: 0 | FW24: 0 | FX24: 10245 | FY24: 382900 | FZ24: 9959 | GA24: 3326157 | GB24: 0 | GC24: 3326157
B25: Rensselaer County | C25: =C118 -> 380100000000 | D25: County of Rensselaer | E25: Rensselaer | F25: 12/31 | G25: 159429 | H25: 0 | I25: 652.4 | J25: 10468605971 | K25: 189200043 | L25: 57642408 | M25: 0 | N25: 0 | O25: 0 | P25: 2135497 | Q25: 3261741 | R25: 0 | S25: 0 | T25: 75461588 | U25: 0 | V25: 0 | W25: 396869 | X25: 0 | Y25: 545532 | Z25: 1676623 | AA25: 0 | AB25: 3160554 | AC25: 0 | AD25: 620414 | AE25: 45110473 | AF25: 0 | AG25: 0 | AH25: 3896817 | AI25: 0 | AJ25: 0 | AK25: 161416 | AL25: 0 | AM25: 5612255 | AN25: 0 | AO25: 2104613 | AP25: 6294732 | AQ25: 6630126 | AR25: 0 | AS25: 0 | AT25: 0 | AU25: 0 | AV25: 364996 | AW25: 0 | AX25: 0 | AY25: 4634922 | AZ25: 0 | BA25: 2843000 | BB25: 45368 | BC25: 2011559 | BD25: 363474 | BE25: 4106 | BF25: 2418400 | BG25: 0 | BH25: 213602 | BI25: 17578 | BJ25: 6333 | BK25: 19354396 | BL25: 246989391 | BM25: 0 | BN25: 0 | BO25: =BO118 -> 1142253 | BP25: 19653895 | BQ25: 1795696 | BR25: 7825708 | BS25: 2885544 | BT25: 16182611 | BU25: 41413 | BV25: 229797 | BW25: 868762 | BX25: 0 | BY25: 0 | BZ25: 3155 | CA25: 0 | CB25: 517713 | CC25: 209090 | CD25: 1157222 | CE25: 20851204 | CF25: 1534762 | CG25: 161244 | CH25: 684162 | CI25: 0 | CJ25: 0 | CK25: 0 | CL25: 7586 | CM25: 322741206 | CN25: 50123526 | CO25: 292191 | CP25: 0 | CQ25: 6308784 | CR25: 0 | CS25: 379465707 | CT25: 5884016 | CU25: 9909997 | CV25: 26710249 | CW25: 1519776 | CX25: 558569 | CY25: 379604 | CZ25: 0 | DA25: 0 | DB25: 0 | DC25: 0 | DD25: 0 | DE25: 26978497 | DF25: 14343045 | DG25: 2465724 | DH25: 3836454 | DI25: 8537 | DJ25: 0 | DK25: 18730388 | DL25: 0 | DM25: 1337284 | DN25: 0 | DO25: 533313 | DP25: 4642800 | DQ25: 9905446 | DR25: 854585 | DS25: 28741340 | DT25: 0 | DU25: 8589517 | DV25: 0 | DW25: 542135 | DX25: 0 | DY25: 0 | DZ25: 0 | EA25: =EA118 -> 1705572 | EB25: 0 | EC25: 0 | ED25: 13559931 | EE25: 25235854 | EF25: 34362028 | EG25: 8090973 | EH25: 0 | EI25: 1111283 | EJ25: 1471022 | EK25: 0 | EL25: 707324 | EM25: 0 | EN25: 420882 | EO25: 61886 | EP25: 0 | EQ25: 0 | ER25: 0 | ES25: 0 | ET25: 366202 | EU25: 0 | EV25: 0 | EW25: 0 | EX25: 267224 | EY25: 2985125 | EZ25: 73513 | FA25: 0 | FB25: 0 | FC25: 0 | FD25: 0 | FE25: 0 | FF25: 0 | FG25: 13009129 | FH25: 0 | FI25: 0 | FJ25: 0 | FK25: 0 | FL25: 116 | FM25: 801399 | FN25: 0 | FO25: 0 | FP25: 0 | FQ25: 303615 | FR25: 17829293 | FS25: 0 | FT25: 0 | FU25: 2212959 | FV25: 233401 | FW25: 0 | FX25: 32749609 | FY25: 8254039 | FZ25: 8602726 | GA25: 340886382 | GB25: 6308784 | GC25: 347195166
B26: Village of Nassau | C26: =C119 -> 380456103330 | D26: Village of Nassau | E26: Rensselaer | F26: 05/31 | G26: 1133 | H26: 0 | I26: 0.7 | J26: 68877452 | K26: 645839 | L26: 317159 | M26: 0 | N26: 0 | O26: 0 | P26: 792 | Q26: 7843 | R26: 0 | S26: 0 | T26: 0 | U26: 71975 | V26: 0 | W26: 0 | X26: 20604 | Y26: 0 | Z26: 0 | AA26: 0 | AB26: 270 | AC26: 0 | AD26: 60 | AE26: 0 | AF26: 0 | AG26: 0 | AH26: 0 | AI26: 0 | AJ26: 0 | AK26: 3594 | AL26: 253346 | AM26: 74974 | AN26: 0 | AO26: 0 | AP26: 0 | AQ26: 0 | AR26: 0 | AS26: 0 | AT26: 0 | AU26: 0 | AV26: 0 | AW26: 0 | AX26: 0 | AY26: 0 | AZ26: 0 | BA26: 497 | BB26: 0 | BC26: 0 | BD26: 60605 | BE26: 0 | BF26: 0 | BG26: 0 | BH26: 0 | BI26: 0 | BJ26: 0 | BK26: 1239 | BL26: 812958 | BM26: 10548 | BN26: 8244 | BO26: =BO119 -> 0 | BP26: 0 | BQ26: 37916 | BR26: 0 | BS26: 0 | BT26: 0 | BU26: 0 | BV26: 0 | BW26: 0 | BX26: 0 | BY26: 0 | BZ26: 0 | CA26: 0 | CB26: 0 | CC26: 0 | CD26: 0 | CE26: 0 | CF26: 0 | CG26: 0 | CH26: 0 | CI26: 0 | CJ26: 0 | CK26: 0 | CL26: 0 | CM26: 869666 | CN26: 0 | CO26: 0 | CP26: 0 | CQ26: 10500 | CR26: 0 | CS26: 880166 | CT26: 54412 | CU26: 106834 | CV26: 0 | CW26: 0 | CX26: 2621 | CY26: 0 | CZ26: 0 | DA26: 0 | DB26: 0 | DC26: 0 | DD26: 0 | DE26: 0 | DF26: 0 | DG26: 0 | DH26: 176287 | DI26: 0 | DJ26: 0 | DK26: 0 | DL26: 0 | DM26: 0 | DN26: 13160 | DO26: 0 | DP26: 0 | DQ26: 0 | DR26: 0 | DS26: 0 | DT26: 0 | DU26: 44360 | DV26: 0 | DW26: 0 | DX26: 0 | DY26: 0 | DZ26: 0 | EA26: =EA119 -> 0 | EB26: 20046 | EC26: 0 | ED26: 0 | EE26: 0 | EF26: 0 | EG26: 0 | EH26: 0 | EI26: 0 | EJ26: 0 | EK26: 0 | EL26: 0 | EM26: 0 | EN26: 0 | EO26: 0 | EP26: 0 | EQ26: 0 | ER26: 1371 | ES26: 0 | ET26: 0 | EU26: 0 | EV26: 237 | EW26: 0 | EX26: 0 | EY26: 0 | EZ26: 0 | FA26: 0 | FB26: 0 | FC26: 115172 | FD26: 0 | FE26: 0 | FF26: 0 | FG26: 0 | FH26: 0 | FI26: 83633 | FJ26: 0 | FK26: 0 | FL26: 0 | FM26: 12661 | FN26: 18357 | FO26: 0 | FP26: 0 | FQ26: 21203 | FR26: 4415 | FS26: 0 | FT26: 0 | FU26: 8222 | FV26: 0 | FW26: 0 | FX26: 0 | FY26: 84286 | FZ26: 36203 | GA26: 803480 | GB26: 10500 | GC26: 813980
B27: Village of Valley Falls | C27: =C120 -> 380467005020 | D27: Village of Valley Falls | E27: Rensselaer | F27: 05/31 | G27: 466 | H27: 0 | I27: 0.5 | J27: 26573407 | K27: 1711168 | L27: 49500 | M27: 0 | N27: 0 | O27: 0 | P27: 0 | Q27: 1541 | R27: 0 | S27: 0 | T27: 0 | U27: 27620 | V27: 5085 | W27: 0 | X27: 4520 | Y27: 0 | Z27: 0 | AA27: 0 | AB27: 0 | AC27: 0 | AD27: 0 | AE27: 0 | AF27: 0 | AG27: 0 | AH27: 0 | AI27: 0 | AJ27: 0 | AK27: 0 | AL27: 0 | AM27: 102601 | AN27: 0 | AO27: 0 | AP27: 0 | AQ27: 28000 | AR27: 0 | AS27: 0 | AT27: 0 | AU27: 7000 | AV27: 0 | AW27: 0 | AX27: 0 | AY27: 0 | AZ27: 0 | BA27: 40 | BB27: 0 | BC27: 40 | BD27: 0 | BE27: 0 | BF27: 0 | BG27: 0 | BH27: 0 | BI27: 4409 | BJ27: 0 | BK27: 2681 | BL27: 233037 | BM27: 8119 | BN27: 3291 | BO27: =BO120 -> 0 | BP27: 0 | BQ27: 0 | BR27: 0 | BS27: 23000 | BT27: 0 | BU27: 0 | BV27: 179 | BW27: 0 | BX27: 0 | BY27: 0 | BZ27: 1000 | CA27: 0 | CB27: 0 | CC27: 0 | CD27: 0 | CE27: 0 | CF27: 0 | CG27: 0 | CH27: 0 | CI27: 0 | CJ27: 0 | CK27: 0 | CL27: 0 | CM27: 268626 | CN27: 0 | CO27: 0 | CP27: 0 | CQ27: 0 | CR27: 0 | CS27: 268626 | CT27: 42319 | CU27: 9908 | CV27: 0 | CW27: 0 | CX27: 2055 | CY27: 0 | CZ27: 0 | DA27: 0 | DB27: 0 | DC27: 0 | DD27: 0 | DE27: 0 | DF27: 0 | DG27: 0 | DH27: 0 | DI27: 24143 | DJ27: 1000 | DK27: 0 | DL27: 0 | DM27: 0 | DN27: 1200 | DO27: 0 | DP27: 0 | DQ27: 0 | DR27: 0 | DS27: 0 | DT27: 0 | DU27: 23445 | DV27: 0 | DW27: 0 | DX27: 0 | DY27: 0 | DZ27: 0 | EA27: =EA120 -> 0 | EB27: 13108 | EC27: 0 | ED27: 0 | EE27: 0 | EF27: 0 | EG27: 0 | EH27: 0 | EI27: 0 | EJ27: 0 | EK27: 0 | EL27: 0 | EM27: 0 | EN27: 0 | EO27: 0 | EP27: 0 | EQ27: 0 | ER27: 0 | ES27: 0 | ET27: 19336 | EU27: 1000 | EV27: 0 | EW27: 0 | EX27: 0 | EY27: 0 | EZ27: 8359 | FA27: 0 | FB27: 22507 | FC27: 0 | FD27: 0 | FE27: 0 | FF27: 0 | FG27: 0 | FH27: 0 | FI27: 2274 | FJ27: 0 | FK27: 0 | FL27: 0 | FM27: 0 | FN27: 0 | FO27: 0 | FP27: 0 | FQ27: 2459 | FR27: 0 | FS27: 0 | FT27: 0 | FU27: 0 | FV27: 0 | FW27: 0 | FX27: 0 | FY27: 84788 | FZ27: 7811 | GA27: 265712 | GB27: 0 | GC27: 265712
B28: Town of Berlin | C28: =C121 -> 380306700000 | D28: Town of Berlin | E28: Rensselaer | F28: 12/31 | G28: 1880 | H28: 0 | I28: 59.6 | J28: 160721959 | K28: 107500 | L28: 403884 | M28: 0 | N28: 0 | O28: 0 | P28: 0 | Q28: 3111 | R28: 0 | S28: 0 | T28: 0 | U28: 182175 | V28: 0 | W28: 0 | X28: 0 | Y28: 0 | Z28: 0 | AA28: 0 | AB28: 2237 | AC28: 0 | AD28: 0 | AE28: 0 | AF28: 0 | AG28: 0 | AH28: 0 | AI28: 0 | AJ28: 0 | AK28: 875 | AL28: 39873 | AM28: 116974 | AN28: 0 | AO28: 0 | AP28: 0 | AQ28: 0 | AR28: 0 | AS28: 0 | AT28: 0 | AU28: 0 | AV28: 0 | AW28: 0 | AX28: 0 | AY28: 0 | AZ28: 0 | BA28: 0 | BB28: 955 | BC28: 0 | BD28: 9125 | BE28: 0 | BF28: 0 | BG28: 0 | BH28: 0 | BI28: 25000 | BJ28: 0 | BK28: 3307 | BL28: 787517 | BM28: 9207 | BN28: 27057 | BO28: =BO121 -> 0 | BP28: 0 | BQ28: 0 | BR28: 0 | BS28: 83924 | BT28: 0 | BU28: 0 | BV28: 626 | BW28: 0 | BX28: 0 | BY28: 0 | BZ28: 0 | CA28: 0 | CB28: 352905 | CC28: 0 | CD28: 0 | CE28: 0 | CF28: 0 | CG28: 0 | CH28: 0 | CI28: 0 | CJ28: 0 | CK28: 0 | CL28: 0 | CM28: 1261235 | CN28: 126500 | CO28: 0 | CP28: 0 | CQ28: 561890 | CR28: 0 | CS28: 1949625 | CT28: 547069 | CU28: 97765 | CV28: 0 | CW28: 0 | CX28: 1402 | CY28: 0 | CZ28: 0 | DA28: 0 | DB28: 0 | DC28: 0 | DD28: 0 | DE28: 0 | DF28: 0 | DG28: 0 | DH28: 0 | DI28: 0 | DJ28: 0 | DK28: 0 | DL28: 247407 | DM28: 0 | DN28: 15593 | DO28: 200 | DP28: 0 | DQ28: 0 | DR28: 0 | DS28: 0 | DT28: 0 | DU28: 343150 | DV28: 0 | DW28: 0 | DX28: 0 | DY28: 0 | DZ28: 0 | EA28: =EA121 -> 172039 | EB28: 11164 | EC28: 0 | ED28: 0 | EE28: 0 | EF28: 0 | EG28: 0 | EH28: 0 | EI28: 0 | EJ28: 0 | EK28: 0 | EL28: 0 | EM28: 0 | EN28: 0 | EO28: 0 | EP28: 0 | EQ28: 0 | ER28: 0 | ES28: 0 | ET28: 4246 | EU28: 7500 | EV28: 2517 | EW28: 0 | EX28: 435 | EY28: 5400 | EZ28: -286 | FA28: 0 | FB28: 0 | FC28: 43476 | FD28: 0 | FE28: 0 | FF28: 0 | FG28: 0 | FH28: 0 | FI28: 106503 | FJ28: 0 | FK28: 0 | FL28: 0 | FM28: 32305 | FN28: 0 | FO28: 0 | FP28: 0 | FQ28: 22287 | FR28: 31539 | FS28: 0 | FT28: 0 | FU28: 22808 | FV28: 0 | FW28: 0 | FX28: 0 | FY28: 19000 | FZ28: 0 | GA28: 1733519 | GB28: 561890 | GC28: 2295409
B29: Town of Brunswick | C29: =C122 -> 380309900000 | D29: Town of Brunswick | E29: Rensselaer | F29: 12/31 | G29: 11941 | H29: 0 | I29: 44.4 | J29: 988851458 | K29: 2075250 | L29: 3484124 | M29: 0 | N29: 0 | O29: 0 | P29: 12498 | Q29: 18519 | R29: 0 | S29: 0 | T29: 0 | U29: 1128710 | V29: 0 | W29: 0 | X29: 102899 | Y29: 0 | Z29: 0 | AA29: 0 | AB29: 9648 | AC29: 0 | AD29: 170036 | AE29: 0 | AF29: 0 | AG29: 0 | AH29: 0 | AI29: 0 | AJ29: 49225 | AK29: 165100 | AL29: 990395 | AM29: 140414 | AN29: 0 | AO29: 0 | AP29: 0 | AQ29: 0 | AR29: 0 | AS29: 11263 | AT29: 0 | AU29: 0 | AV29: 0 | AW29: 38072 | AX29: 0 | AY29: 0 | AZ29: 0 | BA29: 9236 | BB29: 73457 | BC29: 0 | BD29: 62 | BE29: 0 | BF29: 14259 | BG29: 0 | BH29: 0 | BI29: 0 | BJ29: 0 | BK29: 0 | BL29: 6417917 | BM29: 78198 | BN29: 328198 | BO29: =BO122 -> 0 | BP29: 224 | BQ29: 198559 | BR29: 0 | BS29: 164799 | BT29: 0 | BU29: 0 | BV29: 2863 | BW29: 0 | BX29: 0 | BY29: 0 | BZ29: 4500 | CA29: 0 | CB29: 454031 | CC29: 0 | CD29: 62240 | CE29: 0 | CF29: 0 | CG29: 0 | CH29: 0 | CI29: 0 | CJ29: 0 | CK29: 0 | CL29: 0 | CM29: 7711529 | CN29: 0 | CO29: 47250 | CP29: 0 | CQ29: 360337 | CR29: 0 | CS29: 8119116 | CT29: 400323 | CU29: 621355 | CV29: 0 | CW29: 0 | CX29: 67127 | CY29: 0 | CZ29: 0 | DA29: 0 | DB29: 0 | DC29: 0 | DD29: 0 | DE29: 0 | DF29: 0 | DG29: 0 | DH29: 0 | DI29: 978081 | DJ29: 20400 | DK29: 0 | DL29: 0 | DM29: 0 | DN29: 88400 | DO29: 2500 | DP29: 0 | DQ29: 0 | DR29: 0 | DS29: 0 | DT29: 0 | DU29: 1943691 | DV29: 0 | DW29: 0 | DX29: 0 | DY29: 0 | DZ29: 0 | EA29: =EA122 -> 479916 | EB29: 78856 | EC29: 0 | ED29: 0 | EE29: 0 | EF29: 0 | EG29: 0 | EH29: 0 | EI29: 0 | EJ29: 0 | EK29: 0 | EL29: 0 | EM29: 97019 | EN29: 0 | EO29: 0 | EP29: 0 | EQ29: 0 | ER29: 0 | ES29: 0 | ET29: 264923 | EU29: 101764 | EV29: 12291 | EW29: 0 | EX29: 1824 | EY29: 8845 | EZ29: 0 | FA29: 0 | FB29: 3278 | FC29: 1271141 | FD29: 0 | FE29: 0 | FF29: 0 | FG29: 48303 | FH29: 0 | FI29: 92081 | FJ29: 0 | FK29: 0 | FL29: 0 | FM29: 330054 | FN29: 0 | FO29: 0 | FP29: 0 | FQ29: 139107 | FR29: 286745 | FS29: 4126 | FT29: 4300 | FU29: 183756 | FV29: 2435 | FW29: 0 | FX29: 9878 | FY29: 152250 | FZ29: 79993 | GA29: 7774762 | GB29: 360337 | GC29: 8135099
B30: Town of East Greenbush | C30: =C123 -> 380324900000 | D30: Town of East Greenbush | E30: Rensselaer | F30: 12/31 | G30: 16473 | H30: 0 | I30: 24 | J30: 1522187830 | K30: 6236517 | L30: 8630880 | M30: 0 | N30: 10764 | O30: 0 | P30: 500946 | Q30: 19726 | R30: 0 | S30: 0 | T30: 0 | U30: 1919283 | V30: 0 | W30: 0 | X30: 206272 | Y30: 0 | Z30: 0 | AA30: 0 | AB30: 214373 | AC30: 0 | AD30: 225172 | AE30: 0 | AF30: 0 | AG30: 0 | AH30: 0 | AI30: 0 | AJ30: 81952 | AK30: 294144 | AL30: 2223910 | AM30: 1148009 | AN30: 0 | AO30: 0 | AP30: 0 | AQ30: 0 | AR30: 0 | AS30: 5031 | AT30: 0 | AU30: 0 | AV30: 0 | AW30: 0 | AX30: 365847 | AY30: 0 | AZ30: 12839 | BA30: 52486 | BB30: 39398 | BC30: 0 | BD30: 296717 | BE30: 14417 | BF30: 23872 | BG30: 0 | BH30: 0 | BI30: 150 | BJ30: 24989 | BK30: 557903 | BL30: 16869080 | BM30: 73383 | BN30: 451980 | BO30: =BO123 -> 0 | BP30: 0 | BQ30: 33706 | BR30: 0 | BS30: 103916 | BT30: 0 | BU30: 0 | BV30: 8622 | BW30: 0 | BX30: 0 | BY30: 251400 | BZ30: 1128810 | CA30: 0 | CB30: 83743 | CC30: 0 | CD30: 0 | CE30: 0 | CF30: 0 | CG30: 0 | CH30: 0 | CI30: 0 | CJ30: 0 | CK30: 0 | CL30: 0 | CM30: 19004639 | CN30: 52491 | CO30: 388400 | CP30: 0 | CQ30: 0 | CR30: 0 | CS30: 19445530 | CT30: 315381 | CU30: 922900 | CV30: 0 | CW30: 0 | CX30: 1563669 | CY30: 92800 | CZ30: 0 | DA30: 0 | DB30: 0 | DC30: 0 | DD30: 0 | DE30: 0 | DF30: 0 | DG30: 563684 | DH30: 2166490 | DI30: 105522 | DJ30: 851632 | DK30: 0 | DL30: 0 | DM30: 0 | DN30: 201944 | DO30: 6840 | DP30: 0 | DQ30: 0 | DR30: 0 | DS30: 0 | DT30: 0 | DU30: 1328919 | DV30: 0 | DW30: 0 | DX30: 0 | DY30: 0 | DZ30: 0 | EA30: =EA123 -> 433677 | EB30: 165271 | EC30: 0 | ED30: 0 | EE30: 0 | EF30: 0 | EG30: 0 | EH30: 0 | EI30: 0 | EJ30: 0 | EK30: 0 | EL30: 0 | EM30: 0 | EN30: 0 | EO30: 0 | EP30: 0 | EQ30: 0 | ER30: 217702 | ES30: 0 | ET30: 82200 | EU30: 0 | EV30: 4942 | EW30: 0 | EX30: 3000 | EY30: 2973 | EZ30: 692 | FA30: 0 | FB30: 0 | FC30: 2549551 | FD30: 0 | FE30: 0 | FF30: 0 | FG30: 1633576 | FH30: 0 | FI30: 251702 | FJ30: 0 | FK30: 0 | FL30: 401720 | FM30: 775469 | FN30: 516819 | FO30: 0 | FP30: 0 | FQ30: 429452 | FR30: 1357954 | FS30: 0 | FT30: 0 | FU30: 289414 | FV30: 17220 | FW30: 0 | FX30: 69314 | FY30: 909916 | FZ30: 143433 | GA30: 18375778 | GB30: 0 | GC30: 18375778
B31: Town of Grafton | C31: =C124 -> 380333500000 | D31: Town of Grafton | E31: Rensselaer | F31: 12/31 | G31: 2130 | H31: 0 | I31: 44.7 | J31: 208773240 | K31: 331300 | L31: 666717 | M31: 0 | N31: 0 | O31: 0 | P31: 0 | Q31: 1193 | R31: 0 | S31: 0 | T31: 0 | U31: 155850 | V31: 0 | W31: 0 | X31: 0 | Y31: 0 | Z31: 0 | AA31: 0 | AB31: 725 | AC31: 0 | AD31: 0 | AE31: 0 | AF31: 0 | AG31: 0 | AH31: 0 | AI31: 0 | AJ31: 0 | AK31: 10641 | AL31: 0 | AM31: 19814 | AN31: 0 | AO31: 0 | AP31: 0 | AQ31: 0 | AR31: 0 | AS31: 0 | AT31: 0 | AU31: 0 | AV31: 0 | AW31: 0 | AX31: 0 | AY31: 0 | AZ31: 0 | BA31: 0 | BB31: 6832 | BC31: 9383 | BD31: 10845 | BE31: 0 | BF31: 1060 | BG31: 0 | BH31: 0 | BI31: 0 | BJ31: 0 | BK31: 6141 | BL31: 889202 | BM31: 8245 | BN31: 45215 | BO31: =BO124 -> 0 | BP31: 0 | BQ31: 95192 | BR31: 0 | BS31: 88836 | BT31: 0 | BU31: 0 | BV31: 1166 | BW31: 0 | BX31: 0 | BY31: 0 | BZ31: 0 | CA31: 0 | CB31: 112737 | CC31: 0 | CD31: 0 | CE31: 0 | CF31: 0 | CG31: 0 | CH31: 0 | CI31: 0 | CJ31: 0 | CK31: 0 | CL31: 0 | CM31: 1240594 | CN31: 0 | CO31: 33000 | CP31: 0 | CQ31: 0 | CR31: 0 | CS31: 1273594 | CT31: 69084 | CU31: 143335 | CV31: 0 | CW31: 0 | CX31: 5708 | CY31: 0 | CZ31: 0 | DA31: 0 | DB31: 0 | DC31: 0 | DD31: 0 | DE31: 0 | DF31: 0 | DG31: 0 | DH31: 0 | DI31: 0 | DJ31: 12969 | DK31: 0 | DL31: 0 | DM31: 0 | DN31: 20438 | DO31: 1000 | DP31: 0 | DQ31: 0 | DR31: 0 | DS31: 0 | DT31: 0 | DU31: 668928 | DV31: 0 | DW31: 0 | DX31: 0 | DY31: 0 | DZ31: 0 | EA31: =EA124 -> 197887 | EB31: 6900 | EC31: 0 | ED31: 0 | EE31: 0 | EF31: 0 | EG31: 0 | EH31: 0 | EI31: 0 | EJ31: 0 | EK31: 0 | EL31: 0 | EM31: 0 | EN31: 0 | EO31: 0 | EP31: 0 | EQ31: 0 | ER31: 252 | ES31: 0 | ET31: 11052 | EU31: 24250 | EV31: 500 | EW31: 0 | EX31: 700 | EY31: 4326 | EZ31: 0 | FA31: 0 | FB31: 0 | FC31: 0 | FD31: 0 | FE31: 0 | FF31: 0 | FG31: 0 | FH31: 0 | FI31: 40757 | FJ31: 0 | FK31: 0 | FL31: 0 | FM31: 62400 | FN31: 0 | FO31: 0 | FP31: 0 | FQ31: 31813 | FR31: 76211 | FS31: 2106 | FT31: 0 | FU31: 13823 | FV31: 2662 | FW31: 0 | FX31: 0 | FY31: 58000 | FZ31: 13982 | GA31: 1469083 | GB31: 0 | GC31: 1469083
B32: Town of Hoosick | C32: =C125 -> 380339800000 | D32: Town of Hoosick | E32: Rensselaer | F32: 12/31 | G32: 6924 | H32: 0 | I32: 63 | J32: 409050599 | K32: 0 | L32: 1455169 | M32: 0 | N32: 4438 | O32: 0 | P32: 0 | Q32: 5969 | R32: 0 | S32: 0 | T32: 0 | U32: 298906 | V32: 0 | W32: 0 | X32: 2741 | Y32: 0 | Z32: 0 | AA32: 0 | AB32: 6279 | AC32: 0 | AD32: 11833 | AE32: 0 | AF32: 0 | AG32: 0 | AH32: 0 | AI32: 0 | AJ32: 54025 | AK32: 325 | AL32: 0 | AM32: 2956 | AN32: 0 | AO32: 0 | AP32: 0 | AQ32: 0 | AR32: 0 | AS32: 0 | AT32: 0 | AU32: 17170 | AV32: 0 | AW32: 0 | AX32: 0 | AY32: 0 | AZ32: 0 | BA32: 1862 | BB32: 0 | BC32: 0 | BD32: 40009 | BE32: 0 | BF32: 0 | BG32: 0 | BH32: 0 | BI32: 0 | BJ32: 0 | BK32: 6598 | BL32: 1908280 | BM32: 51304 | BN32: 63430 | BO32: =BO125 -> 0 | BP32: 0 | BQ32: 3087 | BR32: 0 | BS32: 154678 | BT32: 0 | BU32: 0 | BV32: 1928 | BW32: 0 | BX32: 0 | BY32: 0 | BZ32: 0 | CA32: 0 | CB32: 7367 | CC32: 0 | CD32: 0 | CE32: 0 | CF32: 0 | CG32: 0 | CH32: 0 | CI32: 0 | CJ32: 0 | CK32: 0 | CL32: 0 | CM32: 2190074 | CN32: 0 | CO32: 0 | CP32: 0 | CQ32: 31803 | CR32: 0 | CS32: 2221877 | CT32: 77761 | CU32: 311482 | CV32: 0 | CW32: 0 | CX32: 13548 | CY32: 0 | CZ32: 0 | DA32: 0 | DB32: 0 | DC32: 0 | DD32: 0 | DE32: 0 | DF32: 0 | DG32: 0 | DH32: 0 | DI32: 244173 | DJ32: 9300 | DK32: 0 | DL32: 0 | DM32: 0 | DN32: 22975 | DO32: 1200 | DP32: 0 | DQ32: 0 | DR32: 0 | DS32: 0 | DT32: 0 | DU32: 434805 | DV32: 104166 | DW32: 0 | DX32: 0 | DY32: 0 | DZ32: 0 | EA32: =EA125 -> 41899 | EB32: 17567 | EC32: 0 | ED32: 0 | EE32: 0 | EF32: 0 | EG32: 0 | EH32: 0 | EI32: 0 | EJ32: 0 | EK32: 0 | EL32: 0 | EM32: 0 | EN32: 0 | EO32: 0 | EP32: 0 | EQ32: 0 | ER32: 73549 | ES32: 0 | ET32: 20163 | EU32: 45000 | EV32: 16715 | EW32: 0 | EX32: 800 | EY32: 5500 | EZ32: 0 | FA32: 0 | FB32: 0 | FC32: 1555 | FD32: 0 | FE32: 0 | FF32: 0 | FG32: 0 | FH32: 0 | FI32: 0 | FJ32: 0 | FK32: 0 | FL32: 0 | FM32: 66204 | FN32: 0 | FO32: 0 | FP32: 0 | FQ32: 44978 | FR32: 168565 | FS32: 702 | FT32: 0 | FU32: 40255 | FV32: 2940 | FW32: 0 | FX32: 16205 | FY32: 0 | FZ32: 0 | GA32: 1782007 | GB32: 31803 | GC32: 1813810
B33: Village of Hoosick Falls | C33: =C126 -> 380439802380 | D33: Village of Hoosick Falls | E33: Rensselaer | F33: 05/31 | G33: 3501 | H33: 0 | I33: 1.6 | J33: 146404072 | K33: 15988780 | L33: 1128644 | M33: 0 | N33: 0 | O33: 0 | P33: 17309 | Q33: 17047 | R33: 0 | S33: 0 | T33: 0 | U33: 158843 | V33: 32811 | W33: 0 | X33: 30033 | Y33: 0 | Z33: 5277 | AA33: 0 | AB33: 617 | AC33: 0 | AD33: 120 | AE33: 3800 | AF33: 0 | AG33: 0 | AH33: 0 | AI33: 0 | AJ33: 0 | AK33: 6991 | AL33: 714387 | AM33: 930850 | AN33: 0 | AO33: 0 | AP33: 0 | AQ33: 0 | AR33: 0 | AS33: 0 | AT33: 0 | AU33: 0 | AV33: 0 | AW33: 0 | AX33: 0 | AY33: 0 | AZ33: 0 | BA33: 597 | BB33: 0 | BC33: 0 | BD33: 20268 | BE33: 0 | BF33: 16896 | BG33: 0 | BH33: 0 | BI33: 0 | BJ33: 0 | BK33: 35583 | BL33: 3120073 | BM33: 30578 | BN33: 8961 | BO33: =BO126 -> 0 | BP33: 0 | BQ33: 3485 | BR33: 0 | BS33: 93587 | BT33: 0 | BU33: 0 | BV33: 1081 | BW33: 0 | BX33: 0 | BY33: 0 | BZ33: 104823 | CA33: 0 | CB33: 0 | CC33: 0 | CD33: 0 | CE33: 0 | CF33: 0 | CG33: 0 | CH33: 0 | CI33: 0 | CJ33: 0 | CK33: 0 | CL33: 0 | CM33: 3362588 | CN33: 0 | CO33: 20979 | CP33: 0 | CQ33: 0 | CR33: 0 | CS33: 3383567 | CT33: 124597 | CU33: 95201 | CV33: 0 | CW33: 0 | CX33: 0 | CY33: 0 | CZ33: 0 | DA33: 0 | DB33: 0 | DC33: 0 | DD33: 0 | DE33: 0 | DF33: 0 | DG33: 18549 | DH33: 319491 | DI33: 0 | DJ33: 5921 | DK33: 0 | DL33: 0 | DM33: 0 | DN33: 42264 | DO33: 0 | DP33: 0 | DQ33: 0 | DR33: 0 | DS33: 0 | DT33: 0 | DU33: 467215 | DV33: 0 | DW33: 0 | DX33: 0 | DY33: 0 | DZ33: 0 | EA33: =EA126 -> 0 | EB33: 96457 | EC33: 0 | ED33: 0 | EE33: 0 | EF33: 0 | EG33: 0 | EH33: 0 | EI33: 0 | EJ33: 0 | EK33: 0 | EL33: 0 | EM33: 11240 | EN33: 0 | EO33: 664 | EP33: 0 | EQ33: 21647 | ER33: 5179 | ES33: 0 | ET33: 11585 | EU33: 0 | EV33: 7639 | EW33: 0 | EX33: 0 | EY33: 0 | EZ33: 0 | FA33: 0 | FB33: 0 | FC33: 2582852 | FD33: 0 | FE33: 0 | FF33: 0 | FG33: 374554 | FH33: 0 | FI33: 234129 | FJ33: 0 | FK33: 0 | FL33: 3240 | FM33: 100407 | FN33: 0 | FO33: 0 | FP33: 0 | FQ33: 59704 | FR33: 166922 | FS33: 1896 | FT33: 0 | FU33: 33681 | FV33: 0 | FW33: 0 | FX33: 0 | FY33: 543394 | FZ33: 7844 | GA33: 5336272 | GB33: 0 | GC33: 5336272
B34: Town of Nassau | C34: =C127 -> 380356100000 | D34: Town of Nassau | E34: Rensselaer | F34: 12/31 | G34: 4789 | H34: 0 | I34: 44.4 | J34: 374789538 | K34: 309181 | L34: 1006120 | M34: 0 | N34: 0 | O34: 0 | P34: 0 | Q34: 6014 | R34: 0 | S34: 0 | T34: 0 | U34: 307108 | V34: 0 | W34: 0 | X34: 21838 | Y34: 0 | Z34: 0 | AA34: 0 | AB34: 5072 | AC34: 0 | AD34: 0 | AE34: 200 | AF34: 0 | AG34: 0 | AH34: 0 | AI34: 0 | AJ34: 0 | AK34: 40389 | AL34: 0 | AM34: 53304 | AN34: 0 | AO34: 0 | AP34: 0 | AQ34: 0 | AR34: 0 | AS34: 0 | AT34: 0 | AU34: 5370 | AV34: 0 | AW34: 0 | AX34: 0 | AY34: 0 | AZ34: 0 | BA34: 4303 | BB34: 15512 | BC34: 0 | BD34: 14565 | BE34: 0 | BF34: 0 | BG34: 0 | BH34: 0 | BI34: 400 | BJ34: 0 | BK34: 15383 | BL34: 1495577 | BM34: 27829 | BN34: 79288 | BO34: =BO127 -> 0 | BP34: 0 | BQ34: 0 | BR34: 0 | BS34: 111153 | BT34: 0 | BU34: 0 | BV34: 2769 | BW34: 30000 | BX34: 0 | BY34: 0 | BZ34: 393 | CA34: 0 | CB34: 150237 | CC34: 0 | CD34: 0 | CE34: 181004 | CF34: 0 | CG34: 0 | CH34: 0 | CI34: 0 | CJ34: 0 | CK34: 0 | CL34: 0 | CM34: 2078251 | CN34: 0 | CO34: 219000 | CP34: 0 | CQ34: 261458 | CR34: 0 | CS34: 2558709 | CT34: 123437 | CU34: 278720 | CV34: 0 | CW34: 0 | CX34: 10989 | CY34: 0 | CZ34: 0 | DA34: 0 | DB34: 0 | DC34: 0 | DD34: 0 | DE34: 0 | DF34: 0 | DG34: 0 | DH34: 886 | DI34: 78000 | DJ34: 97000 | DK34: 0 | DL34: 0 | DM34: 0 | DN34: 34461 | DO34: 450 | DP34: 1240 | DQ34: 0 | DR34: 0 | DS34: 0 | DT34: 0 | DU34: 608884 | DV34: 0 | DW34: 0 | DX34: 0 | DY34: 0 | DZ34: 0 | EA34: =EA127 -> 74862 | EB34: 2989 | EC34: 0 | ED34: 0 | EE34: 0 | EF34: 0 | EG34: 0 | EH34: 182381 | EI34: 0 | EJ34: 0 | EK34: 0 | EL34: 0 | EM34: 0 | EN34: 0 | EO34: 0 | EP34: 0 | EQ34: 10000 | ER34: 23938 | ES34: 0 | ET34: 0 | EU34: 0 | EV34: 532 | EW34: 0 | EX34: 500 | EY34: 2271 | EZ34: 0 | FA34: 0 | FB34: 0 | FC34: 0 | FD34: 0 | FE34: 0 | FF34: 0 | FG34: 21375 | FH34: 0 | FI34: 65314 | FJ34: 0 | FK34: 0 | FL34: 0 | FM34: 87206 | FN34: 0 | FO34: 0 | FP34: 0 | FQ34: 40983 | FR34: 144002 | FS34: 663 | FT34: 0 | FU34: 31123 | FV34: 0 | FW34: 0 | FX34: 0 | FY34: 282828 | FZ34: 13574 | GA34: 2218605 | GB34: 261458 | GC34: 2480063
B35: Village of East Nassau | C35: =C128 -> 380456101435 | D35: Village of East Nassau | E35: Rensselaer | F35: 05/31 | G35: 587 | H35: 0 | I35: 4.9 | J35: 41414460 | K35: 0 | L35: 52762 | M35: 0 | N35: 0 | O35: 0 | P35: 0 | Q35: 578 | R35: 0 | S35: 0 | T35: 0 | U35: 46830 | V35: 0 | W35: 0 | X35: 0 | Y35: 0 | Z35: 0 | AA35: 0 | AB35: 285 | AC35: 0 | AD35: 570 | AE35: 0 | AF35: 0 | AG35: 0 | AH35: 0 | AI35: 0 | AJ35: 0 | AK35: 0 | AL35: 0 | AM35: 0 | AN35: 0 | AO35: 0 | AP35: 0 | AQ35: 0 | AR35: 0 | AS35: 0 | AT35: 0 | AU35: 0 | AV35: 0 | AW35: 0 | AX35: 0 | AY35: 0 | AZ35: 0 | BA35: 89 | BB35: 0 | BC35: 0 | BD35: 0 | BE35: 0 | BF35: 0 | BG35: 0 | BH35: 0 | BI35: 0 | BJ35: 0 | BK35: 0 | BL35: 101115 | BM35: 9332 | BN35: 4674 | BO35: =BO128 -> 0 | BP35: 0 | BQ35: 3172 | BR35: 0 | BS35: 9408 | BT35: 0 | BU35: 0 | BV35: 0 | BW35: 0 | BX35: 0 | BY35: 0 | BZ35: 0 | CA35: 0 | CB35: 5283 | CC35: 0 | CD35: 0 | CE35: 0 | CF35: 0 | CG35: 0 | CH35: 0 | CI35: 0 | CJ35: 0 | CK35: 0 | CL35: 0 | CM35: 132984 | CN35: 0 | CO35: 0 | CP35: 0 | CQ35: 0 | CR35: 0 | CS35: 132984 | CT35: 9026 | CU35: 25479 | CV35: 0 | CW35: 0 | CX35: 0 | CY35: 0 | CZ35: 0 | DA35: 0 | DB35: 0 | DC35: 0 | DD35: 0 | DE35: 0 | DF35: 0 | DG35: 0 | DH35: 0 | DI35: 0 | DJ35: 0 | DK35: 0 | DL35: 0 | DM35: 0 | DN35: 3934 | DO35: 0 | DP35: 0 | DQ35: 0 | DR35: 0 | DS35: 0 | DT35: 0 | DU35: 69995 | DV35: 0 | DW35: 0 | DX35: 0 | DY35: 0 | DZ35: 0 | EA35: =EA128 -> 0 | EB35: 1000 | EC35: 0 | ED35: 0 | EE35: 0 | EF35: 0 | EG35: 0 | EH35: 0 | EI35: 0 | EJ35: 0 | EK35: 0 | EL35: 0 | EM35: 0 | EN35: 0 | EO35: 0 | EP35: 0 | EQ35: 0 | ER35: 0 | ES35: 0 | ET35: 0 | EU35: 0 | EV35: 0 | EW35: 0 | EX35: 0 | EY35: 0 | EZ35: 0 | FA35: 0 | FB35: 0 | FC35: 0 | FD35: 0 | FE35: 0 | FF35: 0 | FG35: 0 | FH35: 0 | FI35: 0 | FJ35: 0 | FK35: 0 | FL35: 0 | FM35: 0 | FN35: 0 | FO35: 0 | FP35: 0 | FQ35: 1904 | FR35: 0 | FS35: 0 | FT35: 0 | FU35: 600 | FV35: 0 | FW35: 0 | FX35: 0 | FY35: 0 | FZ35: 0 | GA35: 111938 | GB35: 0 | GC35: 111938
B36: Town of North Greenbush | C36: =C129 -> 380359500000 | D36: Town of North Greenbush | E36: Rensselaer | F36: 12/31 | G36: 12075 | H36: 0 | I36: 18.6 | J36: 938453313 | K36: 19593999 | L36: 3409672 | M36: 0 | N36: 1607087 | O36: 0 | P36: 406638 | Q36: 55780 | R36: 0 | S36: 0 | T36: 0 | U36: 1303535 | V36: 0 | W36: 0 | X36: 224457 | Y36: 0 | Z36: 0 | AA36: 0 | AB36: 10534 | AC36: 0 | AD36: 3818 | AE36: 6674 | AF36: 0 | AG36: 0 | AH36: 0 | AI36: 0 | AJ36: 110171 | AK36: 250152 | AL36: 1442564 | AM36: 5409 | AN36: 0 | AO36: 0 | AP36: 0 | AQ36: 0 | AR36: 0 | AS36: 0 | AT36: 0 | AU36: 0 | AV36: 0 | AW36: 0 | AX36: 0 | AY36: 0 | AZ36: 0 | BA36: 8272 | BB36: -113 | BC36: 20915 | BD36: 159255 | BE36: 0 | BF36: 430 | BG36: 0 | BH36: 0 | BI36: 273 | BJ36: 0 | BK36: 36955 | BL36: 9062478 | BM36: 104549 | BN36: 417343 | BO36: =BO129 -> 0 | BP36: 236652 | BQ36: 8602 | BR36: 0 | BS36: 81846 | BT36: 0 | BU36: 0 | BV36: 2893 | BW36: 36395 | BX36: 0 | BY36: 0 | BZ36: 0 | CA36: 0 | CB36: 220102 | CC36: 0 | CD36: 0 | CE36: 0 | CF36: 0 | CG36: 0 | CH36: 0 | CI36: 0 | CJ36: 0 | CK36: 0 | CL36: 0 | CM36: 10170860 | CN36: 0 | CO36: 679000 | CP36: 0 | CQ36: 139102 | CR36: 0 | CS36: 10988962 | CT36: 259355 | CU36: 694347 | CV36: 0 | CW36: 0 | CX36: 51099 | CY36: 0 | CZ36: 0 | DA36: 0 | DB36: 0 | DC36: 0 | DD36: 0 | DE36: 0 | DF36: 0 | DG36: 0 | DH36: 1765809 | DI36: 0 | DJ36: 230249 | DK36: 0 | DL36: 0 | DM36: 0 | DN36: 13743 | DO36: 8229 | DP36: 0 | DQ36: 0 | DR36: 0 | DS36: 0 | DT36: 0 | DU36: 1277943 | DV36: 0 | DW36: 0 | DX36: 0 | DY36: 0 | DZ36: 0 | EA36: =EA129 -> 0 | EB36: 123320 | EC36: 0 | ED36: 0 | EE36: 0 | EF36: 0 | EG36: 0 | EH36: 0 | EI36: 0 | EJ36: 0 | EK36: 0 | EL36: 0 | EM36: 0 | EN36: 0 | EO36: 0 | EP36: 0 | EQ36: 0 | ER36: 64404 | ES36: 0 | ET36: 120241 | EU36: 291038 | EV36: 9915 | EW36: 0 | EX36: 0 | EY36: 10000 | EZ36: 0 | FA36: 0 | FB36: 0 | FC36: 1460298 | FD36: 0 | FE36: 0 | FF36: 0 | FG36: 133983 | FH36: 0 | FI36: 0 | FJ36: 0 | FK36: 0 | FL36: 0 | FM36: 273684 | FN36: 325698 | FO36: 0 | FP36: 96613 | FQ36: 234546 | FR36: 361780 | FS36: 4540 | FT36: 0 | FU36: 132361 | FV36: 22839 | FW36: 0 | FX36: 0 | FY36: 1253000 | FZ36: 411173 | GA36: 9630205 | GB36: 139102 | GC36: 9769307
B37: Town of Petersburgh | C37: =C130 -> 380365600000 | D37: Town of Petersburgh | E37: Rensselaer | F37: 12/31 | G37: 1525 | H37: 0 | I37: 41.6 | J37: 124391844 | K37: 195400 | L37: 535478 | M37: 0 | N37: 0 | O37: 0 | P37: 0 | Q37: 1130 | R37: 0 | S37: 0 | T37: 0 | U37: 137674 | V37: 0 | W37: 0 | X37: 0 | Y37: 0 | Z37: 0 | AA37: 0 | AB37: 2541 | AC37: 0 | AD37: 0 | AE37: 0 | AF37: 0 | AG37: 0 | AH37: 0 | AI37: 0 | AJ37: 46 | AK37: 2093 | AL37: 33987 | AM37: 31134 | AN37: 0 | AO37: 0 | AP37: 0 | AQ37: 0 | AR37: 0 | AS37: 7550 | AT37: 0 | AU37: 0 | AV37: 0 | AW37: 0 | AX37: 0 | AY37: 0 | AZ37: 0 | BA37: 273 | BB37: 612 | BC37: 2000 | BD37: 5325 | BE37: 0 | BF37: 962 | BG37: 2016 | BH37: 0 | BI37: 0 | BJ37: 0 | BK37: 657 | BL37: 763479 | BM37: 0 | BN37: 14410 | BO37: =BO130 -> 0 | BP37: 0 | BQ37: 115671 | BR37: 0 | BS37: 116602 | BT37: 0 | BU37: 0 | BV37: 966 | BW37: 0 | BX37: 0 | BY37: 0 | BZ37: 0 | CA37: 0 | CB37: 0 | CC37: 0 | CD37: 0 | CE37: 0 | CF37: 0 | CG37: 331 | CH37: 0 | CI37: 0 | CJ37: 0 | CK37: 0 | CL37: 0 | CM37: 1011459 | CN37: 0 | CO37: 0 | CP37: 0 | CQ37: 11176 | CR37: 0 | CS37: 1022635 | CT37: 75862 | CU37: 97721 | CV37: 0 | CW37: 0 | CX37: 1174 | CY37: 0 | CZ37: 0 | DA37: 0 | DB37: 0 | DC37: 0 | DD37: 0 | DE37: 0 | DF37: 0 | DG37: 0 | DH37: 0 | DI37: 0 | DJ37: 0 | DK37: 0 | DL37: 21513 | DM37: 0 | DN37: 14638 | DO37: 500 | DP37: 0 | DQ37: 0 | DR37: 0 | DS37: 0 | DT37: 13000 | DU37: 372335 | DV37: 0 | DW37: 0 | DX37: 0 | DY37: 0 | DZ37: 0 | EA37: =EA130 -> 137747 | EB37: 8784 | EC37: 0 | ED37: 0 | EE37: 0 | EF37: 0 | EG37: 0 | EH37: 0 | EI37: 0 | EJ37: 0 | EK37: 0 | EL37: 0 | EM37: 0 | EN37: 0 | EO37: 0 | EP37: 0 | EQ37: 2381 | ER37: 0 | ES37: 0 | ET37: 8247 | EU37: 50382 | EV37: 0 | EW37: 0 | EX37: 3588 | EY37: 3441 | EZ37: 0 | FA37: 0 | FB37: 0 | FC37: 20322 | FD37: 0 | FE37: 0 | FF37: 0 | FG37: 0 | FH37: 0 | FI37: 69304 | FJ37: 0 | FK37: 0 | FL37: 0 | FM37: 25165 | FN37: 0 | FO37: 0 | FP37: 0 | FQ37: 20758 | FR37: 40363 | FS37: 81 | FT37: 0 | FU37: 11612 | FV37: 677 | FW37: 0 | FX37: 2208 | FY37: 23500 | FZ37: 14245 | GA37: 1039550 | GB37: 11176 | GC37: 1050725
B38: Town of Pittstown | C38: =C131 -> 380367000000 | D38: Town of Pittstown | E38: Rensselaer | F38: 12/31 | G38: 5735 | H38: 0 | I38: 61.6 | J38: 385880562 | K38: 980000 | L38: 1962983 | M38: 0 | N38: 0 | O38: 0 | P38: 0 | Q38: 7438 | R38: 0 | S38: 0 | T38: 0 | U38: 413278 | V38: 0 | W38: 0 | X38: 0 | Y38: 0 | Z38: 0 | AA38: 0 | AB38: 6390 | AC38: 0 | AD38: 8299 | AE38: 0 | AF38: 0 | AG38: 0 | AH38: 0 | AI38: 0 | AJ38: 0 | AK38: 2850 | AL38: 0 | AM38: 0 | AN38: 0 | AO38: 0 | AP38: 0 | AQ38: 0 | AR38: 0 | AS38: 0 | AT38: 0 | AU38: 0 | AV38: 0 | AW38: 0 | AX38: 0 | AY38: 0 | AZ38: 0 | BA38: 4963 | BB38: 4698 | BC38: 0 | BD38: 43145 | BE38: 0 | BF38: 1437 | BG38: 0 | BH38: 0 | BI38: 0 | BJ38: 0 | BK38: 86405 | BL38: 2541884 | BM38: 31354 | BN38: 108375 | BO38: =BO131 -> 0 | BP38: 0 | BQ38: 0 | BR38: 0 | BS38: 232757 | BT38: 0 | BU38: 0 | BV38: 3317 | BW38: 0 | BX38: 0 | BY38: 0 | BZ38: 0 | CA38: 0 | CB38: 141797 | CC38: 0 | CD38: 0 | CE38: 0 | CF38: 0 | CG38: 0 | CH38: 0 | CI38: 0 | CJ38: 0 | CK38: 0 | CL38: 0 | CM38: 3059484 | CN38: 0 | CO38: 0 | CP38: 0 | CQ38: 0 | CR38: 0 | CS38: 3059484 | CT38: 492444 | CU38: 185236 | CV38: 0 | CW38: 0 | CX38: 16765 | CY38: 0 | CZ38: 0 | DA38: 0 | DB38: 0 | DC38: 0 | DD38: 0 | DE38: 0 | DF38: 0 | DG38: 0 | DH38: 0 | DI38: 37384 | DJ38: 45000 | DK38: 0 | DL38: 0 | DM38: 0 | DN38: 39161 | DO38: 1415 | DP38: 0 | DQ38: 0 | DR38: 0 | DS38: 0 | DT38: 0 | DU38: 2187018 | DV38: 0 | DW38: 0 | DX38: 0 | DY38: 0 | DZ38: 0 | EA38: =EA131 -> 405868 | EB38: 11496 | EC38: 0 | ED38: 0 | EE38: 0 | EF38: 0 | EG38: 0 | EH38: 0 | EI38: 0 | EJ38: 0 | EK38: 0 | EL38: 0 | EM38: 0 | EN38: 0 | EO38: 0 | EP38: 0 | EQ38: 0 | ER38: 0 | ES38: 0 | ET38: 11000 | EU38: 10000 | EV38: 1455 | EW38: 0 | EX38: 1935 | EY38: 500 | EZ38: 0 | FA38: 0 | FB38: 0 | FC38: 0 | FD38: 0 | FE38: 0 | FF38: 0 | FG38: 0 | FH38: 0 | FI38: 520368 | FJ38: 0 | FK38: 0 | FL38: 0 | FM38: 99182 | FN38: 0 | FO38: 0 | FP38: 0 | FQ38: 43719 | FR38: 166412 | FS38: 355 | FT38: 0 | FU38: 24951 | FV38: 0 | FW38: 0 | FX38: 0 | FY38: 0 | FZ38: 0 | GA38: 4301666 | GB38: 0 | GC38: 4301666
B39: Town of Poestenkill | C39: =C132 -> 380367600000 | D39: Town of Poestenkill | E39: Rensselaer | F39: 12/31 | G39: 4530 | H39: 0 | I39: 32.4 | J39: 343061896 | K39: 9208000 | L39: 1126361 | M39: 0 | N39: 280765 | O39: 0 | P39: 0 | Q39: 4529 | R39: 0 | S39: 0 | T39: 0 | U39: 386537 | V39: 0 | W39: 0 | X39: 29784 | Y39: 0 | Z39: 0 | AA39: 0 | AB39: 2490 | AC39: 0 | AD39: 0 | AE39: 0 | AF39: 0 | AG39: 0 | AH39: 0 | AI39: 0 | AJ39: 0 | AK39: 14854 | AL39: 50604 | AM39: 0 | AN39: 0 | AO39: 0 | AP39: 0 | AQ39: 245 | AR39: 0 | AS39: 4117 | AT39: 0 | AU39: 0 | AV39: 0 | AW39: 0 | AX39: 0 | AY39: 0 | AZ39: 0 | BA39: 1590 | BB39: 1906 | BC39: 10 | BD39: 10352 | BE39: 0 | BF39: 0 | BG39: 0 | BH39: 0 | BI39: 26184 | BJ39: 0 | BK39: 16206 | BL39: 1956534 | BM39: 37181 | BN39: 122535 | BO39: =BO132 -> 1500 | BP39: 0 | BQ39: 95964 | BR39: 0 | BS39: 70613 | BT39: 0 | BU39: 0 | BV39: 2639 | BW39: 0 | BX39: 0 | BY39: 0 | BZ39: 6750 | CA39: 0 | CB39: 137890 | CC39: 0 | CD39: 0 | CE39: 0 | CF39: 0 | CG39: 0 | CH39: 0 | CI39: 0 | CJ39: 0 | CK39: 0 | CL39: 69918 | CM39: 2501524 | CN39: 0 | CO39: 161000 | CP39: 0 | CQ39: 0 | CR39: 0 | CS39: 2662524 | CT39: 55906 | CU39: 236072 | CV39: 0 | CW39: 0 | CX39: 23135 | CY39: 0 | CZ39: 0 | DA39: 0 | DB39: 0 | DC39: 0 | DD39: 0 | DE39: 0 | DF39: 0 | DG39: 0 | DH39: 1196 | DI39: 261417 | DJ39: 0 | DK39: 0 | DL39: 0 | DM39: 0 | DN39: 35563 | DO39: 1500 | DP39: 0 | DQ39: 0 | DR39: 0 | DS39: 0 | DT39: 0 | DU39: 687957 | DV39: 0 | DW39: 0 | DX39: 0 | DY39: 0 | DZ39: 0 | EA39: =EA132 -> 110090 | EB39: 13394 | EC39: 0 | ED39: 0 | EE39: 0 | EF39: 0 | EG39: 0 | EH39: 0 | EI39: 0 | EJ39: 0 | EK39: 0 | EL39: 0 | EM39: 0 | EN39: 0 | EO39: 0 | EP39: 0 | EQ39: 0 | ER39: 5000 | ES39: 0 | ET39: 48455 | EU39: 49742 | EV39: 7844 | EW39: 0 | EX39: 3250 | EY39: 0 | EZ39: 0 | FA39: 0 | FB39: 12500 | FC39: 223663 | FD39: 0 | FE39: 0 | FF39: 0 | FG39: 0 | FH39: 0 | FI39: 9827 | FJ39: 0 | FK39: 0 | FL39: 0 | FM39: 78433 | FN39: 0 | FO39: 0 | FP39: 0 | FQ39: 46880 | FR39: 117822 | FS39: 282 | FT39: 0 | FU39: 11819 | FV39: 0 | FW39: 0 | FX39: 0 | FY39: 161000 | FZ39: 0 | GA39: 2202747 | GB39: 0 | GC39: 2202747
B40: City of Rensselaer | C40: =C133 -> 380247000000 | D40: City of Rensselaer | E40: Rensselaer | F40: 07/31 | G40: 9392 | H40: 0 | I40: 3.2 | J40: 446122913 | K40: 9319697 | L40: 6609131 | M40: 0 | N40: 0 | O40: 0 | P40: 828899 | Q40: 99139 | R40: 0 | S40: 429560 | T40: 0 | U40: 2163170 | V40: 96051 | W40: 0 | X40: 149402 | Y40: 0 | Z40: 0 | AA40: 0 | AB40: 9420 | AC40: 0 | AD40: 120 | AE40: 0 | AF40: 0 | AG40: 0 | AH40: 10823 | AI40: 607805 | AJ40: 0 | AK40: 125180 | AL40: 1988423 | AM40: 673023 | AN40: 0 | AO40: 0 | AP40: 0 | AQ40: 0 | AR40: 0 | AS40: 0 | AT40: 0 | AU40: 0 | AV40: 0 | AW40: 113127 | AX40: 0 | AY40: 20815 | AZ40: 0 | BA40: 7868 | BB40: 28794 | BC40: 8820 | BD40: 121540 | BE40: 0 | BF40: 79086 | BG40: 650 | BH40: 607700 | BI40: 5286 | BJ40: 0 | BK40: 151402 | BL40: 14935234 | BM40: 1137317 | BN40: 77789 | BO40: =BO133 -> 40783 | BP40: 787110 | BQ40: 94994 | BR40: 0 | BS40: 912841 | BT40: 0 | BU40: 0 | BV40: 4356 | BW40: 0 | BX40: 0 | BY40: 0 | BZ40: 668283 | CA40: 0 | CB40: 300 | CC40: 0 | CD40: 39 | CE40: 0 | CF40: 88090 | CG40: 0 | CH40: 0 | CI40: 0 | CJ40: 0 | CK40: 0 | CL40: 0 | CM40: 18747135 | CN40: 0 | CO40: 474000 | CP40: 0 | CQ40: 81000 | CR40: 0 | CS40: 19302135 | CT40: 889858 | CU40: 849804 | CV40: 0 | CW40: 0 | CX40: 264578 | CY40: 22210 | CZ40: 0 | DA40: 0 | DB40: 0 | DC40: 0 | DD40: 0 | DE40: 0 | DF40: 0 | DG40: 0 | DH40: 2672001 | DI40: 1035211 | DJ40: 0 | DK40: 0 | DL40: 0 | DM40: 0 | DN40: 192066 | DO40: 0 | DP40: 0 | DQ40: 0 | DR40: 0 | DS40: 0 | DT40: 0 | DU40: 4145433 | DV40: 0 | DW40: 0 | DX40: 0 | DY40: 0 | DZ40: 0 | EA40: =EA133 -> 0 | EB40: 202051 | EC40: 0 | ED40: 0 | EE40: 0 | EF40: 0 | EG40: 0 | EH40: 0 | EI40: 0 | EJ40: 0 | EK40: 0 | EL40: 0 | EM40: 27741 | EN40: 719970 | EO40: 0 | EP40: 0 | EQ40: 602000 | ER40: 77364 | ES40: 0 | ET40: 33249 | EU40: 99081 | EV40: 13147 | EW40: 0 | EX40: 0 | EY40: 9201 | EZ40: 9962 | FA40: 0 | FB40: 0 | FC40: 1501545 | FD40: 0 | FE40: 0 | FF40: 0 | FG40: 314496 | FH40: 150072 | FI40: 462914 | FJ40: 0 | FK40: 0 | FL40: 0 | FM40: 363333 | FN40: 533759 | FO40: 0 | FP40: 0 | FQ40: 399521 | FR40: 1719889 | FS40: 5804 | FT40: 5669 | FU40: 278170 | FV40: 23782 | FW40: 0 | FX40: 19748 | FY40: 1056731 | FZ40: 320437 | GA40: 19020797 | GB40: 81000 | GC40: 19101797
B41: Town of Sand Lake | C41: =C134 -> 380374100000 | D41: Town of Sand Lake | E41: Rensselaer | F41: 12/31 | G41: 8530 | H41: 0 | I41: 35.1 | J41: 743128109 | K41: 2696088 | L41: 1706634 | M41: 0 | N41: 594 | O41: 0 | P41: 3600 | Q41: 8533 | R41: 0 | S41: 0 | T41: 0 | U41: 846737 | V41: 0 | W41: 0 | X41: 132738 | Y41: 0 | Z41: 0 | AA41: 0 | AB41: 24723 | AC41: 0 | AD41: 25968 | AE41: 220089 | AF41: 0 | AG41: 0 | AH41: 0 | AI41: 0 | AJ41: 43381 | AK41: 9553 | AL41: 0 | AM41: 381126 | AN41: 0 | AO41: 0 | AP41: 0 | AQ41: 0 | AR41: 0 | AS41: 0 | AT41: 0 | AU41: 3563 | AV41: 0 | AW41: 0 | AX41: 0 | AY41: 0 | AZ41: 0 | BA41: 3510 | BB41: 21632 | BC41: 0 | BD41: 41936 | BE41: 0 | BF41: 7066 | BG41: 2508 | BH41: 0 | BI41: 21560 | BJ41: 2525 | BK41: 7126 | BL41: 3515101 | BM41: 35856 | BN41: 261025 | BO41: =BO134 -> 0 | BP41: 0 | BQ41: 22691 | BR41: 0 | BS41: 132576 | BT41: 0 | BU41: 0 | BV41: 6000 | BW41: 7965 | BX41: 0 | BY41: 0 | BZ41: 6306 | CA41: 0 | CB41: 4000 | CC41: 0 | CD41: 0 | CE41: 0 | CF41: 0 | CG41: 0 | CH41: 0 | CI41: 0 | CJ41: 0 | CK41: 0 | CL41: 11049 | CM41: 4002569 | CN41: 110408 | CO41: 0 | CP41: 0 | CQ41: 64145 | CR41: 0 | CS41: 4177122 | CT41: 352625 | CU41: 460896 | CV41: 0 | CW41: 0 | CX41: 56865 | CY41: 0 | CZ41: 0 | DA41: 0 | DB41: 0 | DC41: 0 | DD41: 0 | DE41: 0 | DF41: 0 | DG41: 0 | DH41: 4000 | DI41: 0 | DJ41: 470089 | DK41: 0 | DL41: 0 | DM41: 0 | DN41: 80656 | DO41: 1000 | DP41: 0 | DQ41: 0 | DR41: 0 | DS41: 0 | DT41: 0 | DU41: 1077894 | DV41: 0 | DW41: 0 | DX41: 0 | DY41: 0 | DZ41: 0 | EA41: =EA134 -> 245535 | EB41: 56807 | EC41: 28066 | ED41: 0 | EE41: 0 | EF41: 0 | EG41: 0 | EH41: 0 | EI41: 0 | EJ41: 0 | EK41: 0 | EL41: 0 | EM41: 0 | EN41: 0 | EO41: 0 | EP41: 0 | EQ41: 0 | ER41: 41056 | ES41: 0 | ET41: 43531 | EU41: 135427 | EV41: 9978 | EW41: 14962 | EX41: 2765 | EY41: 0 | EZ41: 485 | FA41: 0 | FB41: 0 | FC41: 0 | FD41: 0 | FE41: 0 | FF41: 0 | FG41: 236298 | FH41: 0 | FI41: 41953 | FJ41: 6772 | FK41: 0 | FL41: 0 | FM41: 213661 | FN41: 0 | FO41: 0 | FP41: 0 | FQ41: 104561 | FR41: 240435 | FS41: 1049 | FT41: 0 | FU41: 43598 | FV41: 4097 | FW41: 0 | FX41: 0 | FY41: 156803 | FZ41: 49384 | GA41: 4181249 | GB41: 64145 | GC41: 4245394
B42: Town of Schaghticoke | C42: =C135 -> 380375200000 | D42: Town of Schaghticoke | E42: Rensselaer | F42: 12/31 | G42: 7679 | H42: 0 | I42: 49.8 | J42: 581325652 | K42: 4926472 | L42: 1604405 | M42: 0 | N42: 678123 | O42: 0 | P42: 0 | Q42: 8513 | R42: 0 | S42: 0 | T42: 0 | U42: 635835 | V42: 0 | W42: 0 | X42: 52294 | Y42: 0 | Z42: 0 | AA42: 0 | AB42: 5567 | AC42: 0 | AD42: 0 | AE42: 3900 | AF42: 0 | AG42: 0 | AH42: 0 | AI42: 0 | AJ42: 0 | AK42: 14117 | AL42: 314414 | AM42: 71497 | AN42: 0 | AO42: 0 | AP42: 0 | AQ42: 0 | AR42: 0 | AS42: 4345 | AT42: 0 | AU42: 0 | AV42: 0 | AW42: 0 | AX42: 0 | AY42: 0 | AZ42: 0 | BA42: 6448 | BB42: 660 | BC42: 0 | BD42: 48306 | BE42: 0 | BF42: 5443 | BG42: 0 | BH42: 0 | BI42: 0 | BJ42: 0 | BK42: 2920 | BL42: 3456787 | BM42: 43561 | BN42: 137620 | BO42: =BO135 -> 0 | BP42: 0 | BQ42: 0 | BR42: 0 | BS42: 153401 | BT42: 0 | BU42: 0 | BV42: 1870 | BW42: 0 | BX42: 0 | BY42: 0 | BZ42: 0 | CA42: 0 | CB42: 81286 | CC42: 0 | CD42: 0 | CE42: 0 | CF42: 0 | CG42: 0 | CH42: 0 | CI42: 0 | CJ42: 0 | CK42: 0 | CL42: 0 | CM42: 3874525 | CN42: 84700 | CO42: 0 | CP42: 0 | CQ42: 34671 | CR42: 0 | CS42: 3993896 | CT42: 99384 | CU42: 287810 | CV42: 0 | CW42: 0 | CX42: 33802 | CY42: 0 | CZ42: 0 | DA42: 0 | DB42: 0 | DC42: 0 | DD42: 0 | DE42: 0 | DF42: 0 | DG42: 0 | DH42: 4024 | DI42: 95385 | DJ42: 220651 | DK42: 0 | DL42: 0 | DM42: 0 | DN42: 46462 | DO42: 3963 | DP42: 0 | DQ42: 0 | DR42: 0 | DS42: 0 | DT42: 0 | DU42: 942129 | DV42: 0 | DW42: 0 | DX42: 0 | DY42: 0 | DZ42: 0 | EA42: =EA135 -> 207491 | EB42: 30810 | EC42: 0 | ED42: 0 | EE42: 0 | EF42: 0 | EG42: 0 | EH42: 0 | EI42: 0 | EJ42: 0 | EK42: 0 | EL42: 0 | EM42: 0 | EN42: 0 | EO42: 0 | EP42: 0 | EQ42: 0 | ER42: 4000 | ES42: 0 | ET42: 44721 | EU42: 9630 | EV42: 6611 | EW42: 0 | EX42: 900 | EY42: 3000 | EZ42: 0 | FA42: 0 | FB42: 0 | FC42: 397741 | FD42: 0 | FE42: 0 | FF42: 0 | FG42: 112212 | FH42: 0 | FI42: 547484 | FJ42: 0 | FK42: 0 | FL42: 0 | FM42: 109035 | FN42: 0 | FO42: 0 | FP42: 0 | FQ42: 64251 | FR42: 207367 | FS42: 599 | FT42: 0 | FU42: 36267 | FV42: 8525 | FW42: 0 | FX42: 0 | FY42: 355200 | FZ42: 32954 | GA42: 3912408 | GB42: 34671 | GC42: 3947079
B43: Village of Schaghticoke | C43: =C136 -> 380475204460 | D43: Village of Schaghticoke | E43: Rensselaer | F43: 05/31 | G43: 592 | H43: 0 | I43: 0.8 | J43: 36439936 | K43: 0 | L43: 141563 | M43: 0 | N43: 0 | O43: 0 | P43: 0 | Q43: 474 | R43: 0 | S43: 0 | T43: 0 | U43: 41201 | V43: 14194 | W43: 0 | X43: 5513 | Y43: 0 | Z43: 0 | AA43: 0 | AB43: 45 | AC43: 0 | AD43: 0 | AE43: 210 | AF43: 0 | AG43: 0 | AH43: 0 | AI43: 0 | AJ43: 0 | AK43: 25 | AL43: 82502 | AM43: 0 | AN43: 0 | AO43: 0 | AP43: 0 | AQ43: 0 | AR43: 0 | AS43: 0 | AT43: 0 | AU43: 0 | AV43: 0 | AW43: 0 | AX43: 0 | AY43: 0 | AZ43: 0 | BA43: 249 | BB43: 0 | BC43: 15295 | BD43: 0 | BE43: 0 | BF43: 0 | BG43: 0 | BH43: 0 | BI43: 0 | BJ43: 0 | BK43: 122 | BL43: 301392 | BM43: 7746 | BN43: 6454 | BO43: =BO136 -> 0 | BP43: 0 | BQ43: 0 | BR43: 0 | BS43: 0 | BT43: 0 | BU43: 0 | BV43: 210 | BW43: 0 | BX43: 0 | BY43: 0 | BZ43: 0 | CA43: 0 | CB43: 0 | CC43: 0 | CD43: 0 | CE43: 0 | CF43: 0 | CG43: 0 | CH43: 0 | CI43: 0 | CJ43: 0 | CK43: 0 | CL43: 0 | CM43: 315803 | CN43: 0 | CO43: 0 | CP43: 0 | CQ43: 21291 | CR43: 0 | CS43: 337094 | CT43: 46804 | CU43: 35860 | CV43: 0 | CW43: 0 | CX43: 0 | CY43: 0 | CZ43: 0 | DA43: 0 | DB43: 0 | DC43: 0 | DD43: 0 | DE43: 0 | DF43: 0 | DG43: 0 | DH43: 0 | DI43: 8836 | DJ43: 0 | DK43: 0 | DL43: 0 | DM43: 0 | DN43: 0 | DO43: 50 | DP43: 0 | DQ43: 0 | DR43: 0 | DS43: 0 | DT43: 0 | DU43: 55471 | DV43: 0 | DW43: 0 | DX43: 0 | DY43: 0 | DZ43: 0 | EA43: =EA136 -> 0 | EB43: 30866 | EC43: 0 | ED43: 0 | EE43: 0 | EF43: 0 | EG43: 0 | EH43: 0 | EI43: 0 | EJ43: 0 | EK43: 0 | EL43: 0 | EM43: 0 | EN43: 0 | EO43: 0 | EP43: 0 | EQ43: 0 | ER43: 1375 | ES43: 0 | ET43: 6790 | EU43: 4500 | EV43: 335 | EW43: 0 | EX43: 0 | EY43: 0 | EZ43: 2800 | FA43: 0 | FB43: 0 | FC43: 61557 | FD43: 0 | FE43: 0 | FF43: 0 | FG43: 0 | FH43: 0 | FI43: 2434 | FJ43: 0 | FK43: 0 | FL43: 0 | FM43: 0 | FN43: 0 | FO43: 0 | FP43: 0 | FQ43: 5182 | FR43: 0 | FS43: 204 | FT43: 0 | FU43: 12412 | FV43: 1717 | FW43: 0 | FX43: 0 | FY43: 0 | FZ43: 0 | GA43: 277192 | GB43: 21291 | GC43: 298483
B44: Town of Schodack | C44: =C137 -> 380375300000 | D44: Town of Schodack | E44: Rensselaer | F44: 12/31 | G44: 12794 | H44: 0 | I44: 61.9 | J44: 1151932933 | K44: 14669641 | L44: 5800698 | M44: 0 | N44: 0 | O44: 0 | P44: 67956 | Q44: 31383 | R44: 0 | S44: 0 | T44: 0 | U44: 1228256 | V44: 0 | W44: 0 | X44: 77693 | Y44: 0 | Z44: 0 | AA44: 0 | AB44: 20892 | AC44: 0 | AD44: 15216 | AE44: 2130 | AF44: 0 | AG44: 0 | AH44: 0 | AI44: 0 | AJ44: 38830 | AK44: 150792 | AL44: 263315 | AM44: 331051 | AN44: 0 | AO44: 3430 | AP44: 0 | AQ44: 5000 | AR44: 0 | AS44: 2153 | AT44: 0 | AU44: 0 | AV44: 0 | AW44: 0 | AX44: 0 | AY44: 0 | AZ44: 0 | BA44: 105400 | BB44: 40196 | BC44: 42774 | BD44: 198609 | BE44: 0 | BF44: 3169 | BG44: 0 | BH44: 0 | BI44: 0 | BJ44: 0 | BK44: 596087 | BL44: 9025029 | BM44: 69789 | BN44: 357567 | BO44: =BO137 -> 0 | BP44: 0 | BQ44: 8780 | BR44: 0 | BS44: 339345 | BT44: 0 | BU44: 0 | BV44: 3050 | BW44: 0 | BX44: 0 | BY44: 0 | BZ44: 422 | CA44: 0 | CB44: 59722 | CC44: 0 | CD44: 0 | CE44: 215830 | CF44: 0 | CG44: 0 | CH44: 0 | CI44: 0 | CJ44: 420175 | CK44: 0 | CL44: 0 | CM44: 10499709 | CN44: 1161218 | CO44: 341320 | CP44: 0 | CQ44: 956487 | CR44: 0 | CS44: 12958734 | CT44: 233089 | CU44: 825432 | CV44: 0 | CW44: 205446 | CX44: 231339 | CY44: 206 | CZ44: 0 | DA44: 0 | DB44: 0 | DC44: 0 | DD44: 0 | DE44: 0 | DF44: 0 | DG44: 0 | DH44: 998876 | DI44: 174870 | DJ44: 208396 | DK44: 0 | DL44: 0 | DM44: 0 | DN44: 121616 | DO44: 2386 | DP44: 0 | DQ44: 0 | DR44: 0 | DS44: 0 | DT44: 0 | DU44: 1533547 | DV44: 0 | DW44: 0 | DX44: 0 | DY44: 0 | DZ44: 0 | EA44: =EA137 -> 210045 | EB44: 28980 | EC44: 0 | ED44: 0 | EE44: 0 | EF44: 0 | EG44: 0 | EH44: 237753 | EI44: 0 | EJ44: 0 | EK44: 0 | EL44: 0 | EM44: 0 | EN44: 0 | EO44: 6000 | EP44: 0 | EQ44: 0 | ER44: 38255 | ES44: 0 | ET44: 172106 | EU44: 340511 | EV44: 5405 | EW44: 0 | EX44: 17000 | EY44: 7490 | EZ44: 0 | FA44: 0 | FB44: 0 | FC44: 641678 | FD44: 0 | FE44: 0 | FF44: 0 | FG44: 254481 | FH44: 0 | FI44: 155242 | FJ44: 0 | FK44: 0 | FL44: 64965 | FM44: 309341 | FN44: 155355 | FO44: 0 | FP44: 0 | FQ44: 211507 | FR44: 447643 | FS44: 850 | FT44: 0 | FU44: 93407 | FV44: 10571 | FW44: 0 | FX44: 10245 | FY44: 1040814 | FZ44: 405454 | GA44: 9400302 | GB44: 956487 | GC44: 10356789
B45: Village of Castleton-on-Hudson | C45: =C138 -> 380475300790 | D45: Village of Castleton-On-Hudson | E45: Rensselaer | F45: 05/31 | G45: 1473 | H45: 0 | I45: 0.7 | J45: 88145521 | K45: 1978626 | L45: 376582 | M45: 0 | N45: 0 | O45: 0 | P45: 0 | Q45: 4551 | R45: 0 | S45: 0 | T45: 0 | U45: 99047 | V45: 22736 | W45: 0 | X45: 15788 | Y45: 0 | Z45: 0 | AA45: 0 | AB45: 648 | AC45: 0 | AD45: 380 | AE45: 1510 | AF45: 0 | AG45: 0 | AH45: 0 | AI45: 0 | AJ45: 189427 | AK45: 537 | AL45: 283672 | AM45: 471664 | AN45: 0 | AO45: 0 | AP45: 0 | AQ45: 37000 | AR45: 0 | AS45: 0 | AT45: 0 | AU45: 0 | AV45: 0 | AW45: 0 | AX45: 0 | AY45: 17000 | AZ45: 37489 | BA45: 1454 | BB45: 2802 | BC45: 550 | BD45: 7717 | BE45: 0 | BF45: 0 | BG45: 0 | BH45: 0 | BI45: 0 | BJ45: 0 | BK45: 3500 | BL45: 1574054 | BM45: 13422 | BN45: 14247 | BO45: =BO138 -> 0 | BP45: 0 | BQ45: 936 | BR45: 0 | BS45: 56960 | BT45: 0 | BU45: 0 | BV45: 0 | BW45: 0 | BX45: 0 | BY45: 0 | BZ45: 0 | CA45: 0 | CB45: 14255 | CC45: 0 | CD45: 0 | CE45: 0 | CF45: 0 | CG45: 0 | CH45: 0 | CI45: 0 | CJ45: 0 | CK45: 0 | CL45: 0 | CM45: 1673874 | CN45: 73626 | CO45: 22000 | CP45: 0 | CQ45: 0 | CR45: 0 | CS45: 1769500 | CT45: 34359 | CU45: 119216 | CV45: 0 | CW45: 0 | CX45: 3451 | CY45: 0 | CZ45: 0 | DA45: 0 | DB45: 0 | DC45: 0 | DD45: 0 | DE45: 0 | DF45: 1559 | DG45: 0 | DH45: 0 | DI45: 62530 | DJ45: 0 | DK45: 0 | DL45: 0 | DM45: 0 | DN45: 22562 | DO45: 1742 | DP45: 0 | DQ45: 0 | DR45: 0 | DS45: 0 | DT45: 0 | DU45: 186956 | DV45: 0 | DW45: 0 | DX45: 0 | DY45: 0 | DZ45: 0 | EA45: =EA138 -> 18147 | EB45: 48196 | EC45: 0 | ED45: 0 | EE45: 0 | EF45: 0 | EG45: 0 | EH45: 0 | EI45: 0 | EJ45: 0 | EK45: 0 | EL45: 0 | EM45: 0 | EN45: 0 | EO45: 0 | EP45: 0 | EQ45: 0 | ER45: 171187 | ES45: 0 | ET45: 0 | EU45: 0 | EV45: 995 | EW45: 0 | EX45: 0 | EY45: 0 | EZ45: 4444 | FA45: 0 | FB45: 0 | FC45: 245470 | FD45: 0 | FE45: 0 | FF45: 0 | FG45: 200560 | FH45: 11402 | FI45: 110158 | FJ45: 0 | FK45: 0 | FL45: 1139 | FM45: 56156 | FN45: 0 | FO45: 0 | FP45: 0 | FQ45: 38110 | FR45: 37111 | FS45: 1456 | FT45: 0 | FU45: 23662 | FV45: 7500 | FW45: 0 | FX45: 0 | FY45: 133000 | FZ45: 90194 | GA45: 1631262 | GB45: 0 | GC45: 1631262
B46: Town of Stephentown | C46: =C139 -> 380380400000 | D46: Town of Stephentown | E46: Rensselaer | F46: 12/31 | G46: 2903 | H46: 0 | I46: 57.9 | J46: 269927910 | K46: 0 | L46: 658990 | M46: 0 | N46: 0 | O46: 0 | P46: 0 | Q46: 5115 | R46: 0 | S46: 0 | T46: 0 | U46: 304526 | V46: 0 | W46: 0 | X46: 0 | Y46: 0 | Z46: 0 | AA46: 0 | AB46: 2013 | AC46: 0 | AD46: 0 | AE46: 0 | AF46: 0 | AG46: 0 | AH46: 0 | AI46: 0 | AJ46: 0 | AK46: 4120 | AL46: 0 | AM46: 0 | AN46: 0 | AO46: 0 | AP46: 0 | AQ46: 0 | AR46: 0 | AS46: 0 | AT46: 0 | AU46: 0 | AV46: 0 | AW46: 0 | AX46: 0 | AY46: 0 | AZ46: 0 | BA46: 0 | BB46: 69415 | BC46: 0 | BD46: 19583 | BE46: 0 | BF46: 0 | BG46: 0 | BH46: 0 | BI46: 0 | BJ46: 0 | BK46: 22621 | BL46: 1086383 | BM46: 12009 | BN46: 91761 | BO46: =BO139 -> 0 | BP46: 0 | BQ46: 0 | BR46: 0 | BS46: 99988 | BT46: 0 | BU46: 0 | BV46: 398 | BW46: 0 | BX46: 0 | BY46: 0 | BZ46: 0 | CA46: 0 | CB46: 0 | CC46: 0 | CD46: 0 | CE46: 0 | CF46: 0 | CG46: 0 | CH46: 0 | CI46: 0 | CJ46: 0 | CK46: 0 | CL46: 103777 | CM46: 1394316 | CN46: 0 | CO46: 0 | CP46: 0 | CQ46: 0 | CR46: 0 | CS46: 1394316 | CT46: 45651 | CU46: 151160 | CV46: 0 | CW46: 0 | CX46: 48143 | CY46: 0 | CZ46: 0 | DA46: 0 | DB46: 0 | DC46: 0 | DD46: 0 | DE46: 0 | DF46: 0 | DG46: 0 | DH46: 4867 | DI46: 0 | DJ46: 0 | DK46: 0 | DL46: 0 | DM46: 0 | DN46: 27968 | DO46: 760 | DP46: 0 | DQ46: 0 | DR46: 0 | DS46: 0 | DT46: 0 | DU46: 592327 | DV46: 0 | DW46: 0 | DX46: 0 | DY46: 0 | DZ46: 0 | EA46: =EA139 -> 56766 | EB46: 6200 | EC46: 0 | ED46: 0 | EE46: 0 | EF46: 0 | EG46: 0 | EH46: 0 | EI46: 0 | EJ46: 0 | EK46: 0 | EL46: 0 | EM46: 0 | EN46: 49853 | EO46: 1205 | EP46: 0 | EQ46: 0 | ER46: 12198 | ES46: 0 | ET46: 13014 | EU46: 42538 | EV46: 5888 | EW46: 0 | EX46: 1388 | EY46: 0 | EZ46: 0 | FA46: 0 | FB46: 0 | FC46: 0 | FD46: 0 | FE46: 0 | FF46: 0 | FG46: 0 | FH46: 0 | FI46: 97737 | FJ46: 0 | FK46: 0 | FL46: 0 | FM46: 36936 | FN46: 0 | FO46: 0 | FP46: 0 | FQ46: 26892 | FR46: 50381 | FS46: 0 | FT46: 0 | FU46: 12872 | FV46: 0 | FW46: 0 | FX46: 0 | FY46: 0 | FZ46: 0 | GA46: 1284743 | GB46: 0 | GC46: 1284743
B47: City of Troy | C47: =C140 -> 380257000000 | D47: City of Troy | E47: Rensselaer | F47: 12/31 | G47: 50129 | H47: 0 | I47: 10.4 | J47: 1855224587 | K47: 53148061 | L47: 18981254 | M47: 0 | N47: 424 | O47: 0 | P47: 1202668 | Q47: 797364 | R47: 0 | S47: 0 | T47: 0 | U47: 14827491 | V47: 514432 | W47: 0 | X47: 533414 | Y47: 0 | Z47: 0 | AA47: 0 | AB47: 409978 | AC47: 0 | AD47: 186849 | AE47: 2087105 | AF47: 0 | AG47: 672635 | AH47: 0 | AI47: 322617 | AJ47: 1333878 | AK47: 818004 | AL47: 12024460 | AM47: 2825660 | AN47: 0 | AO47: 193304 | AP47: 0 | AQ47: 30195 | AR47: 0 | AS47: 37130 | AT47: 0 | AU47: 0 | AV47: 0 | AW47: 31144 | AX47: 0 | AY47: 0 | AZ47: 0 | BA47: 293598 | BB47: 1340326 | BC47: 257858 | BD47: 1232741 | BE47: 126541 | BF47: 4512 | BG47: 0 | BH47: 0 | BI47: 421126 | BJ47: 0 | BK47: 2139115 | BL47: 63645823 | BM47: 12279463 | BN47: 460778 | BO47: =BO140 -> 191716 | BP47: 0 | BQ47: 142431 | BR47: 0 | BS47: 1420571 | BT47: 0 | BU47: 0 | BV47: 228307 | BW47: 0 | BX47: 0 | BY47: 0 | BZ47: 2926588 | CA47: 0 | CB47: 995417 | CC47: 0 | CD47: 5601389 | CE47: 0 | CF47: 3263250 | CG47: 0 | CH47: 0 | CI47: 0 | CJ47: 443781 | CK47: 0 | CL47: 0 | CM47: 91599514 | CN47: 738648 | CO47: 0 | CP47: 0 | CQ47: 3161453 | CR47: 0 | CS47: 95499615 | CT47: 5898374 | CU47: 3255911 | CV47: 0 | CW47: 0 | CX47: 787298 | CY47: 404373 | CZ47: 0 | DA47: 0 | DB47: 0 | DC47: 0 | DD47: 0 | DE47: 0 | DF47: 0 | DG47: 0 | DH47: 11840385 | DI47: 10954657 | DJ47: 0 | DK47: 0 | DL47: 0 | DM47: 0 | DN47: 537943 | DO47: 135438 | DP47: 0 | DQ47: 0 | DR47: 0 | DS47: 0 | DT47: 0 | DU47: 10741678 | DV47: 0 | DW47: 0 | DX47: 0 | DY47: 0 | DZ47: 0 | EA47: =EA140 -> 0 | EB47: 0 | EC47: 0 | ED47: 0 | EE47: 0 | EF47: 0 | EG47: 0 | EH47: 0 | EI47: 0 | EJ47: 0 | EK47: 0 | EL47: 0 | EM47: 1393506 | EN47: 2882952 | EO47: 0 | EP47: 2055344 | EQ47: 174968 | ER47: 3730436 | ES47: 0 | ET47: 80945 | EU47: 0 | EV47: 5000 | EW47: 0 | EX47: 224212 | EY47: 0 | EZ47: 0 | FA47: 0 | FB47: 0 | FC47: 8843076 | FD47: 0 | FE47: 0 | FF47: 0 | FG47: 2104030 | FH47: 0 | FI47: 2385206 | FJ47: 0 | FK47: 0 | FL47: 0 | FM47: 0 | FN47: 0 | FO47: 0 | FP47: 0 | FQ47: 0 | FR47: 5078070 | FS47: 0 | FT47: 0 | FU47: 0 | FV47: 83453 | FW47: 0 | FX47: 15964180 | FY47: 3814022 | FZ47: 2894624 | GA47: 96270081 | GB47: 3161453 | GC47: 99431534
B48: Saratoga County | C48: =C141 -> 410100000000 | D48: County of Saratoga | E48: Saratoga | F48: 12/31 | G48: 219607 | H48: 0 | I48: 810 | J48: 22106339320 | K48: 71550000 | L48: 49020680 | M48: 0 | N48: 0 | O48: 0 | P48: 1743628 | Q48: 2835696 | R48: 330769 | S48: 0 | T48: 105603865 | U48: 400000 | V48: 0 | W48: 723179 | X48: 0 | Y48: 876194 | Z48: 1201166 | AA48: 0 | AB48: 6723412 | AC48: 0 | AD48: 751022 | AE48: 26015565 | AF48: 0 | AG48: 81810 | AH48: 1206073 | AI48: 0 | AJ48: 0 | AK48: 430698 | AL48: 0 | AM48: 14516203 | AN48: 0 | AO48: 112704 | AP48: 0 | AQ48: 1254118 | AR48: 0 | AS48: 310016 | AT48: 0 | AU48: 611832 | AV48: 0 | AW48: 0 | AX48: 0 | AY48: 3491990 | AZ48: 0 | BA48: 611865 | BB48: 801631 | BC48: 1351735 | BD48: 310883 | BE48: 15758 | BF48: 2158956 | BG48: 0 | BH48: 0 | BI48: 0 | BJ48: 0 | BK48: 1725671 | BL48: 225217119 | BM48: 0 | BN48: 0 | BO48: =BO141 -> 565993 | BP48: 8537315 | BQ48: 1123586 | BR48: 4173656 | BS48: 2515485 | BT48: 5581866 | BU48: 388803 | BV48: 186356 | BW48: 550267 | BX48: 0 | BY48: 0 | BZ48: 163069 | CA48: 0 | CB48: 231372 | CC48: 5282076 | CD48: 326099 | CE48: 12738546 | CF48: 803249 | CG48: 76501 | CH48: 574230 | CI48: 0 | CJ48: 0 | CK48: 0 | CL48: 3308734 | CM48: 272344324 | CN48: 0 | CO48: 0 | CP48: 0 | CQ48: 27263874 | CR48: 0 | CS48: 299608198 | CT48: 14551253 | CU48: 12400425 | CV48: 52661339 | CW48: 492529 | CX48: 499522 | CY48: 140063 | CZ48: 0 | DA48: 0 | DB48: 0 | DC48: 0 | DD48: 0 | DE48: 6253676 | DF48: 10649570 | DG48: 127029 | DH48: 11707957 | DI48: 446069 | DJ48: 0 | DK48: 7857781 | DL48: 0 | DM48: 298966 | DN48: 727078 | DO48: 3378323 | DP48: 2363775 | DQ48: 7964311 | DR48: 0 | DS48: 16915863 | DT48: 0 | DU48: 11945046 | DV48: 248137 | DW48: 78597 | DX48: 519515 | DY48: 0 | DZ48: 0 | EA48: =EA141 -> 2590209 | EB48: 0 | EC48: 652449 | ED48: 6075225 | EE48: 13894057 | EF48: 27104150 | EG48: 2860761 | EH48: 0 | EI48: 515275 | EJ48: 851872 | EK48: 0 | EL48: 50000 | EM48: 0 | EN48: 0 | EO48: 557610 | EP48: 0 | EQ48: 0 | ER48: 0 | ES48: 0 | ET48: 549501 | EU48: 30600 | EV48: 28873 | EW48: 125653 | EX48: 309462 | EY48: 2055740 | EZ48: 1012518 | FA48: 0 | FB48: 1656005 | FC48: 0 | FD48: 0 | FE48: 0 | FF48: 0 | FG48: 8669049 | FH48: 0 | FI48: 0 | FJ48: 0 | FK48: 0 | FL48: 0 | FM48: 0 | FN48: 0 | FO48: 0 | FP48: 0 | FQ48: 0 | FR48: 0 | FS48: 0 | FT48: 0 | FU48: 0 | FV48: 0 | FW48: 0 | FX48: 43247690 | FY48: 4313899 | FZ48: 2891545 | GA48: 282268966 | GB48: 27263874 | GC48: 309532840
B49: Village of Ballston Spa | C49: =C142 -> 410453400340 | D49: Village of Ballston Spa | E49: Saratoga | F49: 05/31 | G49: 5409 | H49: 0 | I49: 1.6 | J49: 327076112 | K49: 465230 | L49: 1149095 | M49: 0 | N49: 0 | O49: 0 | P49: 0 | Q49: 7412 | R49: 0 | S49: 0 | T49: 0 | U49: 919892 | V49: 71089 | W49: 0 | X49: 59696 | Y49: 0 | Z49: 0 | AA49: 0 | AB49: 2095 | AC49: 0 | AD49: 65 | AE49: 5623 | AF49: 0 | AG49: 0 | AH49: 0 | AI49: 0 | AJ49: 43358 | AK49: 10124 | AL49: 673406 | AM49: 168648 | AN49: 0 | AO49: 0 | AP49: 0 | AQ49: 275000 | AR49: 0 | AS49: 0 | AT49: 0 | AU49: 94293 | AV49: 0 | AW49: 0 | AX49: 0 | AY49: 0 | AZ49: 0 | BA49: 364 | BB49: 35441 | BC49: 55686 | BD49: 20802 | BE49: 0 | BF49: 6681 | BG49: 4215 | BH49: 0 | BI49: 300 | BJ49: 6562 | BK49: 31598 | BL49: 3641445 | BM49: 41925 | BN49: 60048 | BO49: =BO142 -> 0 | BP49: 0 | BQ49: 4695 | BR49: 0 | BS49: 71737 | BT49: 0 | BU49: 0 | BV49: 4200 | BW49: 0 | BX49: 0 | BY49: 0 | BZ49: 13640 | CA49: 0 | CB49: 0 | CC49: 0 | CD49: 0 | CE49: 866524 | CF49: 0 | CG49: 0 | CH49: 13798 | CI49: 0 | CJ49: 0 | CK49: 0 | CL49: 0 | CM49: 4718012 | CN49: 102230 | CO49: 0 | CP49: 0 | CQ49: 0 | CR49: 0 | CS49: 4820242 | CT49: 227715 | CU49: 270577 | CV49: 0 | CW49: 0 | CX49: 13172 | CY49: 0 | CZ49: 0 | DA49: 0 | DB49: 0 | DC49: 0 | DD49: 0 | DE49: 0 | DF49: 0 | DG49: 0 | DH49: 700195 | DI49: 165030 | DJ49: 0 | DK49: 0 | DL49: 0 | DM49: 0 | DN49: 49051 | DO49: 8143 | DP49: 0 | DQ49: 0 | DR49: 0 | DS49: 0 | DT49: 0 | DU49: 522511 | DV49: 0 | DW49: 0 | DX49: 0 | DY49: 0 | DZ49: 0 | EA49: =EA142 -> 0 | EB49: 122800 | EC49: 4833 | ED49: 0 | EE49: 0 | EF49: 0 | EG49: 0 | EH49: 1028258 | EI49: 0 | EJ49: 0 | EK49: 0 | EL49: 0 | EM49: 0 | EN49: 612 | EO49: 2500 | EP49: 0 | EQ49: 0 | ER49: 180041 | ES49: 0 | ET49: 0 | EU49: 183294 | EV49: 16483 | EW49: 0 | EX49: 0 | EY49: 0 | EZ49: 17700 | FA49: 0 | FB49: 0 | FC49: 420413 | FD49: 0 | FE49: 0 | FF49: 0 | FG49: 60596 | FH49: 10481 | FI49: 0 | FJ49: 0 | FK49: 0 | FL49: 0 | FM49: 103523 | FN49: 107279 | FO49: 0 | FP49: 0 | FQ49: 125929 | FR49: 376571 | FS49: 0 | FT49: 0 | FU49: 70492 | FV49: 0 | FW49: 0 | FX49: 0 | FY49: 324987 | FZ49: 31418 | GA49: 5144604 | GB49: 0 | GC49: 5144604
B50: Town of Ballston | C50: =C143 -> 410304900000 | D50: Town of Ballston | E50: Saratoga | F50: 12/31 | G50: 9776 | H50: 0 | I50: 29.6 | J50: 900014657 | K50: 3510470 | L50: 1296039 | M50: 0 | N50: 0 | O50: 0 | P50: 0 | Q50: 0 | R50: 0 | S50: 0 | T50: 0 | U50: 2392625 | V50: 0 | W50: 0 | X50: 75602 | Y50: 0 | Z50: 0 | AA50: 0 | AB50: 8591 | AC50: 0 | AD50: 410 | AE50: 1690 | AF50: 0 | AG50: 0 | AH50: 0 | AI50: 0 | AJ50: 18357 | AK50: 63335 | AL50: 556423 | AM50: 0 | AN50: 0 | AO50: 0 | AP50: 0 | AQ50: 0 | AR50: 0 | AS50: 2413 | AT50: 0 | AU50: 46000 | AV50: 0 | AW50: 0 | AX50: 0 | AY50: 31960 | AZ50: 0 | BA50: 1927 | BB50: 15097 | BC50: 32678 | BD50: 152257 | BE50: 0 | BF50: 5354 | BG50: 2142 | BH50: 0 | BI50: 0 | BJ50: 0 | BK50: 51720 | BL50: 4754622 | BM50: 49218 | BN50: 482157 | BO50: =BO143 -> 0 | BP50: 0 | BQ50: 29126 | BR50: 0 | BS50: 70966 | BT50: 0 | BU50: 0 | BV50: 9599 | BW50: 0 | BX50: 0 | BY50: 0 | BZ50: 183950 | CA50: 0 | CB50: 72154 | CC50: 0 | CD50: 0 | CE50: 0 | CF50: 0 | CG50: 0 | CH50: 0 | CI50: 0 | CJ50: 0 | CK50: 0 | CL50: 0 | CM50: 5651792 | CN50: 470000 | CO50: 0 | CP50: 0 | CQ50: 6000 | CR50: 0 | CS50: 6127792 | CT50: 159854 | CU50: 423231 | CV50: 0 | CW50: 0 | CX50: 353738 | CY50: 0 | CZ50: 0 | DA50: 0 | DB50: 0 | DC50: 0 | DD50: 0 | DE50: 0 | DF50: 0 | DG50: 0 | DH50: 0 | DI50: 154288 | DJ50: 211279 | DK50: 0 | DL50: 1269 | DM50: 0 | DN50: 13782 | DO50: 3151 | DP50: 0 | DQ50: 0 | DR50: 0 | DS50: 0 | DT50: 0 | DU50: 1244484 | DV50: 0 | DW50: 0 | DX50: 0 | DY50: 0 | DZ50: 0 | EA50: =EA143 -> 210679 | EB50: 19240 | EC50: 29288 | ED50: 0 | EE50: 0 | EF50: 0 | EG50: 0 | EH50: 0 | EI50: 0 | EJ50: 0 | EK50: 0 | EL50: 0 | EM50: 0 | EN50: 752918 | EO50: 0 | EP50: 0 | EQ50: 0 | ER50: 16795 | ES50: 0 | ET50: 9500 | EU50: 442423 | EV50: 7262 | EW50: 0 | EX50: 1801 | EY50: 16164 | EZ50: 6000 | FA50: 0 | FB50: 0 | FC50: 946958 | FD50: 0 | FE50: 0 | FF50: 0 | FG50: 0 | FH50: 0 | FI50: 1382 | FJ50: 0 | FK50: 12375 | FL50: 0 | FM50: 191910 | FN50: 0 | FO50: 0 | FP50: 0 | FQ50: 94158 | FR50: 370734 | FS50: 484 | FT50: 0 | FU50: 0 | FV50: 12002 | FW50: 0 | FX50: 0 | FY50: 1005080 | FZ50: 131129 | GA50: 6843354 | GB50: 6000 | GC50: 6849354
B51: Town of Charlton | C51: =C144 -> 410314700000 | D51: Town of Charlton | E51: Saratoga | F51: 12/31 | G51: 4133 | H51: 0 | I51: 32.8 | J51: 432037422 | K51: 1482700 | L51: 137698 | M51: 0 | N51: 0 | O51: 0 | P51: 0 | Q51: 2418 | R51: 0 | S51: 0 | T51: 0 | U51: 1116721 | V51: 0 | W51: 0 | X51: 33528 | Y51: 0 | Z51: 0 | AA51: 0 | AB51: 6326 | AC51: 0 | AD51: 17170 | AE51: 0 | AF51: 0 | AG51: 0 | AH51: 0 | AI51: 0 | AJ51: 0 | AK51: 45743 | AL51: 107077 | AM51: 0 | AN51: 0 | AO51: 0 | AP51: 0 | AQ51: 0 | AR51: 0 | AS51: 360 | AT51: 0 | AU51: 0 | AV51: 0 | AW51: 0 | AX51: 0 | AY51: 0 | AZ51: 0 | BA51: 2138 | BB51: 3595 | BC51: 0 | BD51: 55090 | BE51: 0 | BF51: 0 | BG51: 0 | BH51: 0 | BI51: 8301 | BJ51: 0 | BK51: 28131 | BL51: 1564296 | BM51: 32695 | BN51: 161118 | BO51: =BO144 -> 1741 | BP51: 0 | BQ51: 0 | BR51: 0 | BS51: 89628 | BT51: 0 | BU51: 0 | BV51: 0 | BW51: 0 | BX51: 0 | BY51: 0 | BZ51: 0 | CA51: 0 | CB51: 74679 | CC51: 0 | CD51: 0 | CE51: 0 | CF51: 0 | CG51: 0 | CH51: 0 | CI51: 0 | CJ51: 0 | CK51: 0 | CL51: 0 | CM51: 1924157 | CN51: 0 | CO51: 100000 | CP51: 0 | CQ51: 70265 | CR51: 0 | CS51: 2094422 | CT51: 223098 | CU51: 273827 | CV51: 0 | CW51: 0 | CX51: 13716 | CY51: 0 | CZ51: 0 | DA51: 0 | DB51: 0 | DC51: 0 | DD51: 0 | DE51: 0 | DF51: 0 | DG51: 0 | DH51: 92016 | DI51: 0 | DJ51: 34854 | DK51: 0 | DL51: 0 | DM51: 0 | DN51: 6933 | DO51: 881 | DP51: 0 | DQ51: 0 | DR51: 0 | DS51: 0 | DT51: 0 | DU51: 573692 | DV51: 0 | DW51: 0 | DX51: 0 | DY51: 0 | DZ51: 0 | EA51: =EA144 -> 45431 | EB51: 0 | EC51: 0 | ED51: 0 | EE51: 0 | EF51: 0 | EG51: 0 | EH51: 0 | EI51: 0 | EJ51: 0 | EK51: 0 | EL51: 0 | EM51: 0 | EN51: 0 | EO51: 0 | EP51: 0 | EQ51: 0 | ER51: 1879 | ES51: 0 | ET51: 3000 | EU51: 48250 | EV51: 20229 | EW51: 0 | EX51: 4218 | EY51: 3367 | EZ51: 0 | FA51: 0 | FB51: 0 | FC51: 205810 | FD51: 0 | FE51: 0 | FF51: 0 | FG51: 0 | FH51: 0 | FI51: 6794 | FJ51: 0 | FK51: 3396 | FL51: 0 | FM51: 81034 | FN51: 0 | FO51: 0 | FP51: 0 | FQ51: 41995 | FR51: 109975 | FS51: 291 | FT51: 0 | FU51: 0 | FV51: 3236 | FW51: 0 | FX51: 0 | FY51: 185450 | FZ51: 57204 | GA51: 2040576 | GB51: 70265 | GC51: 2110841
B52: Town of Clifton Park | C52: =C145 -> 410317400000 | D52: Town of Clifton Park | E52: Saratoga | F52: 12/31 | G52: 36705 | H52: 0 | I52: 48.2 | J52: 3924510250 | K52: 10888027 | L52: 3217919 | M52: 0 | N52: 0 | O52: 0 | P52: 150976 | Q52: 27000 | R52: 0 | S52: 0 | T52: 0 | U52: 10965830 | V52: 0 | W52: 0 | X52: 0 | Y52: 0 | Z52: 0 | AA52: 0 | AB52: 970398 | AC52: 0 | AD52: 0 | AE52: 0 | AF52: 0 | AG52: 0 | AH52: 0 | AI52: 0 | AJ52: 1333429 | AK52: 505601 | AL52: 18000 | AM52: 405033 | AN52: 0 | AO52: 0 | AP52: 0 | AQ52: 0 | AR52: 0 | AS52: 0 | AT52: 0 | AU52: 0 | AV52: 0 | AW52: 0 | AX52: 683974 | AY52: 12078 | AZ52: 107336 | BA52: 26895 | BB52: 533779 | BC52: 354790 | BD52: 588260 | BE52: 0 | BF52: 3775 | BG52: 0 | BH52: 0 | BI52: 0 | BJ52: 0 | BK52: 331204 | BL52: 20236278 | BM52: 98088 | BN52: 1631421 | BO52: =BO145 -> 0 | BP52: 0 | BQ52: 38365 | BR52: 0 | BS52: 556551 | BT52: 0 | BU52: 0 | BV52: 0 | BW52: 0 | BX52: 0 | BY52: 0 | BZ52: 42530 | CA52: 0 | CB52: 115095 | CC52: 0 | CD52: 0 | CE52: 270119 | CF52: 0 | CG52: 0 | CH52: 0 | CI52: 0 | CJ52: 0 | CK52: 0 | CL52: 68294 | CM52: 23056741 | CN52: 0 | CO52: 0 | CP52: 0 | CQ52: 3978615 | CR52: 0 | CS52: 27035356 | CT52: 582661 | CU52: 1642440 | CV52: 0 | CW52: 0 | CX52: 423370 | CY52: 0 | CZ52: 0 | DA52: 0 | DB52: 0 | DC52: 0 | DD52: 0 | DE52: 0 | DF52: 0 | DG52: 56596 | DH52: 995179 | DI52: 350661 | DJ52: 1894604 | DK52: 0 | DL52: 69157 | DM52: 0 | DN52: 807523 | DO52: 11720 | DP52: 0 | DQ52: 0 | DR52: 0 | DS52: 0 | DT52: 0 | DU52: 3919263 | DV52: 0 | DW52: 0 | DX52: 0 | DY52: 0 | DZ52: 0 | EA52: =EA145 -> 170332 | EB52: 239985 | EC52: 0 | ED52: 0 | EE52: 0 | EF52: 0 | EG52: 0 | EH52: 301279 | EI52: 0 | EJ52: 0 | EK52: 0 | EL52: 0 | EM52: 0 | EN52: 0 | EO52: 0 | EP52: 0 | EQ52: 800 | ER52: 2234429 | ES52: 0 | ET52: 831848 | EU52: 0 | EV52: 117240 | EW52: 0 | EX52: 1000 | EY52: 274250 | EZ52: 19968 | FA52: 0 | FB52: 138278 | FC52: 10365 | FD52: 0 | FE52: 0 | FF52: 0 | FG52: 1116285 | FH52: 0 | FI52: 629801 | FJ52: 0 | FK52: 54406 | FL52: 0 | FM52: 902271 | FN52: 0 | FO52: 0 | FP52: 0 | FQ52: 512424 | FR52: 1995214 | FS52: 9249 | FT52: 19610 | FU52: 102335 | FV52: 37509 | FW52: 0 | FX52: 0 | FY52: 667289 | FZ52: 471891 | GA52: 21611233 | GB52: 3978615 | GC52: 25589848
B53: Town of Corinth | C53: =C146 -> 410320000000 | D53: Town of Corinth | E53: Saratoga | F53: 12/31 | G53: 6531 | H53: 0 | I53: 56.8 | J53: 538874150 | K53: 120000 | L53: 1747678 | M53: 0 | N53: 0 | O53: 0 | P53: 401798 | Q53: 5617 | R53: 0 | S53: 0 | T53: 0 | U53: 847166 | V53: 0 | W53: 0 | X53: 51662 | Y53: 0 | Z53: 0 | AA53: 0 | AB53: 6006 | AC53: 0 | AD53: 290 | AE53: 224285 | AF53: 0 | AG53: 0 | AH53: 0 | AI53: 0 | AJ53: 0 | AK53: 9554 | AL53: 24440 | AM53: 179107 | AN53: 0 | AO53: 0 | AP53: 0 | AQ53: 0 | AR53: 25000 | AS53: 0 | AT53: 0 | AU53: 0 | AV53: 0 | AW53: 0 | AX53: 0 | AY53: 76362 | AZ53: 0 | BA53: 25010 | BB53: 0 | BC53: 7200 | BD53: 36040 | BE53: 0 | BF53: 0 | BG53: 0 | BH53: 0 | BI53: 2955 | BJ53: 0 | BK53: 18429 | BL53: 3688598 | BM53: 22062 | BN53: 59336 | BO53: =BO146 -> 0 | BP53: 0 | BQ53: 0 | BR53: 0 | BS53: 76762 | BT53: 0 | BU53: 0 | BV53: 29311 | BW53: 8551 | BX53: 0 | BY53: 0 | BZ53: 0 | CA53: 0 | CB53: 58625 | CC53: 0 | CD53: 0 | CE53: 0 | CF53: 189766 | CG53: 0 | CH53: 0 | CI53: 0 | CJ53: 0 | CK53: 0 | CL53: 0 | CM53: 4133011 | CN53: 120000 | CO53: 0 | CP53: 0 | CQ53: 0 | CR53: 0 | CS53: 4253011 | CT53: 171240 | CU53: 395414 | CV53: 0 | CW53: 0 | CX53: 26568 | CY53: 13150 | CZ53: 0 | DA53: 0 | DB53: 0 | DC53: 0 | DD53: 0 | DE53: 0 | DF53: 0 | DG53: 11503 | DH53: 3837 | DI53: 274737 | DJ53: 206829 | DK53: 0 | DL53: 0 | DM53: 0 | DN53: 95310 | DO53: 1595 | DP53: 0 | DQ53: 0 | DR53: 0 | DS53: 15289 | DT53: 341254 | DU53: 1005870 | DV53: 0 | DW53: 0 | DX53: 0 | DY53: 0 | DZ53: 0 | EA53: =EA146 -> 124498 | EB53: 8573 | EC53: 0 | ED53: 0 | EE53: 0 | EF53: 0 | EG53: 0 | EH53: 0 | EI53: 0 | EJ53: 0 | EK53: 0 | EL53: 0 | EM53: 26500 | EN53: 164880 | EO53: 0 | EP53: 0 | EQ53: 13418 | ER53: 4348 | ES53: 0 | ET53: 42759 | EU53: 14500 | EV53: 34561 | EW53: 0 | EX53: 42561 | EY53: 71603 | EZ53: 0 | FA53: 0 | FB53: 0 | FC53: 28807 | FD53: 0 | FE53: 0 | FF53: 0 | FG53: 0 | FH53: 0 | FI53: 252021 | FJ53: 0 | FK53: 0 | FL53: 7500 | FM53: 186760 | FN53: 0 | FO53: 0 | FP53: 0 | FQ53: 90601 | FR53: 176467 | FS53: 957 | FT53: 0 | FU53: 0 | FV53: 530 | FW53: 0 | FX53: 10439 | FY53: 0 | FZ53: 0 | GA53: 3864877 | GB53: 0 | GC53: 3864877
B54: Village of Corinth | C54: =C147 -> 410420001150 | D54: Village of Corinth | E54: Saratoga | F54: 05/31 | G54: 2559 | H54: 0 | I54: 1.1 | J54: 240578388 | K54: 5767231 | L54: 1478510 | M54: 0 | N54: 0 | O54: 0 | P54: 245592 | Q54: 8071 | R54: 0 | S54: 0 | T54: 0 | U54: 644613 | V54: 90166 | W54: 0 | X54: 0 | Y54: 0 | Z54: 0 | AA54: 0 | AB54: 13987 | AC54: 0 | AD54: 0 | AE54: 0 | AF54: 0 | AG54: 0 | AH54: 0 | AI54: 16985 | AJ54: 0 | AK54: 5120 | AL54: 396863 | AM54: 342176 | AN54: 0 | AO54: 0 | AP54: 0 | AQ54: 274737 | AR54: 0 | AS54: 0 | AT54: 0 | AU54: 0 | AV54: 0 | AW54: 0 | AX54: 0 | AY54: 0 | AZ54: 0 | BA54: 11151 | BB54: 7020 | BC54: 8700 | BD54: 220 | BE54: 0 | BF54: 8277 | BG54: 0 | BH54: 0 | BI54: 300 | BJ54: 0 | BK54: 1733 | BL54: 3554223 | BM54: 22614 | BN54: 23536 | BO54: =BO147 -> 0 | BP54: 0 | BQ54: 0 | BR54: 0 | BS54: 84205 | BT54: 0 | BU54: 0 | BV54: 974 | BW54: 4344 | BX54: 0 | BY54: 0 | BZ54: 43200 | CA54: 0 | CB54: 0 | CC54: 0 | CD54: 0 | CE54: 569349 | CF54: 136628 | CG54: 0 | CH54: 0 | CI54: 0 | CJ54: 0 | CK54: 0 | CL54: 0 | CM54: 4439073 | CN54: 315000 | CO54: 0 | CP54: 0 | CQ54: 40000 | CR54: 0 | CS54: 4794073 | CT54: 125005 | CU54: 153830 | CV54: 0 | CW54: 0 | CX54: 28650 | CY54: 9089 | CZ54: 0 | DA54: 0 | DB54: 0 | DC54: 0 | DD54: 0 | DE54: 0 | DF54: 0 | DG54: 480 | DH54: 315506 | DI54: 227102 | DJ54: 0 | DK54: 0 | DL54: 2265 | DM54: 0 | DN54: 17639 | DO54: 0 | DP54: 0 | DQ54: 0 | DR54: 0 | DS54: 0 | DT54: 0 | DU54: 691997 | DV54: 0 | DW54: 0 | DX54: 0 | DY54: 0 | DZ54: 0 | EA54: =EA147 -> 0 | EB54: 59085 | EC54: 0 | ED54: 0 | EE54: 0 | EF54: 0 | EG54: 0 | EH54: 489627 | EI54: 0 | EJ54: 0 | EK54: 0 | EL54: 0 | EM54: 112492 | EN54: 150716 | EO54: 0 | EP54: 0 | EQ54: 1055 | ER54: 18777 | ES54: 0 | ET54: 15239 | EU54: 13500 | EV54: 11086 | EW54: 0 | EX54: 0 | EY54: 4715 | EZ54: 3998 | FA54: 0 | FB54: 0 | FC54: 166805 | FD54: 0 | FE54: 0 | FF54: 0 | FG54: 292273 | FH54: 0 | FI54: 131755 | FJ54: 0 | FK54: 0 | FL54: 0 | FM54: 87964 | FN54: 0 | FO54: 0 | FP54: 23748 | FQ54: 50536 | FR54: 245454 | FS54: 462 | FT54: 0 | FU54: 0 | FV54: 4264 | FW54: 0 | FX54: 0 | FY54: 543494 | FZ54: 277144 | GA54: 4275754 | GB54: 40000 | GC54: 4315754
B55: Town of Day | C55: =C148 -> 410322000000 | D55: Town of Day | E55: Saratoga | F55: 12/31 | G55: 856 | H55: 0 | I55: 64.1 | J55: 305747599 | K55: 0 | L55: 470543 | M55: 0 | N55: 0 | O55: 0 | P55: 35298 | Q55: 2421 | R55: 0 | S55: 0 | T55: 0 | U55: 830828 | V55: 0 | W55: 0 | X55: 0 | Y55: 0 | Z55: 0 | AA55: 0 | AB55: 1397 | AC55: 0 | AD55: 5539 | AE55: 0 | AF55: 0 | AG55: 0 | AH55: 0 | AI55: 0 | AJ55: 0 | AK55: 400 | AL55: 0 | AM55: 1970 | AN55: 0 | AO55: 0 | AP55: 0 | AQ55: 0 | AR55: 0 | AS55: 0 | AT55: 0 | AU55: 0 | AV55: 0 | AW55: 0 | AX55: 0 | AY55: 0 | AZ55: 0 | BA55: 1861 | BB55: 577 | BC55: 0 | BD55: 3457 | BE55: 0 | BF55: 0 | BG55: 0 | BH55: 0 | BI55: 0 | BJ55: 0 | BK55: 43 | BL55: 1354334 | BM55: 0 | BN55: 35998 | BO55: =BO148 -> 0 | BP55: 0 | BQ55: 0 | BR55: 0 | BS55: 62204 | BT55: 0 | BU55: 0 | BV55: 1300 | BW55: 0 | BX55: 0 | BY55: 0 | BZ55: 70746 | CA55: 0 | CB55: 0 | CC55: 0 | CD55: 0 | CE55: 0 | CF55: 0 | CG55: 0 | CH55: 0 | CI55: 0 | CJ55: 0 | CK55: 0 | CL55: 0 | CM55: 1524582 | CN55: 0 | CO55: 0 | CP55: 0 | CQ55: 0 | CR55: 0 | CS55: 1524582 | CT55: 81994 | CU55: 167696 | CV55: 0 | CW55: 0 | CX55: 12034 | CY55: 0 | CZ55: 0 | DA55: 0 | DB55: 0 | DC55: 0 | DD55: 0 | DE55: 0 | DF55: 0 | DG55: 0 | DH55: 1042 | DI55: 46507 | DJ55: 25115 | DK55: 0 | DL55: 0 | DM55: 0 | DN55: 42479 | DO55: 775 | DP55: 0 | DQ55: 0 | DR55: 0 | DS55: 0 | DT55: 0 | DU55: 690778 | DV55: 0 | DW55: 0 | DX55: 0 | DY55: 0 | DZ55: 0 | EA55: =EA148 -> 42831 | EB55: 5420 | EC55: 0 | ED55: 0 | EE55: 0 | EF55: 0 | EG55: 0 | EH55: 0 | EI55: 0 | EJ55: 0 | EK55: 0 | EL55: 0 | EM55: 0 | EN55: 0 | EO55: 0 | EP55: 0 | EQ55: 0 | ER55: 500 | ES55: 0 | ET55: 5413 | EU55: 0 | EV55: 10252 | EW55: 0 | EX55: 259 | EY55: 790 | EZ55: 534 | FA55: 0 | FB55: 0 | FC55: 0 | FD55: 0 | FE55: 0 | FF55: 0 | FG55: 0 | FH55: 0 | FI55: 95518 | FJ55: 0 | FK55: 0 | FL55: 0 | FM55: 73697 | FN55: 0 | FO55: 0 | FP55: 0 | FQ55: 44680 | FR55: 112303 | FS55: 252 | FT55: 0 | FU55: 0 | FV55: 1167 | FW55: 0 | FX55: 0 | FY55: 0 | FZ55: 0 | GA55: 1462036 | GB55: 0 | GC55: 1462036
B56: Town of Edinburg | C56: =C149 -> 410325500000 | D56: Town of Edinburg | E56: Saratoga | F56: 12/31 | G56: 1214 | H56: 0 | I56: 60.2 | J56: 362584892 | K56: 0 | L56: 297539 | M56: 0 | N56: 0 | O56: 0 | P56: 4065 | Q56: 2079 | R56: 0 | S56: 0 | T56: 0 | U56: 960034 | V56: 0 | W56: 0 | X56: 0 | Y56: 0 | Z56: 0 | AA56: 0 | AB56: 2317 | AC56: 0 | AD56: 0 | AE56: 0 | AF56: 0 | AG56: 0 | AH56: 0 | AI56: 0 | AJ56: 0 | AK56: 17765 | AL56: 0 | AM56: 0 | AN56: 0 | AO56: 0 | AP56: 0 | AQ56: 0 | AR56: 0 | AS56: 0 | AT56: 0 | AU56: 0 | AV56: 0 | AW56: 0 | AX56: 0 | AY56: 0 | AZ56: 0 | BA56: 1023 | BB56: 9211 | BC56: 0 | BD56: 4635 | BE56: 0 | BF56: 1904 | BG56: 0 | BH56: 0 | BI56: 0 | BJ56: 0 | BK56: 2155 | BL56: 1302725 | BM56: 4963 | BN56: 43600 | BO56: =BO149 -> 0 | BP56: 0 | BQ56: 0 | BR56: 0 | BS56: 65314 | BT56: 0 | BU56: 0 | BV56: 1250 | BW56: 0 | BX56: 0 | BY56: 0 | BZ56: 0 | CA56: 0 | CB56: 0 | CC56: 0 | CD56: 0 | CE56: 0 | CF56: 0 | CG56: 0 | CH56: 0 | CI56: 0 | CJ56: 0 | CK56: 0 | CL56: 0 | CM56: 1417852 | CN56: 0 | CO56: 0 | CP56: 0 | CQ56: 0 | CR56: 0 | CS56: 1417852 | CT56: 98303 | CU56: 183984 | CV56: 0 | CW56: 0 | CX56: 9919 | CY56: 0 | CZ56: 0 | DA56: 0 | DB56: 0 | DC56: 0 | DD56: 0 | DE56: 0 | DF56: 0 | DG56: 0 | DH56: 452 | DI56: 87822 | DJ56: 0 | DK56: 0 | DL56: 0 | DM56: 0 | DN56: 21995 | DO56: 9392 | DP56: 0 | DQ56: 0 | DR56: 0 | DS56: 0 | DT56: 0 | DU56: 436943 | DV56: 0 | DW56: 0 | DX56: 0 | DY56: 0 | DZ56: 0 | EA56: =EA149 -> 106750 | EB56: 1569 | EC56: 0 | ED56: 0 | EE56: 0 | EF56: 0 | EG56: 0 | EH56: 0 | EI56: 0 | EJ56: 0 | EK56: 0 | EL56: 0 | EM56: 0 | EN56: 0 | EO56: 2243 | EP56: 0 | EQ56: 0 | ER56: 826 | ES56: 0 | ET56: 5730 | EU56: 0 | EV56: 3265 | EW56: 0 | EX56: 12329 | EY56: 374 | EZ56: 0 | FA56: 0 | FB56: 500 | FC56: 0 | FD56: 0 | FE56: 0 | FF56: 0 | FG56: 0 | FH56: 0 | FI56: 318039 | FJ56: 0 | FK56: 0 | FL56: 0 | FM56: 68783 | FN56: 0 | FO56: 0 | FP56: 0 | FQ56: 38890 | FR56: 57594 | FS56: 474 | FT56: 0 | FU56: 0 | FV56: 1439 | FW56: 0 | FX56: 0 | FY56: 0 | FZ56: 0 | GA56: 1467614 | GB56: 0 | GC56: 1467614
B57: Town of Galway | C57: =C150 -> 410331400000 | D57: Town of Galway | E57: Saratoga | F57: 12/31 | G57: 3545 | H57: 0 | I57: 43.8 | J57: 408154891 | K57: 420000 | L57: 564000 | M57: 0 | N57: 0 | O57: 0 | P57: 0 | Q57: 3308 | R57: 0 | S57: 0 | T57: 0 | U57: 1098846 | V57: 0 | W57: 0 | X57: 49911 | Y57: 0 | Z57: 0 | AA57: 0 | AB57: 3883 | AC57: 0 | AD57: 4270 | AE57: 0 | AF57: 0 | AG57: 0 | AH57: 0 | AI57: 0 | AJ57: 0 | AK57: 1121 | AL57: 0 | AM57: 0 | AN57: 0 | AO57: 0 | AP57: 0 | AQ57: 0 | AR57: 0 | AS57: 0 | AT57: 0 | AU57: 0 | AV57: 0 | AW57: 0 | AX57: 0 | AY57: 0 | AZ57: 0 | BA57: 40262 | BB57: 6400 | BC57: 0 | BD57: 24880 | BE57: 0 | BF57: 0 | BG57: 0 | BH57: 0 | BI57: 0 | BJ57: 0 | BK57: 0 | BL57: 1756881 | BM57: 20144 | BN57: 104217 | BO57: =BO150 -> 0 | BP57: 0 | BQ57: 0 | BR57: 0 | BS57: 109104 | BT57: 0 | BU57: 0 | BV57: 0 | BW57: 0 | BX57: 0 | BY57: 0 | BZ57: 0 | CA57: 0 | CB57: 100117 | CC57: 0 | CD57: 0 | CE57: 0 | CF57: 0 | CG57: 0 | CH57: 0 | CI57: 0 | CJ57: 0 | CK57: 0 | CL57: 0 | CM57: 2090464 | CN57: 0 | CO57: 0 | CP57: 0 | CQ57: 0 | CR57: 0 | CS57: 2130464 | CT57: 89424 | CU57: 172147 | CV57: 0 | CW57: 0 | CX57: 16137 | CY57: 0 | CZ57: 0 | DA57: 0 | DB57: 0 | DC57: 0 | DD57: 0 | DE57: 0 | DF57: 0 | DG57: 0 | DH57: 9707 | DI57: 237500 | DJ57: 64500 | DK57: 0 | DL57: 0 | DM57: 0 | DN57: 30923 | DO57: 1250 | DP57: 0 | DQ57: 0 | DR57: 0 | DS57: 0 | DT57: 0 | DU57: 896945 | DV57: 0 | DW57: 0 | DX57: 0 | DY57: 0 | DZ57: 0 | EA57: =EA150 -> 130055 | EB57: 1146 | EC57: 0 | ED57: 4020 | EE57: 0 | EF57: 0 | EG57: 0 | EH57: 0 | EI57: 0 | EJ57: 0 | EK57: 0 | EL57: 0 | EM57: 0 | EN57: 0 | EO57: 0 | EP57: 0 | EQ57: 0 | ER57: 0 | ES57: 0 | ET57: 22092 | EU57: 0 | EV57: 3550 | EW57: 35517 | EX57: 0 | EY57: 8559 | EZ57: 0 | FA57: 0 | FB57: 0 | FC57: 0 | FD57: 0 | FE57: 0 | FF57: 0 | FG57: 0 | FH57: 0 | FI57: 0 | FJ57: 0 | FK57: 0 | FL57: 0 | FM57: 79147 | FN57: 0 | FO57: 0 | FP57: 0 | FQ57: 44694 | FR57: 47825 | FS57: 0 | FT57: 0 | FU57: 0 | FV57: 891 | FW57: 0 | FX57: 0 | FY57: 106000 | FZ57: 25233 | GA57: 2027264 | GB57: 0 | GC57: 2027264
B58: Village of Galway | C58: =C151 -> 410431401900 | D58: Village of Galway | E58: Saratoga | F58: 05/31 | G58: 200 | H58: 0 | I58: 0.3 | J58: 14295447 | K58: 0 | L58: 0 | M58: 0 | N58: 0 | O58: 0 | P58: 0 | Q58: 0 | R58: 0 | S58: 0 | T58: 0 | U58: 36046 | V58: 7523 | W58: 0 | X58: 0 | Y58: 0 | Z58: 0 | AA58: 0 | AB58: 0 | AC58: 0 | AD58: 0 | AE58: 0 | AF58: 0 | AG58: 0 | AH58: 0 | AI58: 0 | AJ58: 250 | AK58: 0 | AL58: 0 | AM58: 0 | AN58: 0 | AO58: 0 | AP58: 0 | AQ58: 0 | AR58: 0 | AS58: 0 | AT58: 0 | AU58: 0 | AV58: 0 | AW58: 0 | AX58: 0 | AY58: 0 | AZ58: 0 | BA58: 416 | BB58: 0 | BC58: 0 | BD58: 11025 | BE58: 0 | BF58: 0 | BG58: 0 | BH58: 0 | BI58: 0 | BJ58: 0 | BK58: 0 | BL58: 55260 | BM58: 3236 | BN58: 1614 | BO58: =BO151 -> 0 | BP58: 0 | BQ58: 0 | BR58: 0 | BS58: 0 | BT58: 0 | BU58: 0 | BV58: 113 | BW58: 0 | BX58: 0 | BY58: 0 | BZ58: 0 | CA58: 0 | CB58: 0 | CC58: 0 | CD58: 0 | CE58: 0 | CF58: 0 | CG58: 0 | CH58: 0 | CI58: 0 | CJ58: 0 | CK58: 0 | CL58: 0 | CM58: 60222 | CN58: 0 | CO58: 0 | CP58: 0 | CQ58: 0 | CR58: 0 | CS58: 60222 | CT58: 8361 | CU58: 17276 | CV58: 0 | CW58: 0 | CX58: 1669 | CY58: 0 | CZ58: 0 | DA58: 0 | DB58: 0 | DC58: 0 | DD58: 0 | DE58: 0 | DF58: 0 | DG58: 0 | DH58: 11031 | DI58: 9560 | DJ58: 2950 | DK58: 0 | DL58: 0 | DM58: 0 | DN58: 0 | DO58: 0 | DP58: 0 | DQ58: 0 | DR58: 0 | DS58: 0 | DT58: 0 | DU58: 0 | DV58: 0 | DW58: 0 | DX58: 0 | DY58: 0 | DZ58: 0 | EA58: =EA151 -> 0 | EB58: 2775 | EC58: 0 | ED58: 0 | EE58: 0 | EF58: 0 | EG58: 0 | EH58: 0 | EI58: 0 | EJ58: 0 | EK58: 0 | EL58: 0 | EM58: 0 | EN58: 0 | EO58: 0 | EP58: 0 | EQ58: 0 | ER58: 2740 | ES58: 0 | ET58: 225 | EU58: 0 | EV58: 0 | EW58: 0 | EX58: 0 | EY58: 0 | EZ58: 632 | FA58: 0 | FB58: 750 | FC58: 0 | FD58: 0 | FE58: 0 | FF58: 0 | FG58: 0 | FH58: 0 | FI58: 0 | FJ58: 0 | FK58: 0 | FL58: 0 | FM58: 0 | FN58: 515 | FO58: 0 | FP58: 0 | FQ58: 1958 | FR58: 0 | FS58: 0 | FT58: 0 | FU58: 0 | FV58: 0 | FW58: 0 | FX58: 0 | FY58: 0 | FZ58: 0 | GA58: 60442 | GB58: 0 | GC58: 60442
B59: Town of Greenfield | C59: =C152 -> 410334400000 | D59: Town of Greenfield | E59: Saratoga | F59: 12/31 | G59: 7775 | H59: 0 | I59: 67.4 | J59: 749602234 | K59: 0 | L59: 1010060 | M59: 0 | N59: 0 | O59: 0 | P59: 0 | Q59: 5726 | R59: 0 | S59: 0 | T59: 0 | U59: 2084473 | V59: 0 | W59: 0 | X59: 63885 | Y59: 0 | Z59: 0 | AA59: 0 | AB59: 15866 | AC59: 0 | AD59: 150 | AE59: 0 | AF59: 0 | AG59: 0 | AH59: 0 | AI59: 39727 | AJ59: 547497 | AK59: 49441 | AL59: 0 | AM59: 0 | AN59: 0 | AO59: 0 | AP59: 0 | AQ59: 0 | AR59: 0 | AS59: 0 | AT59: 0 | AU59: 0 | AV59: 0 | AW59: 0 | AX59: 0 | AY59: 0 | AZ59: 0 | BA59: 36822 | BB59: 38911 | BC59: 8757 | BD59: 51193 | BE59: 0 | BF59: 3843 | BG59: 0 | BH59: 0 | BI59: 0 | BJ59: 0 | BK59: 50705 | BL59: 4007054 | BM59: 23312 | BN59: 224391 | BO59: =BO152 -> 0 | BP59: 0 | BQ59: 0 | BR59: 0 | BS59: 165117 | BT59: 0 | BU59: 0 | BV59: 3098 | BW59: 0 | BX59: 0 | BY59: 0 | BZ59: 0 | CA59: 0 | CB59: 0 | CC59: 0 | CD59: 0 | CE59: 0 | CF59: 0 | CG59: 0 | CH59: 0 | CI59: 0 | CJ59: 0 | CK59: 0 | CL59: 0 | CM59: 4422972 | CN59: 0 | CO59: 0 | CP59: 0 | CQ59: 0 | CR59: 0 | CS59: 4422972 | CT59: 136470 | CU59: 411939 | CV59: 0 | CW59: 0 | CX59: 22027 | CY59: 0 | CZ59: 0 | DA59: 0 | DB59: 0 | DC59: 0 | DD59: 0 | DE59: 0 | DF59: 0 | DG59: 0 | DH59: 12639 | DI59: 0 | DJ59: 33461 | DK59: 0 | DL59: 0 | DM59: 0 | DN59: 16920 | DO59: 5101 | DP59: 0 | DQ59: 0 | DR59: 0 | DS59: 0 | DT59: 0 | DU59: 1962272 | DV59: 0 | DW59: 0 | DX59: 0 | DY59: 0 | DZ59: 0 | EA59: =EA152 -> 349102 | EB59: 18637 | EC59: 0 | ED59: 0 | EE59: 0 | EF59: 0 | EG59: 0 | EH59: 0 | EI59: 0 | EJ59: 0 | EK59: 0 | EL59: 0 | EM59: 4800 | EN59: 134230 | EO59: 1787 | EP59: 0 | EQ59: 0 | ER59: 576415 | ES59: 0 | ET59: 61752 | EU59: 0 | EV59: 6981 | EW59: 0 | EX59: 84663 | EY59: 17887 | EZ59: 0 | FA59: 0 | FB59: 0 | FC59: 0 | FD59: 0 | FE59: 0 | FF59: 0 | FG59: 0 | FH59: 0 | FI59: 33937 | FJ59: 0 | FK59: 0 | FL59: 0 | FM59: 146465 | FN59: 0 | FO59: 0 | FP59: 0 | FQ59: 106983 | FR59: 171898 | FS59: 5948 | FT59: 0 | FU59: 0 | FV59: 8164 | FW59: 6526 | FX59: 0 | FY59: 0 | FZ59: 0 | GA59: 4337002 | GB59: 0 | GC59: 4337002
B60: Town of Hadley | C60: =C153 -> 410335700000 | D60: Town of Hadley | E60: Saratoga | F60: 12/31 | G60: 2048 | H60: 0 | I60: 39.7 | J60: 272287834 | K60: 170000 | L60: 1363122 | M60: 0 | N60: 0 | O60: 0 | P60: 0 | Q60: 3497 | R60: 0 | S60: 0 | T60: 0 | U60: 744988 | V60: 0 | W60: 0 | X60: 18964 | Y60: 0 | Z60: 0 | AA60: 0 | AB60: 3040 | AC60: 0 | AD60: 50 | AE60: 0 | AF60: 0 | AG60: 0 | AH60: 0 | AI60: 0 | AJ60: 2135 | AK60: 4880 | AL60: 68370 | AM60: 56328 | AN60: 0 | AO60: 0 | AP60: 0 | AQ60: 0 | AR60: 0 | AS60: 0 | AT60: 0 | AU60: 0 | AV60: 0 | AW60: 0 | AX60: 0 | AY60: 0 | AZ60: 0 | BA60: 3809 | BB60: 0 | BC60: 0 | BD60: 11936 | BE60: 0 | BF60: 39142 | BG60: 0 | BH60: 7880 | BI60: 920 | BJ60: 0 | BK60: 86602 | BL60: 2415664 | BM60: 6616 | BN60: 25827 | BO60: =BO153 -> 0 | BP60: 0 | BQ60: 0 | BR60: 0 | BS60: 68634 | BT60: 0 | BU60: 0 | BV60: 1445 | BW60: 0 | BX60: 0 | BY60: 0 | BZ60: 0 | CA60: 0 | CB60: 36416 | CC60: 0 | CD60: 0 | CE60: 220060 | CF60: 0 | CG60: 0 | CH60: 0 | CI60: 0 | CJ60: 0 | CK60: 0 | CL60: 0 | CM60: 2774661 | CN60: 0 | CO60: 0 | CP60: 0 | CQ60: 419000 | CR60: 0 | CS60: 3193661 | CT60: 155244 | CU60: 230933 | CV60: 0 | CW60: 0 | CX60: 34023 | CY60: 0 | CZ60: 0 | DA60: 0 | DB60: 0 | DC60: 0 | DD60: 0 | DE60: 0 | DF60: 0 | DG60: 3255 | DH60: 0 | DI60: 0 | DJ60: 148403 | DK60: 0 | DL60: 0 | DM60: 0 | DN60: 5202 | DO60: 1348 | DP60: 0 | DQ60: 0 | DR60: 0 | DS60: 0 | DT60: 0 | DU60: 621360 | DV60: 0 | DW60: 0 | DX60: 0 | DY60: 0 | DZ60: 0 | EA60: =EA153 -> 338387 | EB60: 27636 | EC60: 0 | ED60: 0 | EE60: 0 | EF60: 0 | EG60: 0 | EH60: 223773 | EI60: 0 | EJ60: 0 | EK60: 0 | EL60: 0 | EM60: 0 | EN60: 0 | EO60: 0 | EP60: 0 | EQ60: 3378 | ER60: 14400 | ES60: 0 | ET60: 37798 | EU60: 18000 | EV60: 7528 | EW60: 0 | EX60: 500 | EY60: 19954 | EZ60: 1185 | FA60: 0 | FB60: 975 | FC60: 56948 | FD60: 0 | FE60: 0 | FF60: 0 | FG60: 23441 | FH60: 0 | FI60: 341374 | FJ60: 0 | FK60: 0 | FL60: 0 | FM60: 141929 | FN60: 0 | FO60: 0 | FP60: 0 | FQ60: 65685 | FR60: 165539 | FS60: 877 | FT60: 0 | FU60: 0 | FV60: 698 | FW60: 0 | FX60: 5000 | FY60: 40000 | FZ60: 2463 | GA60: 2737236 | GB60: 419000 | GC60: 3156236
B61: Town of Halfmoon | C61: =C154 -> 410336000000 | D61: Town of Halfmoon | E61: Saratoga | F61: 12/31 | G61: 21535 | H61: 0 | I61: 32.6 | J61: 2004338104 | K61: 40256232 | L61: 2417929 | M61: 0 | N61: 0 | O61: 0 | P61: 0 | Q61: 10951 | R61: 0 | S61: 0 | T61: 0 | U61: 5490959 | V61: 0 | W61: 0 | X61: 223883 | Y61: 0 | Z61: 0 | AA61: 0 | AB61: 29990 | AC61: 0 | AD61: 0 | AE61: 414999 | AF61: 0 | AG61: 41 | AH61: 0 | AI61: 0 | AJ61: 731265 | AK61: 769732 | AL61: 3043928 | AM61: 73332 | AN61: 0 | AO61: 0 | AP61: 0 | AQ61: 0 | AR61: 0 | AS61: 0 | AT61: 0 | AU61: 0 | AV61: 0 | AW61: 0 | AX61: 254653 | AY61: 0 | AZ61: 0 | BA61: 81392 | BB61: 25290 | BC61: 4800 | BD61: 334241 | BE61: 0 | BF61: 12865 | BG61: 0 | BH61: 0 | BI61: 22053 | BJ61: 0 | BK61: 184719 | BL61: 14127022 | BM61: 65639 | BN61: 980044 | BO61: =BO154 -> 0 | BP61: 0 | BQ61: 0 | BR61: 0 | BS61: 123784 | BT61: 0 | BU61: 0 | BV61: 144241 | BW61: 6811 | BX61: 0 | BY61: 0 | BZ61: 10353 | CA61: 0 | CB61: 20433 | CC61: 0 | CD61: 0 | CE61: 0 | CF61: 0 | CG61: 63743 | CH61: 0 | CI61: 0 | CJ61: 0 | CK61: 0 | CL61: 763745 | CM61: 16305815 | CN61: 0 | CO61: 0 | CP61: 0 | CQ61: 991809 | CR61: 0 | CS61: 17297624 | CT61: 1057207 | CU61: 1210571 | CV61: 0 | CW61: 0 | CX61: 157121 | CY61: 0 | CZ61: 0 | DA61: 0 | DB61: 0 | DC61: 0 | DD61: 0 | DE61: 0 | DF61: 0 | DG61: 0 | DH61: 220664 | DI61: 0 | DJ61: 1099343 | DK61: 0 | DL61: 0 | DM61: 0 | DN61: 289862 | DO61: 2500 | DP61: 0 | DQ61: 0 | DR61: 0 | DS61: 85979 | DT61: 16000 | DU61: 2102837 | DV61: 0 | DW61: 0 | DX61: 0 | DY61: 0 | DZ61: 0 | EA61: =EA154 -> 356377 | EB61: 28054 | EC61: 0 | ED61: 0 | EE61: 0 | EF61: 0 | EG61: 0 | EH61: 0 | EI61: 0 | EJ61: 0 | EK61: 0 | EL61: 0 | EM61: 0 | EN61: 0 | EO61: 0 | EP61: 0 | EQ61: 0 | ER61: 681459 | ES61: 0 | ET61: 6563 | EU61: 0 | EV61: 10999 | EW61: 19812 | EX61: 500 | EY61: 90498 | EZ61: 0 | FA61: 0 | FB61: 0 | FC61: 3077180 | FD61: 0 | FE61: 0 | FF61: 0 | FG61: 2850 | FH61: 0 | FI61: 97438 | FJ61: 6662 | FK61: 215 | FL61: 0 | FM61: 593470 | FN61: 0 | FO61: 0 | FP61: 0 | FQ61: 264509 | FR61: 653807 | FS61: 2703 | FT61: 0 | FU61: 0 | FV61: 30061 | FW61: 0 | FX61: 0 | FY61: 2191409 | FZ61: 1717296 | GA61: 16073946 | GB61: 991809 | GC61: 17065755
B62: Town of Malta | C62: =C155 -> 410350100000 | D62: Town of Malta | E62: Saratoga | F62: 12/31 | G62: 14765 | H62: 0 | I62: 27.9 | J62: 1525523427 | K62: 2955000 | L62: 1840368 | M62: 0 | N62: 0 | O62: 0 | P62: 66158 | Q62: 10680 | R62: 0 | S62: 364 | T62: 0 | U62: 4123696 | V62: 0 | W62: 0 | X62: 160751 | Y62: 0 | Z62: 0 | AA62: 0 | AB62: 8085 | AC62: 0 | AD62: 3660 | AE62: 2660 | AF62: 0 | AG62: 121235 | AH62: 0 | AI62: 0 | AJ62: 617423 | AK62: 1666733 | AL62: 0 | AM62: 119053 | AN62: 0 | AO62: 0 | AP62: 0 | AQ62: 270 | AR62: 0 | AS62: 47380 | AT62: 0 | AU62: 0 | AV62: 0 | AW62: 0 | AX62: 0 | AY62: 66350 | AZ62: 0 | BA62: 32278 | BB62: 32363 | BC62: 58473 | BD62: 387745 | BE62: 0 | BF62: 1855 | BG62: 0 | BH62: 0 | BI62: 5713 | BJ62: 0 | BK62: 5979 | BL62: 9379272 | BM62: 25627 | BN62: 529534 | BO62: =BO155 -> 903 | BP62: 0 | BQ62: 13175 | BR62: 0 | BS62: 986763 | BT62: 0 | BU62: 0 | BV62: 14247 | BW62: 0 | BX62: 0 | BY62: 0 | BZ62: 0 | CA62: 0 | CB62: 0 | CC62: 0 | CD62: 0 | CE62: 0 | CF62: 0 | CG62: 0 | CH62: 9221 | CI62: 0 | CJ62: 0 | CK62: 0 | CL62: 60000 | CM62: 11018742 | CN62: 0 | CO62: 0 | CP62: 0 | CQ62: 2506983 | CR62: 0 | CS62: 13525725 | CT62: 661330 | CU62: 988291 | CV62: 0 | CW62: 0 | CX62: 1587262 | CY62: 0 | CZ62: 0 | DA62: 0 | DB62: 0 | DC62: 0 | DD62: 0 | DE62: 0 | DF62: 0 | DG62: 0 | DH62: 13870 | DI62: 1474259 | DJ62: 379999 | DK62: 0 | DL62: 6188 | DM62: 1297 | DN62: 12077 | DO62: 4300 | DP62: 0 | DQ62: 0 | DR62: 0 | DS62: 0 | DT62: 0 | DU62: 1471327 | DV62: 0 | DW62: 0 | DX62: 0 | DY62: 0 | DZ62: 0 | EA62: =EA155 -> 445893 | EB62: 25504 | EC62: 973401 | ED62: 0 | EE62: 0 | EF62: 0 | EG62: 0 | EH62: 0 | EI62: 0 | EJ62: 0 | EK62: 0 | EL62: 0 | EM62: 0 | EN62: 0 | EO62: 6392 | EP62: 0 | EQ62: 0 | ER62: 473739 | ES62: 0 | ET62: 107122 | EU62: 304953 | EV62: 4147 | EW62: 389306 | EX62: 12833 | EY62: 11602 | EZ62: 14809 | FA62: 0 | FB62: 0 | FC62: 0 | FD62: 0 | FE62: 0 | FF62: 0 | FG62: 107336 | FH62: 0 | FI62: 119 | FJ62: 0 | FK62: 1450 | FL62: 0 | FM62: 314619 | FN62: 0 | FO62: 0 | FP62: 0 | FQ62: 170762 | FR62: 400531 | FS62: 1369 | FT62: 0 | FU62: 0 | FV62: 113 | FW62: 0 | FX62: 141783 | FY62: 135000 | FZ62: 121008 | GA62: 10763991 | GB62: 2506983 | GC62: 13270974
B63: Village of Round Lake | C63: =C156 -> 410450104295 | D63: Village of Round Lake | E63: Saratoga | F63: 05/31 | G63: 623 | H63: 0 | I63: 1.1 | J63: 55898833 | K63: 2039562 | L63: 279385 | M63: 0 | N63: 0 | O63: 0 | P63: 0 | Q63: 2687 | R63: 0 | S63: 0 | T63: 0 | U63: 151594 | V63: 0 | W63: 0 | X63: 10164 | Y63: 0 | Z63: 0 | AA63: 0 | AB63: 314 | AC63: 0 | AD63: 0 | AE63: 0 | AF63: 0 | AG63: 0 | AH63: 0 | AI63: 0 | AJ63: 10300 | AK63: 2075 | AL63: 159937 | AM63: 73410 | AN63: 0 | AO63: 0 | AP63: 0 | AQ63: 753288 | AR63: 0 | AS63: 900 | AT63: 0 | AU63: 0 | AV63: 0 | AW63: 0 | AX63: 0 | AY63: 0 | AZ63: 0 | BA63: 576 | BB63: 1126 | BC63: 63759 | BD63: 50 | BE63: 0 | BF63: 0 | BG63: 0 | BH63: 0 | BI63: 213 | BJ63: 0 | BK63: 11553 | BL63: 1521331 | BM63: 6270 | BN63: 8685 | BO63: =BO156 -> 0 | BP63: 0 | BQ63: 0 | BR63: 0 | BS63: 62985 | BT63: 0 | BU63: 0 | BV63: 0 | BW63: 0 | BX63: 0 | BY63: 0 | BZ63: 0 | CA63: 0 | CB63: 0 | CC63: 0 | CD63: 0 | CE63: 0 | CF63: 0 | CG63: 0 | CH63: 0 | CI63: 0 | CJ63: 0 | CK63: 0 | CL63: 0 | CM63: 1599271 | CN63: 0 | CO63: 0 | CP63: 0 | CQ63: 193819 | CR63: 0 | CS63: 1793090 | CT63: 81188 | CU63: 120725 | CV63: 0 | CW63: 0 | CX63: 707 | CY63: 0 | CZ63: 0 | DA63: 0 | DB63: 0 | DC63: 0 | DD63: 0 | DE63: 0 | DF63: 0 | DG63: 0 | DH63: 0 | DI63: 533440 | DJ63: 0 | DK63: 0 | DL63: 0 | DM63: 0 | DN63: 7956 | DO63: 0 | DP63: 0 | DQ63: 0 | DR63: 0 | DS63: 0 | DT63: 61 | DU63: 211426 | DV63: 0 | DW63: 0 | DX63: 0 | DY63: 0 | DZ63: 0 | EA63: =EA156 -> 0 | EB63: 14371 | EC63: 0 | ED63: 0 | EE63: 0 | EF63: 0 | EG63: 0 | EH63: 0 | EI63: 0 | EJ63: 0 | EK63: 0 | EL63: 0 | EM63: 0 | EN63: 0 | EO63: 0 | EP63: 0 | EQ63: 0 | ER63: 39277 | ES63: 0 | ET63: 221 | EU63: 4000 | EV63: 18625 | EW63: 0 | EX63: 0 | EY63: 0 | EZ63: 5825 | FA63: 0 | FB63: 0 | FC63: 90156 | FD63: 0 | FE63: 0 | FF63: 0 | FG63: 5867 | FH63: 20000 | FI63: 0 | FJ63: 0 | FK63: 0 | FL63: 0 | FM63: 31167 | FN63: 0 | FO63: 0 | FP63: 0 | FQ63: 19330 | FR63: 41099 | FS63: 1296 | FT63: 0 | FU63: 1518 | FV63: 1613 | FW63: 0 | FX63: 0 | FY63: 197709 | FZ63: 17687 | GA63: 1465264 | GB63: 193818 | GC63: 1659082
B64: City of Mechanicville | C64: =C157 -> 410229000000 | D64: City of Mechanicville | E64: Saratoga | F64: 12/31 | G64: 5196 | H64: 0 | I64: 0.8 | J64: 213032181 | K64: 0 | L64: - | M64: 0 | N64: - | O64: - | P64: - | Q64: - | R64: - | S64: - | T64: - | U64: - | V64: - | W64: - | X64: - | Y64: - | Z64: - | AA64: - | AB64: - | AC64: - | AD64: - | AE64: - | AF64: 0 | AG64: - | AH64: - | AI64: - | AJ64: - | AK64: - | AL64: - | AM64: - | AN64: - | AO64: - | AP64: - | AQ64: - | AR64: - | AS64: - | AT64: - | AU64: - | AV64: - | AW64: - | AX64: - | AY64: - | AZ64: - | BA64: - | BB64: - | BC64: - | BD64: - | BE64: - | BF64: - | BG64: - | BH64: - | BI64: - | BJ64: - | BK64: - | BL64: - | BM64: - | BN64: - | BO64: =BO157 -> - | BP64: - | BQ64: - | BR64: - | BS64: - | BT64: - | BU64: - | BV64: - | BW64: - | BX64: - | BY64: - | BZ64: - | CA64: - | CB64: - | CC64: - | CD64: - | CE64: - | CF64: - | CG64: - | CH64: - | CI64: - | CJ64: - | CK64: - | CL64: - | CM64: - | CN64: - | CO64: - | CP64: - | CQ64: - | CR64: - | CS64: - | CT64: - | CU64: - | CV64: - | CW64: - | CX64: - | CY64: - | CZ64: - | DA64: - | DB64: - | DC64: - | DD64: - | DE64: - | DF64: - | DG64: - | DH64: - | DI64: - | DJ64: - | DK64: - | DL64: - | DM64: - | DN64: - | DO64: - | DP64: - | DQ64: - | DR64: - | DS64: - | DT64: - | DU64: - | DV64: - | DW64: - | DX64: - | DY64: - | DZ64: - | EA64: =EA157 -> - | EB64: - | EC64: - | ED64: - | EE64: - | EF64: - | EG64: - | EH64: - | EI64: - | EJ64: - | EK64: - | EL64: - | EM64: - | EN64: - | EO64: - | EP64: - | EQ64: - | ER64: - | ES64: - | ET64: - | EU64: - | EV64: - | EW64: - | EX64: - | EY64: - | EZ64: - | FA64: - | FB64: - | FC64: - | FD64: - | FE64: - | FF64: - | FG64: - | FH64: - | FI64: - | FJ64: - | FK64: - | FL64: - | FM64: - | FN64: - | FO64: - | FP64: - | FQ64: - | FR64: - | FS64: - | FT64: - | FU64: - | FV64: - | FW64: - | FX64: - | FY64: - | FZ64: - | GA64: - | GB64: - | GC64: -
B65: Town of Milton | C65: =C158 -> 410353400000 | D65: Town of Milton | E65: Saratoga | F65: 12/31 | G65: 18575 | H65: 0 | I65: 35.7 | J65: 1223587843 | K65: 0 | L65: 705349 | M65: 0 | N65: 0 | O65: 0 | P65: 5568 | Q65: 10275 | R65: 0 | S65: 0 | T65: 0 | U65: 2854631 | V65: 0 | W65: 0 | X65: 152683 | Y65: 0 | Z65: 0 | AA65: 0 | AB65: 104370 | AC65: 0 | AD65: 1220 | AE65: 2550 | AF65: 0 | AG65: 0 | AH65: 0 | AI65: 0 | AJ65: 32693 | AK65: 63344 | AL65: 0 | AM65: 0 | AN65: 0 | AO65: 0 | AP65: 0 | AQ65: 0 | AR65: 0 | AS65: 0 | AT65: 0 | AU65: 0 | AV65: 0 | AW65: 0 | AX65: 0 | AY65: 0 | AZ65: 0 | BA65: 13955 | BB65: 804 | BC65: 0 | BD65: 90901 | BE65: 0 | BF65: 7156 | BG65: 0 | BH65: 0 | BI65: 0 | BJ65: 0 | BK65: 19014 | BL65: 4064513 | BM65: 106050 | BN65: 507244 | BO65: =BO158 -> 0 | BP65: 0 | BQ65: 0 | BR65: 0 | BS65: 104336 | BT65: 0 | BU65: 0 | BV65: 4100 | BW65: 0 | BX65: 0 | BY65: 0 | BZ65: 0 | CA65: 0 | CB65: 0 | CC65: 0 | CD65: 0 | CE65: 0 | CF65: 0 | CG65: 0 | CH65: 0 | CI65: 0 | CJ65: 0 | CK65: 0 | CL65: 0 | CM65: 4786243 | CN65: 0 | CO65: 0 | CP65: 0 | CQ65: 11743 | CR65: 0 | CS65: 4797986 | CT65: 175622 | CU65: 605490 | CV65: 0 | CW65: 0 | CX65: 230078 | CY65: 0 | CZ65: 0 | DA65: 0 | DB65: 0 | DC65: 0 | DD65: 0 | DE65: 0 | DF65: 0 | DG65: 24 | DH65: 34246 | DI65: 157500 | DJ65: 0 | DK65: 0 | DL65: 0 | DM65: 0 | DN65: 52785 | DO65: 7313 | DP65: 0 | DQ65: 0 | DR65: 0 | DS65: 0 | DT65: 0 | DU65: 1397764 | DV65: 0 | DW65: 0 | DX65: 0 | DY65: 0 | DZ65: 0 | EA65: =EA158 -> 336888 | EB65: 20951 | EC65: 0 | ED65: 0 | EE65: 0 | EF65: 0 | EG65: 0 | EH65: 0 | EI65: 0 | EJ65: 0 | EK65: 0 | EL65: 0 | EM65: 0 | EN65: 0 | EO65: 402 | EP65: 0 | EQ65: 0 | ER65: 99749 | ES65: 0 | ET65: 25717 | EU65: 41000 | EV65: 9636 | EW65: 107162 | EX65: 1000 | EY65: 29270 | EZ65: 0 | FA65: 0 | FB65: 2979 | FC65: 0 | FD65: 0 | FE65: 0 | FF65: 0 | FG65: 0 | FH65: 0 | FI65: 222 | FJ65: 0 | FK65: 0 | FL65: 0 | FM65: 302157 | FN65: 0 | FO65: 0 | FP65: 0 | FQ65: 121187 | FR65: 519722 | FS65: 300 | FT65: 0 | FU65: 0 | FV65: 4131 | FW65: 0 | FX65: 3769 | FY65: 0 | FZ65: 818 | GA65: 4287882 | GB65: 11743 | GC65: 4299625
B66: Town of Moreau | C66: =C159 -> 410354900000 | D66: Town of Moreau | E66: Saratoga | F66: 12/31 | G66: 14728 | H66: 0 | I66: 41.9 | J66: 1303053856 | K66: 7866752 | L66: 1953513 | M66: 0 | N66: 0 | O66: 0 | P66: 0 | Q66: 18026 | R66: 0 | S66: 0 | T66: 0 | U66: 2501171 | V66: 0 | W66: 0 | X66: 163939 | Y66: 0 | Z66: 0 | AA66: 0 | AB66: 8635 | AC66: 0 | AD66: 34310 | AE66: 478342 | AF66: 0 | AG66: 0 | AH66: 0 | AI66: 0 | AJ66: 19235 | AK66: 1247 | AL66: 797247 | AM66: 291866 | AN66: 0 | AO66: 0 | AP66: 0 | AQ66: 0 | AR66: 0 | AS66: 0 | AT66: 0 | AU66: 0 | AV66: 0 | AW66: 0 | AX66: 0 | AY66: 0 | AZ66: 0 | BA66: 36985 | BB66: 56426 | BC66: 0 | BD66: 190958 | BE66: 0 | BF66: 26653 | BG66: 0 | BH66: 0 | BI66: 56000 | BJ66: 0 | BK66: 132767 | BL66: 6767320 | BM66: 45230 | BN66: 364718 | BO66: =BO159 -> 0 | BP66: 0 | BQ66: 0 | BR66: 0 | BS66: 165588 | BT66: 0 | BU66: 0 | BV66: 6604 | BW66: 0 | BX66: 0 | BY66: 0 | BZ66: 0 | CA66: 0 | CB66: 0 | CC66: 0 | CD66: 0 | CE66: 0 | CF66: 0 | CG66: 0 | CH66: 0 | CI66: 0 | CJ66: 0 | CK66: 0 | CL66: 0 | CM66: 7349460 | CN66: 1874467 | CO66: 0 | CP66: 0 | CQ66: 57846 | CR66: 0 | CS66: 9281773 | CT66: 1077999 | CU66: 607952 | CV66: 0 | CW66: 14074 | CX66: 14740 | CY66: 0 | CZ66: 0 | DA66: 0 | DB66: 0 | DC66: 0 | DD66: 0 | DE66: 0 | DF66: 0 | DG66: 0 | DH66: 43256 | DI66: 430700 | DJ66: 676973 | DK66: 0 | DL66: 0 | DM66: 0 | DN66: 133610 | DO66: 1459 | DP66: 325 | DQ66: 0 | DR66: 716 | DS66: 0 | DT66: 0 | DU66: 1284869 | DV66: 0 | DW66: 4331 | DX66: 0 | DY66: 0 | DZ66: 0 | EA66: =EA159 -> 255998 | EB66: 69343 | EC66: 0 | ED66: 0 | EE66: 0 | EF66: 0 | EG66: 0 | EH66: 0 | EI66: 0 | EJ66: 0 | EK66: 0 | EL66: 0 | EM66: 6983 | EN66: 49 | EO66: 350 | EP66: 0 | EQ66: 911 | ER66: 120084 | ES66: 0 | ET66: 156317 | EU66: 680144 | EV66: 16775 | EW66: 4432 | EX66: 252811 | EY66: 2890 | EZ66: 0 | FA66: 0 | FB66: 0 | FC66: 3514885 | FD66: 0 | FE66: 0 | FF66: 0 | FG66: 43424 | FH66: 0 | FI66: 140484 | FJ66: 0 | FK66: 4426 | FL66: 0 | FM66: 235381 | FN66: 0 | FO66: 0 | FP66: 0 | FQ66: 86443 | FR66: 467555 | FS66: 571 | FT66: 7004 | FU66: 0 | FV66: 2309 | FW66: 0 | FX66: 54908 | FY66: 125637 | FZ66: 0 | GA66: 10541118 | GB66: 57846 | GC66: 10598964
B67: Village of South Glens Falls | C67: =C160 -> 410454904730 | D67: Village of South Glens Falls | E67: Saratoga | F67: 05/31 | G67: 3518 | H67: 0 | I67: 1.4 | J67: 260270394 | K67: 0 | L67: 1205534 | M67: 0 | N67: 0 | O67: 0 | P67: 0 | Q67: 10206 | R67: 0 | S67: 0 | T67: 0 | U67: 707410 | V67: 63235 | W67: 0 | X67: 59719 | Y67: 0 | Z67: 0 | AA67: 0 | AB67: 4878 | AC67: 0 | AD67: 233 | AE67: 713 | AF67: 0 | AG67: 0 | AH67: 0 | AI67: 0 | AJ67: 350 | AK67: 7259 | AL67: 335784 | AM67: 388289 | AN67: 0 | AO67: 0 | AP67: 0 | AQ67: 430700 | AR67: 0 | AS67: 0 | AT67: 0 | AU67: 0 | AV67: 0 | AW67: 0 | AX67: 0 | AY67: 1043 | AZ67: 0 | BA67: 2057 | BB67: 2103 | BC67: 22821 | BD67: 340 | BE67: 0 | BF67: 17602 | BG67: 0 | BH67: 0 | BI67: 5000 | BJ67: 19644 | BK67: 933 | BL67: 3285853 | BM67: 32010 | BN67: 37759 | BO67: =BO160 -> 0 | BP67: 0 | BQ67: 0 | BR67: 0 | BS67: 81002 | BT67: 0 | BU67: 0 | BV67: 0 | BW67: 0 | BX67: 0 | BY67: 0 | BZ67: 0 | CA67: 0 | CB67: 0 | CC67: 0 | CD67: 0 | CE67: 0 | CF67: 29768 | CG67: 0 | CH67: 0 | CI67: 0 | CJ67: 0 | CK67: 0 | CL67: 0 | CM67: 3466392 | CN67: 0 | CO67: 0 | CP67: 0 | CQ67: 25000 | CR67: 0 | CS67: 3491392 | CT67: 166124 | CU67: 266236 | CV67: 0 | CW67: 0 | CX67: 2184 | CY67: 0 | CZ67: 0 | DA67: 0 | DB67: 0 | DC67: 0 | DD67: 0 | DE67: 0 | DF67: 0 | DG67: 0 | DH67: 467071 | DI67: 526294 | DJ67: 0 | DK67: 0 | DL67: 0 | DM67: 0 | DN67: 1660 | DO67: 713 | DP67: 0 | DQ67: 0 | DR67: 0 | DS67: 0 | DT67: 25 | DU67: 387487 | DV67: 0 | DW67: 5687 | DX67: 0 | DY67: 0 | DZ67: 0 | EA67: =EA160 -> 0 | EB67: 68668 | EC67: 30682 | ED67: 0 | EE67: 0 | EF67: 0 | EG67: 0 | EH67: 0 | EI67: 0 | EJ67: 0 | EK67: 0 | EL67: 0 | EM67: 1503 | EN67: 28265 | EO67: 9144 | EP67: 0 | EQ67: 0 | ER67: 49736 | ES67: 0 | ET67: 0 | EU67: 0 | EV67: 4046 | EW67: 2478 | EX67: 0 | EY67: 0 | EZ67: 5331 | FA67: 0 | FB67: 0 | FC67: 134563 | FD67: 0 | FE67: 0 | FF67: 0 | FG67: 281207 | FH67: 11743 | FI67: 0 | FJ67: 0 | FK67: 0 | FL67: 0 | FM67: 87316 | FN67: 63533 | FO67: 0 | FP67: 0 | FQ67: 0 | FR67: 462265 | FS67: 0 | FT67: 0 | FU67: 45475 | FV67: 1352 | FW67: 0 | FX67: 90081 | FY67: 0 | FZ67: 0 | GA67: 3200869 | GB67: 25000 | GC67: 3225869
B68: Town of Northumberland | C68: =C161 -> 410360100000 | D68: Town of Northumberland | E68: Saratoga | F68: 12/31 | G68: 5087 | H68: 0 | I68: 32.3 | J68: 359533018 | K68: 80000 | L68: 622400 | M68: 0 | N68: 0 | O68: 0 | P68: 0 | Q68: 4537 | R68: 0 | S68: 0 | T68: 0 | U68: 1051699 | V68: 0 | W68: 0 | X68: 0 | Y68: 0 | Z68: 0 | AA68: 0 | AB68: 2194 | AC68: 0 | AD68: 0 | AE68: 0 | AF68: 0 | AG68: 0 | AH68: 0 | AI68: 0 | AJ68: 0 | AK68: 11858 | AL68: 0 | AM68: 20683 | AN68: 0 | AO68: 0 | AP68: 0 | AQ68: 0 | AR68: 0 | AS68: 0 | AT68: 0 | AU68: 0 | AV68: 0 | AW68: 0 | AX68: 0 | AY68: 0 | AZ68: 0 | BA68: 3425 | BB68: 0 | BC68: 0 | BD68: 18792 | BE68: 0 | BF68: 0 | BG68: 0 | BH68: 0 | BI68: 0 | BJ68: 0 | BK68: 30460 | BL68: 1766048 | BM68: 14849 | BN68: 120085 | BO68: =BO161 -> 3526 | BP68: 0 | BQ68: 0 | BR68: 0 | BS68: 93623 | BT68: 0 | BU68: 0 | BV68: 2722 | BW68: 100000 | BX68: 0 | BY68: 0 | BZ68: 450 | CA68: 0 | CB68: 83450 | CC68: 0 | CD68: 0 | CE68: 0 | CF68: 0 | CG68: 0 | CH68: 0 | CI68: 0 | CJ68: 0 | CK68: 0 | CL68: 0 | CM68: 2184753 | CN68: 0 | CO68: 25000 | CP68: 0 | CQ68: 0 | CR68: 0 | CS68: 2209753 | CT68: 110402 | CU68: 249810 | CV68: 0 | CW68: 0 | CX68: 23375 | CY68: 0 | CZ68: 0 | DA68: 0 | DB68: 0 | DC68: 0 | DD68: 0 | DE68: 0 | DF68: 0 | DG68: 0 | DH68: 8859 | DI68: 116000 | DJ68: 0 | DK68: 0 | DL68: 0 | DM68: 0 | DN68: 43997 | DO68: 1550 | DP68: 0 | DQ68: 0 | DR68: 6912 | DS68: 0 | DT68: 0 | DU68: 849851 | DV68: 0 | DW68: 0 | DX68: 0 | DY68: 0 | DZ68: 0 | EA68: =EA161 -> 94648 | EB68: 11158 | EC68: 0 | ED68: 0 | EE68: 0 | EF68: 0 | EG68: 0 | EH68: 0 | EI68: 0 | EJ68: 0 | EK68: 0 | EL68: 0 | EM68: 0 | EN68: 0 | EO68: 0 | EP68: 0 | EQ68: 0 | ER68: 29631 | ES68: 0 | ET68: 14557 | EU68: 0 | EV68: 1540 | EW68: 0 | EX68: 0 | EY68: 1450 | EZ68: 0 | FA68: 0 | FB68: 0 | FC68: 0 | FD68: 0 | FE68: 0 | FF68: 0 | FG68: 2010 | FH68: 0 | FI68: 52479 | FJ68: 0 | FK68: 0 | FL68: 0 | FM68: 94440 | FN68: 0 | FO68: 0 | FP68: 0 | FQ68: 45104 | FR68: 131938 | FS68: 296 | FT68: 0 | FU68: 0 | FV68: 4661 | FW68: 0 | FX68: 2558 | FY68: 25000 | FZ68: 2474 | GA68: 1924700 | GB68: 0 | GC68: 1924700
B69: Town of Providence | C69: =C162 -> 410369300000 | D69: Town of Providence | E69: Saratoga | F69: 12/31 | G69: 1995 | H69: 0 | I69: 44 | J69: 184055375 | K69: 30000 | L69: 749807 | M69: 0 | N69: 0 | O69: 0 | P69: 0 | Q69: 3832 | R69: 0 | S69: 0 | T69: 0 | U69: 523765 | V69: 0 | W69: 0 | X69: 26327 | Y69: 0 | Z69: 0 | AA69: 0 | AB69: 6985 | AC69: 0 | AD69: 0 | AE69: 0 | AF69: 0 | AG69: 0 | AH69: 0 | AI69: 0 | AJ69: 3896 | AK69: 6138 | AL69: 0 | AM69: 15093 | AN69: 0 | AO69: 0 | AP69: 0 | AQ69: 0 | AR69: 0 | AS69: 0 | AT69: 0 | AU69: 0 | AV69: 0 | AW69: 0 | AX69: 0 | AY69: 2194 | AZ69: 0 | BA69: 1482 | BB69: 836 | BC69: 450 | BD69: 6325 | BE69: 0 | BF69: 0 | BG69: 0 | BH69: 0 | BI69: 3600 | BJ69: 0 | BK69: 10396 | BL69: 1361126 | BM69: 5918 | BN69: 44956 | BO69: =BO162 -> 0 | BP69: 0 | BQ69: 0 | BR69: 0 | BS69: 108420 | BT69: 0 | BU69: 0 | BV69: 0 | BW69: 0 | BX69: 0 | BY69: 0 | BZ69: 23495 | CA69: 0 | CB69: 27684 | CC69: 0 | CD69: 0 | CE69: 0 | CF69: 0 | CG69: 0 | CH69: 0 | CI69: 0 | CJ69: 0 | CK69: 0 | CL69: 0 | CM69: 1571599 | CN69: 0 | CO69: 0 | CP69: 0 | CQ69: 0 | CR69: 0 | CS69: 1571599 | CT69: 76985 | CU69: 103897 | CV69: 0 | CW69: 0 | CX69: 1607 | CY69: 0 | CZ69: 0 | DA69: 0 | DB69: 0 | DC69: 0 | DD69: 0 | DE69: 0 | DF69: 0 | DG69: 10714 | DH69: 4814 | DI69: 0 | DJ69: 34650 | DK69: 0 | DL69: 0 | DM69: 0 | DN69: 5768 | DO69: 272 | DP69: 0 | DQ69: 0 | DR69: 0 | DS69: 0 | DT69: 0 | DU69: 822980 | DV69: 2000 | DW69: 0 | DX69: 0 | DY69: 0 | DZ69: 0 | EA69: =EA162 -> 77086 | EB69: 0 | EC69: 0 | ED69: 2865 | EE69: 0 | EF69: 0 | EG69: 0 | EH69: 0 | EI69: 0 | EJ69: 0 | EK69: 0 | EL69: 0 | EM69: 0 | EN69: 0 | EO69: 0 | EP69: 0 | EQ69: 0 | ER69: 7826 | ES69: 0 | ET69: 0 | EU69: 0 | EV69: 500 | EW69: 0 | EX69: 4814 | EY69: 0 | EZ69: 0 | FA69: 0 | FB69: 0 | FC69: 0 | FD69: 0 | FE69: 0 | FF69: 0 | FG69: 0 | FH69: 0 | FI69: 23853 | FJ69: 0 | FK69: 0 | FL69: 0 | FM69: 74476 | FN69: 0 | FO69: 0 | FP69: 0 | FQ69: 33258 | FR69: 76295 | FS69: 432 | FT69: 0 | FU69: 0 | FV69: 1685 | FW69: 0 | FX69: 4744 | FY69: 50473 | FZ69: 3423 | GA69: 1425418 | GB69: 0 | GC69: 1425418
B70: Town of Saratoga | C70: =C163 -> 410374700000 | D70: Town of Saratoga | E70: Saratoga | F70: 12/31 | G70: 5674 | H70: 0 | I70: 40.6 | J70: 529607495 | K70: 2690000 | L70: 613758 | M70: 0 | N70: 0 | O70: 0 | P70: 0 | Q70: 8065 | R70: 0 | S70: 0 | T70: 0 | U70: 1248419 | V70: 0 | W70: 0 | X70: 0 | Y70: 0 | Z70: 0 | AA70: 0 | AB70: 5509 | AC70: 0 | AD70: 1245 | AE70: 0 | AF70: 0 | AG70: 0 | AH70: 0 | AI70: 0 | AJ70: 0 | AK70: 27537 | AL70: 0 | AM70: 0 | AN70: 0 | AO70: 0 | AP70: 0 | AQ70: 0 | AR70: 0 | AS70: 0 | AT70: 0 | AU70: 0 | AV70: 0 | AW70: 0 | AX70: 0 | AY70: 0 | AZ70: 0 | BA70: 6539 | BB70: 16202 | BC70: 118195 | BD70: 43222 | BE70: 0 | BF70: 0 | BG70: 0 | BH70: 20000 | BI70: 0 | BJ70: 0 | BK70: 11543 | BL70: 2120234 | BM70: 31351 | BN70: 112690 | BO70: =BO163 -> 0 | BP70: 0 | BQ70: 3519 | BR70: 0 | BS70: 108228 | BT70: 0 | BU70: 0 | BV70: 983 | BW70: 0 | BX70: 0 | BY70: 0 | BZ70: 0 | CA70: 0 | CB70: 34491 | CC70: 0 | CD70: 0 | CE70: 0 | CF70: 120849 | CG70: 0 | CH70: 0 | CI70: 0 | CJ70: 0 | CK70: 0 | CL70: 0 | CM70: 2532344 | CN70: 0 | CO70: 0 | CP70: 0 | CQ70: 98514 | CR70: 0 | CS70: 2630859 | CT70: 216700 | CU70: 293816 | CV70: 0 | CW70: 0 | CX70: 54859 | CY70: 0 | CZ70: 0 | DA70: 0 | DB70: 0 | DC70: 0 | DD70: 0 | DE70: 0 | DF70: 0 | DG70: 936 | DH70: 12688 | DI70: 45772 | DJ70: 0 | DK70: 0 | DL70: 0 | DM70: 0 | DN70: 16764 | DO70: 2712 | DP70: 0 | DQ70: 0 | DR70: 0 | DS70: 0 | DT70: 0 | DU70: 889501 | DV70: 0 | DW70: 0 | DX70: 0 | DY70: 0 | DZ70: 0 | EA70: =EA163 -> 56603 | EB70: 5169 | EC70: 0 | ED70: 0 | EE70: 0 | EF70: 0 | EG70: 0 | EH70: 0 | EI70: 0 | EJ70: 0 | EK70: 0 | EL70: 0 | EM70: 0 | EN70: 120849 | EO70: 0 | EP70: 0 | EQ70: 0 | ER70: 32260 | ES70: 0 | ET70: 2064 | EU70: 0 | EV70: 6637 | EW70: 0 | EX70: 0 | EY70: 1145 | EZ70: 5756 | FA70: 0 | FB70: 0 | FC70: 0 | FD70: 0 | FE70: 0 | FF70: 0 | FG70: 0 | FH70: 0 | FI70: 6424 | FJ70: 0 | FK70: 0 | FL70: 0 | FM70: 105537 | FN70: 0 | FO70: 0 | FP70: 0 | FQ70: 50871 | FR70: 89732 | FS70: 194 | FT70: 0 | FU70: 0 | FV70: 1943 | FW70: 0 | FX70: 6940 | FY70: 135000 | FZ70: 116801 | GA70: 2277671 | GB70: 98514 | GC70: 2376185
B71: Village of Schuylerville | C71: =C164 -> 410474704490 | D71: Village of Schuylerville | E71: Saratoga | F71: 05/31 | G71: 1386 | H71: 0 | I71: 0.5 | J71: 72986179 | K71: 4395677 | L71: 483645 | M71: 0 | N71: 0 | O71: 0 | P71: 0 | Q71: 7424 | R71: 0 | S71: 0 | T71: 0 | U71: 208545 | V71: 0 | W71: 0 | X71: 15214 | Y71: 0 | Z71: 0 | AA71: 0 | AB71: 1241 | AC71: 0 | AD71: 0 | AE71: 0 | AF71: 0 | AG71: 0 | AH71: 0 | AI71: 0 | AJ71: 0 | AK71: 3830 | AL71: 0 | AM71: 368716 | AN71: 0 | AO71: 0 | AP71: 0 | AQ71: 164612 | AR71: 0 | AS71: 0 | AT71: 0 | AU71: 75000 | AV71: 0 | AW71: 3390 | AX71: 0 | AY71: 67375 | AZ71: 117500 | BA71: 1022 | BB71: 23429 | BC71: 0 | BD71: 0 | BE71: 0 | BF71: 0 | BG71: 0 | BH71: 0 | BI71: 0 | BJ71: 0 | BK71: 14235 | BL71: 1555178 | BM71: 12471 | BN71: 13143 | BO71: =BO164 -> 0 | BP71: 0 | BQ71: 0 | BR71: 0 | BS71: 36568 | BT71: 0 | BU71: 0 | BV71: 1368 | BW71: 0 | BX71: 0 | BY71: 0 | BZ71: 0 | CA71: 0 | CB71: 0 | CC71: 0 | CD71: 0 | CE71: 0 | CF71: 0 | CG71: 0 | CH71: 0 | CI71: 0 | CJ71: 0 | CK71: 0 | CL71: 254161 | CM71: 1872888 | CN71: 93750 | CO71: 57399 | CP71: 33742 | CQ71: 0 | CR71: 0 | CS71: 2057779 | CT71: 248540 | CU71: 106299 | CV71: 0 | CW71: 0 | CX71: 1799 | CY71: 0 | CZ71: 0 | DA71: 0 | DB71: 0 | DC71: 0 | DD71: 0 | DE71: 0 | DF71: 0 | DG71: 1457 | DH71: 6681 | DI71: 350371 | DJ71: 0 | DK71: 0 | DL71: 0 | DM71: 0 | DN71: 10966 | DO71: 2925 | DP71: 0 | DQ71: 0 | DR71: 0 | DS71: 0 | DT71: 0 | DU71: 176278 | DV71: 0 | DW71: 0 | DX71: 0 | DY71: 0 | DZ71: 0 | EA71: =EA164 -> 0 | EB71: 20835 | EC71: 0 | ED71: 0 | EE71: 0 | EF71: 0 | EG71: 0 | EH71: 0 | EI71: 0 | EJ71: 0 | EK71: 0 | EL71: 0 | EM71: 0 | EN71: 0 | EO71: 0 | EP71: 0 | EQ71: 284617 | ER71: 9746 | ES71: 0 | ET71: 1287 | EU71: 74877 | EV71: 12580 | EW71: 0 | EX71: 0 | EY71: 0 | EZ71: 8973 | FA71: 0 | FB71: 0 | FC71: 8090 | FD71: 0 | FE71: 0 | FF71: 0 | FG71: 1090366 | FH71: 3402 | FI71: 47272 | FJ71: 0 | FK71: 0 | FL71: 0 | FM71: 43886 | FN71: 0 | FO71: 0 | FP71: 0 | FQ71: 24071 | FR71: 56895 | FS71: 0 | FT71: 0 | FU71: 0 | FV71: 0 | FW71: 0 | FX71: 0 | FY71: 218127 | FZ71: 75596 | GA71: 2885935 | GB71: 0 | GC71: 2885935
B72: Village of Victory | C72: =C165 -> 410474705070 | D72: Village of Victory | E72: Saratoga | F72: 05/31 | G72: 605 | H72: 0 | I72: 0.5 | J72: 0 | K72: 170520 | L72: 201454 | M72: 0 | N72: 0 | O72: 0 | P72: 0 | Q72: 6065 | R72: 0 | S72: 0 | T72: 0 | U72: 70801 | V72: 3932 | W72: 0 | X72: 7773 | Y72: 0 | Z72: 0 | AA72: 0 | AB72: 12654 | AC72: 0 | AD72: 0 | AE72: 0 | AF72: 0 | AG72: 0 | AH72: 0 | AI72: 0 | AJ72: 0 | AK72: 1451 | AL72: 0 | AM72: 84707 | AN72: 0 | AO72: 0 | AP72: 0 | AQ72: 11901 | AR72: 0 | AS72: 0 | AT72: 0 | AU72: 0 | AV72: 0 | AW72: 0 | AX72: 0 | AY72: 26635 | AZ72: 0 | BA72: 207 | BB72: 14201 | BC72: 0 | BD72: 0 | BE72: 0 | BF72: 4716 | BG72: 0 | BH72: 0 | BI72: 0 | BJ72: 0 | BK72: 50 | BL72: 446547 | BM72: 6726 | BN72: 1325 | BO72: =BO165 -> 0 | BP72: 0 | BQ72: 0 | BR72: 0 | BS72: 22870 | BT72: 0 | BU72: 9529 | BV72: 0 | BW72: 0 | BX72: 0 | BY72: 0 | BZ72: 13745 | CA72: 0 | CB72: 802 | CC72: 0 | CD72: 0 | CE72: 0 | CF72: 0 | CG72: 0 | CH72: 0 | CI72: 0 | CJ72: 0 | CK72: 0 | CL72: 0 | CM72: 501544 | CN72: 0 | CO72: 0 | CP72: 0 | CQ72: 46838 | CR72: 0 | CS72: 548382 | CT72: 42391 | CU72: 94552 | CV72: 0 | CW72: 0 | CX72: 6845 | CY72: 0 | CZ72: 0 | DA72: 0 | DB72: 0 | DC72: 0 | DD72: 0 | DE72: 0 | DF72: 0 | DG72: 0 | DH72: 0 | DI72: 6818 | DJ72: 0 | DK72: 0 | DL72: 0 | DM72: 0 | DN72: 0 | DO72: 350 | DP72: 0 | DQ72: 0 | DR72: 0 | DS72: 0 | DT72: 0 | DU72: 156192 | DV72: 0 | DW72: 0 | DX72: 0 | DY72: 0 | DZ72: 0 | EA72: =EA165 -> 0 | EB72: 7596 | EC72: 0 | ED72: 0 | EE72: 0 | EF72: 0 | EG72: 0 | EH72: 0 | EI72: 0 | EJ72: 0 | EK72: 0 | EL72: 0 | EM72: 0 | EN72: 9529 | EO72: 0 | EP72: 0 | EQ72: 0 | ER72: 300 | ES72: 0 | ET72: 0 | EU72: 0 | EV72: 400 | EW72: 0 | EX72: 0 | EY72: 0 | EZ72: 4146 | FA72: 0 | FB72: 25382 | FC72: 0 | FD72: 0 | FE72: 0 | FF72: 0 | FG72: 163374 | FH72: 0 | FI72: 4794 | FJ72: 0 | FK72: 0 | FL72: 0 | FM72: 24650 | FN72: 0 | FO72: 0 | FP72: 0 | FQ72: 11532 | FR72: 15713 | FS72: 337 | FT72: 0 | FU72: 1150 | FV72: 0 | FW72: 0 | FX72: 750 | FY72: 39306 | FZ72: 0 | GA72: 616107 | GB72: 46838 | GC72: 662945
B73: City of Saratoga Springs | C73: =C166 -> 410252000000 | D73: City of Saratoga Springs | E73: Saratoga | F73: 12/31 | G73: 26586 | H73: 0 | I73: 28.1 | J73: 3736363956 | K73: 42784584 | L73: 18034669 | M73: 0 | N73: 622024 | O73: 0 | P73: 223001 | Q73: 390688 | R73: 0 | S73: 0 | T73: 9918092 | U73: 364239 | V73: 438345 | W73: 927867 | X73: 483149 | Y73: 0 | Z73: 102 | AA73: 0 | AB73: 174187 | AC73: 0 | AD73: 95155 | AE73: 630892 | AF73: 0 | AG73: 32142 | AH73: 0 | AI73: 105688 | AJ73: 1527817 | AK73: 484578 | AL73: 2967684 | AM73: 4063811 | AN73: 0 | AO73: 29473 | AP73: 0 | AQ73: 78848 | AR73: 0 | AS73: 0 | AT73: 0 | AU73: 177373 | AV73: 0 | AW73: 0 | AX73: 0 | AY73: 23367 | AZ73: 0 | BA73: 503830 | BB73: 291058 | BC73: 434189 | BD73: 590366 | BE73: 0 | BF73: 356913 | BG73: 0 | BH73: 250000 | BI73: 139068 | BJ73: 0 | BK73: 3367531 | BL73: 47726146 | BM73: 1649701 | BN73: 1158414 | BO73: =BO166 -> 31651 | BP73: 0 | BQ73: 44176 | BR73: 0 | BS73: 546748 | BT73: 0 | BU73: 0 | BV73: 0 | BW73: 0 | BX73: 0 | BY73: 0 | BZ73: 19838 | CA73: 0 | CB73: 387033 | CC73: 0 | CD73: 134452 | CE73: 48707 | CF73: 579652 | CG73: 0 | CH73: 0 | CI73: 0 | CJ73: 0 | CK73: 0 | CL73: 0 | CM73: 52326518 | CN73: 7200687 | CO73: 0 | CP73: 0 | CQ73: 1216798 | CR73: 0 | CS73: 60744003 | CT73: 7661194 | CU73: 2836228 | CV73: 0 | CW73: 52658 | CX73: 435956 | CY73: 464290 | CZ73: 0 | DA73: 0 | DB73: 0 | DC73: 0 | DD73: 0 | DE73: 0 | DF73: 0 | DG73: 1065850 | DH73: 7212816 | DI73: 5510052 | DJ73: 0 | DK73: 10913 | DL73: 0 | DM73: 0 | DN73: 474366 | DO73: 17965 | DP73: 0 | DQ73: 0 | DR73: 0 | DS73: 0 | DT73: 0 | DU73: 3656629 | DV73: 0 | DW73: 0 | DX73: 0 | DY73: 0 | DZ73: 0 | EA73: =EA166 -> 0 | EB73: 433945 | EC73: 0 | ED73: 0 | EE73: 0 | EF73: 0 | EG73: 0 | EH73: 178021 | EI73: 0 | EJ73: 0 | EK73: 0 | EL73: 27000 | EM73: 4668 | EN73: 321217 | EO73: 0 | EP73: 0 | EQ73: 42079 | ER73: 3145061 | ES73: 0 | ET73: 103181 | EU73: 0 | EV73: 438245 | EW73: 970 | EX73: 37900 | EY73: 96391 | EZ73: 127804 | FA73: 0 | FB73: 0 | FC73: 2284489 | FD73: 0 | FE73: 0 | FF73: 0 | FG73: 3175453 | FH73: 127029 | FI73: 246700 | FJ73: 0 | FK73: 0 | FL73: 65197 | FM73: 0 | FN73: 0 | FO73: 0 | FP73: 0 | FQ73: 0 | FR73: 0 | FS73: 0 | FT73: 0 | FU73: 0 | FV73: 0 | FW73: 0 | FX73: 11906962 | FY73: 2442514 | FZ73: 1637152 | GA73: 56240895 | GB73: 1216797 | GC73: 57457692
B74: Town of Stillwater | C74: =C167 -> 410380700000 | D74: Town of Stillwater | E74: Saratoga | F74: 12/31 | G74: 8287 | H74: 0 | I74: 41.2 | J74: 701705283 | K74: 4839200 | L74: 1854222 | M74: 0 | N74: 210656 | O74: 0 | P74: 429027 | Q74: 9895 | R74: 0 | S74: 0 | T74: 0 | U74: 1762684 | V74: 0 | W74: 0 | X74: 61871 | Y74: 0 | Z74: 0 | AA74: 0 | AB74: 8088 | AC74: 0 | AD74: 32 | AE74: 0 | AF74: 0 | AG74: 0 | AH74: 0 | AI74: 0 | AJ74: 0 | AK74: 44581 | AL74: 356693 | AM74: 42598 | AN74: 0 | AO74: 0 | AP74: 0 | AQ74: 1663 | AR74: 0 | AS74: 675 | AT74: 0 | AU74: 0 | AV74: 0 | AW74: 0 | AX74: 0 | AY74: 0 | AZ74: 0 | BA74: 9996 | BB74: 24000 | BC74: 0 | BD74: 87045 | BE74: 0 | BF74: 0 | BG74: 0 | BH74: 0 | BI74: 0 | BJ74: 0 | BK74: 179210 | BL74: 5082936 | BM74: 30907 | BN74: 249340 | BO74: =BO167 -> 0 | BP74: 0 | BQ74: 1015988 | BR74: 0 | BS74: 138126 | BT74: 0 | BU74: 0 | BV74: 0 | BW74: 0 | BX74: 0 | BY74: 0 | BZ74: 0 | CA74: 0 | CB74: 0 | CC74: 0 | CD74: 0 | CE74: 33753 | CF74: 0 | CG74: 0 | CH74: 0 | CI74: 0 | CJ74: 0 | CK74: 0 | CL74: 0 | CM74: 6551049 | CN74: 0 | CO74: 0 | CP74: 0 | CQ74: 0 | CR74: 0 | CS74: 6551049 | CT74: 207394 | CU74: 2259024 | CV74: 0 | CW74: 0 | CX74: 68717 | CY74: 83433 | CZ74: 0 | DA74: 0 | DB74: 0 | DC74: 0 | DD74: 0 | DE74: 0 | DF74: 0 | DG74: 2637 | DH74: 212014 | DI74: 0 | DJ74: 124600 | DK74: 0 | DL74: 0 | DM74: 0 | DN74: 168620 | DO74: 1000 | DP74: 0 | DQ74: 0 | DR74: 0 | DS74: 0 | DT74: 0 | DU74: 938417 | DV74: 25000 | DW74: 0 | DX74: 0 | DY74: 0 | DZ74: 0 | EA74: =EA167 -> 67570 | EB74: 32038 | EC74: 0 | ED74: 0 | EE74: 0 | EF74: 0 | EG74: 0 | EH74: 32393 | EI74: 0 | EJ74: 0 | EK74: 0 | EL74: 0 | EM74: 14940 | EN74: 0 | EO74: 1251 | EP74: 0 | EQ74: 0 | ER74: 127369 | ES74: 0 | ET74: 58000 | EU74: 132360 | EV74: 52192 | EW74: 0 | EX74: 5900 | EY74: 11931 | EZ74: 2000 | FA74: 0 | FB74: 5401 | FC74: 368852 | FD74: 0 | FE74: 0 | FF74: 0 | FG74: 41108 | FH74: 0 | FI74: 20900 | FJ74: 0 | FK74: 0 | FL74: 0 | FM74: 189291 | FN74: 21365 | FO74: 0 | FP74: 0 | FQ74: 99360 | FR74: 290531 | FS74: 1344 | FT74: 0 | FU74: 0 | FV74: 8293 | FW74: 0 | FX74: 7094 | FY74: 331400 | FZ74: 130932 | GA74: 6144670 | GB74: 0 | GC74: 6144670
B75: Village of Stillwater | C75: =C168 -> 410480704820 | D75: Village of Stillwater | E75: Saratoga | F75: 05/31 | G75: 1738 | H75: 0 | I75: 1.3 | J75: 86814885 | K75: 4915576 | L75: 284536 | M75: 0 | N75: 124234 | O75: 0 | P75: 0 | Q75: 4750 | R75: 0 | S75: 0 | T75: 0 | U75: 237435 | V75: 0 | W75: 0 | X75: 19650 | Y75: 0 | Z75: 0 | AA75: 0 | AB75: 530 | AC75: 0 | AD75: 0 | AE75: 440 | AF75: 0 | AG75: 0 | AH75: 0 | AI75: 0 | AJ75: 0 | AK75: 2710 | AL75: 390235 | AM75: 194149 | AN75: 0 | AO75: 0 | AP75: 0 | AQ75: 0 | AR75: 0 | AS75: 0 | AT75: 0 | AU75: 0 | AV75: 0 | AW75: 0 | AX75: 0 | AY75: 0 | AZ75: 0 | BA75: 1236 | BB75: 2600 | BC75: 0 | BD75: 0 | BE75: 0 | BF75: 0 | BG75: 0 | BH75: 0 | BI75: 0 | BJ75: 0 | BK75: 3767 | BL75: 1266270 | BM75: 10525 | BN75: 14609 | BO75: =BO168 -> 0 | BP75: 0 | BQ75: 1429 | BR75: 0 | BS75: 26500 | BT75: 0 | BU75: 0 | BV75: 0 | BW75: 0 | BX75: 0 | BY75: 0 | BZ75: 0 | CA75: 0 | CB75: 0 | CC75: 0 | CD75: 0 | CE75: 0 | CF75: 0 | CG75: 0 | CH75: 0 | CI75: 0 | CJ75: 610281 | CK75: 0 | CL75: 0 | CM75: 1929614 | CN75: 370000 | CO75: 26500 | CP75: 0 | CQ75: 20000 | CR75: 0 | CS75: 2346114 | CT75: 116843 | CU75: 65210 | CV75: 0 | CW75: 0 | CX75: 340 | CY75: 248 | CZ75: 0 | DA75: 0 | DB75: 0 | DC75: 0 | DD75: 0 | DE75: 0 | DF75: 0 | DG75: 0 | DH75: 143 | DI75: 33538 | DJ75: 0 | DK75: 0 | DL75: 0 | DM75: 0 | DN75: 6080 | DO75: 440 | DP75: 0 | DQ75: 0 | DR75: 0 | DS75: 0 | DT75: 0 | DU75: 106860 | DV75: 0 | DW75: 0 | DX75: 0 | DY75: 0 | DZ75: 0 | EA75: =EA168 -> 0 | EB75: 19249 | EC75: 0 | ED75: 0 | EE75: 0 | EF75: 0 | EG75: 0 | EH75: 0 | EI75: 0 | EJ75: 0 | EK75: 0 | EL75: 0 | EM75: 0 | EN75: 0 | EO75: 0 | EP75: 0 | EQ75: 0 | ER75: 9717 | ES75: 0 | ET75: 0 | EU75: 0 | EV75: 1261 | EW75: 800 | EX75: 0 | EY75: 0 | EZ75: 744 | FA75: 0 | FB75: 0 | FC75: 4127615 | FD75: 0 | FE75: 0 | FF75: 0 | FG75: 319850 | FH75: 0 | FI75: 1338 | FJ75: 0 | FK75: 17104 | FL75: 0 | FM75: 30621 | FN75: 0 | FO75: 0 | FP75: 0 | FQ75: 18512 | FR75: 50076 | FS75: 237 | FT75: 0 | FU75: 25099 | FV75: 1143 | FW75: 0 | FX75: 0 | FY75: 528500 | FZ75: 23718 | GA75: 5505283 | GB75: 20000 | GC75: 5525283
B76: Town of Waterford | C76: =C169 -> 410387500000 | D76: Town of Waterford | E76: Saratoga | F76: 12/31 | G76: 8423 | H76: 0 | I76: 6.6 | J76: 558795662 | K76: 6914303 | L76: 3141445 | M76: 0 | N76: 240455 | O76: 0 | P76: 2941 | Q76: 17235 | R76: 0 | S76: 0 | T76: 0 | U76: 1493491 | V76: 0 | W76: 0 | X76: 111491 | Y76: 0 | Z76: 0 | AA76: 0 | AB76: 3077 | AC76: 0 | AD76: 1065 | AE76: 0 | AF76: 0 | AG76: 0 | AH76: 0 | AI76: 0 | AJ76: 16406 | AK76: 38102 | AL76: 0 | AM76: 780018 | AN76: 0 | AO76: 10070 | AP76: 0 | AQ76: 0 | AR76: 0 | AS76: 0 | AT76: 0 | AU76: 0 | AV76: 0 | AW76: 0 | AX76: 0 | AY76: 7833 | AZ76: 0 | BA76: 3622 | BB76: 11836 | BC76: 0 | BD76: 38552 | BE76: 0 | BF76: 72089 | BG76: 0 | BH76: 0 | BI76: 300 | BJ76: 0 | BK76: 37736 | BL76: 6027764 | BM76: 41170 | BN76: 169747 | BO76: =BO169 -> 15538 | BP76: 0 | BQ76: 40155 | BR76: 0 | BS76: 0 | BT76: 0 | BU76: 0 | BV76: 69465 | BW76: 0 | BX76: 0 | BY76: 0 | BZ76: 12240 | CA76: 0 | CB76: 110217 | CC76: 0 | CD76: 0 | CE76: 290234 | CF76: 0 | CG76: 0 | CH76: 0 | CI76: 0 | CJ76: 0 | CK76: 0 | CL76: 0 | CM76: 6776530 | CN76: 0 | CO76: 109626 | CP76: 0 | CQ76: 759739 | CR76: 0 | CS76: 7645895 | CT76: 151487 | CU76: 576953 | CV76: 0 | CW76: 0 | CX76: 49723 | CY76: 0 | CZ76: 0 | DA76: 0 | DB76: 0 | DC76: 0 | DD76: 0 | DE76: 0 | DF76: 486 | DG76: 66199 | DH76: 946912 | DI76: 186293 | DJ76: 340738 | DK76: 0 | DL76: 0 | DM76: 0 | DN76: 57137 | DO76: 0 | DP76: 0 | DQ76: 0 | DR76: 0 | DS76: 0 | DT76: 0 | DU76: 475116 | DV76: 0 | DW76: 0 | DX76: 0 | DY76: 0 | DZ76: 0 | EA76: =EA169 -> 139367 | EB76: 52254 | EC76: 0 | ED76: 0 | EE76: 0 | EF76: 0 | EG76: 0 | EH76: 290234 | EI76: 0 | EJ76: 0 | EK76: 0 | EL76: 0 | EM76: 0 | EN76: 0 | EO76: 0 | EP76: 0 | EQ76: 0 | ER76: 251619 | ES76: 0 | ET76: 22761 | EU76: 2000 | EV76: 35237 | EW76: 45127 | EX76: 58759 | EY76: 876 | EZ76: 0 | FA76: 0 | FB76: 0 | FC76: 0 | FD76: 0 | FE76: 0 | FF76: 0 | FG76: 781937 | FH76: 0 | FI76: 278830 | FJ76: 11908 | FK76: 0 | FL76: 0 | FM76: 216394 | FN76: 146001 | FO76: 0 | FP76: 0 | FQ76: 163477 | FR76: 376135 | FS76: 1098 | FT76: 0 | FU76: 0 | FV76: 109 | FW76: 0 | FX76: 0 | FY76: 625734 | FZ76: 321000 | GA76: 6671901 | GB76: 759739 | GC76: 7431640
B77: Village of Waterford | C77: =C170 -> 410487505180 | D77: Village of Waterford | E77: Saratoga | F77: 05/31 | G77: 1990 | H77: 0 | I77: 0.3 | J77: 58603869 | K77: 603500 | L77: 256342 | M77: 0 | N77: 0 | O77: 0 | P77: 0 | Q77: 4533 | R77: 0 | S77: 0 | T77: 0 | U77: 151643 | V77: 0 | W77: 0 | X77: 19163 | Y77: 0 | Z77: 0 | AA77: 0 | AB77: 63758 | AC77: 0 | AD77: 0 | AE77: 0 | AF77: 0 | AG77: 0 | AH77: 0 | AI77: 0 | AJ77: 4920 | AK77: 1846 | AL77: 0 | AM77: 0 | AN77: 0 | AO77: 0 | AP77: 0 | AQ77: 186293 | AR77: 0 | AS77: 0 | AT77: 0 | AU77: 0 | AV77: 0 | AW77: 0 | AX77: 0 | AY77: 0 | AZ77: 0 | BA77: 1163 | BB77: 0 | BC77: 0 | BD77: 0 | BE77: 0 | BF77: 1600 | BG77: 0 | BH77: 0 | BI77: 0 | BJ77: 0 | BK77: 0 | BL77: 691261 | BM77: 67861 | BN77: 7654 | BO77: =BO170 -> 0 | BP77: 0 | BQ77: 0 | BR77: 0 | BS77: 29596 | BT77: 0 | BU77: 0 | BV77: 1028 | BW77: 0 | BX77: 0 | BY77: 0 | BZ77: 0 | CA77: 0 | CB77: 28193 | CC77: 0 | CD77: 0 | CE77: 335133 | CF77: 0 | CG77: 0 | CH77: 0 | CI77: 0 | CJ77: 0 | CK77: 0 | CL77: 0 | CM77: 1160725 | CN77: 0 | CO77: 18000 | CP77: 0 | CQ77: 11300 | CR77: 0 | CS77: 1190025 | CT77: 11964 | CU77: 106678 | CV77: 0 | CW77: 0 | CX77: 6229 | CY77: 0 | CZ77: 0 | DA77: 0 | DB77: 0 | DC77: 0 | DD77: 0 | DE77: 0 | DF77: 0 | DG77: 0 | DH77: 0 | DI77: 153793 | DJ77: 0 | DK77: 0 | DL77: 0 | DM77: 0 | DN77: 6028 | DO77: 0 | DP77: 0 | DQ77: 0 | DR77: 0 | DS77: 0 | DT77: 0 | DU77: 265442 | DV77: 0 | DW77: 0 | DX77: 0 | DY77: 0 | DZ77: 0 | EA77: =EA170 -> 0 | EB77: 67365 | EC77: 0 | ED77: 0 | EE77: 0 | EF77: 0 | EG77: 0 | EH77: 302839 | EI77: 0 | EJ77: 0 | EK77: 0 | EL77: 0 | EM77: 0 | EN77: 0 | EO77: 0 | EP77: 0 | EQ77: 0 | ER77: 48473 | ES77: 0 | ET77: 0 | EU77: 0 | EV77: 3610 | EW77: 0 | EX77: 0 | EY77: 0 | EZ77: 590 | FA77: 0 | FB77: 0 | FC77: 0 | FD77: 0 | FE77: 0 | FF77: 0 | FG77: 0 | FH77: 0 | FI77: 155728 | FJ77: 0 | FK77: 0 | FL77: 12165 | FM77: 5009 | FN77: 0 | FO77: 0 | FP77: 0 | FQ77: 7690 | FR77: 0 | FS77: 0 | FT77: 0 | FU77: 119 | FV77: 0 | FW77: 0 | FX77: 0 | FY77: 86500 | FZ77: 18566 | GA77: 1258788 | GB77: 11300 | GC77: 1270088
B78: Town of Wilton | C78: =C171 -> 410391700000 | D78: Town of Wilton | E78: Saratoga | F78: 12/31 | G78: 16173 | H78: 0 | I78: 35.8 | J78: 1904090926 | K78: 175000 | L78: 657034 | M78: 0 | N78: 0 | O78: 0 | P78: 0 | Q78: 9782 | R78: 0 | S78: 0 | T78: 0 | U78: 5231122 | V78: 0 | W78: 0 | X78: 268899 | Y78: 0 | Z78: 17 | AA78: 0 | AB78: 59513 | AC78: 0 | AD78: 490 | AE78: 1910 | AF78: 0 | AG78: 0 | AH78: 0 | AI78: 722 | AJ78: 437226 | AK78: 219168 | AL78: 0 | AM78: 0 | AN78: 0 | AO78: 0 | AP78: 0 | AQ78: 277 | AR78: 0 | AS78: 0 | AT78: 0 | AU78: 0 | AV78: 0 | AW78: 0 | AX78: 0 | AY78: 16106 | AZ78: 0 | BA78: 47141 | BB78: 1398 | BC78: 8760 | BD78: 210228 | BE78: 752 | BF78: 10557 | BG78: 0 | BH78: 0 | BI78: 0 | BJ78: 0 | BK78: 3033 | BL78: 7184135 | BM78: 25546 | BN78: 829469 | BO78: =BO171 -> 30000 | BP78: 0 | BQ78: 144952 | BR78: 0 | BS78: 124148 | BT78: 0 | BU78: 0 | BV78: 2443 | BW78: 0 | BX78: 0 | BY78: 0 | BZ78: 0 | CA78: 0 | CB78: 0 | CC78: 0 | CD78: 0 | CE78: 145888 | CF78: 0 | CG78: 0 | CH78: 0 | CI78: 0 | CJ78: 0 | CK78: 0 | CL78: 0 | CM78: 8486582 | CN78: 0 | CO78: 0 | CP78: 0 | CQ78: 142 | CR78: 0 | CS78: 8486724 | CT78: 451769 | CU78: 1009850 | CV78: 0 | CW78: 0 | CX78: 85315 | CY78: 0 | CZ78: 0 | DA78: 0 | DB78: 0 | DC78: 0 | DD78: 0 | DE78: 0 | DF78: 0 | DG78: 0 | DH78: 31778 | DI78: 161428 | DJ78: 632000 | DK78: 0 | DL78: 939 | DM78: 0 | DN78: 36337 | DO78: 1125 | DP78: 0 | DQ78: 0 | DR78: 5868 | DS78: 0 | DT78: 0 | DU78: 1757310 | DV78: 0 | DW78: 0 | DX78: 0 | DY78: 0 | DZ78: 0 | EA78: =EA171 -> 664560 | EB78: 13105 | EC78: 0 | ED78: 0 | EE78: 0 | EF78: 0 | EG78: 0 | EH78: 145888 | EI78: 0 | EJ78: 0 | EK78: 0 | EL78: 0 | EM78: 0 | EN78: 0 | EO78: 0 | EP78: 0 | EQ78: 0 | ER78: 503773 | ES78: 0 | ET78: 275444 | EU78: 0 | EV78: 47855 | EW78: 0 | EX78: 152796 | EY78: 19073 | EZ78: 80000 | FA78: 0 | FB78: 0 | FC78: 0 | FD78: 0 | FE78: 0 | FF78: 0 | FG78: 0 | FH78: 0 | FI78: 16214 | FJ78: 0 | FK78: 0 | FL78: 0 | FM78: 396328 | FN78: 0 | FO78: 0 | FP78: 11989 | FQ78: 187949 | FR78: 483468 | FS78: 3978 | FT78: 0 | FU78: 0 | FV78: 11150 | FW78: 0 | FX78: 17410 | FY78: 170000 | FZ78: 7800 | GA78: 7382499 | GB78: 142 | GC78: 7382641
B79: Schenectady County | C79: =C172 -> 420100000000 | D79: County of Schenectady | E79: Schenectady | F79: 12/31 | G79: 154727 | H79: 0 | I79: 204.5 | J79: 10078419665 | K79: 53024236 | L79: 62283259 | M79: 0 | N79: 0 | O79: 0 | P79: 1029929 | Q79: 1841389 | R79: 0 | S79: 0 | T79: 90985636 | U79: 0 | V79: 0 | W79: 408539 | X79: 0 | Y79: 568812 | Z79: 0 | AA79: 0 | AB79: 4726642 | AC79: 0 | AD79: 457353 | AE79: 20014849 | AF79: 0 | AG79: 828040 | AH79: 2302806 | AI79: 16244 | AJ79: 618995 | AK79: 776823 | AL79: 0 | AM79: 148426 | AN79: 0 | AO79: 1616741 | AP79: 493862 | AQ79: 204885 | AR79: 0 | AS79: 2118043 | AT79: 0 | AU79: 3000 | AV79: 64535 | AW79: 0 | AX79: 0 | AY79: 1441332 | AZ79: 0 | BA79: 317202 | BB79: 223653 | BC79: 242121 | BD79: 235202 | BE79: 55338 | BF79: 2465688 | BG79: 0 | BH79: 0 | BI79: 414085 | BJ79: 0 | BK79: 9444755 | BL79: 206348184 | BM79: 0 | BN79: 0 | BO79: =BO172 -> 629799 | BP79: 7042647 | BQ79: 3254716 | BR79: 6463687 | BS79: 1643056 | BT79: 24444948 | BU79: 6661 | BV79: 146078 | BW79: 1166931 | BX79: 0 | BY79: 0 | BZ79: 125300 | CA79: 0 | CB79: 1423120 | CC79: 1553200 | CD79: 304290 | CE79: 25958008 | CF79: 966502 | CG79: 0 | CH79: 926629 | CI79: 0 | CJ79: 0 | CK79: 0 | CL79: 1730547 | CM79: 284134303 | CN79: 4626778 | CO79: 0 | CP79: 0 | CQ79: 1740904 | CR79: 0 | CS79: 290501985 | CT79: 5047525 | CU79: 13410830 | CV79: 30330609 | CW79: 630040 | CX79: 765111 | CY79: 0 | CZ79: 0 | DA79: 0 | DB79: 0 | DC79: 0 | DD79: 0 | DE79: 10825800 | DF79: 8070304 | DG79: 594234 | DH79: 2387330 | DI79: 0 | DJ79: 182443 | DK79: 19687971 | DL79: 0 | DM79: 612021 | DN79: 0 | DO79: 615387 | DP79: 3014700 | DQ79: 3477536 | DR79: 652689 | DS79: 18737718 | DT79: 2669367 | DU79: 9662615 | DV79: 0 | DW79: 316305 | DX79: 585301 | DY79: 0 | DZ79: 0 | EA79: =EA172 -> 3099838 | EB79: 0 | EC79: 182320 | ED79: 17698014 | EE79: 32529710 | EF79: 35530241 | EG79: 14044216 | EH79: 0 | EI79: 2054385 | EJ79: 1490605 | EK79: 0 | EL79: 0 | EM79: 943124 | EN79: 34156 | EO79: 80600 | EP79: 0 | EQ79: 779199 | ER79: 109367 | ES79: 0 | ET79: 540789 | EU79: 6194696 | EV79: 282372 | EW79: 58097 | EX79: 406100 | EY79: 2673613 | EZ79: 119540 | FA79: 0 | FB79: 248788 | FC79: 0 | FD79: 0 | FE79: 0 | FF79: 0 | FG79: 0 | FH79: 0 | FI79: 342224 | FJ79: 0 | FK79: 0 | FL79: 0 | FM79: 7037927 | FN79: 0 | FO79: 0 | FP79: 0 | FQ79: 4042416 | FR79: 13991028 | FS79: 0 | FT79: 0 | FU79: 1063067 | FV79: 75483 | FW79: 0 | FX79: 10281161 | FY79: 6899819 | FZ79: 2070631 | GA79: 297179362 | GB79: 1740904 | GC79: 298920266
B80: Town of Duanesburg | C80: =C173 -> 420324200000 | D80: Town of Duanesburg | E80: Schenectady | F80: 12/31 | G80: 6122 | H80: 0 | I80: 70.8 | J80: 483543066 | K80: 6383257 | L80: 1575978 | M80: 0 | N80: 0 | O80: 0 | P80: 0 | Q80: 15174 | R80: 0 | S80: 0 | T80: 0 | U80: 682001 | V80: 0 | W80: 0 | X80: 37338 | Y80: 0 | Z80: 0 | AA80: 0 | AB80: 7983 | AC80: 0 | AD80: 0 | AE80: 0 | AF80: 0 | AG80: 0 | AH80: 0 | AI80: 0 | AJ80: 1511 | AK80: 18300 | AL80: 0 | AM80: 1647 | AN80: 0 | AO80: 0 | AP80: 0 | AQ80: 0 | AR80: 0 | AS80: 14920 | AT80: 0 | AU80: 0 | AV80: 0 | AW80: 0 | AX80: 0 | AY80: 0 | AZ80: 0 | BA80: 3154 | BB80: 5294 | BC80: 0 | BD80: 136972 | BE80: 0 | BF80: 379 | BG80: 0 | BH80: 0 | BI80: 1 | BJ80: 0 | BK80: 4454 | BL80: 2505105 | BM80: 20653 | BN80: 158015 | BO80: =BO173 -> 0 | BP80: 0 | BQ80: 132787 | BR80: 0 | BS80: 21325 | BT80: 0 | BU80: 0 | BV80: 837 | BW80: 0 | BX80: 0 | BY80: 0 | BZ80: 0 | CA80: 0 | CB80: 0 | CC80: 0 | CD80: 0 | CE80: 0 | CF80: 83391 | CG80: 0 | CH80: 0 | CI80: 0 | CJ80: 0 | CK80: 0 | CL80: 0 | CM80: 2922113 | CN80: 0 | CO80: 0 | CP80: 0 | CQ80: 0 | CR80: 0 | CS80: 2922113 | CT80: 133872 | CU80: 288279 | CV80: 0 | CW80: 0 | CX80: 143601 | CY80: 0 | CZ80: 0 | DA80: 0 | DB80: 0 | DC80: 0 | DD80: 0 | DE80: 0 | DF80: 0 | DG80: 10000 | DH80: 0 | DI80: 369141 | DJ80: 70462 | DK80: 0 | DL80: 0 | DM80: 0 | DN80: 10648 | DO80: 876 | DP80: 0 | DQ80: 0 | DR80: 0 | DS80: 0 | DT80: 0 | DU80: 574441 | DV80: 0 | DW80: 0 | DX80: 0 | DY80: 0 | DZ80: 0 | EA80: =EA173 -> 77907 | EB80: 13193 | EC80: 0 | ED80: 2500 | EE80: 0 | EF80: 0 | EG80: 0 | EH80: 0 | EI80: 0 | EJ80: 0 | EK80: 0 | EL80: 0 | EM80: 0 | EN80: 86981 | EO80: 1219 | EP80: 0 | EQ80: 0 | ER80: 21867 | ES80: 0 | ET80: 5805 | EU80: 0 | EV80: 2167 | EW80: 0 | EX80: 0 | EY80: 2500 | EZ80: 0 | FA80: 0 | FB80: 0 | FC80: 0 | FD80: 0 | FE80: 0 | FF80: 0 | FG80: 228081 | FH80: 0 | FI80: 22440 | FJ80: 0 | FK80: 0 | FL80: 0 | FM80: 107403 | FN80: 0 | FO80: 0 | FP80: 0 | FQ80: 52619 | FR80: 152889 | FS80: 278 | FT80: 0 | FU80: 33227 | FV80: 0 | FW80: 0 | FX80: 50259 | FY80: 303200 | FZ80: 2933 | GA80: 2768788 | GB80: 0 | GC80: 2768788
B81: Village of Delanson | C81: =C174 -> 420424201250 | D81: Village of Delanson | E81: Schenectady | F81: 05/31 | G81: 377 | H81: 0 | I81: 0.6 | J81: 19368165 | K81: 400600 | L81: 70050 | M81: 0 | N81: 0 | O81: 0 | P81: 0 | Q81: 5648 | R81: 0 | S81: 0 | T81: 0 | U81: 25793 | V81: 0 | W81: 0 | X81: 7484 | Y81: 0 | Z81: 0 | AA81: 0 | AB81: 0 | AC81: 0 | AD81: 0 | AE81: 0 | AF81: 0 | AG81: 0 | AH81: 0 | AI81: 0 | AJ81: 0 | AK81: 30 | AL81: 78543 | AM81: 0 | AN81: 0 | AO81: 0 | AP81: 0 | AQ81: 62637 | AR81: 0 | AS81: 0 | AT81: 0 | AU81: 0 | AV81: 0 | AW81: 0 | AX81: 0 | AY81: 0 | AZ81: 0 | BA81: 77 | BB81: 0 | BC81: 0 | BD81: 0 | BE81: 0 | BF81: 5362 | BG81: 0 | BH81: 0 | BI81: 515 | BJ81: 0 | BK81: 0 | BL81: 256139 | BM81: 4649 | BN81: 3730 | BO81: =BO174 -> 0 | BP81: 0 | BQ81: 0 | BR81: 0 | BS81: 26653 | BT81: 0 | BU81: 0 | BV81: 0 | BW81: 0 | BX81: 0 | BY81: 0 | BZ81: 0 | CA81: 0 | CB81: 0 | CC81: 0 | CD81: 0 | CE81: 0 | CF81: 0 | CG81: 0 | CH81: 0 | CI81: 0 | CJ81: 0 | CK81: 0 | CL81: 0 | CM81: 291171 | CN81: 0 | CO81: 0 | CP81: 0 | CQ81: 0 | CR81: 0 | CS81: 291171 | CT81: 23451 | CU81: 28864 | CV81: 0 | CW81: 0 | CX81: 1975 | CY81: 0 | CZ81: 0 | DA81: 0 | DB81: 0 | DC81: 0 | DD81: 0 | DE81: 0 | DF81: 0 | DG81: 0 | DH81: 0 | DI81: 59162 | DJ81: 0 | DK81: 0 | DL81: 0 | DM81: 0 | DN81: 600 | DO81: 50 | DP81: 0 | DQ81: 0 | DR81: 0 | DS81: 0 | DT81: 0 | DU81: 30295 | DV81: 0 | DW81: 0 | DX81: 0 | DY81: 0 | DZ81: 0 | EA81: =EA174 -> 0 | EB81: 4767 | EC81: 0 | ED81: 0 | EE81: 0 | EF81: 0 | EG81: 0 | EH81: 0 | EI81: 0 | EJ81: 0 | EK81: 0 | EL81: 0 | EM81: 0 | EN81: 0 | EO81: 0 | EP81: 0 | EQ81: 0 | ER81: 1183 | ES81: 0 | ET81: 0 | EU81: 0 | EV81: 130 | EW81: 0 | EX81: 0 | EY81: 0 | EZ81: 0 | FA81: 0 | FB81: 0 | FC81: 39519 | FD81: 0 | FE81: 0 | FF81: 0 | FG81: 0 | FH81: 0 | FI81: 29256 | FJ81: 0 | FK81: 0 | FL81: 0 | FM81: 2365 | FN81: 0 | FO81: 0 | FP81: 0 | FQ81: 3608 | FR81: 0 | FS81: 0 | FT81: 0 | FU81: 2000 | FV81: 0 | FW81: 0 | FX81: 0 | FY81: 21800 | FZ81: 21062 | GA81: 270087 | GB81: 0 | GC81: 270087
B82: Town of Glenville | C82: =C175 -> 420333100000 | D82: Town of Glenville | E82: Schenectady | F82: 12/31 | G82: 29480 | H82: 0 | I82: 49.2 | J82: 2197668692 | K82: 19164327 | L82: 7901084 | M82: 0 | N82: 74953 | O82: 0 | P82: 115110 | Q82: 70729 | R82: 0 | S82: 0 | T82: 0 | U82: 2628970 | V82: 0 | W82: 0 | X82: 331041 | Y82: 0 | Z82: 0 | AA82: 0 | AB82: 53223 | AC82: 0 | AD82: 110409 | AE82: 14230 | AF82: 0 | AG82: 0 | AH82: 0 | AI82: 423256 | AJ82: 64400 | AK82: 65150 | AL82: 1137818 | AM82: 346062 | AN82: 0 | AO82: 4000 | AP82: 0 | AQ82: 19965 | AR82: 0 | AS82: 120272 | AT82: 0 | AU82: 0 | AV82: 0 | AW82: 220291 | AX82: 15447 | AY82: 0 | AZ82: 930 | BA82: 195447 | BB82: 21230 | BC82: 54564 | BD82: 198810 | BE82: 1967 | BF82: 50071 | BG82: 0 | BH82: 1822 | BI82: 40 | BJ82: 76461 | BK82: 762629 | BL82: 15080381 | BM82: 176465 | BN82: 631380 | BO82: =BO175 -> 0 | BP82: 0 | BQ82: 8899 | BR82: 0 | BS82: 312924 | BT82: 0 | BU82: 0 | BV82: 0 | BW82: 0 | BX82: 0 | BY82: 0 | BZ82: 16733 | CA82: 0 | CB82: 220604 | CC82: 0 | CD82: 0 | CE82: 324966 | CF82: 0 | CG82: 0 | CH82: 59480 | CI82: 0 | CJ82: 0 | CK82: 0 | CL82: 0 | CM82: 16831832 | CN82: 3375000 | CO82: 311724 | CP82: 0 | CQ82: 50139 | CR82: 0 | CS82: 20568695 | CT82: 279617 | CU82: 941069 | CV82: 0 | CW82: 0 | CX82: 255310 | CY82: 0 | CZ82: 0 | DA82: 0 | DB82: 0 | DC82: 0 | DD82: 0 | DE82: 0 | DF82: 0 | DG82: 0 | DH82: 3025127 | DI82: 396353 | DJ82: 0 | DK82: 0 | DL82: 0 | DM82: 0 | DN82: 210062 | DO82: 4242 | DP82: 0 | DQ82: 0 | DR82: 0 | DS82: 0 | DT82: 0 | DU82: 2070862 | DV82: 0 | DW82: 0 | DX82: 0 | DY82: 0 | DZ82: 0 | EA82: =EA175 -> 413860 | EB82: 38922 | EC82: 0 | ED82: 0 | EE82: 0 | EF82: 0 | EG82: 0 | EH82: 286763 | EI82: 0 | EJ82: 0 | EK82: 0 | EL82: 0 | EM82: 42215 | EN82: 55480 | EO82: 0 | EP82: 0 | EQ82: 2200 | ER82: 314819 | ES82: 0 | ET82: 17000 | EU82: 0 | EV82: 9295 | EW82: 0 | EX82: 53621 | EY82: 0 | EZ82: 0 | FA82: 0 | FB82: 0 | FC82: 1132099 | FD82: 0 | FE82: 0 | FF82: 0 | FG82: 730879 | FH82: 0 | FI82: 4228 | FJ82: 0 | FK82: 16629 | FL82: 0 | FM82: 588728 | FN82: 509142 | FO82: 0 | FP82: 0 | FQ82: 422001 | FR82: 1667691 | FS82: 8019 | FT82: 0 | FU82: 159744 | FV82: 11426 | FW82: 0 | FX82: 0 | FY82: 1262868 | FZ82: 529909 | GA82: 15460180 | GB82: 50139 | GC82: 15510319
B83: Village of Scotia | C83: =C176 -> 420433104500 | D83: Village of Scotia | E83: Schenectady | F83: 05/31 | G83: 7729 | H83: 0 | I83: 1.7 | J83: 400657975 | K83: 712460 | L83: 4095223 | M83: 0 | N83: 21000 | O83: 0 | P83: 73396 | Q83: 28467 | R83: 0 | S83: 0 | T83: 0 | U83: 690910 | V83: 89124 | W83: 0 | X83: 0 | Y83: 0 | Z83: 0 | AA83: 0 | AB83: 243599 | AC83: 0 | AD83: 66104 | AE83: 0 | AF83: 0 | AG83: 0 | AH83: 0 | AI83: 0 | AJ83: 8148 | AK83: 67008 | AL83: 773911 | AM83: 1187902 | AN83: 0 | AO83: 0 | AP83: 0 | AQ83: 396353 | AR83: 0 | AS83: 11222 | AT83: 0 | AU83: 7500 | AV83: 0 | AW83: 0 | AX83: 0 | AY83: 0 | AZ83: 0 | BA83: 4164 | BB83: 16805 | BC83: 0 | BD83: 74860 | BE83: 0 | BF83: 61274 | BG83: 0 | BH83: 0 | BI83: 125 | BJ83: 0 | BK83: 9981 | BL83: 7927076 | BM83: 69897 | BN83: 56540 | BO83: =BO176 -> 0 | BP83: 0 | BQ83: 113563 | BR83: 0 | BS83: 0 | BT83: 0 | BU83: 0 | BV83: 2408 | BW83: 0 | BX83: 0 | BY83: 0 | BZ83: 713790 | CA83: 0 | CB83: 340690 | CC83: 0 | CD83: 0 | CE83: 642029 | CF83: 0 | CG83: 0 | CH83: 0 | CI83: 0 | CJ83: 0 | CK83: 0 | CL83: 0 | CM83: 9865993 | CN83: 0 | CO83: 0 | CP83: 0 | CQ83: 0 | CR83: 0 | CS83: 9865993 | CT83: 295506 | CU83: 493332 | CV83: 0 | CW83: 0 | CX83: 0 | CY83: 0 | CZ83: 0 | DA83: 0 | DB83: 0 | DC83: 0 | DD83: 0 | DE83: 0 | DF83: 0 | DG83: 0 | DH83: 1225802 | DI83: 1161946 | DJ83: 0 | DK83: 0 | DL83: 0 | DM83: 0 | DN83: 35486 | DO83: 97 | DP83: 0 | DQ83: 0 | DR83: 0 | DS83: 0 | DT83: 0 | DU83: 352052 | DV83: 0 | DW83: 0 | DX83: 0 | DY83: 0 | DZ83: 0 | EA83: =EA176 -> 0 | EB83: 86771 | EC83: 0 | ED83: 0 | EE83: 0 | EF83: 0 | EG83: 0 | EH83: 657418 | EI83: 0 | EJ83: 0 | EK83: 0 | EL83: 0 | EM83: 0 | EN83: 0 | EO83: 0 | EP83: 0 | EQ83: 1391 | ER83: 686636 | ES83: 0 | ET83: 69802 | EU83: 0 | EV83: 34189 | EW83: 0 | EX83: 0 | EY83: 3000 | EZ83: 11168 | FA83: 0 | FB83: 21000 | FC83: 540493 | FD83: 0 | FE83: 0 | FF83: 0 | FG83: 1401721 | FH83: 75053 | FI83: 607574 | FJ83: 0 | FK83: 0 | FL83: 0 | FM83: 141122 | FN83: 450536 | FO83: 0 | FP83: 0 | FQ83: 243052 | FR83: 887655 | FS83: 0 | FT83: 0 | FU83: 35098 | FV83: 0 | FW83: 0 | FX83: 0 | FY83: 237910 | FZ83: 40491 | GA83: 9796301 | GB83: 0 | GC83: 9796301
B84: Town of Niskayuna | C84: =C177 -> 420358700000 | D84: Town of Niskayuna | E84: Schenectady | F84: 12/31 | G84: 21781 | H84: 0 | I84: 14.2 | J84: 2435313092 | K84: 9709441 | L84: 7141573 | M84: 0 | N84: 3643049 | O84: 0 | P84: 383777 | Q84: 60504 | R84: 0 | S84: 0 | T84: 0 | U84: 3250319 | V84: 0 | W84: 0 | X84: 375064 | Y84: 0 | Z84: 0 | AA84: 0 | AB84: 44537 | AC84: 0 | AD84: 78966 | AE84: 29837 | AF84: 0 | AG84: 0 | AH84: 0 | AI84: 0 | AJ84: 384898 | AK84: 298736 | AL84: 2892801 | AM84: 305519 | AN84: 0 | AO84: 0 | AP84: 0 | AQ84: 0 | AR84: 0 | AS84: 0 | AT84: 0 | AU84: 0 | AV84: 0 | AW84: 5579 | AX84: 0 | AY84: 18778 | AZ84: 6104 | BA84: 26562 | BB84: 587934 | BC84: 113374 | BD84: 279207 | BE84: 26875 | BF84: 58124 | BG84: 0 | BH84: 0 | BI84: 14541 | BJ84: 0 | BK84: 1889 | BL84: 20028548 | BM84: 101675 | BN84: 925762 | BO84: =BO177 -> 185 | BP84: 0 | BQ84: 60720 | BR84: 0 | BS84: 108548 | BT84: 0 | BU84: 0 | BV84: 4673 | BW84: 0 | BX84: 0 | BY84: 0 | BZ84: 0 | CA84: 0 | CB84: 187952 | CC84: 0 | CD84: 0 | CE84: 286025 | CF84: 0 | CG84: 0 | CH84: 0 | CI84: 0 | CJ84: 84709 | CK84: 4832 | CL84: 16438 | CM84: 21810068 | CN84: 0 | CO84: 0 | CP84: 0 | CQ84: 588962 | CR84: 0 | CS84: 22399030 | CT84: 1139498 | CU84: 1022099 | CV84: 0 | CW84: 0 | CX84: 139233 | CY84: 31756 | CZ84: 0 | DA84: 0 | DB84: 0 | DC84: 0 | DD84: 0 | DE84: 0 | DF84: 0 | DG84: 13795 | DH84: 3133363 | DI84: 0 | DJ84: 0 | DK84: 0 | DL84: 0 | DM84: 0 | DN84: 158135 | DO84: 31610 | DP84: 0 | DQ84: 0 | DR84: 0 | DS84: 0 | DT84: 0 | DU84: 2494332 | DV84: 0 | DW84: 0 | DX84: 0 | DY84: 0 | DZ84: 0 | EA84: =EA177 -> 475719 | EB84: 35858 | EC84: 0 | ED84: 0 | EE84: 0 | EF84: 0 | EG84: 0 | EH84: 280744 | EI84: 0 | EJ84: 0 | EK84: 0 | EL84: 0 | EM84: 0 | EN84: 0 | EO84: 0 | EP84: 0 | EQ84: 300 | ER84: 738075 | ES84: 0 | ET84: 189803 | EU84: 0 | EV84: 10344 | EW84: 0 | EX84: 500 | EY84: 109538 | EZ84: 4959 | FA84: 0 | FB84: 0 | FC84: 2511799 | FD84: 0 | FE84: 0 | FF84: 0 | FG84: 2305702 | FH84: 46065 | FI84: 329048 | FJ84: 0 | FK84: 0 | FL84: 0 | FM84: 1043288 | FN84: 570505 | FO84: 0 | FP84: 0 | FQ84: 644858 | FR84: 1952067 | FS84: 8797 | FT84: 0 | FU84: 175009 | FV84: 15100 | FW84: 27574 | FX84: 13055 | FY84: 943382 | FZ84: 251347 | GA84: 20847257 | GB84: 588962 | GC84: 21436219
B85: Town of Princetown | C85: =C178 -> 420369200000 | D85: Town of Princetown | E85: Schenectady | F85: 12/31 | G85: 2115 | H85: 0 | I85: 23.9 | J85: 178036505 | K85: 2616300 | L85: 451219 | M85: 0 | N85: 0 | O85: 0 | P85: 0 | Q85: 3864 | R85: 0 | S85: 81596 | T85: 0 | U85: 179248 | V85: 0 | W85: 0 | X85: 0 | Y85: 0 | Z85: 0 | AA85: 0 | AB85: 4452 | AC85: 0 | AD85: 0 | AE85: 0 | AF85: 0 | AG85: 0 | AH85: 0 | AI85: 0 | AJ85: 0 | AK85: 10584 | AL85: 83551 | AM85: 466 | AN85: 0 | AO85: 0 | AP85: 0 | AQ85: 0 | AR85: 0 | AS85: 0 | AT85: 0 | AU85: 0 | AV85: 0 | AW85: 0 | AX85: 0 | AY85: 0 | AZ85: 0 | BA85: 351 | BB85: 0 | BC85: 38218 | BD85: 173025 | BE85: 0 | BF85: 0 | BG85: 0 | BH85: 0 | BI85: 0 | BJ85: 0 | BK85: 24438 | BL85: 1051012 | BM85: 15914 | BN85: 66154 | BO85: =BO178 -> 0 | BP85: 0 | BQ85: 7645 | BR85: 0 | BS85: 0 | BT85: 0 | BU85: 0 | BV85: 0 | BW85: 0 | BX85: 0 | BY85: 0 | BZ85: 0 | CA85: 0 | CB85: 22936 | CC85: 0 | CD85: 0 | CE85: 0 | CF85: 0 | CG85: 0 | CH85: 0 | CI85: 0 | CJ85: 0 | CK85: 0 | CL85: 0 | CM85: 1163661 | CN85: 0 | CO85: 0 | CP85: 0 | CQ85: 38695 | CR85: 0 | CS85: 1202355 | CT85: 56728 | CU85: 281946 | CV85: 0 | CW85: 0 | CX85: 35728 | CY85: 0 | CZ85: 0 | DA85: 0 | DB85: 0 | DC85: 0 | DD85: 0 | DE85: 0 | DF85: 0 | DG85: 0 | DH85: 17500 | DI85: 203772 | DJ85: 0 | DK85: 0 | DL85: 0 | DM85: 0 | DN85: 18194 | DO85: 100 | DP85: 0 | DQ85: 0 | DR85: 0 | DS85: 0 | DT85: 0 | DU85: 42194 | DV85: 0 | DW85: 0 | DX85: 0 | DY85: 0 | DZ85: 0 | EA85: =EA178 -> 0 | EB85: 0 | EC85: 0 | ED85: 0 | EE85: 0 | EF85: 0 | EG85: 0 | EH85: 0 | EI85: 0 | EJ85: 0 | EK85: 0 | EL85: 0 | EM85: 0 | EN85: 0 | EO85: 5000 | EP85: 0 | EQ85: 0 | ER85: 0 | ES85: 0 | ET85: 1511 | EU85: 0 | EV85: 885 | EW85: 0 | EX85: 0 | EY85: 1000 | EZ85: 0 | FA85: 0 | FB85: 0 | FC85: 151579 | FD85: 0 | FE85: 0 | FF85: 0 | FG85: 0 | FH85: 0 | FI85: 0 | FJ85: 0 | FK85: 0 | FL85: 0 | FM85: 35161 | FN85: 0 | FO85: 0 | FP85: 0 | FQ85: 21506 | FR85: 16369 | FS85: 0 | FT85: 0 | FU85: 0 | FV85: 219 | FW85: 0 | FX85: 0 | FY85: 47400 | FZ85: 120020 | GA85: 1056813 | GB85: 38695 | GC85: 1095507
B86: Town of Rotterdam | C86: =C179 -> 420372600000 | D86: Town of Rotterdam | E86: Schenectady | F86: 12/31 | G86: 29094 | H86: 0 | I86: 35.7 | J86: 2459983866 | K86: 8421850 | L86: 12309429 | M86: 0 | N86: 7450 | O86: 0 | P86: 135729 | Q86: 82444 | R86: 0 | S86: 0 | T86: 0 | U86: 3637079 | V86: 0 | W86: 0 | X86: 547575 | Y86: 0 | Z86: 0 | AA86: 0 | AB86: 50980 | AC86: 0 | AD86: 254248 | AE86: 0 | AF86: 0 | AG86: 0 | AH86: 23249 | AI86: 0 | AJ86: 22215 | AK86: 51522 | AL86: 476047 | AM86: 307442 | AN86: 0 | AO86: 0 | AP86: 0 | AQ86: 164371 | AR86: 0 | AS86: 0 | AT86: 0 | AU86: 12184 | AV86: 0 | AW86: 0 | AX86: 0 | AY86: 10954 | AZ86: 0 | BA86: 27601 | BB86: 50327 | BC86: 230239 | BD86: 332647 | BE86: 0 | BF86: 38278 | BG86: 0 | BH86: 0 | BI86: 1620 | BJ86: 0 | BK86: 294486 | BL86: 19068116 | BM86: 173445 | BN86: 618204 | BO86: =BO179 -> 0 | BP86: 0 | BQ86: 170787 | BR86: 0 | BS86: 182494 | BT86: 0 | BU86: 0 | BV86: 5564 | BW86: 0 | BX86: 0 | BY86: 0 | BZ86: 0 | CA86: 0 | CB86: 169935 | CC86: 0 | CD86: 0 | CE86: 1527462 | CF86: 0 | CG86: 0 | CH86: 718 | CI86: 0 | CJ86: 0 | CK86: 0 | CL86: 0 | CM86: 21916725 | CN86: 0 | CO86: 153900 | CP86: 0 | CQ86: 306763 | CR86: 0 | CS86: 22377388 | CT86: 476779 | CU86: 1384262 | CV86: 0 | CW86: 0 | CX86: 158778 | CY86: 24428 | CZ86: 0 | DA86: 0 | DB86: 0 | DC86: 0 | DD86: 0 | DE86: 0 | DF86: 0 | DG86: 0 | DH86: 5530410 | DI86: 39181 | DJ86: 0 | DK86: 0 | DL86: 0 | DM86: 0 | DN86: 210550 | DO86: 3400 | DP86: 0 | DQ86: 0 | DR86: 0 | DS86: 0 | DT86: 0 | DU86: 2086918 | DV86: -7727 | DW86: 0 | DX86: 0 | DY86: 0 | DZ86: 0 | EA86: =EA179 -> 300262 | EB86: 238644 | EC86: 0 | ED86: 0 | EE86: 0 | EF86: 0 | EG86: 0 | EH86: 1608946 | EI86: 0 | EJ86: 0 | EK86: 0 | EL86: 0 | EM86: 0 | EN86: 0 | EO86: 1400 | EP86: 0 | EQ86: 0 | ER86: 386305 | ES86: 0 | ET86: 2786 | EU86: 0 | EV86: 6338 | EW86: 0 | EX86: 0 | EY86: 172750 | EZ86: 0 | FA86: 0 | FB86: 0 | FC86: 864807 | FD86: 0 | FE86: 0 | FF86: 0 | FG86: 739741 | FH86: 0 | FI86: 85659 | FJ86: 0 | FK86: 2747 | FL86: 72387 | FM86: 803441 | FN86: 983943 | FO86: 0 | FP86: 0 | FQ86: 680959 | FR86: 2766697 | FS86: 7791 | FT86: 273 | FU86: 307694 | FV86: 12438 | FW86: 0 | FX86: 0 | FY86: 1033900 | FZ86: 284157 | GA86: 21271043 | GB86: 306763 | GC86: 21577806
B87: City of Schenectady | C87: =C180 -> 420253000000 | D87: City of Schenectady | E87: Schenectady | F87: 12/31 | G87: 66135 | H87: 0 | I87: 10.8 | J87: 2386460919 | K87: 105522383 | L87: 28648922 | M87: 0 | N87: 62236 | O87: 0 | P87: 759154 | Q87: 2192999 | R87: 0 | S87: 0 | T87: 0 | U87: 11100000 | V87: 663542 | W87: 0 | X87: 842776 | Y87: 0 | Z87: 0 | AA87: 0 | AB87: 546441 | AC87: 0 | AD87: 1269982 | AE87: 0 | AF87: 0 | AG87: 189818 | AH87: 0 | AI87: 2316041 | AJ87: 1060439 | AK87: 1159367 | AL87: 7869186 | AM87: 15727373 | AN87: 0 | AO87: 9382 | AP87: 0 | AQ87: 0 | AR87: 0 | AS87: 164413 | AT87: 0 | AU87: 0 | AV87: 0 | AW87: 0 | AX87: 0 | AY87: 0 | AZ87: 0 | BA87: 567921 | BB87: 624294 | BC87: 31397 | BD87: 1032106 | BE87: 5556 | BF87: 972187 | BG87: 0 | BH87: 296581 | BI87: 25000 | BJ87: 0 | BK87: 7728106 | BL87: 85865219 | BM87: 11205994 | BN87: 457937 | BO87: =BO180 -> 56813 | BP87: 313100 | BQ87: 202671 | BR87: 0 | BS87: 1857079 | BT87: 0 | BU87: 0 | BV87: 965352 | BW87: 0 | BX87: 0 | BY87: 0 | BZ87: 0 | CA87: 0 | CB87: 0 | CC87: 0 | CD87: 0 | CE87: 0 | CF87: 5385496 | CG87: 0 | CH87: 738033 | CI87: 0 | CJ87: 0 | CK87: 0 | CL87: 3256635 | CM87: 110304329 | CN87: 2162801 | CO87: 910000 | CP87: 0 | CQ87: 3586210 | CR87: 0 | CS87: 116963340 | CT87: 8162392 | CU87: 2705049 | CV87: 0 | CW87: 0 | CX87: 7775 | CY87: 260637 | CZ87: 0 | DA87: 0 | DB87: 0 | DC87: 0 | DD87: 0 | DE87: 0 | DF87: 0 | DG87: 108529 | DH87: 17145207 | DI87: 11420020 | DJ87: 0 | DK87: 0 | DL87: 0 | DM87: 0 | DN87: 296549 | DO87: 0 | DP87: 0 | DQ87: 0 | DR87: 0 | DS87: 0 | DT87: 0 | DU87: 5431928 | DV87: 0 | DW87: 0 | DX87: 0 | DY87: 0 | DZ87: 0 | EA87: =EA180 -> 0 | EB87: 1778079 | EC87: 0 | ED87: 0 | EE87: 0 | EF87: 0 | EG87: 0 | EH87: 0 | EI87: 0 | EJ87: 0 | EK87: 0 | EL87: 0 | EM87: 1939191 | EN87: 5904417 | EO87: 0 | EP87: 0 | EQ87: 0 | ER87: 1824742 | ES87: 0 | ET87: 10000 | EU87: 0 | EV87: 16399 | EW87: 69303 | EX87: 673748 | EY87: 0 | EZ87: 0 | FA87: 0 | FB87: 0 | FC87: 6858269 | FD87: 0 | FE87: 0 | FF87: 0 | FG87: 8091320 | FH87: 0 | FI87: 4058551 | FJ87: 0 | FK87: 0 | FL87: 0 | FM87: 2459305 | FN87: 5269802 | FO87: 0 | FP87: 458 | FQ87: 2689774 | FR87: 13676176 | FS87: 14875 | FT87: 10690 | FU87: 1709251 | FV87: 108150 | FW87: 0 | FX87: 732632 | FY87: 6770058 | FZ87: 2757800 | GA87: 112961076 | GB87: 3586209 | GC87: 116547285
B88: Capital District | G88: =G4+G25+G48+G79 -> 837967 | H88: 0 | I88: 2189.7 | J88: 66309514835 | K88: 580233027 | L88: 244691656 | M88: 0 | N88: 0 | O88: 0 | P88: 7835397 | Q88: 12429588 | R88: 730769 | S88: 0 | T88: 511021003 | U88: 400000 | V88: 0 | W88: 9328494 | X88: 0 | Y88: 3571116 | Z88: 2877789 | AA88: 0 | AB88: 30378599 | AC88: 0 | AD88: 3235084 | AE88: 121414827 | AF88: 0 | AG88: 2734573 | AH88: 14869171 | AI88: 63107 | AJ88: 6246156 | AK88: 1712536 | AL88: 0 | AM88: =AM4+AM25+AM48+AM79 -> 22143623 | AN88: 0 | AO88: 4344332 | AP88: 6788594 | AQ88: 16035062 | AR88: 0 | AS88: 2963290 | AT88: 0 | AU88: 614832 | AV88: 429531 | AW88: 0 | AX88: 972611 | AY88: 9568244 | AZ88: 9789617 | BA88: 13682486 | BB88: 1909071 | BC88: 5688702 | BD88: 1534756 | BE88: 75372 | BF88: 12033256 | BG88: 0 | BH88: 791936 | BI88: 432163 | BJ88: 6333 | BK88: 38659760 | BL88: 1122003432 | BM88: 0 | BN88: 4592634 | BO88: 6765443 | BP88: 42476611 | BQ88: 9301934 | BR88: 34263278 | BS88: =BS4+BS25+BS48+BS79 -> 8889518 | BT88: 68568898 | BU88: 436877 | BV88: 944881 | BW88: 4111671 | BX88: 0 | BY88: 0 | BZ88: 2429083 | CA88: 0 | CB88: 4228066 | CC88: 11980677 | CD88: 2073269 | CE88: 114807439 | CF88: 3530074 | CG88: 237745 | CH88: 3858394 | CI88: 0 | CJ88: 0 | CK88: 0 | CL88: 5046867 | CM88: 1450546793 | CN88: 75460304 | CO88: 1453236 | CP88: 0 | CQ88: 84289334 | CR88: 0 | CS88: 1611749668 | CT88: 57168480 | CU88: 62414997 | CV88: 205290163 | CW88: 6861093 | CX88: 2187018 | CY88: =CY4+CY25+CY48+CY79 -> 893681 | CZ88: 0 | DA88: 0 | DB88: 0 | DC88: 0 | DD88: 0 | DE88: 53853031 | DF88: 45838553 | DG88: 5486684 | DH88: 31459797 | DI88: 454606 | DJ88: 182443 | DK88: 80838668 | DL88: 0 | DM88: 2248271 | DN88: 879208 | DO88: 10499307 | DP88: 19445530 | DQ88: 35310664 | DR88: 1507274 | DS88: 64394921 | DT88: 2669367 | DU88: 47437464 | DV88: 248137 | DW88: 2195872 | DX88: 1104816 | DY88: 0 | DZ88: 0 | EA88: 8744056 | EB88: 0 | EC88: 834769 | ED88: 54973264 | EE88: =EE4+EE25+EE48+EE79 -> 128981555 | EF88: 164156190 | EG88: 51173207 | EH88: 0 | EI88: 3680943 | EJ88: 7208739 | EK88: 19813813 | EL88: 757324 | EM88: 943596 | EN88: 455038 | EO88: 700096 | EP88: 0 | EQ88: 3157129 | ER88: 4960430 | ES88: 0 | ET88: 1783115 | EU88: 6225296 | EV88: 311245 | EW88: 183750 | EX88: 1158254 | EY88: 12420208 | EZ88: 1205571 | FA88: 0 | FB88: 3165989 | FC88: 0 | FD88: 0 | FE88: 0 | FF88: 0 | FG88: 28216282 | FH88: 0 | FI88: 342224 | FJ88: 0 | FK88: =FK4+FK25+FK48+FK79 -> 0 | FL88: 116 | FM88: 20268308 | FN88: 0 | FO88: 0 | FP88: 0 | FQ88: 11408121 | FR88: 62566800 | FS88: 0 | FT88: 0 | FU88: 10059383 | FV88: 584580 | FW88: 0 | FX88: 100098075 | FY88: 36677292 | FZ88: 21909077 | GA88: 1509993877 | GB88: 84289335 | GC88: 1594283212
A90: =SUM(B90:GC90) -> 0 | B90: =IF(B1<>B94,1,) -> 0 | C90: =IF(C1<>C94,1,) -> 0 | D90: 0 | E90: 0 | F90: 0 | G90: 0 | H90: 0 | I90: 0 | J90: 0 | K90: 0 | L90: 0 | M90: 0 | N90: 0 | O90: 0 | P90: 0 | Q90: 0 | R90: 0 | S90: 0 | T90: 0 | U90: 0 | V90: 0 | W90: 0 | X90: 0 | Y90: 0 | Z90: 0 | AA90: 0 | AB90: 0 | AC90: 0 | AD90: 0 | AE90: 0 | AF90: 0 | AG90: 0 | AH90: 0 | AI90: 0 | AJ90: 0 | AK90: 0 | AL90: 0 | AM90: 0 | AN90: 0 | AO90: 0 | AP90: 0 | AQ90: 0 | AR90: 0 | AS90: 0 | AT90: 0 | AU90: 0 | AV90: 0 | AW90: 0 | AX90: 0 | AY90: 0 | AZ90: 0 | BA90: 0 | BB90: 0 | BC90: 0 | BD90: 0 | BE90: 0 | BF90: 0 | BG90: 0 | BH90: 0 | BI90: 0 | BJ90: 0 | BK90: 0 | BL90: 0 | BM90: 0 | BN90: 0 | BO90: =IF(BO1<>BO94,1,) -> 0 | BP90: 0 | BQ90: 0 | BR90: 0 | BS90: 0 | BT90: 0 | BU90: 0 | BV90: 0 | BW90: 0 | BX90: 0 | BY90: 0 | BZ90: 0 | CA90: 0 | CB90: 0 | CC90: 0 | CD90: 0 | CE90: 0 | CF90: 0 | CG90: 0 | CH90: 0 | CI90: 0 | CJ90: 0 | CK90: 0 | CL90: 0 | CM90: 0 | CN90: 0 | CO90: 0 | CP90: 0 | CQ90: 0 | CR90: 0 | CS90: 0 | CT90: 0 | CU90: 0 | CV90: 0 | CW90: 0 | CX90: 0 | CY90: 0 | CZ90: 0 | DA90: 0 | DB90: 0 | DC90: 0 | DD90: 0 | DE90: 0 | DF90: 0 | DG90: 0 | DH90: 0 | DI90: 0 | DJ90: 0 | DK90: 0 | DL90: 0 | DM90: 0 | DN90: 0 | DO90: 0 | DP90: 0 | DQ90: 0 | DR90: 0 | DS90: 0 | DT90: 0 | DU90: 0 | DV90: 0 | DW90: 0 | DX90: 0 | DY90: 0 | DZ90: 0 | EA90: =IF(EA1<>EA94,1,) -> 0 | EB90: 0 | EC90: 0 | ED90: 0 | EE90: 0 | EF90: 0 | EG90: 0 | EH90: 0 | EI90: 0 | EJ90: 0 | EK90: 0 | EL90: 0 | EM90: 0 | EN90: 0 | EO90: 0 | EP90: 0 | EQ90: 0 | ER90: 0 | ES90: 0 | ET90: 0 | EU90: 0 | EV90: 0 | EW90: 0 | EX90: 0 | EY90: 0 | EZ90: 0 | FA90: 0 | FB90: 0 | FC90: 0 | FD90: 0 | FE90: 0 | FF90: 0 | FG90: 0 | FH90: 0 | FI90: 0 | FJ90: 0 | FK90: 0 | FL90: 0 | FM90: 0 | FN90: 0 | FO90: 0 | FP90: 0 | FQ90: 0 | FR90: 0 | FS90: 0 | FT90: 0 | FU90: 0 | FV90: 0 | FW90: 0 | FX90: 0 | FY90: 0 | FZ90: 0 | GA90: 0 | GB90: 0 | GC90: 0
A91: =SUM(B91:GC91) -> 0 | B91: =IF(B2<>B95,1,) -> 0 | C91: 0 | D91: 0 | E91: 0 | F91: 0 | G91: 0 | H91: 0 | I91: 0 | J91: 0 | K91: 0 | L91: 0 | M91: 0 | N91: 0 | O91: 0 | P91: 0 | Q91: 0 | R91: 0 | S91: 0 | T91: 0 | U91: 0 | V91: 0 | W91: 0 | X91: 0 | Y91: 0 | Z91: 0 | AA91: 0 | AB91: 0 | AC91: 0 | AD91: 0 | AE91: 0 | AF91: 0 | AG91: 0 | AH91: 0 | AI91: 0 | AJ91: 0 | AK91: 0 | AL91: 0 | AM91: 0 | AN91: 0 | AO91: 0 | AP91: 0 | AQ91: 0 | AR91: 0 | AS91: 0 | AT91: 0 | AU91: 0 | AV91: 0 | AW91: 0 | AX91: 0 | AY91: 0 | AZ91: 0 | BA91: 0 | BB91: 0 | BC91: 0 | BD91: 0 | BE91: 0 | BF91: 0 | BG91: 0 | BH91: 0 | BI91: 0 | BJ91: 0 | BK91: 0 | BL91: 0 | BM91: 0 | BN91: =IF(BN2<>BN95,1,) -> 0 | BO91: 0 | BP91: 0 | BQ91: 0 | BR91: 0 | BS91: 0 | BT91: 0 | BU91: 0 | BV91: 0 | BW91: 0 | BX91: 0 | BY91: 0 | BZ91: 0 | CA91: 0 | CB91: 0 | CC91: 0 | CD91: 0 | CE91: 0 | CF91: 0 | CG91: 0 | CH91: 0 | CI91: 0 | CJ91: 0 | CK91: 0 | CL91: 0 | CM91: 0 | CN91: 0 | CO91: 0 | CP91: 0 | CQ91: 0 | CR91: 0 | CS91: 0 | CT91: 0 | CU91: 0 | CV91: 0 | CW91: 0 | CX91: 0 | CY91: 0 | CZ91: 0 | DA91: 0 | DB91: 0 | DC91: 0 | DD91: 0 | DE91: 0 | DF91: 0 | DG91: 0 | DH91: 0 | DI91: 0 | DJ91: 0 | DK91: 0 | DL91: 0 | DM91: 0 | DN91: 0 | DO91: 0 | DP91: 0 | DQ91: 0 | DR91: 0 | DS91: 0 | DT91: 0 | DU91: 0 | DV91: 0 | DW91: 0 | DX91: 0 | DY91: 0 | DZ91: =IF(DZ2<>DZ95,1,) -> 0 | EA91: 0 | EB91: 0 | EC91: 0 | ED91: 0 | EE91: 0 | EF91: 0 | EG91: 0 | EH91: 0 | EI91: 0 | EJ91: 0 | EK91: 0 | EL91: 0 | EM91: 0 | EN91: 0 | EO91: 0 | EP91: 0 | EQ91: 0 | ER91: 0 | ES91: 0 | ET91: 0 | EU91: 0 | EV91: 0 | EW91: 0 | EX91: 0 | EY91: 0 | EZ91: 0 | FA91: 0 | FB91: 0 | FC91: 0 | FD91: 0 | FE91: 0 | FF91: 0 | FG91: 0 | FH91: 0 | FI91: 0 | FJ91: 0 | FK91: 0 | FL91: 0 | FM91: 0 | FN91: 0 | FO91: 0 | FP91: 0 | FQ91: 0 | FR91: 0 | FS91: 0 | FT91: 0 | FU91: 0 | FV91: 0 | FW91: 0 | FX91: 0 | FY91: 0 | FZ91: 0 | GA91: 0 | GB91: 0 | GC91: 0
